{"text_format":"1","workbook":"xlsx","n_sheets":4,"sheets":["Form","Main of June","1st June","16-07-2019"],"not_rendered":{"charts":0,"images":0,"macros":1,"external_links":0,"defined_names":6,"comments":0,"pivot_tables":0},"unopened":[],"bounds":{"document_bytes":16777216,"sheet_cells":100000,"rows_first":2000,"rows_last":500,"rows_between":2000,"halvings":0,"cell_chars":16384,"cell_head_chars":4096},"cells_cut":0,"cells_raw":0,"read":"whole","date_system":"1900"}

{"sheet":"Form","index":0,"n_rows":198,"n_cols":25,"rows_kept":198,"cut":false,"hidden":false,"merged":[[0,14,0,19]]}
["Other","App. Date","Name","Surname","Pasaport No.","Date of birth","Note of stutus","Price $","Paid $","Route","Unpaid $",null,{"$f":"MID(CELL(\"filename\"),FIND(\"]\",CELL(\"filename\"))+1,LEN(CELL(\"filename\"))-FIND(\"]\",CELL(\"filename\")))","v":"Main of June"},null,"TOTAL"]
[]
[null,null,null,null,null,null,null,null,null,null,null,null,"DONE",null,"Total amount",null,null,null,"Route","Total Unpaid",null,null,{"$f":"Noblanks(J2:J499)","v":""},"Route","Count of Route"]
[null,null,null,null,null,null,null,null,null,null,null,null,"CANCELLED",null,{"$f":"SUM(H2:H69)","v":0},null,null,null,{"$f":"IF(ISERROR(INDEX($W$3:$W$70,MATCH(0,COUNTIF($S$3:S3,$W$3:$W$69),0))),\"\",INDEX($W$3:$W$69,MATCH(0,COUNTIF($S$3:S3,$W$3:$W$69),0)))","v":""},{"$f":"IF(S4<>\"\",SUMPRODUCT(--($J$2:$J$69=S4),$K$2:$K$69),\"\")","v":""},null,null,{"$f":"Noblanks(U6:U499)","v":""},"MISTAKE IN DOB",{"$f":"COUNTIF(J2:J70,\"MISTAKE IN DOB\")","v":0}]
[null,null,null,null,null,null,null,null,null,null,null,null,"REFUSED",null,null,null,null,null,{"$f":"IF(ISERROR(INDEX($W$3:$W$70,MATCH(0,COUNTIF($S$3:S4,$W$3:$W$69),0))),\"\",INDEX($W$3:$W$69,MATCH(0,COUNTIF($S$3:S4,$W$3:$W$69),0)))","v":""},{"$f":"IF(S5<>\"\",SUMPRODUCT(--($J$2:$J$69=S5),$K$2:$K$69),\"\")","v":""},null,null,{"$f":"Noblanks(U7:U500)","v":""}]
[null,null,null,null,null,null,null,null,null,null,null,null,"MISTAKE",null,"Total Paid",null,"Difrent amount",null,{"$f":"IF(ISERROR(INDEX($W$3:$W$70,MATCH(0,COUNTIF($S$3:S5,$W$3:$W$69),0))),\"\",INDEX($W$3:$W$69,MATCH(0,COUNTIF($S$3:S5,$W$3:$W$69),0)))","v":""},{"$f":"IF(S6<>\"\",SUMPRODUCT(--($J$2:$J$69=S6),$K$2:$K$69),\"\")","v":""},{"$f":"IF(K2=\"\",\"\",J2)","v":""},null,{"$f":"Noblanks(U8:U501)","v":""}]
[null,null,null,null,null,null,null,null,null,null,null,null,"GREEN PASS.",null,{"$f":"SUM(I2:I67)","v":0},null,{"$f":"O4-(O7+T23)","v":0},null,{"$f":"IF(ISERROR(INDEX($W$3:$W$70,MATCH(0,COUNTIF($S$3:S6,$W$3:$W$69),0))),\"\",INDEX($W$3:$W$69,MATCH(0,COUNTIF($S$3:S6,$W$3:$W$69),0)))","v":""},{"$f":"IF(S7<>\"\",SUMPRODUCT(--($J$2:$J$69=S7),$K$2:$K$69),\"\")","v":""},"",null,{"$f":"Noblanks(U9:U502)","v":""}]
[null,null,null,null,null,null,null,null,null,null,null,null,null,null,null,null,null,null,{"$f":"IF(ISERROR(INDEX($W$3:$W$70,MATCH(0,COUNTIF($S$3:S7,$W$3:$W$69),0))),\"\",INDEX($W$3:$W$69,MATCH(0,COUNTIF($S$3:S7,$W$3:$W$69),0)))","v":""},{"$f":"IF(S8<>\"\",SUMPRODUCT(--($J$2:$J$69=S8),$K$2:$K$69),\"\")","v":""},"",null,{"$f":"Noblanks(U10:U503)","v":""}]
[null,null,null,null,null,null,null,null,null,null,null,null,null,null,"Total UnPaid",null,{"$f":"COUNT(B:B)","v":0},null,{"$f":"IF(ISERROR(INDEX($W$3:$W$70,MATCH(0,COUNTIF($S$3:S8,$W$3:$W$69),0))),\"\",INDEX($W$3:$W$69,MATCH(0,COUNTIF($S$3:S8,$W$3:$W$69),0)))","v":""},{"$f":"IF(S9<>\"\",SUMPRODUCT(--($J$2:$J$69=S9),$K$2:$K$69),\"\")","v":""},"",null,{"$f":"Noblanks(U11:U504)","v":""}]
[null,null,null,null,null,null,null,null,null,null,null,null,null,null,{"$f":"SUM(T4:T15)","v":0},null,null,null,{"$f":"IF(ISERROR(INDEX($W$3:$W$70,MATCH(0,COUNTIF($S$3:S9,$W$3:$W$69),0))),\"\",INDEX($W$3:$W$69,MATCH(0,COUNTIF($S$3:S9,$W$3:$W$69),0)))","v":""},{"$f":"IF(S10<>\"\",SUMPRODUCT(--($J$2:$J$69=S10),$K$2:$K$69),\"\")","v":""},"",null,{"$f":"Noblanks(U12:U505)","v":""}]
[null,null,null,null,null,null,null,null,null,null,null,null,null,null,null,null,null,null,{"$f":"IF(ISERROR(INDEX($W$3:$W$70,MATCH(0,COUNTIF($S$3:S10,$W$3:$W$69),0))),\"\",INDEX($W$3:$W$69,MATCH(0,COUNTIF($S$3:S10,$W$3:$W$69),0)))","v":""},{"$f":"IF(S11<>\"\",SUMPRODUCT(--($J$2:$J$69=S11),$K$2:$K$69),\"\")","v":""},"",null,{"$f":"Noblanks(U13:U506)","v":""}]
[null,null,null,null,null,null,null,null,null,null,null,null,null,null,null,null,null,null,{"$f":"IF(ISERROR(INDEX($W$3:$W$70,MATCH(0,COUNTIF($S$3:S11,$W$3:$W$69),0))),\"\",INDEX($W$3:$W$69,MATCH(0,COUNTIF($S$3:S11,$W$3:$W$69),0)))","v":""},{"$f":"IF(S12<>\"\",SUMPRODUCT(--($J$2:$J$69=S12),$K$2:$K$69),\"\")","v":""},"",null,{"$f":"Noblanks(U14:U507)","v":""}]
[null,null,null,null,null,null,null,null,null,null,null,null,null,null,null,null,null,null,{"$f":"IF(ISERROR(INDEX($W$3:$W$70,MATCH(0,COUNTIF($S$3:S12,$W$3:$W$69),0))),\"\",INDEX($W$3:$W$69,MATCH(0,COUNTIF($S$3:S12,$W$3:$W$69),0)))","v":""},null,"",null,{"$f":"Noblanks(U15:U508)","v":""}]
[null,null,null,null,null,null,null,null,null,null,null,null,null,null,null,null,null,null,{"$f":"IF(ISERROR(INDEX($W$3:$W$70,MATCH(0,COUNTIF($S$3:S13,$W$3:$W$69),0))),\"\",INDEX($W$3:$W$69,MATCH(0,COUNTIF($S$3:S13,$W$3:$W$69),0)))","v":""},null,"",null,{"$f":"Noblanks(U16:U509)","v":""}]
[null,null,null,null,null,null,null,null,null,null,null,null,null,null,null,null,null,null,{"$f":"IF(ISERROR(INDEX($W$3:$W$70,MATCH(0,COUNTIF($S$3:S14,$W$3:$W$69),0))),\"\",INDEX($W$3:$W$69,MATCH(0,COUNTIF($S$3:S14,$W$3:$W$69),0)))","v":""},null,"",null,{"$f":"Noblanks(U17:U510)","v":""}]
[null,null,null,null,null,null,null,null,null,null,null,null,null,null,null,null,null,null,{"$f":"IF(ISERROR(INDEX($W$3:$W$70,MATCH(0,COUNTIF($S$3:S15,$W$3:$W$69),0))),\"\",INDEX($W$3:$W$69,MATCH(0,COUNTIF($S$3:S15,$W$3:$W$69),0)))","v":""},null,"",{"$f":"Noblanks(X13:X15)","v":""},{"$f":"Noblanks(U18:U511)","v":""}]
[null,null,null,null,null,null,null,null,null,null,null,null,null,null,null,null,null,null,{"$f":"IF(ISERROR(INDEX($W$3:$W$70,MATCH(0,COUNTIF($S$3:S16,$W$3:$W$69),0))),\"\",INDEX($W$3:$W$69,MATCH(0,COUNTIF($S$3:S16,$W$3:$W$69),0)))","v":""},null,"",{"$f":"Noblanks(X14:X16)","v":""},{"$f":"Noblanks(U19:U512)","v":""}]
[null,null,null,null,null,null,null,null,null,null,null,null,null,null,null,null,null,null,{"$f":"IF(ISERROR(INDEX($W$3:$W$70,MATCH(0,COUNTIF($S$3:S17,$W$3:$W$69),0))),\"\",INDEX($W$3:$W$69,MATCH(0,COUNTIF($S$3:S17,$W$3:$W$69),0)))","v":""},null,"",null,{"$f":"Noblanks(U20:U513)","v":""}]
[null,null,null,null,null,null,null,null,null,null,null,null,null,null,null,null,null,null,{"$f":"IF(ISERROR(INDEX($W$3:$W$70,MATCH(0,COUNTIF($S$3:S18,$W$3:$W$69),0))),\"\",INDEX($W$3:$W$69,MATCH(0,COUNTIF($S$3:S18,$W$3:$W$69),0)))","v":""},null,"",null,{"$f":"Noblanks(U21:U514)","v":""}]
[null,null,null,null,null,null,null,null,null,null,null,null,null,null,null,null,null,null,{"$f":"IF(ISERROR(INDEX($W$3:$W$70,MATCH(0,COUNTIF($S$3:S19,$W$3:$W$69),0))),\"\",INDEX($W$3:$W$69,MATCH(0,COUNTIF($S$3:S19,$W$3:$W$69),0)))","v":""},null,"",null,{"$f":"Noblanks(U22:U515)","v":""}]
[null,null,null,null,null,null,null,null,null,null,null,null,null,null,null,null,null,null,{"$f":"IF(ISERROR(INDEX($W$3:$W$70,MATCH(0,COUNTIF($S$3:S20,$W$3:$W$69),0))),\"\",INDEX($W$3:$W$69,MATCH(0,COUNTIF($S$3:S20,$W$3:$W$69),0)))","v":""},null,"",null,{"$f":"Noblanks(U23:U516)","v":""}]
[null,null,null,null,null,null,null,null,null,null,null,null,null,null,null,null,null,null,{"$f":"IF(ISERROR(INDEX($W$3:$W$70,MATCH(0,COUNTIF($S$3:S21,$W$3:$W$69),0))),\"\",INDEX($W$3:$W$69,MATCH(0,COUNTIF($S$3:S21,$W$3:$W$69),0)))","v":""},null,"",null,{"$f":"Noblanks(U24:U517)","v":""},null,{"$f":"IFERROR(INDEX($J$2:$J$499,SMALL(IF($J$2:$J$499<>\"\",ROW($J$1:$J$499)-ROW($J$2)+1,\"\"),ROWS($Y$21:Y22))),\"\")","v":""}]
[null,null,null,null,null,null,null,null,null,null,null,null,null,null,null,null,null,null,"Total",{"$f":"SUM(T4:T22)","v":0},"",null,{"$f":"Noblanks(U25:U518)","v":""},null,{"$f":"IFERROR(INDEX($J$2:$J$499,SMALL(IF($J$2:$J$499<>\"\",ROW($J$1:$J$499)-ROW($J$2)+1,\"\"),ROWS($Y$21:Y23))),\"\")","v":""}]
[null,null,null,null,null,null,null,null,null,null,null,null,null,null,null,null,null,null,null,null,"",null,{"$f":"Noblanks(U26:U519)","v":""},null,{"$f":"IFERROR(INDEX($J$2:$J$499,SMALL(IF($J$2:$J$499<>\"\",ROW($J$1:$J$499)-ROW($J$2)+1,\"\"),ROWS($Y$21:Y24))),\"\")","v":""}]
[null,null,null,null,null,null,null,null,null,null,null,null,null,null,null,null,null,null,null,null,"",null,{"$f":"Noblanks(U27:U520)","v":""},null,{"$f":"IFERROR(INDEX($J$2:$J$499,SMALL(IF($J$2:$J$499<>\"\",ROW($J$1:$J$499)-ROW($J$2)+1,\"\"),ROWS($Y$21:Y25))),\"\")","v":""}]
[null,null,null,null,null,null,null,null,null,null,null,null,null,null,null,null,null,null,null,null,"",null,{"$f":"Noblanks(U28:U521)","v":""}]
[null,null,null,null,null,null,null,null,null,null,null,null,null,null,null,null,null,null,null,null,"",null,{"$f":"Noblanks(U29:U522)","v":""}]
[null,null,null,null,null,null,null,null,null,null,null,null,null,null,null,null,null,null,null,null,"",null,{"$f":"Noblanks(U30:U523)","v":""}]
[null,null,null,null,null,null,null,null,null,null,null,null,null,null,null,null,null,null,null,null,"",null,{"$f":"Noblanks(U31:U524)","v":""}]
[null,null,null,null,null,null,null,null,null,null,null,null,null,null,null,null,null,null,null,null,"",null,{"$f":"Noblanks(U32:U525)","v":""}]
[null,null,null,null,null,null,null,null,null,null,null,null,null,null,null,null,null,null,null,null,"",null,{"$f":"Noblanks(U33:U526)","v":""}]
[null,null,null,null,null,null,null,null,null,null,null,null,null,null,null,null,null,null,null,null,"",null,{"$f":"Noblanks(U34:U527)","v":""}]
[null,null,null,null,null,null,null,null,null,null,null,null,null,null,null,null,null,null,null,null,"",null,{"$f":"Noblanks(U35:U528)","v":""}]
[null,null,null,null,null,null,null,null,null,null,null,null,null,null,null,null,null,null,null,null,"",null,{"$f":"Noblanks(U36:U529)","v":""}]
[null,null,null,null,null,null,null,null,null,null,null,null,null,null,null,null,null,null,null,null,"",null,{"$f":"Noblanks(U37:U530)","v":""}]
[null,null,null,null,null,null,null,null,null,null,null,null,null,null,null,null,null,null,null,null,"",null,{"$f":"Noblanks(U38:U531)","v":""}]
[null,null,null,null,null,null,null,null,null,null,null,null,null,null,null,null,null,null,null,null,"",null,{"$f":"Noblanks(U39:U532)","v":""}]
[null,null,null,null,null,null,null,null,null,null,null,null,null,null,null,null,null,null,null,null,"",null,{"$f":"Noblanks(U40:U533)","v":""}]
[null,null,null,null,null,null,null,null,null,null,null,null,null,null,null,null,null,null,null,null,"",null,{"$f":"Noblanks(U41:U534)","v":""}]
[null,null,null,null,null,null,null,null,null,null,null,null,null,null,null,null,null,null,null,null,"",null,{"$f":"Noblanks(U42:U535)","v":""}]
[null,null,null,null,null,null,null,null,null,null,null,null,null,null,null,null,null,null,null,null,"",null,{"$f":"Noblanks(U43:U536)","v":""}]
[null,null,null,null,null,null,null,null,null,null,null,null,null,null,null,null,null,null,null,null,"",null,{"$f":"Noblanks(U44:U537)","v":""}]
[null,null,null,null,null,null,null,null,null,null,null,null,null,null,null,null,null,null,null,null,"",null,{"$f":"Noblanks(U45:U538)","v":""}]
[null,null,null,null,null,null,null,null,null,null,null,null,null,null,null,null,null,null,null,null,"",null,{"$f":"Noblanks(U46:U539)","v":""}]
[null,null,null,null,null,null,null,null,null,null,null,null,null,null,null,null,null,null,null,null,"",null,{"$f":"Noblanks(U47:U540)","v":""}]
[null,null,null,null,null,null,null,null,null,null,null,null,null,null,null,null,null,null,null,null,"",null,{"$f":"Noblanks(U48:U541)","v":""}]
[null,null,null,null,null,null,null,null,null,null,null,null,null,null,null,null,null,null,null,null,"",null,{"$f":"Noblanks(U49:U542)","v":""}]
[null,null,null,null,null,null,null,null,null,null,null,null,null,null,null,null,null,null,null,null,"",null,{"$f":"Noblanks(U50:U543)","v":""}]
[null,null,null,null,null,null,null,null,null,null,null,null,null,null,null,null,null,null,null,null,"",null,{"$f":"Noblanks(U51:U544)","v":""}]
[null,null,null,null,null,null,null,null,null,null,null,null,null,null,null,null,null,null,null,null,"",null,{"$f":"Noblanks(U52:U545)","v":""}]
[null,null,null,null,null,null,null,null,null,null,null,null,null,null,null,null,null,null,null,null,"",null,{"$f":"Noblanks(U53:U546)","v":""}]
[null,null,null,null,null,null,null,null,null,null,null,null,null,null,null,null,null,null,null,null,"",null,{"$f":"Noblanks(U54:U547)","v":""}]
[null,null,null,null,null,null,null,null,null,null,null,null,null,null,null,null,null,null,null,null,"",null,{"$f":"Noblanks(U55:U548)","v":""}]
[null,null,null,null,null,null,null,null,null,null,null,null,null,null,null,null,null,null,null,null,"",null,{"$f":"Noblanks(U56:U549)","v":""}]
[null,null,null,null,null,null,null,null,null,null,null,null,null,null,null,null,null,null,null,null,"",null,{"$f":"Noblanks(U57:U550)","v":""}]
[null,null,null,null,null,null,null,null,null,null,null,null,null,null,null,null,null,null,null,null,"",null,{"$f":"Noblanks(U58:U551)","v":""}]
[null,null,null,null,null,null,null,null,null,null,null,null,null,null,null,null,null,null,null,null,"",null,{"$f":"Noblanks(U59:U552)","v":""}]
[null,null,null,null,null,null,null,null,null,null,null,null,null,null,null,null,null,null,null,null,"",null,{"$f":"Noblanks(U60:U553)","v":""}]
[null,null,null,null,null,null,null,null,null,null,null,null,null,null,null,null,null,null,null,null,"",null,{"$f":"Noblanks(U61:U554)","v":""}]
[null,null,null,null,null,null,null,null,null,null,null,null,null,null,null,null,null,null,null,null,"",null,{"$f":"Noblanks(U62:U555)","v":""}]
[null,null,null,null,null,null,null,null,null,null,null,null,null,null,null,null,null,null,null,null,"",null,{"$f":"Noblanks(U63:U556)","v":""}]
[null,null,null,null,null,null,null,null,null,null,null,null,null,null,null,null,null,null,null,null,"",null,{"$f":"Noblanks(U64:U557)","v":""}]
[null,null,null,null,null,null,null,null,null,null,null,null,null,null,null,null,null,null,null,null,"",null,{"$f":"Noblanks(U65:U558)","v":""}]
[null,null,null,null,null,null,null,null,null,null,null,null,null,null,null,null,null,null,null,null,"",null,{"$f":"Noblanks(U66:U559)","v":""}]
[null,null,null,null,null,null,null,null,null,null,null,null,null,null,null,null,null,null,null,null,"",null,{"$f":"Noblanks(U67:U560)","v":""}]
[null,null,null,null,null,null,null,null,null,null,null,null,null,null,null,null,null,null,null,null,"",null,{"$f":"Noblanks(U68:U561)","v":""}]
[null,null,null,null,null,null,null,null,null,null,null,null,null,null,null,null,null,null,null,null,"",null,{"$f":"Noblanks(U69:U562)","v":""}]
[null,null,null,null,null,null,null,null,null,null,null,null,null,null,null,null,null,null,null,null,"",null,{"$f":"Noblanks(U70:U563)","v":""}]
[null,null,null,null,null,null,null,null,null,null,null,null,null,null,null,null,null,null,null,null,"",null,{"$f":"Noblanks(U71:U564)","v":""}]
[null,null,null,null,null,null,null,null,null,null,null,null,null,null,null,null,null,null,null,null,{"$f":"IF(K66=\"\",\"\",J66)","v":""},null,{"$f":"Noblanks(U72:U565)","v":""}]
[null,null,null,null,null,null,null,null,null,null,null,null,null,null,null,null,null,null,null,null,"",null,{"$f":"Noblanks(U73:U566)","v":""}]
[null,null,null,null,null,null,null,null,null,null,null,null,null,null,null,null,null,null,null,null,"",null,{"$f":"Noblanks(U74:U567)","v":""}]
[null,null,null,null,null,null,null,null,null,null,null,null,null,null,null,null,null,null,null,null,"",null,{"$f":"Noblanks(U75:U568)","v":""}]
[null,null,null,null,null,null,null,null,null,null,null,null,null,null,null,null,null,null,null,null,"",null,{"$f":"Noblanks(U76:U569)","v":""}]
[null,null,null,null,null,null,null,null,null,null,null,null,null,null,null,null,null,null,null,null,"",null,{"$f":"Noblanks(U77:U570)","v":""}]
[null,null,null,null,null,null,null,null,null,null,null,null,null,null,null,null,null,null,null,null,"",null,{"$f":"Noblanks(U78:U571)","v":""}]
[null,null,null,null,null,null,null,null,null,null,null,null,null,null,null,null,null,null,null,null,"",null,{"$f":"Noblanks(U79:U572)","v":""}]
[null,null,null,null,null,null,null,null,null,null,null,null,null,null,null,null,null,null,null,null,"",null,{"$f":"Noblanks(U80:U573)","v":""}]
[null,null,null,null,null,null,null,null,null,null,null,null,null,null,null,null,null,null,null,null,"",null,{"$f":"Noblanks(U81:U574)","v":""}]
[null,null,null,null,null,null,null,null,null,null,null,null,null,null,null,null,null,null,null,null,"",null,{"$f":"Noblanks(U82:U575)","v":""}]
[null,null,null,null,null,null,null,null,null,null,null,null,null,null,null,null,null,null,null,null,"",null,{"$f":"Noblanks(U83:U576)","v":""}]
[null,null,null,null,null,null,null,null,null,null,null,null,null,null,null,null,null,null,null,null,"",null,{"$f":"Noblanks(U84:U577)","v":""}]
[null,null,null,null,null,null,null,null,null,null,null,null,null,null,null,null,null,null,null,null,"",null,{"$f":"Noblanks(U85:U578)","v":""}]
[null,null,null,null,null,null,null,null,null,null,null,null,null,null,null,null,null,null,null,null,"",null,{"$f":"Noblanks(U86:U579)","v":""}]
[null,null,null,null,null,null,null,null,null,null,null,null,null,null,null,null,null,null,null,null,"",null,{"$f":"Noblanks(U87:U580)","v":""}]
[null,null,null,null,null,null,null,null,null,null,null,null,null,null,null,null,null,null,null,null,"",null,{"$f":"Noblanks(U88:U581)","v":""}]
[null,null,null,null,null,null,null,null,null,null,null,null,null,null,null,null,null,null,null,null,"",null,{"$f":"Noblanks(J86:J583)","v":""}]
[null,null,null,null,null,null,null,null,null,null,null,null,null,null,null,null,null,null,null,null,"",null,{"$f":"Noblanks(J87:J584)","v":""}]
[null,null,null,null,null,null,null,null,null,null,null,null,null,null,null,null,null,null,null,null,"",null,{"$f":"Noblanks(J88:J585)","v":""}]
[null,null,null,null,null,null,null,null,null,null,null,null,null,null,null,null,null,null,null,null,"",null,{"$f":"Noblanks(J89:J586)","v":""}]
[null,null,null,null,null,null,null,null,null,null,null,null,null,null,null,null,null,null,null,null,"",null,{"$f":"Noblanks(J90:J587)","v":""}]
[null,null,null,null,null,null,null,null,null,null,null,null,null,null,null,null,null,null,null,null,"",null,{"$f":"Noblanks(J91:J588)","v":""}]
[null,null,null,null,null,null,null,null,null,null,null,null,null,null,null,null,null,null,null,null,"",null,{"$f":"Noblanks(J92:J589)","v":""}]
[null,null,null,null,null,null,null,null,null,null,null,null,null,null,null,null,null,null,null,null,"",null,{"$f":"Noblanks(J93:J590)","v":""}]
[null,null,null,null,null,null,null,null,null,null,null,null,null,null,null,null,null,null,null,null,"",null,{"$f":"Noblanks(J94:J591)","v":""}]
[null,null,null,null,null,null,null,null,null,null,null,null,null,null,null,null,null,null,null,null,"",null,{"$f":"Noblanks(J95:J592)","v":""}]
[null,null,null,null,null,null,null,null,null,null,null,null,null,null,null,null,null,null,null,null,"",null,{"$f":"Noblanks(J96:J593)","v":""}]
[null,null,null,null,null,null,null,null,null,null,null,null,null,null,null,null,null,null,null,null,"",null,{"$f":"Noblanks(J97:J594)","v":""}]
[null,null,null,null,null,null,null,null,null,null,null,null,null,null,null,null,null,null,null,null,"",null,{"$f":"Noblanks(J98:J595)","v":""}]
[null,null,null,null,null,null,null,null,null,null,null,null,null,null,null,null,null,null,null,null,"",null,{"$f":"Noblanks(J99:J596)","v":""}]
[null,null,null,null,null,null,null,null,null,null,null,null,null,null,null,null,null,null,null,null,"",null,{"$f":"Noblanks(J100:J597)","v":""}]
[null,null,null,null,null,null,null,null,null,null,null,null,null,null,null,null,null,null,null,null,"",null,{"$f":"Noblanks(J101:J598)","v":""}]
[null,null,null,null,null,null,null,null,null,null,null,null,null,null,null,null,null,null,null,null,null,null,{"$f":"Noblanks(J102:J599)","v":""}]
[null,null,null,null,null,null,null,null,null,null,null,null,null,null,null,null,null,null,null,null,null,null,{"$f":"Noblanks(J103:J600)","v":""}]
[null,null,null,null,null,null,null,null,null,null,null,null,null,null,null,null,null,null,null,null,null,null,{"$f":"Noblanks(J104:J601)","v":""}]
[null,null,null,null,null,null,null,null,null,null,null,null,null,null,null,null,null,null,null,null,null,null,{"$f":"Noblanks(J105:J602)","v":""}]
[null,null,null,null,null,null,null,null,null,null,null,null,null,null,null,null,null,null,null,null,null,null,{"$f":"Noblanks(J106:J603)","v":""}]
[null,null,null,null,null,null,null,null,null,null,null,null,null,null,null,null,null,null,null,null,null,null,{"$f":"Noblanks(J107:J604)","v":""}]
[null,null,null,null,null,null,null,null,null,null,null,null,null,null,null,null,null,null,null,null,null,null,{"$f":"Noblanks(J108:J605)","v":""}]
[null,null,null,null,null,null,null,null,null,null,null,null,null,null,null,null,null,null,null,null,null,null,{"$f":"Noblanks(J109:J606)","v":""}]
[null,null,null,null,null,null,null,null,null,null,null,null,null,null,null,null,null,null,null,null,null,null,{"$f":"Noblanks(J110:J607)","v":""}]
[null,null,null,null,null,null,null,null,null,null,null,null,null,null,null,null,null,null,null,null,null,null,{"$f":"Noblanks(J111:J608)","v":""}]
[null,null,null,null,null,null,null,null,null,null,null,null,null,null,null,null,null,null,null,null,null,null,{"$f":"Noblanks(J112:J609)","v":""}]
[null,null,null,null,null,null,null,null,null,null,null,null,null,null,null,null,null,null,null,null,null,null,{"$f":"Noblanks(J113:J610)","v":""}]
[null,null,null,null,null,null,null,null,null,null,null,null,null,null,null,null,null,null,null,null,null,null,{"$f":"Noblanks(J114:J611)","v":""}]
[null,null,null,null,null,null,null,null,null,null,null,null,null,null,null,null,null,null,null,null,null,null,{"$f":"Noblanks(J115:J612)","v":""}]
[null,null,null,null,null,null,null,null,null,null,null,null,null,null,null,null,null,null,null,null,null,null,{"$f":"Noblanks(J116:J613)","v":""}]
[null,null,null,null,null,null,null,null,null,null,null,null,null,null,null,null,null,null,null,null,null,null,{"$f":"Noblanks(J117:J614)","v":""}]
[null,null,null,null,null,null,null,null,null,null,null,null,null,null,null,null,null,null,null,null,null,null,{"$f":"Noblanks(J118:J615)","v":""}]
[null,null,null,null,null,null,null,null,null,null,null,null,null,null,null,null,null,null,null,null,null,null,{"$f":"Noblanks(J119:J616)","v":""}]
[null,null,null,null,null,null,null,null,null,null,null,null,null,null,null,null,null,null,null,null,null,null,{"$f":"Noblanks(J120:J617)","v":""}]
[null,null,null,null,null,null,null,null,null,null,null,null,null,null,null,null,null,null,null,null,null,null,{"$f":"Noblanks(J121:J618)","v":""}]
[null,null,null,null,null,null,null,null,null,null,null,null,null,null,null,null,null,null,null,null,null,null,{"$f":"Noblanks(J122:J619)","v":""}]
[null,null,null,null,null,null,null,null,null,null,null,null,null,null,null,null,null,null,null,null,null,null,{"$f":"Noblanks(J123:J620)","v":""}]
[null,null,null,null,null,null,null,null,null,null,null,null,null,null,null,null,null,null,null,null,null,null,{"$f":"Noblanks(J124:J621)","v":""}]
[null,null,null,null,null,null,null,null,null,null,null,null,null,null,null,null,null,null,null,null,null,null,{"$f":"Noblanks(J125:J622)","v":""}]
[null,null,null,null,null,null,null,null,null,null,null,null,null,null,null,null,null,null,null,null,null,null,{"$f":"Noblanks(J126:J623)","v":""}]
[null,null,null,null,null,null,null,null,null,null,null,null,null,null,null,null,null,null,null,null,null,null,{"$f":"Noblanks(J127:J624)","v":""}]
[null,null,null,null,null,null,null,null,null,null,null,null,null,null,null,null,null,null,null,null,null,null,{"$f":"Noblanks(J128:J625)","v":""}]
[null,null,null,null,null,null,null,null,null,null,null,null,null,null,null,null,null,null,null,null,null,null,{"$f":"Noblanks(J129:J626)","v":""}]
[null,null,null,null,null,null,null,null,null,null,null,null,null,null,null,null,null,null,null,null,null,null,{"$f":"Noblanks(J130:J627)","v":""}]
[null,null,null,null,null,null,null,null,null,null,null,null,null,null,null,null,null,null,null,null,null,null,{"$f":"Noblanks(J131:J628)","v":""}]
[null,null,null,null,null,null,null,null,null,null,null,null,null,null,null,null,null,null,null,null,null,null,{"$f":"Noblanks(J132:J629)","v":""}]
[null,null,null,null,null,null,null,null,null,null,null,null,null,null,null,null,null,null,null,null,null,null,{"$f":"Noblanks(J133:J630)","v":""}]
[null,null,null,null,null,null,null,null,null,null,null,null,null,null,null,null,null,null,null,null,null,null,{"$f":"Noblanks(J134:J631)","v":""}]
[null,null,null,null,null,null,null,null,null,null,null,null,null,null,null,null,null,null,null,null,null,null,{"$f":"Noblanks(J135:J632)","v":""}]
[null,null,null,null,null,null,null,null,null,null,null,null,null,null,null,null,null,null,null,null,null,null,{"$f":"Noblanks(J136:J633)","v":""}]
[null,null,null,null,null,null,null,null,null,null,null,null,null,null,null,null,null,null,null,null,null,null,{"$f":"Noblanks(J137:J634)","v":""}]
[null,null,null,null,null,null,null,null,null,null,null,null,null,null,null,null,null,null,null,null,null,null,{"$f":"Noblanks(J138:J635)","v":""}]
[null,null,null,null,null,null,null,null,null,null,null,null,null,null,null,null,null,null,null,null,null,null,{"$f":"Noblanks(J139:J636)","v":""}]
[null,null,null,null,null,null,null,null,null,null,null,null,null,null,null,null,null,null,null,null,null,null,{"$f":"Noblanks(J140:J637)","v":""}]
[null,null,null,null,null,null,null,null,null,null,null,null,null,null,null,null,null,null,null,null,null,null,{"$f":"Noblanks(J141:J638)","v":""}]
[null,null,null,null,null,null,null,null,null,null,null,null,null,null,null,null,null,null,null,null,null,null,{"$f":"Noblanks(J142:J639)","v":""}]
[null,null,null,null,null,null,null,null,null,null,null,null,null,null,null,null,null,null,null,null,null,null,{"$f":"Noblanks(J143:J640)","v":""}]
[null,null,null,null,null,null,null,null,null,null,null,null,null,null,null,null,null,null,null,null,null,null,{"$f":"Noblanks(J144:J641)","v":""}]
[null,null,null,null,null,null,null,null,null,null,null,null,null,null,null,null,null,null,null,null,null,null,{"$f":"Noblanks(J145:J642)","v":""}]
[null,null,null,null,null,null,null,null,null,null,null,null,null,null,null,null,null,null,null,null,null,null,{"$f":"Noblanks(J146:J643)","v":""}]
[null,null,null,null,null,null,null,null,null,null,null,null,null,null,null,null,null,null,null,null,null,null,{"$f":"Noblanks(J147:J644)","v":""}]
[null,null,null,null,null,null,null,null,null,null,null,null,null,null,null,null,null,null,null,null,null,null,{"$f":"Noblanks(J148:J645)","v":""}]
[null,null,null,null,null,null,null,null,null,null,null,null,null,null,null,null,null,null,null,null,null,null,{"$f":"Noblanks(J149:J646)","v":""}]
[null,null,null,null,null,null,null,null,null,null,null,null,null,null,null,null,null,null,null,null,null,null,{"$f":"Noblanks(J150:J647)","v":""}]
[null,null,null,null,null,null,null,null,null,null,null,null,null,null,null,null,null,null,null,null,null,null,{"$f":"Noblanks(J151:J648)","v":""}]
[null,null,null,null,null,null,null,null,null,null,null,null,null,null,null,null,null,null,null,null,null,null,{"$f":"Noblanks(J152:J649)","v":""}]
[null,null,null,null,null,null,null,null,null,null,null,null,null,null,null,null,null,null,null,null,null,null,{"$f":"Noblanks(J153:J650)","v":""}]
[null,null,null,null,null,null,null,null,null,null,null,null,null,null,null,null,null,null,null,null,null,null,{"$f":"Noblanks(J154:J651)","v":""}]
[null,null,null,null,null,null,null,null,null,null,null,null,null,null,null,null,null,null,null,null,null,null,{"$f":"Noblanks(J155:J652)","v":""}]
[null,null,null,null,null,null,null,null,null,null,null,null,null,null,null,null,null,null,null,null,null,null,{"$f":"Noblanks(J156:J653)","v":""}]
[null,null,null,null,null,null,null,null,null,null,null,null,null,null,null,null,null,null,null,null,null,null,{"$f":"Noblanks(J157:J654)","v":""}]
[null,null,null,null,null,null,null,null,null,null,null,null,null,null,null,null,null,null,null,null,null,null,{"$f":"Noblanks(J158:J655)","v":""}]
[null,null,null,null,null,null,null,null,null,null,null,null,null,null,null,null,null,null,null,null,null,null,{"$f":"Noblanks(J159:J656)","v":""}]
[null,null,null,null,null,null,null,null,null,null,null,null,null,null,null,null,null,null,null,null,null,null,{"$f":"Noblanks(J160:J657)","v":""}]
[null,null,null,null,null,null,null,null,null,null,null,null,null,null,null,null,null,null,null,null,null,null,{"$f":"Noblanks(J161:J658)","v":""}]
[null,null,null,null,null,null,null,null,null,null,null,null,null,null,null,null,null,null,null,null,null,null,{"$f":"Noblanks(J162:J659)","v":""}]
[null,null,null,null,null,null,null,null,null,null,null,null,null,null,null,null,null,null,null,null,null,null,{"$f":"Noblanks(J163:J660)","v":""}]
[null,null,null,null,null,null,null,null,null,null,null,null,null,null,null,null,null,null,null,null,null,null,{"$f":"Noblanks(J164:J661)","v":""}]
[null,null,null,null,null,null,null,null,null,null,null,null,null,null,null,null,null,null,null,null,null,null,{"$f":"Noblanks(J165:J662)","v":""}]
[null,null,null,null,null,null,null,null,null,null,null,null,null,null,null,null,null,null,null,null,null,null,{"$f":"Noblanks(J166:J663)","v":""}]
[null,null,null,null,null,null,null,null,null,null,null,null,null,null,null,null,null,null,null,null,null,null,{"$f":"Noblanks(J167:J664)","v":""}]
[null,null,null,null,null,null,null,null,null,null,null,null,null,null,null,null,null,null,null,null,null,null,{"$f":"Noblanks(J168:J665)","v":""}]
[null,null,null,null,null,null,null,null,null,null,null,null,null,null,null,null,null,null,null,null,null,null,{"$f":"Noblanks(J169:J666)","v":""}]
[null,null,null,null,null,null,null,null,null,null,null,null,null,null,null,null,null,null,null,null,null,null,{"$f":"Noblanks(J170:J667)","v":""}]
[null,null,null,null,null,null,null,null,null,null,null,null,null,null,null,null,null,null,null,null,null,null,{"$f":"Noblanks(J171:J668)","v":""}]
[null,null,null,null,null,null,null,null,null,null,null,null,null,null,null,null,null,null,null,null,null,null,{"$f":"Noblanks(J172:J669)","v":""}]
[null,null,null,null,null,null,null,null,null,null,null,null,null,null,null,null,null,null,null,null,null,null,{"$f":"Noblanks(J173:J670)","v":""}]
[null,null,null,null,null,null,null,null,null,null,null,null,null,null,null,null,null,null,null,null,null,null,{"$f":"Noblanks(J174:J671)","v":""}]
[null,null,null,null,null,null,null,null,null,null,null,null,null,null,null,null,null,null,null,null,null,null,{"$f":"Noblanks(J175:J672)","v":""}]
[null,null,null,null,null,null,null,null,null,null,null,null,null,null,null,null,null,null,null,null,null,null,{"$f":"Noblanks(J176:J673)","v":""}]
[null,null,null,null,null,null,null,null,null,null,null,null,null,null,null,null,null,null,null,null,null,null,{"$f":"Noblanks(J177:J674)","v":""}]
[null,null,null,null,null,null,null,null,null,null,null,null,null,null,null,null,null,null,null,null,null,null,{"$f":"Noblanks(J178:J675)","v":""}]
[null,null,null,null,null,null,null,null,null,null,null,null,null,null,null,null,null,null,null,null,null,null,{"$f":"Noblanks(J179:J676)","v":""}]
[null,null,null,null,null,null,null,null,null,null,null,null,null,null,null,null,null,null,null,null,null,null,{"$f":"Noblanks(J180:J677)","v":""}]
[null,null,null,null,null,null,null,null,null,null,null,null,null,null,null,null,null,null,null,null,null,null,{"$f":"Noblanks(J181:J678)","v":""}]
[null,null,null,null,null,null,null,null,null,null,null,null,null,null,null,null,null,null,null,null,null,null,{"$f":"Noblanks(J182:J679)","v":""}]
[null,null,null,null,null,null,null,null,null,null,null,null,null,null,null,null,null,null,null,null,null,null,{"$f":"Noblanks(J183:J680)","v":""}]
[null,null,null,null,null,null,null,null,null,null,null,null,null,null,null,null,null,null,null,null,null,null,{"$f":"Noblanks(J184:J681)","v":""}]
[null,null,null,null,null,null,null,null,null,null,null,null,null,null,null,null,null,null,null,null,null,null,{"$f":"Noblanks(J185:J682)","v":""}]
[null,null,null,null,null,null,null,null,null,null,null,null,null,null,null,null,null,null,null,null,null,null,{"$f":"Noblanks(J186:J683)","v":""}]
[null,null,null,null,null,null,null,null,null,null,null,null,null,null,null,null,null,null,null,null,null,null,{"$f":"Noblanks(J187:J684)","v":""}]
[null,null,null,null,null,null,null,null,null,null,null,null,null,null,null,null,null,null,null,null,null,null,{"$f":"Noblanks(J188:J685)","v":""}]
[null,null,null,null,null,null,null,null,null,null,null,null,null,null,null,null,null,null,null,null,null,null,{"$f":"Noblanks(J189:J686)","v":""}]
[null,null,null,null,null,null,null,null,null,null,null,null,null,null,null,null,null,null,null,null,null,null,{"$f":"Noblanks(J190:J687)","v":""}]
[null,null,null,null,null,null,null,null,null,null,null,null,null,null,null,null,null,null,null,null,null,null,{"$f":"Noblanks(J191:J688)","v":""}]
[null,null,null,null,null,null,null,null,null,null,null,null,null,null,null,null,null,null,null,null,null,null,{"$f":"Noblanks(J192:J689)","v":""}]
[null,null,null,null,null,null,null,null,null,null,null,null,null,null,null,null,null,null,null,null,null,null,{"$f":"Noblanks(J193:J690)","v":""}]
[null,null,null,null,null,null,null,null,null,null,null,null,null,null,null,null,null,null,null,null,null,null,{"$f":"Noblanks(J194:J691)","v":""}]
[null,null,null,null,null,null,null,null,null,null,null,null,null,null,null,null,null,null,null,null,null,null,{"$f":"Noblanks(J195:J692)","v":""}]
[null,null,null,null,null,null,null,null,null,null,null,null,null,null,null,null,null,null,null,null,null,null,{"$f":"Noblanks(J196:J693)","v":""}]
[null,null,null,null,null,null,null,null,null,null,null,null,null,null,null,null,null,null,null,null,null,null,{"$f":"Noblanks(J197:J694)","v":""}]

{"sheet":"Main of June","index":1,"n_rows":500,"n_cols":16384,"rows_kept":500,"cut":false,"hidden":false,"merged":[[72,11,73,11],[72,12,73,12]]}
[null,null,null,null,null,null,null,null,null,null,null,null,null,null,"Official time","Main of June",null,null,null,null,null,null,null,null,null,null,null,null,null,null,null,null,null,null,null,null,null,null,null,null,null,null,null,null,null,null,null,null,null,null,null,null,null,null,null,null,null,null,null,null,null,null,null,null,null,null,null,null,null,null,null,null,null,null,null,null,null,null,null,null,null,null,null,null,null,null,null,null,null,null,null,null,null,null,null,null,null,null,null,null,null,null,null,null,null,null,null,null,null,null,null,null,null,null,null,null,null,null,null,null,null,null,null,null,null,null,null,null,null,null,null,null,null,null,null,null,null,null,null,null,null,null,null,null,null,null,null,null,null,null,null,null,null,null,null,null,null,null,null,null,null,null,null,null,null,null,null,null,null,null,null,null,null,null,null,null,null,null,null,null,null,null,null,null,null,null,null,null,null,null,null,null,null,null,null,null,null,null,null,null,null,null,null,null,null,null,null,null,null,null,null,null,null,null,null,null,null,null,null,null,null,null,null,null,null,null,null,null,null,null,null,null,null,null,null,null,null,null,null,null,null,null,null,null,null,null,null,null,null,null,null,null,null,null,null,null,null,null,null,null,null,null,null,null,null,null,null,null,null,null,null,null,null,null,null,null,null,null,null,null,null,null,null,null,null,null,null,null,null,null,null,null,null,null,null,null,null,null,null,null,null,null,null,null,null,null,null,null,null,null,null,null,null,null,null,null,null,null,null,null,null,null,null,null,null,null,null,null,null,null,null,null,null,null,null,null,null,null,null,null,null,null,null,null,null,null,null,null,null,null,null,null,null,null,null,null,null,null,null,null,null,null,null,null,null,null,null,null,null,null,null,null,null,null,null,null,null,null,null,null,null,null,null,null,null,null,null,null,null,null,null,null,null,null,null,null,null,null,null,null,null,null,null,null,null,null,null,null,null,null,null,null,null,null,null,null,null,null,null,null,null,null,null,null,null,null,null,null,null,null,null,null,null,null,null,null,null,null,null,null,null,null,null,null,null,null,null,null,null,null,null,null,null,null,null,null,null,null,null,null,null,null,null,null,null,null,null,null,null,null,null,null,null,null,null,null,null,null,null,null,null,null,null,null,null,null,null,null,null,null,null,null,null,null,null,null,null,null,null,null,null,null,null,null,null,null,null,null,null,null,null,null,null,null,null,null,null,null,null,null,null,null,null,null,null,null,null,null,null,null,null,null,null,null,null,null,null,null,null,null,null,null,null,null,null,null,null,null,null,null,null,null,null,null,null,null,null,null,null,null,null,null,null,null,null,null,null,null,null,null,null,null,null,null,null,null,null,null,null,null,null,null,null,null,null,null,null,null,null,null,null,null,null,null,null,null,null,null,null,null,null,null,null,null,null,null,null,null,null,null,null,null,null,null,null,null,null,null,null,null,null,null,null,null,null,null,null,null,null,null,null,null,null,null,null,null,null,null,null,null,null,null,null,null,null,null,null,null,null,null,null,null,null,null,null,null,null,null,null,null,null,null,null,null,null,null,null,null,null,null,null,null,null,null,null,null,null,null,null,null,null,null,null,null,null,null,null,null,null,null,null,null,null,null,null,null,null,null,null,null,null,null,null,null,null,null,null,null,null,null,null,null,null,null,null,null,null,null,null,null,null,null,null,null,null,null,null,null,null,null,null,null,null,null,null,null,null,null,null,null,null,null,null,null,null,null,null,null,null,null,null,null,null,null,null,null,null,null,null,null,null,null,null,null,null,null,null,null,null,null,null,null,null,null,null,null,null,null,null,null,null,null,null,null,null,null,null,null,null,null,null,null,null,null,null,null,null,null,null,null,null,null,null,null,null,null,null,null,null,null,null,null,null,null,null,null,null,null,null,null,null,null,null,null,null,null,null,null,null,null,null,null,null,null,null,null,null,null,null,null,null,null,null,null,null,null,null,null,null,null,null,null,null,null,null,null,null,null,null,null,null,null,null,null,null,null,null,null,null,null,null,null,null,null,null,null,null,null,null,null,null,null,null,null,null,null,null,null,null,null,null,null,null,null,null,null,null,null,null,null,null,null,null,null,null,null,null,null,null,null,null,null,null,null,null,null,null,null,null,null,null,null,null,null,null,null,null,null,null,null,null,null,null,null,null,null,null,null,null,null,null,null,null,null,null,null,null,null,null,null,null,null,null,null,null,null,null,null,null,null,null,null,null,null,null,null,null,null,null,null,null,null,null,null,null,null,null,null,null,null,null,null,null,null,null,null,null,null,null,null,null,null,null,null,null,null,null,null,null,null,null,null,null,null,null,null,null,null,null,null,null,null,null,null,null,null,null,null,null,null,null,null,null,null,null,null,null,null,null,null,null,null,null,null,null,null,null,null,null,null,null,null,null,null,null,null,null,null,null,null,null,null,null,null,null,null,null,null,null,null,null,null,null,null,null,null,null,null,null,null,null,null,null,null,null,null,null,null,null,null,null,null,null,null,null,null,null,null,null,null,null,null,null,null,null,null,null,null,null,null,null,null,null,null,null,null,null,null,null,null,null,null,null,null,null,null,null,null,null,null,null,null,null,null,null,null,null,null,null,null,null,null,null,null,null,null,null,null,null,null,null,null,null,null,null,null,null,null,null,null,null,null,null,null,null,null,null,null,null,null,null,null,null,null,null,null,null,null,null,null,null,null,null,null,null,null,null,null,null,null,null,null,null,null,null,null,null,null,null,null,null,null,null,null,null,null,null,null,null,null,null,null,null,null,null,null,null,null,null,null,null,null,null,null,null,null,null,null,null,null,null,null,null,null,null,null,null,null,null,null,null,null,null,null,null,null,null,null,null,null,null,null,null,null,null,null,null,null,null,null,null,null,null,null,null,null,null,null,null,null,null,null,null,null,null,null,null,null,null,null,null,null,null,null,null,null,null,null,null,null,null,null,null,null,null,null,null,null,null,null,null,null,null,null,null,null,null,null,null,null,null,null,null,null,null,null,null,null,null,null,null,null,null,null,null,null,null,null,null,null,null,null,null,null,null,null,null,null,null,null,null,null,null,null,null,null,null,null,null,null,null,null,null,null,null,null,null,null,null,null,null,null,null,null,null,null,null,null,null,null,null,null,null,null,null,null,null,null,null,null,null,null,null,null,null,null,null,null,null,null,null,null,null,null,null,null,null,null,null,null,null,null,null,null,null,null,null,null,null,null,null,null,null,null,null,null,null,null,null,null,null,null,null,null,null,null,null,null,null,null,null,null,null,null,null,null,null,null,null,null,null,null,null,null,null,null,null,null,null,null,null,null,null,null,null,null,null,null,null,null,null,null,null,null,null,null,null,null,null,null,null,null,null,null,null,null,null,null,null,null,null,null,null,null,null,null,null,null,null,null,null,null,null,null,null,null,null,null,null,null,null,null,null,null,null,null,null,null,null,null,null,null,null,null,null,null,null,null,null,null,null,null,null,null,null,null,null,null,null,null,null,null,null,null,null,null,null,null,null,null,null,null,null,null,null,null,null,null,null,null,null,null,null,null,null,null,null,null,null,null,null,null,null,null,null,null,null,null,null,null,null,null,null,null,null,null,null,null,null,null,null,null,null,null,null,null,null,null,null,null,null,null,null,null,null,null,null,null,null,null,null,null,null,null,null,null,null,null,null,null,null,null,null,null,null,null,null,null,null,null,null,null,null,null,null,null,null,null,null,null,null,null,null,null,null,null,null,null,null,null,null,null,null,null,null,null,null,null,null,null,null,null,null,null,null,null,null,null,null,null,null,null,null,null,null,null,null,null,null,null,null,null,null,null,null,null,null,null,null,null,null,null,null,null,null,null,null,null,null,null,null,null,null,null,null,null,null,null,null,null,null,null,null,null,null,null,null,null,null,null,null,null,null,null,null,null,null,null,null,null,null,null,null,null,null,null,null,null,null,null,null,null,null,null,null,null,null,null,null,null,null,null,null,null,null,null,null,null,null,null,null,null,null,null,null,null,null,null,null,null,null,null,null,null,null,null,null,null,null,null,null,null,null,null,null,null,null,null,null,null,null,null,null,null,null,null,null,null,null,null,null,null,null,null,null,null,null,null,null,null,null,null,null,null,null,null,null,null,null,null,null,null,null,null,null,null,null,null,null,null,null,null,null,null,null,null,null,null,null,null,null,null,null,null,null,null,null,null,null,null,null,null,null,null,null,null,null,null,null,null,null,null,null,null,null,null,null,null,null,null,null,null,null,null,null,null,null,null,null,null,null,null,null,null,null,null,null,null,null,null,null,null,null,null,null,null,null,null,null,null,null,null,null,null,null,null,null,null,null,null,null,null,null,null,null,null,null,null,null,null,null,null,null,null,null,null,null,null,null,null,null,null,null,null,null,null,null,null,null,null,null,null,null,null,null,null,null,null,null,null,null,null,null,null,null,null,null,null,null,null,null,null,null,null,null,null,null,null,null,null,null,null,null,null,null,null,null,null,null,null,null,null,null,null,null,null,null,null,null,null,null,null,null,null,null,null,null,null,null,null,null,null,null,null,null,null,null,null,null,null,null,null,null,null,null,null,null,null,null,null,null,null,null,null,null,null,null,null,null,null,null,null,null,null,null,null,null,null,null,null,null,null,null,null,null,null,null,null,null,null,null,null,null,null,null,null,null,null,null,null,null,null,null,null,null,null,null,null,null,null,null,null,null,null,null,null,null,null,null,null,null,null,null,null,null,null,null,null,null,null,null,null,null,null,null,null,null,null,null,null,null,null,null,null,null,null,null,null,null,null,null,null,null,null,null,null,null,null,null,null,null,null,null,null,null,null,null,null,null,null,null,null,null,null,null,null,null,null,null,null,null,null,null,null,null,null,null,null,null,null,null,null,null,null,null,null,null,null,null,null,null,null,null,null,null,null,null,null,null,null,null,null,null,null,null,null,null,null,null,null,null,null,null,null,null,null,null,null,null,null,null,null,null,null,null,null,null,null,null,null,null,null,null,null,null,null,null,null,null,null,null,null,null,null,null,null,null,null,null,null,null,null,null,null,null,null,null,null,null,null,null,null,null,null,null,null,null,null,null,null,null,null,null,null,null,null,null,null,null,null,null,null,null,null,null,null,null,null,null,null,null,null,null,null,null,null,null,null,null,null,null,null,null,null,null,null,null,null,null,null,null,null,null,null,null,null,null,null,null,null,null,null,null,null,null,null,null,null,null,null,null,null,null,null,null,null,null,null,null,null,null,null,null,null,null,null,null,null,null,null,null,null,null,null,null,null,null,null,null,null,null,null,null,null,null,null,null,null,null,null,null,null,null,null,null,null,null,null,null,null,null,null,null,null,null,null,null,null,null,null,null,null,null,null,null,null,null,null,null,null,null,null,null,null,null,null,null,null,null,null,null,null,null,null,null,null,null,null,null,null,null,null,null,null,null,null,null,null,null,null,null,null,null,null,null,null,null,null,null,null,null,null,null,null,null,null,null,null,null,null,null,null,null,null,null,null,null,null,null,null,null,null,null,null,null,null,null,null,null,null,null,null,null,null,null,null,null,null,null,null,null,null,null,null,null,null,null,null,null,null,null,null,null,null,null,null,null,null,null,null,null,null,null,null,null,null,null,null,null,null,null,null,null,null,null,null,null,null,null,null,null,null,null,null,null,null,null,null,null,null,null,null,null,null,null,null,null,null,null,null,null,null,null,null,null,null,null,null,null,null,null,null,null,null,null,null,null,null,null,null,null,null,null,null,null,null,null,null,null,null,null,null,null,null,null,null,null,null,null,null,null,null,null,null,null,null,null,null,null,null,null,null,null,null,null,null,null,null,null,null,null,null,null,null,null,null,null,null,null,null,null,null,null,null,null,null,null,null,null,null,null,null,null,null,null,null,null,null,null,null,null,null,null,null,null,null,null,null,null,null,null,null,null,null,null,null,null,null,null,null,null,null,null,null,null,null,null,null,null,null,null,null,null,null,null,null,null,null,null,null,null,null,null,null,null,null,null,null,null,null,null,null,null,null,null,null,null,null,null,null,null,null,null,null,null,null,null,null,null,null,null,null,null,null,null,null,null,null,null,null,null,null,null,null,null,null,null,null,null,null,null,null,null,null,null,null,null,null,null,null,null,null,null,null,null,null,null,null,null,null,null,null,null,null,null,null,null,null,null,null,null,null,null,null,null,null,null,null,null,null,null,null,null,null,null,null,null,null,null,null,null,null,null,null,null,null,null,null,null,null,null,null,null,null,null,null,null,null,null,null,null,null,null,null,null,null,null,null,null,null,null,null,null,null,null,null,null,null,null,null,null,null,null,null,null,null,null,null,null,null,null,null,null,null,null,null,null,null,null,null,null,null,null,null,null,null,null,null,null,null,null,null,null,null,null,null,null,null,null,null,null,null,null,null,null,null,null,null,null,null,null,null,null,null,null,null,null,null,null,null,null,null,null,null,null,null,null,null,null,null,null,null,null,null,null,null,null,null,null,null,null,null,null,null,null,null,null,null,null,null,null,null,null,null,null,null,null,null,null,null,null,null,null,null,null,null,null,null,null,null,null,null,null,null,null,null,null,null,null,null,null,null,null,null,null,null,null,null,null,null,null,null,null,null,null,null,null,null,null,null,null,null,null,null,null,null,null,null,null,null,null,null,null,null,null,null,null,null,null,null,null,null,null,null,null,null,null,null,null,null,null,null,null,null,null,null,null,null,null,null,null,null,null,null,null,null,null,null,null,null,null,null,null,null,null,null,null,null,null,null,null,null,null,null,null,null,null,null,null,null,null,null,null,null,null,null,null,null,null,null,null,null,null,null,null,null,null,null,null,null,null,null,null,null,null,null,null,null,null,null,null,null,null,null,null,null,null,null,null,null,null,null,null,null,null,null,null,null,null,null,null,null,null,null,null,null,null,null,null,null,null,null,null,null,null,null,null,null,null,null,null,null,null,null,null,null,null,null,null,null,null,null,null,null,null,null,null,null,null,null,null,null,null,null,null,null,null,null,null,null,null,null,null,null,null,null,null,null,null,null,null,null,null,null,null,null,null,null,null,null,null,null,null,null,null,null,null,null,null,null,null,null,null,null,null,null,null,null,null,null,null,null,null,null,null,null,null,null,null,null,null,null,null,null,null,null,null,null,null,null,null,null,null,null,null,null,null,null,null,null,null,null,null,null,null,null,null,null,null,null,null,null,null,null,null,null,null,null,null,null,null,null,null,null,null,null,null,null,null,null,null,null,null,null,null,null,null,null,null,null,null,null,null,null,null,null,null,null,null,null,null,null,null,null,null,null,null,null,null,null,null,null,null,null,null,null,null,null,null,null,null,null,null,null,null,null,null,null,null,null,null,null,null,null,null,null,null,null,null,null,null,null,null,null,null,null,null,null,null,null,null,null,null,null,null,null,null,null,null,null,null,null,null,null,null,null,null,null,null,null,null,null,null,null,null,null,null,null,null,null,null,null,null,null,null,null,null,null,null,null,null,null,null,null,null,null,null,null,null,null,null,null,null,null,null,null,null,null,null,null,null,null,null,null,null,null,null,null,null,null,null,null,null,null,null,null,null,null,null,null,null,null,null,null,null,null,null,null,null,null,null,null,null,null,null,null,null,null,null,null,null,null,null,null,null,null,null,null,null,null,null,null,null,null,null,null,null,null,null,null,null,null,null,null,null,null,null,null,null,null,null,null,null,null,null,null,null,null,null,null,null,null,null,null,null,null,null,null,null,null,null,null,null,null,null,null,null,null,null,null,null,null,null,null,null,null,null,null,null,null,null,null,null,null,null,null,null,null,null,null,null,null,null,null,null,null,null,null,null,null,null,null,null,null,null,null,null,null,null,null,null,null,null,null,null,null,null,null,null,null,null,null,null,null,null,null,null,null,null,null,null,null,null,null,null,null,null,null,null,null,null,null,null,null,null,null,null,null,null,null,null,null,null,null,null,null,null,null,null,null,null,null,null,null,null,null,null,null,null,null,null,null,null,null,null,null,null,null,null,null,null,null,null,null,null,null,null,null,null,null,null,null,null,null,null,null,null,null,null,null,null,null,null,null,null,null,null,null,null,null,null,null,null,null,null,null,null,null,null,null,null,null,null,null,null,null,null,null,null,null,null,null,null,null,null,null,null,null,null,null,null,null,null,null,null,null,null,null,null,null,null,null,null,null,null,null,null,null,null,null,null,null,null,null,null,null,null,null,null,null,null,null,null,null,null,null,null,null,null,null,null,null,null,null,null,null,null,null,null,null,null,null,null,null,null,null,null,null,null,null,null,null,null,null,null,null,null,null,null,null,null,null,null,null,null,null,null,null,null,null,null,null,null,null,null,null,null,null,null,null,null,null,null,null,null,null,null,null,null,null,null,null,null,null,null,null,null,null,null,null,null,null,null,null,null,null,null,null,null,null,null,null,null,null,null,null,null,null,null,null,null,null,null,null,null,null,null,null,null,null,null,null,null,null,null,null,null,null,null,null,null,null,null,null,null,null,null,null,null,null,null,null,null,null,null,null,null,null,null,null,null,null,null,null,null,null,null,null,null,null,null,null,null,null,null,null,null,null,null,null,null,null,null,null,null,null,null,null,null,null,null,null,null,null,null,null,null,null,null,null,null,null,null,null,null,null,null,null,null,null,null,null,null,null,null,null,null,null,null,null,null,null,null,null,null,null,null,null,null,null,null,null,null,null,null,null,null,null,null,null,null,null,null,null,null,null,null,null,null,null,null,null,null,null,null,null,null,null,null,null,null,null,null,null,null,null,null,null,null,null,null,null,null,null,null,null,null,null,null,null,null,null,null,null,null,null,null,null,null,null,null,null,null,null,null,null,null,null,null,null,null,null,null,null,null,null,null,null,null,null,null,null,null,null,null,null,null,null,null,null,null,null,null,null,null,null,null,null,null,null,null,null,null,null,null,null,null,null,null,null,null,null,null,null,null,null,null,null,null,null,null,null,null,null,null,null,null,null,null,null,null,null,null,null,null,null,null,null,null,null,null,null,null,null,null,null,null,null,null,null,null,null,null,null,null,null,null,null,null,null,null,null,null,null,null,null,null,null,null,null,null,null,null,null,null,null,null,null,null,null,null,null,null,null,null,null,null,null,null,null,null,null,null,null,null,null,null,null,null,null,null,null,null,null,null,null,null,null,null,null,null,null,null,null,null,null,null,null,null,null,null,null,null,null,null,null,null,null,null,null,null,null,null,null,null,null,null,null,null,null,null,null,null,null,null,null,null,null,null,null,null,null,null,null,null,null,null,null,null,null,null,null,null,null,null,null,null,null,null,null,null,null,null,null,null,null,null,null,null,null,null,null,null,null,null,null,null,null,null,null,null,null,null,null,null,null,null,null,null,null,null,null,null,null,null,null,null,null,null,null,null,null,null,null,null,null,null,null,null,null,null,null,null,null,null,null,null,null,null,null,null,null,null,null,null,null,null,null,null,null,null,null,null,null,null,null,null,null,null,null,null,null,null,null,null,null,null,null,null,null,null,null,null,null,null,null,null,null,null,null,null,null,null,null,null,null,null,null,null,null,null,null,null,null,null,null,null,null,null,null,null,null,null,null,null,null,null,null,null,null,null,null,null,null,null,null,null,null,null,null,null,null,null,null,null,null,null,null,null,null,null,null,null,null,null,null,null,null,null,null,null,null,null,null,null,null,null,null,null,null,null,null,null,null,null,null,null,null,null,null,null,null,null,null,null,null,null,null,null,null,null,null,null,null,null,null,null,null,null,null,null,null,null,null,null,null,null,null,null,null,null,null,null,null,null,null,null,null,null,null,null,null,null,null,null,null,null,null,null,null,null,null,null,null,null,null,null,null,null,null,null,null,null,null,null,null,null,null,null,null,null,null,null,null,null,null,null,null,null,null,null,null,null,null,null,null,null,null,null,null,null,null,null,null,null,null,null,null,null,null,null,null,null,null,null,null,null,null,null,null,null,null,null,null,null,null,null,null,null,null,null,null,null,null,null,null,null,null,null,null,null,null,null,null,null,null,null,null,null,null,null,null,null,null,null,null,null,null,null,null,null,null,null,null,null,null,null,null,null,null,null,null,null,null,null,null,null,null,null,null,null,null,null,null,null,null,null,null,null,null,null,null,null,null,null,null,null,null,null,null,null,null,null,null,null,null,null,null,null,null,null,null,null,null,null,null,null,null,null,null,null,null,null,null,null,null,null,null,null,null,null,null,null,null,null,null,null,null,null,null,null,null,null,null,null,null,null,null,null,null,null,null,null,null,null,null,null,null,null,null,null,null,null,null,null,null,null,null,null,null,null,null,null,null,null,null,null,null,null,null,null,null,null,null,null,null,null,null,null,null,null,null,null,null,null,null,null,null,null,null,null,null,null,null,null,null,null,null,null,null,null,null,null,null,null,null,null,null,null,null,null,null,null,null,null,null,null,null,null,null,null,null,null,null,null,null,null,null,null,null,null,null,null,null,null,null,null,null,null,null,null,null,null,null,null,null,null,null,null,null,null,null,null,null,null,null,null,null,null,null,null,null,null,null,null,null,null,null,null,null,null,null,null,null,null,null,null,null,null,null,null,null,null,null,null,null,null,null,null,null,null,null,null,null,null,null,null,null,null,null,null,null,null,null,null,null,null,null,null,null,null,null,null,null,null,null,null,null,null,null,null,null,null,null,null,null,null,null,null,null,null,null,null,null,null,null,null,null,null,null,null,null,null,null,null,null,null,null,null,null,null,null,null,null,null,null,null,null,null,null,null,null,null,null,null,null,null,null,null,null,null,null,null,null,null,null,null,null,null,null,null,null,null,null,null,null,null,null,null,null,null,null,null,null,null,null,null,null,null,null,null,null,null,null,null,null,null,null,null,null,null,null,null,null,null,null,null,null,null,null,null,null,null,null,null,null,null,null,null,null,null,null,null,null,null,null,null,null,null,null,null,null,null,null,null,null,null,null,null,null,null,null,null,null,null,null,null,null,null,null,null,null,null,null,null,null,null,null,null,null,null,null,null,null,null,null,null,null,null,null,null,null,null,null,null,null,null,null,null,null,null,null,null,null,null,null,null,null,null,null,null,null,null,null,null,null,null,null,null,null,null,null,null,null,null,null,null,null,null,null,null,null,null,null,null,null,null,null,null,null,null,null,null,null,null,null,null,null,null,null,null,null,null,null,null,null,null,null,null,null,null,null,null,null,null,null,null,null,null,null,null,null,null,null,null,null,null,null,null,null,null,null,null,null,null,null,null,null,null,null,null,null,null,null,null,null,null,null,null,null,null,null,null,null,null,null,null,null,null,null,null,null,null,null,null,null,null,null,null,null,null,null,null,null,null,null,null,null,null,null,null,null,null,null,null,null,null,null,null,null,null,null,null,null,null,null,null,null,null,null,null,null,null,null,null,null,null,null,null,null,null,null,null,null,null,null,null,null,null,null,null,null,null,null,null,null,null,null,null,null,null,null,null,null,null,null,null,null,null,null,null,null,null,null,null,null,null,null,null,null,null,null,null,null,null,null,null,null,null,null,null,null,null,null,null,null,null,null,null,null,null,null,null,null,null,null,null,null,null,null,null,null,null,null,null,null,null,null,null,null,null,null,null,null,null,null,null,null,null,null,null,null,null,null,null,null,null,null,null,null,null,null,null,null,null,null,null,null,null,null,null,null,null,null,null,null,null,null,null,null,null,null,null,null,null,null,null,null,null,null,null,null,null,null,null,null,null,null,null,null,null,null,null,null,null,null,null,null,null,null,null,null,null,null,null,null,null,null,null,null,null,null,null,null,null,null,null,null,null,null,null,null,null,null,null,null,null,null,null,null,null,null,null,null,null,null,null,null,null,null,null,null,null,null,null,null,null,null,null,null,null,null,null,null,null,null,null,null,null,null,null,null,null,null,null,null,null,null,null,null,null,null,null,null,null,null,null,null,null,null,null,null,null,null,null,null,null,null,null,null,null,null,null,null,null,null,null,null,null,null,null,null,null,null,null,null,null,null,null,null,null,null,null,null,null,null,null,null,null,null,null,null,null,null,null,null,null,null,null,null,null,null,null,null,null,null,null,null,null,null,null,null,null,null,null,null,null,null,null,null,null,null,null,null,null,null,null,null,null,null,null,null,null,null,null,null,null,null,null,null,null,null,null,null,null,null,null,null,null,null,null,null,null,null,null,null,null,null,null,null,null,null,null,null,null,null,null,null,null,null,null,null,null,null,null,null,null,null,null,null,null,null,null,null,null,null,null,null,null,null,null,null,null,null,null,null,null,null,null,null,null,null,null,null,null,null,null,null,null,null,null,null,null,null,null,null,null,null,null,null,null,null,null,null,null,null,null,null,null,null,null,null,null,null,null,null,null,null,null,null,null,null,null,null,null,null,null,null,null,null,null,null,null,null,null,null,null,null,null,null,null,null,null,null,null,null,null,null,null,null,null,null,null,null,null,null,null,null,null,null,null,null,null,null,null,null,null,null,null,null,null,null,null,null,null,null,null,null,null,null,null,null,null,null,null,null,null,null,null,null,null,null,null,null,null,null,null,null,null,null,null,null,null,null,null,null,null,null,null,null,null,null,null,null,null,null,null,null,null,null,null,null,null,null,null,null,null,null,null,null,null,null,null,null,null,null,null,null,null,null,null,null,null,null,null,null,null,null,null,null,null,null,null,null,null,null,null,null,null,null,null,null,null,null,null,null,null,null,null,null,null,null,null,null,null,null,null,null,null,null,null,null,null,null,null,null,null,null,null,null,null,null,null,null,null,null,null,null,null,null,null,null,null,null,null,null,null,null,null,null,null,null,null,null,null,null,null,null,null,null,null,null,null,null,null,null,null,null,null,null,null,null,null,null,null,null,null,null,null,null,null,null,null,null,null,null,null,null,null,null,null,null,null,null,null,null,null,null,null,null,null,null,null,null,null,null,null,null,null,null,null,null,null,null,null,null,null,null,null,null,null,null,null,null,null,null,null,null,null,null,null,null,null,null,null,null,null,null,null,null,null,null,null,null,null,null,null,null,null,null,null,null,null,null,null,null,null,null,null,null,null,null,null,null,null,null,null,null,null,null,null,null,null,null,null,null,null,null,null,null,null,null,null,null,null,null,null,null,null,null,null,null,null,null,null,null,null,null,null,null,null,null,null,null,null,null,null,null,null,null,null,null,null,null,null,null,null,null,null,null,null,null,null,null,null,null,null,null,null,null,null,null,null,null,null,null,null,null,null,null,null,null,null,null,null,null,null,null,null,null,null,null,null,null,null,null,null,null,null,null,null,null,null,null,null,null,null,null,null,null,null,null,null,null,null,null,null,null,null,null,null,null,null,null,null,null,null,null,null,null,null,null,null,null,null,null,null,null,null,null,null,null,null,null,null,null,null,null,null,null,null,null,null,null,null,null,null,null,null,null,null,null,null,null,null,null,null,null,null,null,null,null,null,null,null,null,null,null,null,null,null,null,null,null,null,null,null,null,null,null,null,null,null,null,null,null,null,null,null,null,null,null,null,null,null,null,null,null,null,null,null,null,null,null,null,null,null,null,null,null,null,null,null,null,null,null,null,null,null,null,null,null,null,null,null,null,null,null,null,null,null,null,null,null,null,null,null,null,null,null,null,null,null,null,null,null,null,null,null,null,null,null,null,null,null,null,null,null,null,null,null,null,null,null,null,null,null,null,null,null,null,null,null,null,null,null,null,null,null,null,null,null,null,null,null,null,null,null,null,null,null,null,null,null,null,null,null,null,null,null,null,null,null,null,null,null,null,null,null,null,null,null,null,null,null,null,null,null,null,null,null,null,null,null,null,null,null,null,null,null,null,null,null,null,null,null,null,null,null,null,null,null,null,null,null,null,null,null,null,null,null,null,null,null,null,null,null,null,null,null,null,null,null,null,null,null,null,null,null,null,null,null,null,null,null,null,null,null,null,null,null,null,null,null,null,null,null,null,null,null,null,null,null,null,null,null,null,null,null,null,null,null,null,null,null,null,null,null,null,null,null,null,null,null,null,null,null,null,null,null,null,null,null,null,null,null,null,null,null,null,null,null,null,null,null,null,null,null,null,null,null,null,null,null,null,null,null,null,null,null,null,null,null,null,null,null,null,null,null,null,null,null,null,null,null,null,null,null,null,null,null,null,null,null,null,null,null,null,null,null,null,null,null,null,null,null,null,null,null,null,null,null,null,null,null,null,null,null,null,null,null,null,null,null,null,null,null,null,null,null,null,null,null,null,null,null,null,null,null,null,null,null,null,null,null,null,null,null,null,null,null,null,null,null,null,null,null,null,null,null,null,null,null,null,null,null,null,null,null,null,null,null,null,null,null,null,null,null,null,null,null,null,null,null,null,null,null,null,null,null,null,null,null,null,null,null,null,null,null,null,null,null,null,null,null,null,null,null,null,null,null,null,null,null,null,null,null,null,null,null,null,null,null,null,null,null,null,null,null,null,null,null,null,null,null,null,null,null,null,null,null,null,null,null,null,null,null,null,null,null,null,null,null,null,null,null,null,null,null,null,null,null,null,null,null,null,null,null,null,null,null,null,null,null,null,null,null,null,null,null,null,null,null,null,null,null,null,null,null,null,null,null,null,null,null,null,null,null,null,null,null,null,null,null,null,null,null,null,null,null,null,null,null,null,null,null,null,null,null,null,null,null,null,null,null,null,null,null,null,null,null,null,null,null,null,null,null,null,null,null,null,null,null,null,null,null,null,null,null,null,null,null,null,null,null,null,null,null,null,null,null,null,null,null,null,null,null,null,null,null,null,null,null,null,null,null,null,null,null,null,null,null,null,null,null,null,null,null,null,null,null,null,null,null,null,null,null,null,null,null,null,null,null,null,null,null,null,null,null,null,null,null,null,null,null,null,null,null,null,null,null,null,null,null,null,null,null,null,null,null,null,null,null,null,null,null,null,null,null,null,null,null,null,null,null,null,null,null,null,null,null,null,null,null,null,null,null,null,null,null,null,null,null,null,null,null,null,null,null,null,null,null,null,null,null,null,null,null,null,null,null,null,null,null,null,null,null,null,null,null,null,null,null,null,null,null,null,null,null,null,null,null,null,null,null,null,null,null,null,null,null,null,null,null,null,null,null,null,null,null,null,null,null,null,null,null,null,null,null,null,null,null,null,null,null,null,null,null,null,null,null,null,null,null,null,null,null,null,null,null,null,null,null,null,null,null,null,null,null,null,null,null,null,null,null,null,null,null,null,null,null,null,null,null,null,null,null,null,null,null,null,null,null,null,null,null,null,null,null,null,null,null,null,null,null,null,null,null,null,null,null,null,null,null,null,null,null,null,null,null,null,null,null,null,null,null,null,null,null,null,null,null,null,null,null,null,null,null,null,null,null,null,null,null,null,null,null,null,null,null,null,null,null,null,null,null,null,null,null,null,null,null,null,null,null,null,null,null,null,null,null,null,null,null,null,null,null,null,null,null,null,null,null,null,null,null,null,null,null,null,null,null,null,null,null,null,null,null,null,null,null,null,null,null,null,null,null,null,null,null,null,null,null,null,null,null,null,null,null,null,null,null,null,null,null,null,null,null,null,null,null,null,null,null,null,null,null,null,null,null,null,null,null,null,null,null,null,null,null,null,null,null,null,null,null,null,null,null,null,null,null,null,null,null,null,null,null,null,null,null,null,null,null,null,null,null,null,null,null,null,null,null,null,null,null,null,null,null,null,null,null,null,null,null,null,null,null,null,null,null,null,null,null,null,null,null,null,null,null,null,null,null,null,null,null,null,null,null,null,null,null,null,null,null,null,null,null,null,null,null,null,null,null,null,null,null,null,null,null,null,null,null,null,null,null,null,null,null,null,null,null,null,null,null,null,null,null,null,null,null,null,null,null,null,null,null,null,null,null,null,null,null,null,null,null,null,null,null,null,null,null,null,null,null,null,null,null,null,null,null,null,null,null,null,null,null,null,null,null,null,null,null,null,null,null,null,null,null,null,null,null,null,null,null,null,null,null,null,null,null,null,null,null,null,null,null,null,null,null,null,null,null,null,null,null,null,null,null,null,null,null,null,null,null,null,null,null,null,null,null,null,null,null,null,null,null,null,null,null,null,null,null,null,null,null,null,null,null,null,null,null,null,null,null,null,null,null,null,null,null,null,null,null,null,null,null,null,null,null,null,null,null,null,null,null,null,null,null,null,null,null,null,null,null,null,null,null,null,null,null,null,null,null,null,null,null,null,null,null,null,null,null,null,null,null,null,null,null,null,null,null,null,null,null,null,null,null,null,null,null,null,null,null,null,null,null,null,null,null,null,null,null,null,null,null,null,null,null,null,null,null,null,null,null,null,null,null,null,null,null,null,null,null,null,null,null,null,null,null,null,null,null,null,null,null,null,null,null,null,null,null,null,null,null,null,null,null,null,null,null,null,null,null,null,null,null,null,null,null,null,null,null,null,null,null,null,null,null,null,null,null,null,null,null,null,null,null,null,null,null,null,null,null,null,null,null,null,null,null,null,null,null,null,null,null,null,null,null,null,null,null,null,null,null,null,null,null,null,null,null,null,null,null,null,null,null,null,null,null,null,null,null,null,null,null,null,null,null,null,null,null,null,null,null,null,null,null,null,null,null,null,null,null,null,null,null,null,null,null,null,null,null,null,null,null,null,null,null,null,null,null,null,null,null,null,null,null,null,null,null,null,null,null,null,null,null,null,null,null,null,null,null,null,null,null,null,null,null,null,null,null,null,null,null,null,null,null,null,null,null,null,null,null,null,null,null,null,null,null,null,null,null,null,null,null,null,null,null,null,null,null,null,null,null,null,null,null,null,null,null,null,null,null,null,null,null,null,null,null,null,null,null,null,null,null,null,null,null,null,null,null,null,null,null,null,null,null,null,null,null,null,null,null,null,null,null,null,null,null,null,null,null,null,null,null,null,null,null,null,null,null,null,null,null,null,null,null,null,null,null,null,null,null,null,null,null,null,null,null,null,null,null,null,null,null,null,null,null,null,null,null,null,null,null,null,null,null,null,null,null,null,null,null,null,null,null,null,null,null,null,null,null,null,null,null,null,null,null,null,null,null,null,null,null,null,null,null,null,null,null,null,null,null,null,null,null,null,null,null,null,null,null,null,null,null,null,null,null,null,null,null,null,null,null,null,null,null,null,null,null,null,null,null,null,null,null,null,null,null,null,null,null,null,null,null,null,null,null,null,null,null,null,null,null,null,null,null,null,null,null,null,null,null,null,null,null,null,null,null,null,null,null,null,null,null,null,null,null,null,null,null,null,null,null,null,null,null,null,null,null,null,null,null,null,null,null,null,null,null,null,null,null,null,null,null,null,null,null,null,null,null,null,null,null,null,null,null,null,null,null,null,null,null,null,null,null,null,null,null,null,null,null,null,null,null,null,null,null,null,null,null,null,null,null,null,null,null,null,null,null,null,null,null,null,null,null,null,null,null,null,null,null,null,null,null,null,null,null,null,null,null,null,null,null,null,null,null,null,null,null,null,null,null,null,null,null,null,null,null,null,null,null,null,null,null,null,null,null,null,null,null,null,null,null,null,null,null,null,null,null,null,null,null,null,null,null,null,null,null,null,null,null,null,null,null,null,null,null,null,null,null,null,null,null,null,null,null,null,null,null,null,null,null,null,null,null,null,null,null,null,null,null,null,null,null,null,null,null,null,null,null,null,null,null,null,null,null,null,null,null,null,null,null,null,null,null,null,null,null,null,null,null,null,null,null,null,null,null,null,null,null,null,null,null,null,null,null,null,null,null,null,null,null,null,null,null,null,null,null,null,null,null,null,null,null,null,null,null,null,null,null,null,null,null,null,null,null,null,null,null,null,null,null,null,null,null,null,null,null,null,null,null,null,null,null,null,null,null,null,null,null,null,null,null,null,null,null,null,null,null,null,null,null,null,null,null,null,null,null,null,null,null,null,null,null,null,null,null,null,null,null,null,null,null,null,null,null,null,null,null,null,null,null,null,null,null,null,null,null,null,null,null,null,null,null,null,null,null,null,null,null,null,null,null,null,null,null,null,null,null,null,null,null,null,null,null,null,null,null,null,null,null,null,null,null,null,null,null,null,null,null,null,null,null,null,null,null,null,null,null,null,null,null,null,null,null,null,null,null,null,null,null,null,null,null,null,null,null,null,null,null,null,null,null,null,null,null,null,null,null,null,null,null,null,null,null,null,null,null,null,null,null,null,null,null,null,null,null,null,null,null,null,null,null,null,null,null,null,null,null,null,null,null,null,null,null,null,null,null,null,null,null,null,null,null,null,null,null,null,null,null,null,null,null,null,null,null,null,null,null,null,null,null,null,null,null,null,null,null,null,null,null,null,null,null,null,null,null,null,null,null,null,null,null,null,null,null,null,null,null,null,null,null,null,null,null,null,null,null,null,null,null,null,null,null,null,null,null,null,null,null,null,null,null,null,null,null,null,null,null,null,null,null,null,null,null,null,null,null,null,null,null,null,null,null,null,null,null,null,null,null,null,null,null,null,null,null,null,null,null,null,null,null,null,null,null,null,null,null,null,null,null,null,null,null,null,null,null,null,null,null,null,null,null,null,null,null,null,null,null,null,null,null,null,null,null,null,null,null,null,null,null,null,null,null,null,null,null,null,null,null,null,null,null,null,null,null,null,null,null,null,null,null,null,null,null,null,null,null,null,null,null,null,null,null,null,null,null,null,null,null,null,null,null,null,null,null,null,null,null,null,null,null,null,null,null,null,null,null,null,null,null,null,null,null,null,null,null,null,null,null,null,null,null,null,null,null,null,null,null,null,null,null,null,null,null,null,null,null,null,null,null,null,null,null,null,null,null,null,null,null,null,null,null,null,null,null,null,null,null,null,null,null,null,null,null,null,null,null,null,null,null,null,null,null,null,null,null,null,null,null,null,null,null,null,null,null,null,null,null,null,null,null,null,null,null,null,null,null,null,null,null,null,null,null,null,null,null,null,null,null,null,null,null,null,null,null,null,null,null,null,null,null,null,null,null,null,null,null,null,null,null,null,null,null,null,null,null,null,null,null,null,null,null,null,null,null,null,null,null,null,null,null,null,null,null,null,null,null,null,null,null,null,null,null,null,null,null,null,null,null,null,null,null,null,null,null,null,null,null,null,null,null,null,null,null,null,null,null,null,null,null,null,null,null,null,null,null,null,null,null,null,null,null,null,null,null,null,null,null,null,null,null,null,null,null,null,null,null,null,null,null,null,null,null,null,null,null,null,null,null,null,null,null,null,null,null,null,null,null,null,null,null,null,null,null,null,null,null,null,null,null,null,null,null,null,null,null,null,null,null,null,null,null,null,null,null,null,null,null,null,null,null,null,null,null,null,null,null,null,null,null,null,null,null,null,null,null,null,null,null,null,null,null,null,null,null,null,null,null,null,null,null,null,null,null,null,null,null,null,null,null,null,null,null,null,null,null,null,null,null,null,null,null,null,null,null,null,null,null,null,null,null,null,null,null,null,null,null,null,null,null,null,null,null,null,null,null,null,null,null,null,null,null,null,null,null,null,null,null,null,null,null,null,null,null,null,null,null,null,null,null,null,null,null,null,null,null,null,null,null,null,null,null,null,null,null,null,null,null,null,null,null,null,null,null,null,null,null,null,null,null,null,null,null,null,null,null,null,null,null,null,null,null,null,null,null,null,null,null,null,null,null,null,null,null,null,null,null,null,null,null,null,null,null,null,null,null,null,null,null,null,null,null,null,null,null,null,null,null,null,null,null,null,null,null,null,null,null,null,null,null,null,null,null,null,null,null,null,null,null,null,null,null,null,null,null,null,null,null,null,null,null,null,null,null,null,null,null,null,null,null,null,null,null,null,null,null,null,null,null,null,null,null,null,null,null,null,null,null,null,null,null,null,null,null,null,null,null,null,null,null,null,null,null,null,null,null,null,null,null,null,null,null,null,null,null,null,null,null,null,null,null,null,null,null,null,null,null,null,null,null,null,null,null,null,null,null,null,null,null,null,null,null,null,null,null,null,null,null,null,null,null,null,null,null,null,null,null,null,null,null,null,null,null,null,null,null,null,null,null,null,null,null,null,null,null,null,null,null,null,null,null,null,null,null,null,null,null,null,null,null,null,null,null,null,null,null,null,null,null,null,null,null,null,null,null,null,null,null,null,null,null,null,null,null,null,null,null,null,null,null,null,null,null,null,null,null,null,null,null,null,null,null,null,null,null,null,null,null,null,null,null,null,null,null,null,null,null,null,null,null,null,null,null,null,null,null,null,null,null,null,null,null,null,null,null,null,null,null,null,null,null,null,null,null,null,null,null,null,null,null,null,null,null,null,null,null,null,null,null,null,null,null,null,null,null,null,null,null,null,null,null,null,null,null,null,null,null,null,null,null,null,null,null,null,null,null,null,null,null,null,null,null,null,null,null,null,null,null,null,null,null,null,null,null,null,null,null,null,null,null,null,null,null,null,null,null,null,null,null,null,null,null,null,null,null,null,null,null,null,null,null,null,null,null,null,null,null,null,null,null,null,null,null,null,null,null,null,null,null,null,null,null,null,null,null,null,null,null,null,null,null,null,null,null,null,null,null,null,null,null,null,null,null,null,null,null,null,null,null,null,null,null,null,null,null,null,null,null,null,null,null,null,null,null,null,null,null,null,null,null,null,null,null,null,null,null,null,null,null,null,null,null,null,null,null,null,null,null,null,null,null,null,null,null,null,null,null,null,null,null,null,null,null,null,null,null,null,null,null,null,null,null,null,null,null,null,null,null,null,null,null,null,null,null,null,null,null,null,null,null,null,null,null,null,null,null,null,null,null,null,null,null,null,null,null,null,null,null,null,null,null,null,null,null,null,null,null,null,null,null,null,null,null,null,null,null,null,null,null,null,null,null,null,null,null,null,null,null,null,null,null,null,null,null,null,null,null,null,null,null,null,null,null,null,null,null,null,null,null,null,null,null,null,null,null,null,null,null,null,null,null,null,null,null,null,null,null,null,null,null,null,null,null,null,null,null,null,null,null,null,null,null,null,null,null,null,null,null,null,null,null,null,null,null,null,null,null,null,null,null,null,null,null,null,null,null,null,null,null,null,null,null,null,null,null,null,null,null,null,null,null,null,null,null,null,null,null,null,null,null,null,null,null,null,null,null,null,null,null,null,null,null,null,null,null,null,null,null,null,null,null,null,null,null,null,null,null,null,null,null,null,null,null,null,null,null,null,null,null,null,null,null,null,null,null,null,null,null,null,null,null,null,null,null,null,null,null,null,null,null,null,null,null,null,null,null,null,null,null,null,null,null,null,null,null,null,null,null,null,null,null,null,null,null,null,null,null,null,null,null,null,null,null,null,null,null,null,null,null,null,null,null,null,null,null,null,null,null,null,null,null,null,null,null,null,null,null,null,null,null,null,null,null,null,null,null,null,null,null,null,null,null,null,null,null,null,null,null,null,null,null,null,null,null,null,null,null,null,null,null,null,null,null,null,null,null,null,null,null,null,null,null,null,null,null,null,null,null,null,null,null,null,null,null,null,null,null,null,null,null,null,null,null,null,null,null,null,null,null,null,null,null,null,null,null,null,null,null,null,null,null,null,null,null,null,null,null,null,null,null,null,null,null,null,null,null,null,null,null,null,null,null,null,null,null,null,null,null,null,null,null,null,null,null,null,null,null,null,null,null,null,null,null,null,null,null,null,null,null,null,null,null,null,null,null,null,null,null,null,null,null,null,null,null,null,null,null,null,null,null,null,null,null,null,null,null,null,null,null,null,null,null,null,null,null,null,null,null,null,null,null,null,null,null,null,null,null,null,null,null,null,null,null,null,null,null,null,null,null,null,null,null,null,null,null,null,null,null,null,null,null,null,null,null,null,null,null,null,null,null,null,null,null,null,null,null,null,null,null,null,null,null,null,null,null,null,null,null,null,null,null,null,null,null,null,null,null,null,null,null,null,null,null,null,null,null,null,null,null,null,null,null,null,null,null,null,null,null,null,null,null,null,null,null,null,null,null,null,null,null,null,null,null,null,null,null,null,null,null,null,null,null,null,null,null,null,null,null,null,null,null,null,null,null,null,null,null,null,null,null,null,null,null,null,null,null,null,null,null,null,null,null,null,null,null,null,null,null,null,null,null,null,null,null,null,null,null,null,null,null,null,null,null,null,null,null,null,null,null,null,null,null,null,null,null,null,null,null,null,null,null,null,null,null,null,null,null,null,null,null,null,null,null,null,null,null,null,null,null,null,null,null,null,null,null,null,null,null,null,null,null,null,null,null,null,null,null,null,null,null,null,null,null,null,null,null,null,null,null,null,null,null,null,null,null,null,null,null,null,null,null,null,null,null,null,null,null,null,null,null,null,null,null,null,null,null,null,null,null,null,null,null,null,null,null,null,null,null,null,null,null,null,null,null,null,null,null,null,null,null,null,null,null,null,null,null,null,null,null,null,null,null,null,null,null,null,null,null,null,null,null,null,null,null,null,null,null,null,null,null,null,null,null,null,null,null,null,null,null,null,null,null,null,null,null,null,null,null,null,null,null,null,null,null,null,null,null,null,null,null,null,null,null,null,null,null,null,null,null,null,null,null,null,null,null,null,null,null,null,null,null,null,null,null,null,null,null,null,null,null,null,null,null,null,null,null,null,null,null,null,null,null,null,null,null,null,null,null,null,null,null,null,null,null,null,null,null,null,null,null,null,null,null,null,null,null,null,null,null,null,null,null,null,null,null,null,null,null,null,null,null,null,null,null,null,null,null,null,null,null,null,null,null,null,null,null,null,null,null,null,null,null,null,null,null,null,null,null,null,null,null,null,null,null,null,null,null,null,null,null,null,null,null,null,null,null,null,null,null,null,null,null,null,null,null,null,null,null,null,null,null,null,null,null,null,null,null,null,null,null,null,null,null,null,null,null,null,null,null,null,null,null,null,null,null,null,null,null,null,null,null,null,null,null,null,null,null,null,null,null,null,null,null,null,null,null,null,null,null,null,null,null,null,null,null,null,null,null,null,null,null,null,null,null,null,null,null,null,null,null,null,null,null,null,null,null,null,null,null,null,null,null,null,null,null,null,null,null,null,null,null,null,null,null,null,null,null,null,null,null,null,null,null,null,null,null,null,null,null,null,null,null,null,null,null,null,null,null,null,null,null,null,null,null,null,null,null,null,null,null,null,null,null,null,null,null,null,null,null,null,null,null,null,null,null,null,null,null,null,null,null,null,null,null,null,null,null,null,null,null,null,null,null,null,null,null,null,null,null,null,null,null,null,null,null,null,null,null,null,null,null,null,null,null,null,null,null,null,null,null,null,null,null,null,null,null,null,null,null,null,null,null,null,null,null,null,null,null,null,null,null,null,null,null,null,null,null,null,null,null,null,null,null,null,null,null,null,null,null,null,null,null,null,null,null,null,null,null,null,null,null,null,null,null,null,null,null,null,null,null,null,null,null,null,null,null,null,null,null,null,null,null,null,null,null,null,null,null,null,null,null,null,null,null,null,null,null,null,null,null,null,null,null,null,null,null,null,null,null,null,null,null,null,null,null,null,null,null,null,null,null,null,null,null,null,null,null,null,null,null,null,null,null,null,null,null,null,null,null,null,null,null,null,null,null,null,null,null,null,null,null,null,null,null,null,null,null,null,null,null,null,null,null,null,null,null,null,null,null,null,null,null,null,null,null,null,null,null,null,null,null,null,null,null,null,null,null,null,null,null,null,null,null,null,null,null,null,null,null,null,null,null,null,null,null,null,null,null,null,null,null,null,null,null,null,null,null,null,null,null,null,null,null,null,null,null,null,null,null,null,null,null,null,null,null,null,null,null,null,null,null,null,null,null,null,null,null,null,null,null,null,null,null,null,null,null,null,null,null,null,null,null,null,null,null,null,null,null,null,null,null,null,null,null,null,null,null,null,null,null,null,null,null,null,null,null,null,null,null,null,null,null,null,null,null,null,null,null,null,null,null,null,null,null,null,null,null,null,null,null,null,null,null,null,null,null,null,null,null,null,null,null,null,null,null,null,null,null,null,null,null,null,null,null,null,null,null,null,null,null,null,null,null,null,null,null,null,null,null,null,null,null,null,null,null,null,null,null,null,null,null,null,null,null,null,null,null,null,null,null,null,null,null,null,null,null,null,null,null,null,null,null,null,null,null,null,null,null,null,null,null,null,null,null,null,null,null,null,null,null,null,null,null,null,null,null,null,null,null,null,null,null,null,null,null,null,null,null,null,null,null,null,null,null,null,null,null,null,null,null,null,null,null,null,null,null,null,null,null,null,null,null,null,null,null,null,null,null,null,null,null,null,null,null,null,null,null,null,null,null,null,null,null,null,null,null,null,null,null,null,null,null,null,null,null,null,null,null,null,null,null,null,null,null,null,null,null,null,null,null,null,null,null,null,null,null,null,null,null,null,null,null,null,null,null,null,null,null,null,null,null,null,null,null,null,null,null,null,null,null,null,null,null,null,null,null,null,null,null,null,null,null,null,null,null,null,null,null,null,null,null,null,null,null,null,null,null,null,null,null,null,null,null,null,null,null,null,null,null,null,null,null,null,null,null,null,null,null,null,null,null,null,null,null,null,null,null,null,null,null,null,null,null,null,null,null,null,null,null,null,null,null,null,null,null,null,null,null,null,null,null,null,null,null,null,null,null,null,null,null,null,null,null,null,null,null,null,null,null,null,null,null,null,null,null,null,null,null,null,null,null,null,null,null,null,null,null,null,null,null,null,null,null,null,null,null,null,null,null,null,null,null,null,null,null,null,null,null,null,null,null,null,null,null,null,null,null,null,null,null,null,null,null,null,null,null,null,null,null,null,null,null,null,null,null,null,null,null,null,null,null,null,null,null,null,null,null,null,null,null,null,null,null,null,null,null,null,null,null,null,null,null,null,null,null,null,null,null,null,null,null,null,null,null,null,null,null,null,null,null,null,null,null,null,null,null,null,null,null,null,null,null,null,null,null,null,null,null,null,null,null,null,null,null,null,null,null,null,null,null,null,null,null,null,null,null,null,null,null,null,null,null,null,null,null,null,null,null,null,null,null,null,null,null,null,null,null,null,null,null,null,null,null,null,null,null,null,null,null,null,null,null,null,null,null,null,null,null,null,null,null,null,null,null,null,null,null,null,null,null,null,null,null,null,null,null,null,null,null,null,null,null,null,null,null,null,null,null,null,null,null,null,null,null,null,null,null,null,null,null,null,null,null,null,null,null,null,null,null,null,null,null,null,null,null,null,null,null,null,null,null,null,null,null,null,null,null,null,null,null,null,null,null,null,null,null,null,null,null,null,null,null,null,null,null,null,null,null,null,null,null,null,null,null,null,null,null,null,null,null,null,null,null,null,null,null,null,null,null,null,null,null,null,null,null,null,null,null,null,null,null,null,null,null,null,null,null,null,null,null,null,null,null,null,null,null,null,null,null,null,null,null,null,null,null,null,null,null,null,null,null,null,null,null,null,null,null,null,null,null,null,null,null,null,null,null,null,null,null,null,null,null,null,null,null,null,null,null,null,null,null,null,null,null,null,null,null,null,null,null,null,null,null,null,null,null,null,null,null,null,null,null,null,null,null,null,null,null,null,null,null,null,null,null,null,null,null,null,null,null,null,null,null,null,null,null,null,null,null,null,null,null,null,null,null,null,null,null,null,null,null,null,null,null,null,null,null,null,null,null,null,null,null,null,null,null,null,null,null,null,null,null,null,null,null,null,null,null,null,null,null,null,null,null,null,null,null,null,null,null,null,null,null,null,null,null,null,null,null,null,null,null,null,null,null,null,null,null,null,null,null,null,null,null,null,null,null,null,null,null,null,null,null,null,null,null,null,null,null,null,null,null,null,null,null,null,null,null,null,null,null,null,null,null,null,null,null,null,null,null,null,null,null,null,null,null,null,null,null,null,null,null,null,null,null,null,null,null,null,null,null,null,null,null,null,null,null,null,null,null,null,null,null,null,null,null,null,null,null,null,null,null,null,null,null,null,null,null,null,null,null,null,null,null,null,null,null,null,null,null,null,null,null,null,null,null,null,null,null,null,null,null,null,null,null,null,null,null,null,null,null,null,null,null,null,null,null,null,null,null,null,null,null,null,null,null,null,null,null,null,null,null,null,null,null,null,null,null,null,null,null,null,null,null,null,null,null,null,null,null,null,null,null,null,null,null,null,null,null,null,null,null,null,null,null,null,null,null,null,null,null,null,null,null,null,null,null,null,null,null,null,null,null,null,null,null,null,null,null,null,null,null,null,null,null,null,null,null,null,null,null,null,null,null,null,null,null,null,null,null,null,null,null,null,null,null,null,null,null,null,null,null,null,null,null,null,null,null,null,null,null,null,null,null,null,null,null,null,null,null,null,null,null,null,null,null,null,null,null,null,null,null,null,null,null,null,null,null,null,null,null,null,null,null,null,null,null,null,null,null,null,null,null,null,null,null,null,null,null,null,null,null,null,null,null,null,null,null,null,null,null,null,null,null,null,null,null,null,null,null,null,null,null,null,null,null,null,null,null,null,null,null,null,null,null,null,null,null,null,null,null,null,null,null,null,null,null,null,null,null,null,null,null,null,null,null,null,null,null,null,null,null,null,null,null,null,null,null,null,null,null,null,null,null,null,null,null,null,null,null,null,null,null,null,null,null,null,null,null,null,null,null,null,null,null,null,null,null,null,null,null,null,null,null,null,null,null,null,null,null,null,null,null,null,null,null,null,null,null,null,null,null,null,null,null,null,null,null,null,null,null,null,null,null,null,null,null,null,null,null,null,null,null,null,null,null,null,null,null,null,null,null,null,null,null,null,null,null,null,null,null,null,null,null,null,null,null,null,null,null,null,null,null,null,null,null,null,null,null,null,null,null,null,null,null,null,null,null,null,null,null,null,null,null,null,null,null,null,null,null,null,null,null,null,null,null,null,null,null,null,null,null,null,null,null,null,null,null,null,null,null,null,null,null,null,null,null,null,null,null,null,null,null,null,null,null,null,null,null,null,null,null,null,null,null,null,null,null,null,null,null,null,null,null,null,null,null,null,null,null,null,null,null,null,null,null,null,null,null,null,null,null,null,null,null,null,null,null,null,null,null,null,null,null,null,null,null,null,null,null,null,null,null,null,null,null,null,null,null,null,null,null,null,null,null,null,null,null,null,null,null,null,null,null,null,null,null,null,null,null,null,null,null,null,null,null,null,null,null,null,null,null,null,null,null,null,null,null,null,null,null,null,null,null,null,null,null,null,null,null,null,null,null,null,null,null,null,null,null,null,null,null,null,null,null,null,null,null,null,null,null,null,null,null,null,null,null,null,null,null,null,null,null,null,null,null,null,null,null,null,null,null,null,null,null,null,null,null,null,null,null,null,null,null,null,null,null,null,null,null,null,null,null,null,null,null,null,null,null,null,null,null,null,null,null,null,null,null,null,null,null,null,null,null,null,null,null,null,null,null,null,null,null,null,null,null,null,null,null,null,null,null,null,null,null,null,null,null,null,null,null,null,null,null,null,null,null,null,null,null,null,null,null,null,null,null,null,null,null,null,null,null,null,null,null,null,null,null,null,null,null,null,null,null,null,null,null,null,null,null,null,null,null,null,null,null,null,null,null,null,null,null,null,null,null,null,null,null,null,null,null,null,null,null,null,null,null,null,null,null,null,null,null,null,null,null,null,null,null,null,null,null,null,null,null,null,null,null,null,null,null,null,null,null,null,null,null,null,null,null,null,null,null,null,null,null,null,null,null,null,null,null,null,null,null,null,null,null,null,null,null,null,null,null,null,null,null,null,null,null,null,null,null,null,null,null,null,null,null,null,null,null,null,null,null,null,null,null,null,null,null,null,null,null,null,null,null,null,null,null,null,null,null,null,null,null,null,null,null,null,null,null,null,null,null,null,null,null,null,null,null,null,null,null,null,null,null,null,null,null,null,null,null,null,null,null,null,null,null,null,null,null,null,null,null,null,null,null,null,null,null,null,null,null,null,null,null,null,null,null,null,null,null,null,null,null,null,null,null,null,null,null,null,null,null,null,null,null,null,null,null,null,null,null,null,null,null,null,null,null,null,null,null,null,null,null,null,null,null,null,null,null,null,null,null,null,null,null,null,null,null,null,null,null,null,null,null,null,null,null,null,null,null,null,null,null,null,null,null,null,null,null,null,null,null,null,null,null,null,null,null,null,null,null,null,null,null,null,null,null,null,null,null,null,null,null,null,null,null,null,null,null,null,null,null,null,null,null,null,null,null,null,null,null,null,null,null,null,null,null,null,null,null,null,null,null,null,null,null,null,null,null,null,null,null,null,null,null,null,null,null,null,null,null,null,null,null,null,null,null,null,null,null,null,null,null,null,null,null,null,null,null,null,null,null,null,null,null,null,null,null,null,null,null,null,null,null,null,null,null,null,null,null,null,null,null,null,null,null,null,null,null,null,null,null,null,null,null,null,null,null,null,null,null,null,null,null,null,null,null,null,null,null,null,null,null,null,null,null,null,null,null,null,null,null,null,null,null,null,null,null,null,null,null,null,null,null,null,null,null,null,null,null,null,null,null,null,null,null,null,null,null,null,null,null,null,null,null,null,null,null,null,null,null,null,null,null,null,null,null,null,null,null,null,null,null,null,null,null,null,null,null,null,null,null,null,null,null,null,null,null,null,null,null,null,null,null,null,null,null,null,null,null,null,null,null,null,null,null,null,null,null,null,null,null,null,null,null,null,null,null,null,null,null,null,null,null,null,null,null,null,null,null,null,null,null,null,null,null,null,null,null,null,null,null,null,null,null,null,null,null,null,null,null,null,null,null,null,null,null,null,null,null,null,null,null,null,null,null,null,null,null,null,null,null,null,null,null,null,null,null,null,null,null,null,null,null,null,null,null,null,null,null,null,null,null,null,null,null,null,null,null,null,null,null,null,null,null,null,null,null,null,null,null,null,null,null,null,null,null,null,null,null,null,null,null,null,null,null,null,null,null,null,null,null,null,null,null,null,null,null,null,null,null,null,null,null,null,null,null,null,null,null,null,null,null,null,null,null,null,null,null,null,null,null,null,null,null,null,null,null,null,null,null,null,null,null,null,null,null,null,null,null,null,null,null,null,null,null,null,null,null,null,null,null,null,null,null,null,null,null,null,null,null,null,null,null,null,null,null,null,null,null,null,null,null,null,null,null,null,null,null,null,null,null,null,null,null,null,null,null,null,null,null,null,null,null,null,null,null,null,null,null,null,null,null,null,null,null,null,null,null,null,null,null,null,null,null,null,null,null,null,null,null,null,null,null,null,null,null,null,null,null,null,null,null,null,null,null,null,null,null,null,null,null,null,null,null,null,null,null,null,null,null,null,null,null,null,null,null,null,null,null,null,null,null,null,null,null,null,null,null,null,null,null,null,null,null,null,null,null,null,null,null,null,null,null,null,null,null,null,null,null,null,null,null,null,null,null,null,null,null,null,null,null,null,null,null,null,null,null,null,null,null,null,null,null,null,null,null,null,null,null,null,null,null,null,null,null,null,null,null,null,null,null,null,null,null,null,null,null,null,null,null,null,null,null,null,null,null,null,null,null,null,null,null,null,null,null,null,null,null,null,null,null,null,null,null,null,null,null,null,null,null,null,null,null,null,null,null,null,null,null,null,null,null,null,null,null,null,null,null,null,null,null,null,null,null,null,null,null,null,null,null,null,null,null,null,null,null,null,null,null,null,null,null,null,null,null,null,null,null,null,null,null,null,null,null,null,null,null,null,null,null,null,null,null,null,null,null,null,null,null,null,null,null,null,null,null,null,null,null,null,null,null,null,null,null,null,null,null,null,null,null,null,null,null,null,null,null,null,null,null,null,null,null,null,null,null,null,null,null,null,null,null,null,null,null,null,null,null,null,null,null,null,null,null,null,null,null,null,null,null,null,null,null,null,null,null,null,null,null,null,null,null,null,null,null,null,null,null,null,null,null,null,null,null,null,null,null,null,null,null,null,null,null,null,null,null,null,null,null,null,null,null,null,null,null,null,null,null,null,null,null,null,null,null,null,null,null,null,null,null,null,null,null,null,null,null,null,null,null,null,null,null,null,null,null,null,null,null,null,null,null,null,null,null,null,null,null,null,null,null,null,null,null,null,null,null,null,null,null,null,null,null,null,null,null,null,null,null,null,null,null,null,null,null,null,null,null,null,null,null,null,null,null,null,null,null,null,null,null,null,null,null,null,null,null,null,null,null,null,null,null,null,null,null,null,null,null,null,null,null,null,null,null,null,null,null,null,null,null,null,null,null,null,null,null,null,null,null,null,null,null,null,null,null,null,null,null,null,null,null,null,null,null,null,null,null,null,null,null,null,null,null,null,null,null,null,null,null,null,null,null,null,null,null,null,null,null,null,null,null,null,null,null,null,null,null,null,null,null,null,null,null,null,null,null,null,null,null,null,null,null,null,null,null,null,null,null,null,null,null,null,null,null,null,null,null,null,null,null,null,null,null,null,null,null,null,null,null,null,null,null,null,null,null,null,null,null,null,null,null,null,null,null,null,null,null,null,null,null,null,null,null,null,null,null,null,null,null,null,null,null,null,null,null,null,null,null,null,null,null,null,null,null,null,null,null,null,null,null,null,null,null,null,null,null,null,null,null,null,null,null,null,null,null,null,null,null,null,null,null,null,null,null,null,null,null,null,null,null,null,null,null,null,null,null,null,null,null,null,null,null,null,null,null,null,null,null,null,null,null,null,null,null,null,null,null,null,null,null,null,null,null,null,null,null,null,null,null,null,null,null,null,null,null,null,null,null,null,null,null,null,null,null,null,null,null,null,null,null,null,null,null,null,null,null,null,null,null,null,null,null,null,null,null,null,null,null,null,null,null,null,null,null,null,null,null,null,null,null,null,null,null,null,null,null,null,null,null,null,null,null,null,null,null,null,null,null,null,null,null,null,null,null,null,null,null,null,null,null,null,null,null,null,null,null,null,null,null,null,null,null,null,null,null,null,null,null,null,null,null,null,null,null,null,null,null,null,null,null,null,null,null,null,null,null,null,null,null,null,null,null,null,null,null,null,null,null,null,null,null,null,null,null,null,null,null,null,null,null,null,null,null,null,null,null,null,null,null,null,null,null,null,null,null,null,null,null,null,null,null,null,null,null,null,null,null,null,null,null,null,null,null,null,null,null,null,null,null,null,null,null,null,null,null,null,null,null,null,null,null,null,null,null,null,null,null,null,null,null,null,null,null,null,null,null,null,null,null,null,null,null,null,null,null,null,null,null,null,null,null,null,null,null,null,null,null,null,null,null,null,null,null,null,null,null,null,null,null,null,null,null,null,null,null,null,null,null,null,null,null,null,null,null,null,null,null,null,null,null,null,null,null,null,null,null,null,null,null,null,null,null,null,null,null,null,null,null,null,null,null,null,null,null,null,null,null,null,null,null,null,null,null,null,null,null,null,null,null,null,null,null,null,null,null,null,null,null,null,null,null,null,null,null,null,null,null,null,null,null,null,null,null,null,null,null,null,null,null,null,null,null,null,null,null,null,null,null,null,null,null,null,null,null,null,null,null,null,null,null,null,null,null,null,null,null,null,null,null,null,null,null,null,null,null,null,null,null,null,null,null,null,null,null,null,null,null,null,null,null,null,null,null,null,null,null,null,null,null,null,null,null,null,null,null,null,null,null,null,null,null,null,null,null,null,null,null,null,null,null,null,null,null,null,null,null,null,null,null,null,null,null,null,null,null,null,null,null,null,null,null,null,null,null,null,null,null,null,null,null,null,null,null,null,null,null,null,null,null,null,null,null,null,null,null,null,null,null,null,null,null,null,null,null,null,null,null,null,null,null,null,null,null,null,null,null,null,null,null,null,null,null,null,null,null,null,null,null,null,null,null,null,null,null,null,null,null,null,null,null,null,null,null,null,null,null,null,null,null,null,null,null,null,null,null,null,null,null,null,null,null,null,null,null,null,null,null,null,null,null,null,null,null,null,null,null,null,null,null,null,null,null,null,null,null,null,null,null,null,null,null,null,null,null,null,null,null,null,null,null,null,null,null,null,null,null,null,null,null,null,null,null,null,null,null,null,null,null,null,null,null,null,null,null,null,null,null,null,null,null,null,null,null,null,null,null,null,null,null,null,null,null,null,null,null,null,null,null,null,null,null,null,null,null,null,null,null,null,null,null,null,null,null,null,null,null,null,null,null,null,null,null,null,null,null,null,null,null,null,null,null,null,null,null,null,null,null,null,null,null,null,null,null,null,null,null,null,null,null,null,null,null,null,null,null,null,null,null,null,null,null,null,null,null,null,null,null,null,null,null,null,null,null,null,null,null,null,null,null,null,null,null,null,null,null,null,null,null,null,null,null,null,null,null,null,null,null,null,null,null,null,null,null,null,null,null,null,null,null,null,null,null,null,null,null,null,null,null,null,null,null,null,null,null,null,null,null,null,null,null,null,null,null,null,null,null,null,null,null,null,null,null,null,null,null,null,null,null,null,null,null,null,null,null,null,null,null,null,null,null,null,null,null,null,null,null,null,null,null,null,null,null,null,null,null,null,null,null,null,null,null,null,null,null,null,null,null,null,null,null,null,null,null,null,null,null,null,null,null,null,null,null,null,null,null,null,null,null,null,null,null,null,null,null,null,null,null,null,null,null,null,null,null,null,null,null,null,null,null,null,null,null,null,null,null,null,null,null,null,null,null,null,null,null,null,null,null,null,null,null,null,null,null,null,null,null,null,null,null,null,null,null,null,null,null,null,null,null,null,null,null,null,null,null,null,null,null,null,null,null,null,null,null,null,null,null,null,null,null,null,null,null,null,null,null,null,null,null,null,null,null,null,null,null,null,null,null,null,null,null,null,null,null,null,null,null,null,null,null,null,null,null,null,null,null,null,null,null,null,null,null,null,null,null,null,null,null,null,null,null,null,null,null,null,null,null,null,null,null,null,null,null,null,null,null,null,null,null,null,null,null,null,null,null,null,null,null,null,null,null,null,null,null,null,null,null,null,null,null,null,null,null,null,null,null,null,null,null,null,null,null,null,null,null,null,null,null,null,null,null,null,null,null,null,null,null,null,null,null,null,null,null,null,null,null,null,null,null,null,null,null,null,null,null,null,null,null,null,null,null,null,null,null,null,null,null,null,null,null,null,null,null,null,null,null,null,null,null,null,null,null,null,null,null,null,null,null,null,null,null,null,null,null,null,null,null,null,null,null,null,null,null,null,null,null,null,null,null,null,null,null,null,null,null,null,null,null,null,null,null,null,null,null,null,null,null,null,null,null,null,null,null,null,null,null,null,null,null,null,null,null,null,null,null,null,null,null,null,null,null,null,null,null,null,null,null,null,null,null,null,null,null,null,null,null,null,null,null,null,null,null,null,null,null,null,null,null,null,null,null,null,null,null,null,null,null,null,null,null,null,null,null,null,null,null,null,null,null,null,null,null,null,null,null,null,null,null,null,null,null,null,null,null,null,null,null,null,null,null,null,null,null,null,null,null,null,null,null,null,null,null,null,null,null,null,null,null,null,null,null,null,null,null,null,null,null,null,null,null,null,null,null,null,null,null,null,null,null,null,null,null,null,null,null,null,null,null,null,null,null,null,null,null,null,null,null,null,null,null,null,null,null,null,null,null,null,null,null,null,null,null,null,null,null,null,null,null,null,null,null,null,null,null,null,null,null,null,null,null,null,null,null,null,null,null,null,null,null,null,null,null,null,null,null,null,null,null,null,null,null,null,null,null,null,null,null,null,null,null,null,null,null,null,null,null,null,null,null,null,null,null,null,null,null,null,null,null,null,null,null,null,null,null,null,null,null,null,null,null,null,null,null,null,null,null,null,null,null,null,null,null,null,null,null,null,null,null,null,null,null,null,null,null,null,null,null,null,null,null,null,null,null,null,null,null,null,null,null,null,null,null,null,null,null,null,null,null,null,null,null,null,null,null,null,null,null,null,null,null,null,null,null,null,null,null,null,null,null,null,null,null,null,null,null,null,null,null,null,null,null,null,null,null,null,null,null,null,null,null,null,null,null,null,null,null,null,null,null,null,null,null,null,null,null,null,null,null,null,null,null,null,null,null,null,null,null,null,null,null,null,null,null,null,null,null,null,null,null,null,null,null,null,null,null,null,null,null,null,null,null,null,null,null,null,null,null,null,null,null,null,null,null,null,null,null,null,null,null,null,null,null,null,null,null,null,null,null,null,null,null,null,null,null,null,null,null,null,null,null,null,null,null,null,null,null,null,null,null,null,null,null,null,null,null,null,null,null,null,null,null,null,null,null,null,null,null,null,null,null,null,null,null,null,null,null,null,null,null,null,null,null,null,null,null,null,null,null,null,null,null,null,null,null,null,null,null,null,null,null,null,null,null,null,null,null,null,null,null,null,null,null,null,null,null,null,null,null,null,null,null,null,null,null,null,null,null,null,null,null,null,null,null,null,null,null,null,null,null,null,null,null,null,null,null,null,null,null,null,null,null,null,null,null,null,null,null,null,null,null,null,null,null,null,null,null,null,null,null,null,null,null,null,null,null,null,null,null,null,null,null,null,null,null,null,null,null,null,null,null,null,null,null,null,null,null,null,null,null,null,null,null,null,null,null,null,null,null,null,null,null,null,null,null,null,null,null,null,null,null,null,null,null,null,null,null,null,null,null,null,null,null,null,null,null,null,null,null,null,null,null,null,null,null,null,null,null,null,null,null,null,null,null,null,null,null,null,null,null,null,null,null,null,null,null,null,null,null,null,null,null,null,null,null,null,null,null,null,null,null,null,null,null,null,null,null,null,null,null,null,null,null,null,null,null,null,null,null,null,null,null,null,null,null,null,null,null,null,null,null,null,null,null,null,null,null,null,null,null,null,null,null,null,null,null,null,null,null,null,null,null,null,null,null,null,null,null,null,null,null,null,null,null,null,null,null,null,null,null,null,null,null,null,null,null,null,null,null,null,null,null,null,null,null,null,null,null,null,null,null,null,null,null,null,null,null,null,null,null,null,null,null,null,null,null,null,null,null,null,null,null,null,null,null,null,null,null,null,null,null,null,null,null,null,null,null,null,null,null,null,null,null,null,null,null,null,null,null,null,null,null,null,null,null,null,null,null,null,null,null,null,null,null,null,null,null,null,null,null,null,null,null,null,null,null,null,null,null,null,null,null,null,null,null,null,null,null,null,null,null,null,null,null,null,null,null,null,null,null,null,null,null,null,null,null,null,null,null,null,null,null,null,null,null,null,null,null,null,null,null,null,null,null,null,null,null,null,null,null,null,null,null,null,null,null,null,null,null,null,null,null,null,null,null,null,null,null,null,null,null,null,null,null,null,null,null,null,null,null,null,null,null,null,null,null,null,null,null,null,null,null,null,null,null,null,null,null,null,null,null,null,null,null,null,null,null,null,null,null,null,null,null,null,null,null,null,null,null,null,null,null,null,null,null,null,null,null,null,null,null,null,null,null,null,null,null,null,null,null,null,null,null,null,null,null,null,null,null,null,null,null,null,null,null,null,null,null,null,null,null,null,null,null,null,null,null,null,null,null,null,null,null,null,null,null,null,null,null,null,null,null,null,null,null,null,null,null,null,null,null,null,null,null,null,null,null,null,null,null,null,null,null,null,null,null,null,null,null,null,null,null,null,null,null,null,null,null,null,null,null,null,null,null,null,null,null,null,null,null,null,null,null,null,null,null,null,null,null,null,null,null,null,null,null,null,null,null,null,null,null,null,null,null,null,null,null,null,null,null,null,null,null,null,null,null,null,null,null,null,null,null,null,null,null,null,null,null,null,null,null,null,null,null,null,null,null,null,null,null,null,null,null,null,null,null,null,null,null,null,null,null,null,null,null,null,null,null,null,null,null,null,null,null,null,null,null,null,null,null,null,null,null,null,null,null,null,null,null,null,null,null,null,null,null,null,null,null,null,null,null,null,null,null,null,null,null,null,null,null,null,null,null,null,null,null,null,null,null,null,null,null,null,null,null,null,null,null,null,null,null,null,null,null,null,null,null,null,null,null,null,null,null,null,null,null,null,null,null,null,null,null,null,null,null,null,null,null,null,null,null,null,null,null,null,null,null,null,null,null,null,null,null,null,null,null,null,null,null,null,null,null,null,null,null,null,null,null,null,null,null,null,null,null,null,null,null,null,null,null,null,null,null,null,null,null,null,null,null,null,null,null,null,null,null,null,null,null,null,null,null,null,null,null,null,null,null,null,null,null,null,null,null,null,null,null,null,null,null,null,null,null,null,null,null,null,null,null,null,null,null,null,null,null,null,null,null,null,null,null,null,null,null,null,null,null,null,null,null,null,null,null,null,null,null,null,null,null,null,null,null,null,null,null,null,null,null,null,null,null,null,null,null,null,null,null,null,null,null,null,null,null,null,null,null,null,null,null,null,null,null,null,null,null,null,null,null,null,null,null,null,null,null,null,null,null,null,null,null,null,null,null,null,null,null,null,null,null,null,null,null,null,null,null,null,null,null,null,null,null,null,null,null,null,null,null,null,null,null,null,null,null,null,null,null,null,null,null,null,null,null,null,null,null,null,null,null,null,null,null,null,null,null,null,null,null,null,null,null,null,null,null,null,null,null,null,null,null,null,null,null,null,null,null,null,null,null,null,null,null,null,null,null,null,null,null,null,null,null,null,null,null,null,null,null,null,null,null,null,null,null,null,null,null,null,null,null,null,null,null,null,null,null,null,null,null,null,null,null,null,null,null,null,null,null,null,null,null,null,null,null,null,null,null,null,null,null,null,null,null,null,null,null,null,null,null,null,null,null,null,null,null,null,null,null,null,null,null,null,null,null,null,null,null,null,null,null,null,null,null,null,null,null,null,null,null,null,null,null,null,null,null,null,null,null,null,null,null,null,null,null,null,null,null,null,null,null,null,null,null,null,null,null,null,null,null,null,null,null,null,null,null,null,null,null,null,null,null,null,null,null,null,null,null,null,null,null,null,null,null,null,null,null,null,null,null,null,null,null,null,null,null,null,null,null,null,null,null,null,null,null,null,null,null,null,null,null,null,null,null,null,null,null,null,null,null,null,null,null,null,null,null,null,null,null,null,null,null,null,null,null,null,null,null,null,null,null,null,null,null,null,null,null,null,null,null,null,null,null,null,null,null,null,null,null,null,null,null,null,null,null,null,null,null,null,null,null,null,null,null,null,null,null,null,null,null,null,null,null,null,null,{"$f":"IF($A$1=\"عطلة رسمية\",\"False\",IF($A$1=\"دوام رسمى\",\"True\",\"AAA\"))","v":"AAA"}]
[null,"App. Date","Name","Surname","Pasaport No.","Date of birth",null,null,"Date","No. of App","Total of Paid $","Total of Paid $","Total of Unpaid $",null,"Official holiday","Form"]
[null,"2019-04-24T15:00:35.577","KHAYRI ATEEYAH ALMAHDI","ALGHOUL","RGZ10H6R","1973-05-08",null,null,{"$f":"IF(P3=\"\",\"\",P3)","v":"1st June"},{"$f":"IF(I3=\"\",\"\",INDIRECT(\"'\"&$I3&\"'!$q9\"))","v":76},{"$f":"IF(I3=\"\",\"\",INDIRECT(\"'\"&$I3&\"'!$o4\"))","v":6997},{"$f":"IF(I3=\"\",\"\",INDIRECT(\"'\"&$I3&\"'!$o7\"))","v":5760},{"$f":"IF(I3=\"\",\"\",INDIRECT(\"'\"&$I3&\"'!$T23\"))","v":1590},null,"Other","1st June"]
[null,"2019-04-28T12:39:44.370","ALZUBAYR FARAJ HASAN","ALMUZOUGHI","LPC37G85","1993-11-21",null,null,{"$f":"IF(P4=\"\",\"\",P4)","v":"2019-07-16"},{"$f":"IF(I4=\"\",\"\",INDIRECT(\"'\"&TEXT($I4,\"dd-mm-yyyy\")&\"'!$q9\"))","v":2},{"$f":"IF(I4=\"\",\"\",INDIRECT(\"'\"&TEXT($I4,\"dd-mm-yyyy\")&\"'!$o4\"))","v":170},{"$f":"IF(I4=\"\",\"\",INDIRECT(\"'\"&TEXT($I4,\"dd-mm-yyyy\")&\"'!$o7\"))","v":150},{"$f":"IF(I4=\"\",\"\",INDIRECT(\"'\"&TEXT($I4,\"dd-mm-yyyy\")&\"'!$T23\"))","v":100},null,null,"2019-07-16"]
[null,"2019-04-28T13:13:30.707","ZAKRIA","ALMOZGI","GL35GN54","1991-12-02",null,null,{"$f":"IF(P5=\"\",\"\",P5)","v":""},{"$f":"IF(I5=\"\",\"\",INDIRECT(\"'\"&TEXT($I5,\"dd-mm-yyyy\")&\"'!$q9\"))","v":""},{"$f":"IF(I5=\"\",\"\",INDIRECT(\"'\"&TEXT($I5,\"dd-mm-yyyy\")&\"'!$o4\"))","v":""},{"$f":"IF(I5=\"\",\"\",INDIRECT(\"'\"&TEXT($I5,\"dd-mm-yyyy\")&\"'!$o7\"))","v":""},{"$f":"IF(I5=\"\",\"\",INDIRECT(\"'\"&TEXT($I5,\"dd-mm-yyyy\")&\"'!$T23\"))","v":""}]
[null,"2019-04-29T13:36:16.330","OMAR","ELMOHASHSH","NCJRH93G","1990-09-28",null,null,"","","","",""]
[null,"2019-04-29T13:42:27.433","HIND","OSMAN","C5NR6798","1994-05-01",null,null,"","","","",""]
[null,"2019-05-02T16:57:01.433","MOHAMED","ALBIJOU","RJH6LLCZ","1991-04-24",null,null,"","","","",""]
[null,"2019-05-02T17:04:28.613","SANA","ELHASSI","HCJ6L6PK","1991-09-29",null,null,"","","","",""]
[null,"2019-05-08T12:55:30.870","AISHA","ALSAKLOUL","NPJ3YZH4","1979-05-25",null,null,"","","","",""]
[null,"2019-05-08T13:03:32.563","ESLAM","ALSAKLOUL","NPNKR1RZ","1990-01-15",null,null,"","","","",""]
[null,"2019-05-12T15:21:28.803","ESLAM","ALSAKLOUL","-NPNKR1RZ","1996-01-15",null,null,"","","","",""]
[null,"2019-05-16T13:48:08.413","MUHANAD","ELBURKI","J7G3JY60","1984-01-21",null,null,"","","","",""]
[null,"2019-05-16T13:53:24.300","ENAS","IKJAM","R4HHCPY4","1985-02-06",null,null,"","","","",""]
[null,"2019-05-19T13:26:46.853","LAILA","BEN ISMAIL","K2P1N4N8","1966-04-06",null,null,"","","","",""]
[null,"2019-05-19T13:31:45.700","YASMIN","EL SAHLI","PCPY0PG9","2005-05-15",null,null,"","","","",""]
[null,"2019-05-19T13:35:47.647","YASMIN","EL SAHLI","PCR55NJP","2002-02-27",null,null,"","","","",""]
[null,"2019-05-21T16:16:50.417","YASMIN","AGILA","P81G5CK1","1978-01-05",null,null,"","","","",""]
[null,"2019-05-21T16:21:20.403","YASMIN","EJBALI","C771KFP5","1983-08-06",null,null,"","","","",""]
[null,"2019-05-22T13:16:38.180","YASMIN","KRAIM","F9K1J6G5","1977-04-21",null,null,"","","","",""]
[null,"2019-05-23T12:28:57.527","RAMADHAN","GARGOM","000C6236LL1","1983-10-01",null,null,"","","","",""]
[null,"2019-05-28T17:03:35.457","ABTISAM  ","HOUSSEIN","HZLY9H3G","1985-04-08",null,null,"","","","",""]
[null,"2019-05-29T18:56:52.767","ABOBAKER ","ALSHADLI","NGR095HY","1976-02-20",null,null,"","","","",""]
[null,"2019-05-30T13:15:29.767","KHALED","BUSHIBA","++P0Y3KC9H","1991-04-24",null,null,"","","","",""]
[null,"2019-05-30T13:18:57.317","NAWARA","ATLOUBAH","NG9FP4YL","1981-10-06",null,null,"","","","",""]
[null,"2019-06-02T18:39:18.367","ALLAELDIN","ABDELHALIM","924679","1995-05-05",null,null,"","","","",""]
[null,"2019-06-09T12:00:50.073","ADEL","ALABYADH","RG2KYP15","1975-03-01",null,null,"","","","",""]
[null,"2019-06-09T13:19:06.617","MOHAMED","ALBIJOU","+RJH6LLCZ","1971-10-12",null,null,"","","","",""]
[null,"2019-06-09T13:42:41.223","ALMAHDI","ALBAHLOUL","P28YYP83","1975-04-01",null,null,"","","","",""]
[null,"2019-06-09T15:32:46.743","KHADIJA","AGILA","HN058N7F","1976-10-04",null,null,"","","","",""]
[null,"2019-06-10T13:58:24.787","MUNIR","ELAGOURI","FPFGG8YP","1982-06-10",null,null,"","","","",""]
[null,"2019-06-10T14:15:21.727","ABDULBASIT","ALTAHIR","LCLRC5F0","1990-11-22",null,null,"","","","",""]
[null,"2019-06-10T14:32:41.430","OMAR","ALTAHIR","HP52ZG24","1987-06-03",null,null,"","","","",""]
[null,"2019-06-10T16:05:09.850","OSAMA","BELGASEM","QY84LPJY","1994-02-06",null,null,"","","","",""]
[null,"2019-06-10T16:08:07.367","NESRIN","MOHAMED","GY8Y7L1N","1955-12-25",null,null,"","","","",""]
[null,"2019-06-10T16:45:00.743","OMAR","ELHMRRI","HYY6NGL2","1994-08-02",null,null,"","","","",""]
[null,"2019-06-10T16:50:13.033","GHALIYAH","ALHAMRI","CKN315PH","1959-01-01",null,null,"","","","",""]
[null,"2019-06-11T12:02:25.957","BRAA","ELMANGOSH","+C0881J9P","1990-08-19",null,null,"","","","",""]
[null,"2019-06-11T12:06:47.277","ZAINAB","ELSADEG","L0KPKR13","1968-09-04",null,null,"","","","",""]
[null,"2019-06-11T12:24:45.843","ASEIDA","AHNESH","JZ3PC669","1974-06-08",null,null,"","","","",""]
[null,"2019-06-11T14:08:21.950","NASSER","BENHALLOUM","CGJJFN87","2007-05-14",null,null,"","","","",""]
[null,"2019-06-11T14:12:07.113","ABDULLAH","BINHALLOUM","HRC82HFJ","1990-11-22",null,null,"","","","",""]
[null,"2019-06-12T13:06:19.563","ALAADIN","ALSHARKSI","LL2JC154","1966-01-01",null,null,"","","","",""]
[null,"2019-06-12T13:11:53.757","AHLAM","ABDALLAH","LL00C60N","1976-05-25",null,null,"","","","",""]
[null,"2019-06-12T13:15:23.813","ALAA","ALSHARKASI","L22L1RCP","1990-09-24",null,null,"","","","",""]
[null,"2019-06-13T15:33:52.910","OMAR","ELHMRRI","+HYY6NGL2","1965-08-28",null,null,"","","","",""]
[null,"2019-06-13T15:39:21.060","LAYLAY","BOUSHEEHAH","HYZG20YC","1992-01-04",null,null,"","","","",""]
[null,"2019-06-17T12:12:51.307","SALAH EDDIN","SHAHOMI","GY1JRP7P","1995-10-06",null,null,"","","","",""]
[null,"2019-06-17T12:17:44.810","MARWA","ASHTITI","GY42C07F","1984-01-11",null,null,"","","","",""]
[null,"2019-06-17T12:51:47.780","ZAHRAH","BOURAWI","P7RLF9J0","1996-12-26",null,null,"","","","",""]
[null,"2019-06-17T12:56:59.610","ABDELRAHIM","ALSHATEETI","GR3P9FZK","1984-03-12",null,null,"","","","",""]
[null,"2019-06-17T13:02:00.187","AHMED","ALSHATEETI","FRF2YK0C","1990-01-21",null,null,"","","","",""]
[null,"2019-06-18T12:24:59.867","IBRAHIM","ELGAHANI","H07H239J","1996-02-13",null,null,"","","","",""]
[null,"2019-06-18T12:28:44.510","NADAY","ALARJ","CFJ2L289","1963-01-01",null,null,"","","","",""]
[null,"2019-06-18T17:22:15.387","OMAR","ALBISHARI","LN0G4RC3","2006-07-31",null,null,"","","","",""]
[null,"2019-06-18T17:54:11.480","SHIMA","ALBASHARI","HF7F2F8N","2004-01-20",null,null,"","","","",""]
[null,"2019-06-20T11:42:46.477","MARWA","ELMAHDI","CK5R6GCC","1970-01-01",null,null,"","","","",""]
[null,"2019-06-20T12:12:00.130","BALGEIS","BADI","GN575LJ5","1971-02-06",null,null,"","","","",""]
[null,"2019-06-20T12:18:10.100","MIRA","GLESSA","GN3FZG0P","2002-09-04",null,null,"","","","",""]
[null,"2019-06-20T12:27:13.480","HANI","GLESSA","GN755ZZJ","2004-01-11",null,null,"","","","",""]
[null,"2019-06-20T14:38:24.320","YAHIA","ELFALLAH","JKP7CGP2","1979-10-06",null,null,"","","","",""]
[null,"2019-06-20T14:43:13.117","ABTESAM","BADER","C9127619","1989-03-22",null,null,"","","","",""]
[null,"2019-06-20T14:46:41.963","NOOR","ALFALLAH","C8RRLPH0","1959-08-28",null,null,"","","","",""]
[null,"2019-06-20T14:53:30.030","ISLAM","ALFALLAH","C8LCJ63Y","1958-01-01",null,null,"","","","",""]
[null,"2019-06-20T16:10:06.907","AHMED","BEDA","H9941GK0","1991-02-12",null,null,"","","","",""]
[null,"2019-06-20T16:26:14.793","ESRAA","GINI","H973R816","1996-12-22",null,null,"","","","",""]
[null,"2019-06-20T18:11:23.413","ABDELJAUL","ELAYTIE","FRNFL9ZK","1966-11-21",null,null,"","","","",""]
[null,"2019-06-20T18:14:02.773","SALMA","ELZEWI","FRYCP0P3","1973-10-25",null,null,"","","","",""]
[null,"2019-06-20T18:17:26.260","MARWA","ELSAYTIE","FRN4NYCF","1980-09-28",null,null,{"$f":"IF(P69=\"\",\"\",P69)","v":""},{"$f":"IF(I69=\"\",\"\",INDIRECT(\"'\"&TEXT($I69,\"dd-mm-yyyy\")&\"'!$q9\"))","v":""},{"$f":"IF(I69=\"\",\"\",INDIRECT(\"'\"&TEXT($I69,\"dd-mm-yyyy\")&\"'!$o4\"))","v":""},{"$f":"IF(I69=\"\",\"\",INDIRECT(\"'\"&TEXT($I69,\"dd-mm-yyyy\")&\"'!$o7\"))","v":""},{"$f":"IF(I69=\"\",\"\",INDIRECT(\"'\"&TEXT($I69,\"dd-mm-yyyy\")&\"'!$T23\"))","v":""}]
[null,"2019-06-20T18:23:05.277","ALI","ALSAEITI","GG019KY0","1987-09-02",null,null,"","","","",""]
[null,"2019-06-20T19:09:13.237","KHADEEJAH","ALZAWI","F1KY0LK0","1994-08-06",null,null,"","","","",""]
[null,"2019-06-20T19:17:53.300","AIDAH","BEIDA","G15PZZ2F","2001-07-10",null,null,null,null,null,{"$f":"IF(I72=\"\",\"\",SUM('1st June'!I:I))","v":""},{"$f":"IF(J72=\"\",\"\",SUM('1st June'!K:K))","v":""}]
[null,{"$f":"IF('1st June'!B72=\"\",\"\",'1st June'!B72)","v":"2019-06-20T20:01:13.625"},{"$f":"IF('1st June'!C72=\"\",\"\",'1st June'!C72)","v":"KHADEEJAH"},{"$f":"IF('1st June'!D72=\"\",\"\",'1st June'!D72)","v":"ALZAWI"},{"$f":"IF('1st June'!E72=\"\",\"\",'1st June'!E72)","v":"F1KY0LK3"},{"$f":"IF('1st June'!F72=\"\",\"\",'1st June'!F72)","v":"2008-06-13"},null,null,null,null,null,{"$f":"SUM(L3:L72)","v":5910},{"$f":"SUM(M3:M72)","v":1690}]
[null,{"$f":"IF('1st June'!B73=\"\",\"\",'1st June'!B73)","v":"2019-06-20T20:09:53.690"},{"$f":"IF('1st June'!C73=\"\",\"\",'1st June'!C73)","v":"AIDAH"},{"$f":"IF('1st June'!D73=\"\",\"\",'1st June'!D73)","v":"BEIDA"},{"$f":"IF('1st June'!E73=\"\",\"\",'1st June'!E73)","v":"G15PZZ2F"},"2001-07-11"]
[null,{"$f":"IF('1st June'!B74=\"\",\"\",'1st June'!B74)","v":"2019-06-20T20:18:33.755"},{"$f":"IF('1st June'!C74=\"\",\"\",'1st June'!C74)","v":"KHADEEJAH"},{"$f":"IF('1st June'!D74=\"\",\"\",'1st June'!D74)","v":"ALZAWI"},{"$f":"IF('1st June'!E74=\"\",\"\",'1st June'!E74)","v":"F1KY0LK4"},{"$f":"IF('1st June'!F74=\"\",\"\",'1st June'!F74)","v":"2022-04-21"}]
[null,{"$f":"IF('1st June'!B75=\"\",\"\",'1st June'!B75)","v":"2019-06-20T20:27:13.820"},{"$f":"IF('1st June'!C75=\"\",\"\",'1st June'!C75)","v":"AIDAH"},{"$f":"IF('1st June'!D75=\"\",\"\",'1st June'!D75)","v":"BEIDA"},{"$f":"IF('1st June'!E75=\"\",\"\",'1st June'!E75)","v":"G15PZZ2F"},"2001-07-12"]
[null,{"$f":"IF('1st June'!B76=\"\",\"\",'1st June'!B76)","v":"2019-06-20T20:35:53.885"},{"$f":"IF('1st June'!C76=\"\",\"\",'1st June'!C76)","v":"KHADEEJAH"},{"$f":"IF('1st June'!D76=\"\",\"\",'1st June'!D76)","v":"ALZAWI"},{"$f":"IF('1st June'!E76=\"\",\"\",'1st June'!E76)","v":"F1KY0LK5"},{"$f":"IF('1st June'!F76=\"\",\"\",'1st June'!F76)","v":"2036-02-27"}]
[null,{"$f":"IF('1st June'!B77=\"\",\"\",'1st June'!B77)","v":"2019-06-20T20:44:33.950"},{"$f":"IF('1st June'!C77=\"\",\"\",'1st June'!C77)","v":"AIDAH"},{"$f":"IF('1st June'!D77=\"\",\"\",'1st June'!D77)","v":"BEIDA"},{"$f":"IF('1st June'!E77=\"\",\"\",'1st June'!E77)","v":"G15PZZ2F"},{"$f":"IF('1st June'!F77=\"\",\"\",'1st June'!F77)","v":"2043-01-31"}]
[null,{"$f":"IF('1st June'!B78=\"\",\"\",'1st June'!B78)","v":""},{"$f":"IF('1st June'!C78=\"\",\"\",'1st June'!C78)","v":""},{"$f":"IF('1st June'!D78=\"\",\"\",'1st June'!D78)","v":""},{"$f":"IF('1st June'!E78=\"\",\"\",'1st June'!E78)","v":""},{"$f":"IF('1st June'!F78=\"\",\"\",'1st June'!F78)","v":""}]
[null,{"$f":"IF('1st June'!B79=\"\",\"\",'1st June'!B79)","v":""},{"$f":"IF('1st June'!C79=\"\",\"\",'1st June'!C79)","v":""},{"$f":"IF('1st June'!D79=\"\",\"\",'1st June'!D79)","v":""},{"$f":"IF('1st June'!E79=\"\",\"\",'1st June'!E79)","v":""},{"$f":"IF('1st June'!F79=\"\",\"\",'1st June'!F79)","v":""}]
[null,{"$f":"IF('1st June'!B80=\"\",\"\",'1st June'!B80)","v":""},{"$f":"IF('1st June'!C80=\"\",\"\",'1st June'!C80)","v":""},{"$f":"IF('1st June'!D80=\"\",\"\",'1st June'!D80)","v":""},{"$f":"IF('1st June'!E80=\"\",\"\",'1st June'!E80)","v":""},{"$f":"IF('1st June'!F80=\"\",\"\",'1st June'!F80)","v":""}]
[null,{"$f":"IF('1st June'!B81=\"\",\"\",'1st June'!B81)","v":""},{"$f":"IF('1st June'!C81=\"\",\"\",'1st June'!C81)","v":""},{"$f":"IF('1st June'!D81=\"\",\"\",'1st June'!D81)","v":""},{"$f":"IF('1st June'!E81=\"\",\"\",'1st June'!E81)","v":""},{"$f":"IF('1st June'!F81=\"\",\"\",'1st June'!F81)","v":""}]
[null,{"$f":"IF('1st June'!B82=\"\",\"\",'1st June'!B82)","v":""},{"$f":"IF('1st June'!C82=\"\",\"\",'1st June'!C82)","v":""},{"$f":"IF('1st June'!D82=\"\",\"\",'1st June'!D82)","v":""},{"$f":"IF('1st June'!E82=\"\",\"\",'1st June'!E82)","v":""},{"$f":"IF('1st June'!F82=\"\",\"\",'1st June'!F82)","v":""}]
[null,{"$f":"IF('1st June'!B83=\"\",\"\",'1st June'!B83)","v":""},{"$f":"IF('1st June'!C83=\"\",\"\",'1st June'!C83)","v":""},{"$f":"IF('1st June'!D83=\"\",\"\",'1st June'!D83)","v":""},{"$f":"IF('1st June'!E83=\"\",\"\",'1st June'!E83)","v":""},{"$f":"IF('1st June'!F83=\"\",\"\",'1st June'!F83)","v":""}]
[null,{"$f":"IF('1st June'!B84=\"\",\"\",'1st June'!B84)","v":""},{"$f":"IF('1st June'!C84=\"\",\"\",'1st June'!C84)","v":""},{"$f":"IF('1st June'!D84=\"\",\"\",'1st June'!D84)","v":""},{"$f":"IF('1st June'!E84=\"\",\"\",'1st June'!E84)","v":""},{"$f":"IF('1st June'!F84=\"\",\"\",'1st June'!F84)","v":""}]
[null,{"$f":"IF('1st June'!B85=\"\",\"\",'1st June'!B85)","v":""},{"$f":"IF('1st June'!C85=\"\",\"\",'1st June'!C85)","v":""},{"$f":"IF('1st June'!D85=\"\",\"\",'1st June'!D85)","v":""},{"$f":"IF('1st June'!E85=\"\",\"\",'1st June'!E85)","v":""},{"$f":"IF('1st June'!F85=\"\",\"\",'1st June'!F85)","v":""}]
[null,{"$f":"IF('1st June'!B86=\"\",\"\",'1st June'!B86)","v":""},{"$f":"IF('1st June'!C86=\"\",\"\",'1st June'!C86)","v":""},{"$f":"IF('1st June'!D86=\"\",\"\",'1st June'!D86)","v":""},{"$f":"IF('1st June'!E86=\"\",\"\",'1st June'!E86)","v":""},{"$f":"IF('1st June'!F86=\"\",\"\",'1st June'!F86)","v":""}]
[null,{"$f":"IF('1st June'!B87=\"\",\"\",'1st June'!B87)","v":""},{"$f":"IF('1st June'!C87=\"\",\"\",'1st June'!C87)","v":""},{"$f":"IF('1st June'!D87=\"\",\"\",'1st June'!D87)","v":""},{"$f":"IF('1st June'!E87=\"\",\"\",'1st June'!E87)","v":""},{"$f":"IF('1st June'!F87=\"\",\"\",'1st June'!F87)","v":""}]
[null,{"$f":"IF('1st June'!B88=\"\",\"\",'1st June'!B88)","v":""},{"$f":"IF('1st June'!C88=\"\",\"\",'1st June'!C88)","v":""},{"$f":"IF('1st June'!D88=\"\",\"\",'1st June'!D88)","v":""},{"$f":"IF('1st June'!E88=\"\",\"\",'1st June'!E88)","v":""},{"$f":"IF('1st June'!F88=\"\",\"\",'1st June'!F88)","v":""}]
[null,{"$f":"IF('1st June'!B89=\"\",\"\",'1st June'!B89)","v":""},{"$f":"IF('1st June'!C89=\"\",\"\",'1st June'!C89)","v":""},{"$f":"IF('1st June'!D89=\"\",\"\",'1st June'!D89)","v":""},{"$f":"IF('1st June'!E89=\"\",\"\",'1st June'!E89)","v":""},{"$f":"IF('1st June'!F89=\"\",\"\",'1st June'!F89)","v":""}]
[null,{"$f":"IF('1st June'!B90=\"\",\"\",'1st June'!B90)","v":""},{"$f":"IF('1st June'!C90=\"\",\"\",'1st June'!C90)","v":""},{"$f":"IF('1st June'!D90=\"\",\"\",'1st June'!D90)","v":""},{"$f":"IF('1st June'!E90=\"\",\"\",'1st June'!E90)","v":""},{"$f":"IF('1st June'!F90=\"\",\"\",'1st June'!F90)","v":""}]
[null,{"$f":"IF('1st June'!B91=\"\",\"\",'1st June'!B91)","v":""},{"$f":"IF('1st June'!C91=\"\",\"\",'1st June'!C91)","v":""},{"$f":"IF('1st June'!D91=\"\",\"\",'1st June'!D91)","v":""},{"$f":"IF('1st June'!E91=\"\",\"\",'1st June'!E91)","v":""},{"$f":"IF('1st June'!F91=\"\",\"\",'1st June'!F91)","v":""}]
[null,{"$f":"IF('1st June'!B92=\"\",\"\",'1st June'!B92)","v":""},{"$f":"IF('1st June'!C92=\"\",\"\",'1st June'!C92)","v":""},{"$f":"IF('1st June'!D92=\"\",\"\",'1st June'!D92)","v":""},{"$f":"IF('1st June'!E92=\"\",\"\",'1st June'!E92)","v":""},{"$f":"IF('1st June'!F92=\"\",\"\",'1st June'!F92)","v":""}]
[null,{"$f":"IF('1st June'!B93=\"\",\"\",'1st June'!B93)","v":""},{"$f":"IF('1st June'!C93=\"\",\"\",'1st June'!C93)","v":""},{"$f":"IF('1st June'!D93=\"\",\"\",'1st June'!D93)","v":""},{"$f":"IF('1st June'!E93=\"\",\"\",'1st June'!E93)","v":""},{"$f":"IF('1st June'!F93=\"\",\"\",'1st June'!F93)","v":""}]
[null,{"$f":"IF('1st June'!B94=\"\",\"\",'1st June'!B94)","v":""},{"$f":"IF('1st June'!C94=\"\",\"\",'1st June'!C94)","v":""},{"$f":"IF('1st June'!D94=\"\",\"\",'1st June'!D94)","v":""},{"$f":"IF('1st June'!E94=\"\",\"\",'1st June'!E94)","v":""},{"$f":"IF('1st June'!F94=\"\",\"\",'1st June'!F94)","v":""}]
[null,{"$f":"IF('1st June'!B95=\"\",\"\",'1st June'!B95)","v":""},{"$f":"IF('1st June'!C95=\"\",\"\",'1st June'!C95)","v":""},{"$f":"IF('1st June'!D95=\"\",\"\",'1st June'!D95)","v":""},{"$f":"IF('1st June'!E95=\"\",\"\",'1st June'!E95)","v":""},{"$f":"IF('1st June'!F95=\"\",\"\",'1st June'!F95)","v":""}]
[null,{"$f":"IF('1st June'!B96=\"\",\"\",'1st June'!B96)","v":""},{"$f":"IF('1st June'!C96=\"\",\"\",'1st June'!C96)","v":""},{"$f":"IF('1st June'!D96=\"\",\"\",'1st June'!D96)","v":""},{"$f":"IF('1st June'!E96=\"\",\"\",'1st June'!E96)","v":""},{"$f":"IF('1st June'!F96=\"\",\"\",'1st June'!F96)","v":""}]
[null,{"$f":"IF('1st June'!B97=\"\",\"\",'1st June'!B97)","v":""},{"$f":"IF('1st June'!C97=\"\",\"\",'1st June'!C97)","v":""},{"$f":"IF('1st June'!D97=\"\",\"\",'1st June'!D97)","v":""},{"$f":"IF('1st June'!E97=\"\",\"\",'1st June'!E97)","v":""},{"$f":"IF('1st June'!F97=\"\",\"\",'1st June'!F97)","v":""}]
[null,{"$f":"IF('1st June'!B98=\"\",\"\",'1st June'!B98)","v":""},{"$f":"IF('1st June'!C98=\"\",\"\",'1st June'!C98)","v":""},{"$f":"IF('1st June'!D98=\"\",\"\",'1st June'!D98)","v":""},{"$f":"IF('1st June'!E98=\"\",\"\",'1st June'!E98)","v":""},{"$f":"IF('1st June'!F98=\"\",\"\",'1st June'!F98)","v":""}]
[null,{"$f":"IF('1st June'!B99=\"\",\"\",'1st June'!B99)","v":""},{"$f":"IF('1st June'!C99=\"\",\"\",'1st June'!C99)","v":""},{"$f":"IF('1st June'!D99=\"\",\"\",'1st June'!D99)","v":""},{"$f":"IF('1st June'!E99=\"\",\"\",'1st June'!E99)","v":""},{"$f":"IF('1st June'!F99=\"\",\"\",'1st June'!F99)","v":""}]
[null,{"$f":"IF('1st June'!B100=\"\",\"\",'1st June'!B100)","v":""},{"$f":"IF('1st June'!C100=\"\",\"\",'1st June'!C100)","v":""},{"$f":"IF('1st June'!D100=\"\",\"\",'1st June'!D100)","v":""},{"$f":"IF('1st June'!E100=\"\",\"\",'1st June'!E100)","v":""},{"$f":"IF('1st June'!F100=\"\",\"\",'1st June'!F100)","v":""}]
[null,{"$f":"IF('1st June'!B101=\"\",\"\",'1st June'!B101)","v":""},{"$f":"IF('1st June'!C101=\"\",\"\",'1st June'!C101)","v":""},{"$f":"IF('1st June'!D101=\"\",\"\",'1st June'!D101)","v":""},{"$f":"IF('1st June'!E101=\"\",\"\",'1st June'!E101)","v":""},{"$f":"IF('1st June'!F101=\"\",\"\",'1st June'!F101)","v":""}]
[null,{"$f":"IF('1st June'!B102=\"\",\"\",'1st June'!B102)","v":""},{"$f":"IF('1st June'!C102=\"\",\"\",'1st June'!C102)","v":""},{"$f":"IF('1st June'!D102=\"\",\"\",'1st June'!D102)","v":""},{"$f":"IF('1st June'!E102=\"\",\"\",'1st June'!E102)","v":""},{"$f":"IF('1st June'!F102=\"\",\"\",'1st June'!F102)","v":""}]
[null,{"$f":"IF('1st June'!B103=\"\",\"\",'1st June'!B103)","v":""},{"$f":"IF('1st June'!C103=\"\",\"\",'1st June'!C103)","v":""},{"$f":"IF('1st June'!D103=\"\",\"\",'1st June'!D103)","v":""},{"$f":"IF('1st June'!E103=\"\",\"\",'1st June'!E103)","v":""},{"$f":"IF('1st June'!F103=\"\",\"\",'1st June'!F103)","v":""}]
[null,{"$f":"IF('1st June'!B104=\"\",\"\",'1st June'!B104)","v":""},{"$f":"IF('1st June'!C104=\"\",\"\",'1st June'!C104)","v":""},{"$f":"IF('1st June'!D104=\"\",\"\",'1st June'!D104)","v":""},{"$f":"IF('1st June'!E104=\"\",\"\",'1st June'!E104)","v":""},{"$f":"IF('1st June'!F104=\"\",\"\",'1st June'!F104)","v":""}]
[null,{"$f":"IF('1st June'!B105=\"\",\"\",'1st June'!B105)","v":""},{"$f":"IF('1st June'!C105=\"\",\"\",'1st June'!C105)","v":""},{"$f":"IF('1st June'!D105=\"\",\"\",'1st June'!D105)","v":""},{"$f":"IF('1st June'!E105=\"\",\"\",'1st June'!E105)","v":""},{"$f":"IF('1st June'!F105=\"\",\"\",'1st June'!F105)","v":""}]
[null,{"$f":"IF('1st June'!B106=\"\",\"\",'1st June'!B106)","v":""},{"$f":"IF('1st June'!C106=\"\",\"\",'1st June'!C106)","v":""},{"$f":"IF('1st June'!D106=\"\",\"\",'1st June'!D106)","v":""},{"$f":"IF('1st June'!E106=\"\",\"\",'1st June'!E106)","v":""},{"$f":"IF('1st June'!F106=\"\",\"\",'1st June'!F106)","v":""}]
[null,{"$f":"IF('1st June'!B107=\"\",\"\",'1st June'!B107)","v":""},{"$f":"IF('1st June'!C107=\"\",\"\",'1st June'!C107)","v":""},{"$f":"IF('1st June'!D107=\"\",\"\",'1st June'!D107)","v":""},{"$f":"IF('1st June'!E107=\"\",\"\",'1st June'!E107)","v":""},{"$f":"IF('1st June'!F107=\"\",\"\",'1st June'!F107)","v":""}]
[null,{"$f":"IF('1st June'!B108=\"\",\"\",'1st June'!B108)","v":""},{"$f":"IF('1st June'!C108=\"\",\"\",'1st June'!C108)","v":""},{"$f":"IF('1st June'!D108=\"\",\"\",'1st June'!D108)","v":""},{"$f":"IF('1st June'!E108=\"\",\"\",'1st June'!E108)","v":""},{"$f":"IF('1st June'!F108=\"\",\"\",'1st June'!F108)","v":""}]
[null,{"$f":"IF('1st June'!B109=\"\",\"\",'1st June'!B109)","v":""},{"$f":"IF('1st June'!C109=\"\",\"\",'1st June'!C109)","v":""},{"$f":"IF('1st June'!D109=\"\",\"\",'1st June'!D109)","v":""},{"$f":"IF('1st June'!E109=\"\",\"\",'1st June'!E109)","v":""},{"$f":"IF('1st June'!F109=\"\",\"\",'1st June'!F109)","v":""}]
[null,{"$f":"IF('1st June'!B110=\"\",\"\",'1st June'!B110)","v":""},{"$f":"IF('1st June'!C110=\"\",\"\",'1st June'!C110)","v":""},{"$f":"IF('1st June'!D110=\"\",\"\",'1st June'!D110)","v":""},{"$f":"IF('1st June'!E110=\"\",\"\",'1st June'!E110)","v":""},{"$f":"IF('1st June'!F110=\"\",\"\",'1st June'!F110)","v":""}]
[null,{"$f":"IF('1st June'!B111=\"\",\"\",'1st June'!B111)","v":""},{"$f":"IF('1st June'!C111=\"\",\"\",'1st June'!C111)","v":""},{"$f":"IF('1st June'!D111=\"\",\"\",'1st June'!D111)","v":""},{"$f":"IF('1st June'!E111=\"\",\"\",'1st June'!E111)","v":""},{"$f":"IF('1st June'!F111=\"\",\"\",'1st June'!F111)","v":""}]
[null,{"$f":"IF('1st June'!B112=\"\",\"\",'1st June'!B112)","v":""},{"$f":"IF('1st June'!C112=\"\",\"\",'1st June'!C112)","v":""},{"$f":"IF('1st June'!D112=\"\",\"\",'1st June'!D112)","v":""},{"$f":"IF('1st June'!E112=\"\",\"\",'1st June'!E112)","v":""},{"$f":"IF('1st June'!F112=\"\",\"\",'1st June'!F112)","v":""}]
[null,{"$f":"IF('1st June'!B113=\"\",\"\",'1st June'!B113)","v":""},{"$f":"IF('1st June'!C113=\"\",\"\",'1st June'!C113)","v":""},{"$f":"IF('1st June'!D113=\"\",\"\",'1st June'!D113)","v":""},{"$f":"IF('1st June'!E113=\"\",\"\",'1st June'!E113)","v":""},{"$f":"IF('1st June'!F113=\"\",\"\",'1st June'!F113)","v":""}]
[null,{"$f":"IF('1st June'!B114=\"\",\"\",'1st June'!B114)","v":""},{"$f":"IF('1st June'!C114=\"\",\"\",'1st June'!C114)","v":""},{"$f":"IF('1st June'!D114=\"\",\"\",'1st June'!D114)","v":""},{"$f":"IF('1st June'!E114=\"\",\"\",'1st June'!E114)","v":""},{"$f":"IF('1st June'!F114=\"\",\"\",'1st June'!F114)","v":""}]
[null,{"$f":"IF('1st June'!B115=\"\",\"\",'1st June'!B115)","v":""},{"$f":"IF('1st June'!C115=\"\",\"\",'1st June'!C115)","v":""},{"$f":"IF('1st June'!D115=\"\",\"\",'1st June'!D115)","v":""},{"$f":"IF('1st June'!E115=\"\",\"\",'1st June'!E115)","v":""},{"$f":"IF('1st June'!F115=\"\",\"\",'1st June'!F115)","v":""}]
[null,{"$f":"IF('1st June'!B116=\"\",\"\",'1st June'!B116)","v":""},{"$f":"IF('1st June'!C116=\"\",\"\",'1st June'!C116)","v":""},{"$f":"IF('1st June'!D116=\"\",\"\",'1st June'!D116)","v":""},{"$f":"IF('1st June'!E116=\"\",\"\",'1st June'!E116)","v":""},{"$f":"IF('1st June'!F116=\"\",\"\",'1st June'!F116)","v":""}]
[null,{"$f":"IF('1st June'!B117=\"\",\"\",'1st June'!B117)","v":""},{"$f":"IF('1st June'!C117=\"\",\"\",'1st June'!C117)","v":""},{"$f":"IF('1st June'!D117=\"\",\"\",'1st June'!D117)","v":""},{"$f":"IF('1st June'!E117=\"\",\"\",'1st June'!E117)","v":""},{"$f":"IF('1st June'!F117=\"\",\"\",'1st June'!F117)","v":""}]
[null,{"$f":"IF('1st June'!B118=\"\",\"\",'1st June'!B118)","v":""},{"$f":"IF('1st June'!C118=\"\",\"\",'1st June'!C118)","v":""},{"$f":"IF('1st June'!D118=\"\",\"\",'1st June'!D118)","v":""},{"$f":"IF('1st June'!E118=\"\",\"\",'1st June'!E118)","v":""},{"$f":"IF('1st June'!F118=\"\",\"\",'1st June'!F118)","v":""}]
[null,{"$f":"IF('1st June'!B119=\"\",\"\",'1st June'!B119)","v":""},{"$f":"IF('1st June'!C119=\"\",\"\",'1st June'!C119)","v":""},{"$f":"IF('1st June'!D119=\"\",\"\",'1st June'!D119)","v":""},{"$f":"IF('1st June'!E119=\"\",\"\",'1st June'!E119)","v":""},{"$f":"IF('1st June'!F119=\"\",\"\",'1st June'!F119)","v":""}]
[null,{"$f":"IF('1st June'!B120=\"\",\"\",'1st June'!B120)","v":""},{"$f":"IF('1st June'!C120=\"\",\"\",'1st June'!C120)","v":""},{"$f":"IF('1st June'!D120=\"\",\"\",'1st June'!D120)","v":""},{"$f":"IF('1st June'!E120=\"\",\"\",'1st June'!E120)","v":""},{"$f":"IF('1st June'!F120=\"\",\"\",'1st June'!F120)","v":""}]
[null,{"$f":"IF('1st June'!B121=\"\",\"\",'1st June'!B121)","v":""},{"$f":"IF('1st June'!C121=\"\",\"\",'1st June'!C121)","v":""},{"$f":"IF('1st June'!D121=\"\",\"\",'1st June'!D121)","v":""},{"$f":"IF('1st June'!E121=\"\",\"\",'1st June'!E121)","v":""},{"$f":"IF('1st June'!F121=\"\",\"\",'1st June'!F121)","v":""}]
[null,{"$f":"IF('1st June'!B122=\"\",\"\",'1st June'!B122)","v":""},{"$f":"IF('1st June'!C122=\"\",\"\",'1st June'!C122)","v":""},{"$f":"IF('1st June'!D122=\"\",\"\",'1st June'!D122)","v":""},{"$f":"IF('1st June'!E122=\"\",\"\",'1st June'!E122)","v":""},{"$f":"IF('1st June'!F122=\"\",\"\",'1st June'!F122)","v":""}]
[null,{"$f":"IF('1st June'!B123=\"\",\"\",'1st June'!B123)","v":""},{"$f":"IF('1st June'!C123=\"\",\"\",'1st June'!C123)","v":""},{"$f":"IF('1st June'!D123=\"\",\"\",'1st June'!D123)","v":""},{"$f":"IF('1st June'!E123=\"\",\"\",'1st June'!E123)","v":""},{"$f":"IF('1st June'!F123=\"\",\"\",'1st June'!F123)","v":""}]
[null,{"$f":"IF('1st June'!B124=\"\",\"\",'1st June'!B124)","v":""},{"$f":"IF('1st June'!C124=\"\",\"\",'1st June'!C124)","v":""},{"$f":"IF('1st June'!D124=\"\",\"\",'1st June'!D124)","v":""},{"$f":"IF('1st June'!E124=\"\",\"\",'1st June'!E124)","v":""},{"$f":"IF('1st June'!F124=\"\",\"\",'1st June'!F124)","v":""}]
[null,{"$f":"IF('1st June'!B125=\"\",\"\",'1st June'!B125)","v":""},{"$f":"IF('1st June'!C125=\"\",\"\",'1st June'!C125)","v":""},{"$f":"IF('1st June'!D125=\"\",\"\",'1st June'!D125)","v":""},{"$f":"IF('1st June'!E125=\"\",\"\",'1st June'!E125)","v":""},{"$f":"IF('1st June'!F125=\"\",\"\",'1st June'!F125)","v":""}]
[null,{"$f":"IF('1st June'!B126=\"\",\"\",'1st June'!B126)","v":""},{"$f":"IF('1st June'!C126=\"\",\"\",'1st June'!C126)","v":""},{"$f":"IF('1st June'!D126=\"\",\"\",'1st June'!D126)","v":""},{"$f":"IF('1st June'!E126=\"\",\"\",'1st June'!E126)","v":""},{"$f":"IF('1st June'!F126=\"\",\"\",'1st June'!F126)","v":""}]
[null,{"$f":"IF('1st June'!B127=\"\",\"\",'1st June'!B127)","v":""},{"$f":"IF('1st June'!C127=\"\",\"\",'1st June'!C127)","v":""},{"$f":"IF('1st June'!D127=\"\",\"\",'1st June'!D127)","v":""},{"$f":"IF('1st June'!E127=\"\",\"\",'1st June'!E127)","v":""},{"$f":"IF('1st June'!F127=\"\",\"\",'1st June'!F127)","v":""}]
[null,{"$f":"IF('1st June'!B128=\"\",\"\",'1st June'!B128)","v":""},{"$f":"IF('1st June'!C128=\"\",\"\",'1st June'!C128)","v":""},{"$f":"IF('1st June'!D128=\"\",\"\",'1st June'!D128)","v":""},{"$f":"IF('1st June'!E128=\"\",\"\",'1st June'!E128)","v":""},{"$f":"IF('1st June'!F128=\"\",\"\",'1st June'!F128)","v":""}]
[null,{"$f":"IF('1st June'!B129=\"\",\"\",'1st June'!B129)","v":""},{"$f":"IF('1st June'!C129=\"\",\"\",'1st June'!C129)","v":""},{"$f":"IF('1st June'!D129=\"\",\"\",'1st June'!D129)","v":""},{"$f":"IF('1st June'!E129=\"\",\"\",'1st June'!E129)","v":""},{"$f":"IF('1st June'!F129=\"\",\"\",'1st June'!F129)","v":""}]
[null,{"$f":"IF('1st June'!B130=\"\",\"\",'1st June'!B130)","v":""},{"$f":"IF('1st June'!C130=\"\",\"\",'1st June'!C130)","v":""},{"$f":"IF('1st June'!D130=\"\",\"\",'1st June'!D130)","v":""},{"$f":"IF('1st June'!E130=\"\",\"\",'1st June'!E130)","v":""},{"$f":"IF('1st June'!F130=\"\",\"\",'1st June'!F130)","v":""}]
[null,{"$f":"IF('1st June'!B131=\"\",\"\",'1st June'!B131)","v":""},{"$f":"IF('1st June'!C131=\"\",\"\",'1st June'!C131)","v":""},{"$f":"IF('1st June'!D131=\"\",\"\",'1st June'!D131)","v":""},{"$f":"IF('1st June'!E131=\"\",\"\",'1st June'!E131)","v":""},{"$f":"IF('1st June'!F131=\"\",\"\",'1st June'!F131)","v":""}]
[null,{"$f":"IF('1st June'!B132=\"\",\"\",'1st June'!B132)","v":""},{"$f":"IF('1st June'!C132=\"\",\"\",'1st June'!C132)","v":""},{"$f":"IF('1st June'!D132=\"\",\"\",'1st June'!D132)","v":""},{"$f":"IF('1st June'!E132=\"\",\"\",'1st June'!E132)","v":""},{"$f":"IF('1st June'!F132=\"\",\"\",'1st June'!F132)","v":""}]
[null,{"$f":"IF('1st June'!B133=\"\",\"\",'1st June'!B133)","v":""},{"$f":"IF('1st June'!C133=\"\",\"\",'1st June'!C133)","v":""},{"$f":"IF('1st June'!D133=\"\",\"\",'1st June'!D133)","v":""},{"$f":"IF('1st June'!E133=\"\",\"\",'1st June'!E133)","v":""},{"$f":"IF('1st June'!F133=\"\",\"\",'1st June'!F133)","v":""}]
[null,{"$f":"IF('1st June'!B134=\"\",\"\",'1st June'!B134)","v":""},{"$f":"IF('1st June'!C134=\"\",\"\",'1st June'!C134)","v":""},{"$f":"IF('1st June'!D134=\"\",\"\",'1st June'!D134)","v":""},{"$f":"IF('1st June'!E134=\"\",\"\",'1st June'!E134)","v":""},{"$f":"IF('1st June'!F134=\"\",\"\",'1st June'!F134)","v":""}]
[null,{"$f":"IF('1st June'!B135=\"\",\"\",'1st June'!B135)","v":""},{"$f":"IF('1st June'!C135=\"\",\"\",'1st June'!C135)","v":""},{"$f":"IF('1st June'!D135=\"\",\"\",'1st June'!D135)","v":""},{"$f":"IF('1st June'!E135=\"\",\"\",'1st June'!E135)","v":""},{"$f":"IF('1st June'!F135=\"\",\"\",'1st June'!F135)","v":""}]
[null,{"$f":"IF('1st June'!B136=\"\",\"\",'1st June'!B136)","v":""},{"$f":"IF('1st June'!C136=\"\",\"\",'1st June'!C136)","v":""},{"$f":"IF('1st June'!D136=\"\",\"\",'1st June'!D136)","v":""},{"$f":"IF('1st June'!E136=\"\",\"\",'1st June'!E136)","v":""},{"$f":"IF('1st June'!F136=\"\",\"\",'1st June'!F136)","v":""}]
[null,{"$f":"IF('1st June'!B137=\"\",\"\",'1st June'!B137)","v":""},{"$f":"IF('1st June'!C137=\"\",\"\",'1st June'!C137)","v":""},{"$f":"IF('1st June'!D137=\"\",\"\",'1st June'!D137)","v":""},{"$f":"IF('1st June'!E137=\"\",\"\",'1st June'!E137)","v":""},{"$f":"IF('1st June'!F137=\"\",\"\",'1st June'!F137)","v":""}]
[null,{"$f":"IF('1st June'!B138=\"\",\"\",'1st June'!B138)","v":""},{"$f":"IF('1st June'!C138=\"\",\"\",'1st June'!C138)","v":""},{"$f":"IF('1st June'!D138=\"\",\"\",'1st June'!D138)","v":""},{"$f":"IF('1st June'!E138=\"\",\"\",'1st June'!E138)","v":""},{"$f":"IF('1st June'!F138=\"\",\"\",'1st June'!F138)","v":""}]
[null,{"$f":"IF('1st June'!B139=\"\",\"\",'1st June'!B139)","v":""},{"$f":"IF('1st June'!C139=\"\",\"\",'1st June'!C139)","v":""},{"$f":"IF('1st June'!D139=\"\",\"\",'1st June'!D139)","v":""},{"$f":"IF('1st June'!E139=\"\",\"\",'1st June'!E139)","v":""},{"$f":"IF('1st June'!F139=\"\",\"\",'1st June'!F139)","v":""}]
[null,{"$f":"IF('1st June'!B140=\"\",\"\",'1st June'!B140)","v":""},{"$f":"IF('1st June'!C140=\"\",\"\",'1st June'!C140)","v":""},{"$f":"IF('1st June'!D140=\"\",\"\",'1st June'!D140)","v":""},{"$f":"IF('1st June'!E140=\"\",\"\",'1st June'!E140)","v":""},{"$f":"IF('1st June'!F140=\"\",\"\",'1st June'!F140)","v":""}]
[null,{"$f":"IF('1st June'!B141=\"\",\"\",'1st June'!B141)","v":""},{"$f":"IF('1st June'!C141=\"\",\"\",'1st June'!C141)","v":""},{"$f":"IF('1st June'!D141=\"\",\"\",'1st June'!D141)","v":""},{"$f":"IF('1st June'!E141=\"\",\"\",'1st June'!E141)","v":""},{"$f":"IF('1st June'!F141=\"\",\"\",'1st June'!F141)","v":""}]
[null,{"$f":"IF('1st June'!B142=\"\",\"\",'1st June'!B142)","v":""},{"$f":"IF('1st June'!C142=\"\",\"\",'1st June'!C142)","v":""},{"$f":"IF('1st June'!D142=\"\",\"\",'1st June'!D142)","v":""},{"$f":"IF('1st June'!E142=\"\",\"\",'1st June'!E142)","v":""},{"$f":"IF('1st June'!F142=\"\",\"\",'1st June'!F142)","v":""}]
[null,{"$f":"IF('1st June'!B143=\"\",\"\",'1st June'!B143)","v":""},{"$f":"IF('1st June'!C143=\"\",\"\",'1st June'!C143)","v":""},{"$f":"IF('1st June'!D143=\"\",\"\",'1st June'!D143)","v":""},{"$f":"IF('1st June'!E143=\"\",\"\",'1st June'!E143)","v":""},{"$f":"IF('1st June'!F143=\"\",\"\",'1st June'!F143)","v":""}]
[null,{"$f":"IF('1st June'!B144=\"\",\"\",'1st June'!B144)","v":""},{"$f":"IF('1st June'!C144=\"\",\"\",'1st June'!C144)","v":""},{"$f":"IF('1st June'!D144=\"\",\"\",'1st June'!D144)","v":""},{"$f":"IF('1st June'!E144=\"\",\"\",'1st June'!E144)","v":""},{"$f":"IF('1st June'!F144=\"\",\"\",'1st June'!F144)","v":""}]
[null,{"$f":"IF('1st June'!B145=\"\",\"\",'1st June'!B145)","v":""},{"$f":"IF('1st June'!C145=\"\",\"\",'1st June'!C145)","v":""},{"$f":"IF('1st June'!D145=\"\",\"\",'1st June'!D145)","v":""},{"$f":"IF('1st June'!E145=\"\",\"\",'1st June'!E145)","v":""},{"$f":"IF('1st June'!F145=\"\",\"\",'1st June'!F145)","v":""}]
[null,{"$f":"IF('1st June'!B146=\"\",\"\",'1st June'!B146)","v":""},{"$f":"IF('1st June'!C146=\"\",\"\",'1st June'!C146)","v":""},{"$f":"IF('1st June'!D146=\"\",\"\",'1st June'!D146)","v":""},{"$f":"IF('1st June'!E146=\"\",\"\",'1st June'!E146)","v":""},{"$f":"IF('1st June'!F146=\"\",\"\",'1st June'!F146)","v":""}]
[null,{"$f":"IF('1st June'!B147=\"\",\"\",'1st June'!B147)","v":""},{"$f":"IF('1st June'!C147=\"\",\"\",'1st June'!C147)","v":""},{"$f":"IF('1st June'!D147=\"\",\"\",'1st June'!D147)","v":""},{"$f":"IF('1st June'!E147=\"\",\"\",'1st June'!E147)","v":""},{"$f":"IF('1st June'!F147=\"\",\"\",'1st June'!F147)","v":""}]
[null,{"$f":"IF('1st June'!B148=\"\",\"\",'1st June'!B148)","v":""},{"$f":"IF('1st June'!C148=\"\",\"\",'1st June'!C148)","v":""},{"$f":"IF('1st June'!D148=\"\",\"\",'1st June'!D148)","v":""},{"$f":"IF('1st June'!E148=\"\",\"\",'1st June'!E148)","v":""},{"$f":"IF('1st June'!F148=\"\",\"\",'1st June'!F148)","v":""}]
[null,{"$f":"IF('1st June'!B149=\"\",\"\",'1st June'!B149)","v":""},{"$f":"IF('1st June'!C149=\"\",\"\",'1st June'!C149)","v":""},{"$f":"IF('1st June'!D149=\"\",\"\",'1st June'!D149)","v":""},{"$f":"IF('1st June'!E149=\"\",\"\",'1st June'!E149)","v":""},{"$f":"IF('1st June'!F149=\"\",\"\",'1st June'!F149)","v":""}]
[null,{"$f":"IF('1st June'!B150=\"\",\"\",'1st June'!B150)","v":""},{"$f":"IF('1st June'!C150=\"\",\"\",'1st June'!C150)","v":""},{"$f":"IF('1st June'!D150=\"\",\"\",'1st June'!D150)","v":""},{"$f":"IF('1st June'!E150=\"\",\"\",'1st June'!E150)","v":""},{"$f":"IF('1st June'!F150=\"\",\"\",'1st June'!F150)","v":""}]
[null,{"$f":"IF('1st June'!B151=\"\",\"\",'1st June'!B151)","v":""},{"$f":"IF('1st June'!C151=\"\",\"\",'1st June'!C151)","v":""},{"$f":"IF('1st June'!D151=\"\",\"\",'1st June'!D151)","v":""},{"$f":"IF('1st June'!E151=\"\",\"\",'1st June'!E151)","v":""},{"$f":"IF('1st June'!F151=\"\",\"\",'1st June'!F151)","v":""}]
[null,{"$f":"IF('1st June'!B152=\"\",\"\",'1st June'!B152)","v":""},{"$f":"IF('1st June'!C152=\"\",\"\",'1st June'!C152)","v":""},{"$f":"IF('1st June'!D152=\"\",\"\",'1st June'!D152)","v":""},{"$f":"IF('1st June'!E152=\"\",\"\",'1st June'!E152)","v":""},{"$f":"IF('1st June'!F152=\"\",\"\",'1st June'!F152)","v":""}]
[null,{"$f":"IF('1st June'!B153=\"\",\"\",'1st June'!B153)","v":""},{"$f":"IF('1st June'!C153=\"\",\"\",'1st June'!C153)","v":""},{"$f":"IF('1st June'!D153=\"\",\"\",'1st June'!D153)","v":""},{"$f":"IF('1st June'!E153=\"\",\"\",'1st June'!E153)","v":""},{"$f":"IF('1st June'!F153=\"\",\"\",'1st June'!F153)","v":""}]
[null,{"$f":"IF('1st June'!B154=\"\",\"\",'1st June'!B154)","v":""},{"$f":"IF('1st June'!C154=\"\",\"\",'1st June'!C154)","v":""},{"$f":"IF('1st June'!D154=\"\",\"\",'1st June'!D154)","v":""},{"$f":"IF('1st June'!E154=\"\",\"\",'1st June'!E154)","v":""},{"$f":"IF('1st June'!F154=\"\",\"\",'1st June'!F154)","v":""}]
[null,{"$f":"IF('1st June'!B155=\"\",\"\",'1st June'!B155)","v":""},{"$f":"IF('1st June'!C155=\"\",\"\",'1st June'!C155)","v":""},{"$f":"IF('1st June'!D155=\"\",\"\",'1st June'!D155)","v":""},{"$f":"IF('1st June'!E155=\"\",\"\",'1st June'!E155)","v":""},{"$f":"IF('1st June'!F155=\"\",\"\",'1st June'!F155)","v":""}]
[null,{"$f":"IF('1st June'!B156=\"\",\"\",'1st June'!B156)","v":""},{"$f":"IF('1st June'!C156=\"\",\"\",'1st June'!C156)","v":""},{"$f":"IF('1st June'!D156=\"\",\"\",'1st June'!D156)","v":""},{"$f":"IF('1st June'!E156=\"\",\"\",'1st June'!E156)","v":""},{"$f":"IF('1st June'!F156=\"\",\"\",'1st June'!F156)","v":""}]
[null,{"$f":"IF('1st June'!B157=\"\",\"\",'1st June'!B157)","v":""},{"$f":"IF('1st June'!C157=\"\",\"\",'1st June'!C157)","v":""},{"$f":"IF('1st June'!D157=\"\",\"\",'1st June'!D157)","v":""},{"$f":"IF('1st June'!E157=\"\",\"\",'1st June'!E157)","v":""},{"$f":"IF('1st June'!F157=\"\",\"\",'1st June'!F157)","v":""}]
[null,{"$f":"IF('1st June'!B158=\"\",\"\",'1st June'!B158)","v":""},{"$f":"IF('1st June'!C158=\"\",\"\",'1st June'!C158)","v":""},{"$f":"IF('1st June'!D158=\"\",\"\",'1st June'!D158)","v":""},{"$f":"IF('1st June'!E158=\"\",\"\",'1st June'!E158)","v":""},{"$f":"IF('1st June'!F158=\"\",\"\",'1st June'!F158)","v":""}]
[null,{"$f":"IF('1st June'!B159=\"\",\"\",'1st June'!B159)","v":""},{"$f":"IF('1st June'!C159=\"\",\"\",'1st June'!C159)","v":""},{"$f":"IF('1st June'!D159=\"\",\"\",'1st June'!D159)","v":""},{"$f":"IF('1st June'!E159=\"\",\"\",'1st June'!E159)","v":""},{"$f":"IF('1st June'!F159=\"\",\"\",'1st June'!F159)","v":""}]
[null,{"$f":"IF('1st June'!B160=\"\",\"\",'1st June'!B160)","v":""},{"$f":"IF('1st June'!C160=\"\",\"\",'1st June'!C160)","v":""},{"$f":"IF('1st June'!D160=\"\",\"\",'1st June'!D160)","v":""},{"$f":"IF('1st June'!E160=\"\",\"\",'1st June'!E160)","v":""},{"$f":"IF('1st June'!F160=\"\",\"\",'1st June'!F160)","v":""}]
[null,{"$f":"IF('1st June'!B161=\"\",\"\",'1st June'!B161)","v":""},{"$f":"IF('1st June'!C161=\"\",\"\",'1st June'!C161)","v":""},{"$f":"IF('1st June'!D161=\"\",\"\",'1st June'!D161)","v":""},{"$f":"IF('1st June'!E161=\"\",\"\",'1st June'!E161)","v":""},{"$f":"IF('1st June'!F161=\"\",\"\",'1st June'!F161)","v":""}]
[null,{"$f":"IF('1st June'!B162=\"\",\"\",'1st June'!B162)","v":""},{"$f":"IF('1st June'!C162=\"\",\"\",'1st June'!C162)","v":""},{"$f":"IF('1st June'!D162=\"\",\"\",'1st June'!D162)","v":""},{"$f":"IF('1st June'!E162=\"\",\"\",'1st June'!E162)","v":""},{"$f":"IF('1st June'!F162=\"\",\"\",'1st June'!F162)","v":""}]
[null,{"$f":"IF('1st June'!B163=\"\",\"\",'1st June'!B163)","v":""},{"$f":"IF('1st June'!C163=\"\",\"\",'1st June'!C163)","v":""},{"$f":"IF('1st June'!D163=\"\",\"\",'1st June'!D163)","v":""},{"$f":"IF('1st June'!E163=\"\",\"\",'1st June'!E163)","v":""},{"$f":"IF('1st June'!F163=\"\",\"\",'1st June'!F163)","v":""}]
[null,{"$f":"IF('1st June'!B164=\"\",\"\",'1st June'!B164)","v":""},{"$f":"IF('1st June'!C164=\"\",\"\",'1st June'!C164)","v":""},{"$f":"IF('1st June'!D164=\"\",\"\",'1st June'!D164)","v":""},{"$f":"IF('1st June'!E164=\"\",\"\",'1st June'!E164)","v":""},{"$f":"IF('1st June'!F164=\"\",\"\",'1st June'!F164)","v":""}]
[null,{"$f":"IF('1st June'!B165=\"\",\"\",'1st June'!B165)","v":""},{"$f":"IF('1st June'!C165=\"\",\"\",'1st June'!C165)","v":""},{"$f":"IF('1st June'!D165=\"\",\"\",'1st June'!D165)","v":""},{"$f":"IF('1st June'!E165=\"\",\"\",'1st June'!E165)","v":""},{"$f":"IF('1st June'!F165=\"\",\"\",'1st June'!F165)","v":""}]
[null,{"$f":"IF('1st June'!B166=\"\",\"\",'1st June'!B166)","v":""},{"$f":"IF('1st June'!C166=\"\",\"\",'1st June'!C166)","v":""},{"$f":"IF('1st June'!D166=\"\",\"\",'1st June'!D166)","v":""},{"$f":"IF('1st June'!E166=\"\",\"\",'1st June'!E166)","v":""},{"$f":"IF('1st June'!F166=\"\",\"\",'1st June'!F166)","v":""}]
[null,{"$f":"IF('1st June'!B167=\"\",\"\",'1st June'!B167)","v":""},{"$f":"IF('1st June'!C167=\"\",\"\",'1st June'!C167)","v":""},{"$f":"IF('1st June'!D167=\"\",\"\",'1st June'!D167)","v":""},{"$f":"IF('1st June'!E167=\"\",\"\",'1st June'!E167)","v":""},{"$f":"IF('1st June'!F167=\"\",\"\",'1st June'!F167)","v":""}]
[null,{"$f":"IF('1st June'!B168=\"\",\"\",'1st June'!B168)","v":""},{"$f":"IF('1st June'!C168=\"\",\"\",'1st June'!C168)","v":""},{"$f":"IF('1st June'!D168=\"\",\"\",'1st June'!D168)","v":""},{"$f":"IF('1st June'!E168=\"\",\"\",'1st June'!E168)","v":""},{"$f":"IF('1st June'!F168=\"\",\"\",'1st June'!F168)","v":""}]
[null,{"$f":"IF('1st June'!B169=\"\",\"\",'1st June'!B169)","v":""},{"$f":"IF('1st June'!C169=\"\",\"\",'1st June'!C169)","v":""},{"$f":"IF('1st June'!D169=\"\",\"\",'1st June'!D169)","v":""},{"$f":"IF('1st June'!E169=\"\",\"\",'1st June'!E169)","v":""},{"$f":"IF('1st June'!F169=\"\",\"\",'1st June'!F169)","v":""}]
[null,{"$f":"IF('1st June'!B170=\"\",\"\",'1st June'!B170)","v":""},{"$f":"IF('1st June'!C170=\"\",\"\",'1st June'!C170)","v":""},{"$f":"IF('1st June'!D170=\"\",\"\",'1st June'!D170)","v":""},{"$f":"IF('1st June'!E170=\"\",\"\",'1st June'!E170)","v":""},{"$f":"IF('1st June'!F170=\"\",\"\",'1st June'!F170)","v":""}]
[null,{"$f":"IF('1st June'!B171=\"\",\"\",'1st June'!B171)","v":""},{"$f":"IF('1st June'!C171=\"\",\"\",'1st June'!C171)","v":""},{"$f":"IF('1st June'!D171=\"\",\"\",'1st June'!D171)","v":""},{"$f":"IF('1st June'!E171=\"\",\"\",'1st June'!E171)","v":""},{"$f":"IF('1st June'!F171=\"\",\"\",'1st June'!F171)","v":""}]
[null,{"$f":"IF('1st June'!B172=\"\",\"\",'1st June'!B172)","v":""},{"$f":"IF('1st June'!C172=\"\",\"\",'1st June'!C172)","v":""},{"$f":"IF('1st June'!D172=\"\",\"\",'1st June'!D172)","v":""},{"$f":"IF('1st June'!E172=\"\",\"\",'1st June'!E172)","v":""},{"$f":"IF('1st June'!F172=\"\",\"\",'1st June'!F172)","v":""}]
[null,{"$f":"IF('1st June'!B173=\"\",\"\",'1st June'!B173)","v":""},{"$f":"IF('1st June'!C173=\"\",\"\",'1st June'!C173)","v":""},{"$f":"IF('1st June'!D173=\"\",\"\",'1st June'!D173)","v":""},{"$f":"IF('1st June'!E173=\"\",\"\",'1st June'!E173)","v":""},{"$f":"IF('1st June'!F173=\"\",\"\",'1st June'!F173)","v":""}]
[null,{"$f":"IF('1st June'!B174=\"\",\"\",'1st June'!B174)","v":""},{"$f":"IF('1st June'!C174=\"\",\"\",'1st June'!C174)","v":""},{"$f":"IF('1st June'!D174=\"\",\"\",'1st June'!D174)","v":""},{"$f":"IF('1st June'!E174=\"\",\"\",'1st June'!E174)","v":""},{"$f":"IF('1st June'!F174=\"\",\"\",'1st June'!F174)","v":""}]
[null,{"$f":"IF('1st June'!B175=\"\",\"\",'1st June'!B175)","v":""},{"$f":"IF('1st June'!C175=\"\",\"\",'1st June'!C175)","v":""},{"$f":"IF('1st June'!D175=\"\",\"\",'1st June'!D175)","v":""},{"$f":"IF('1st June'!E175=\"\",\"\",'1st June'!E175)","v":""},{"$f":"IF('1st June'!F175=\"\",\"\",'1st June'!F175)","v":""}]
[null,{"$f":"IF('1st June'!B176=\"\",\"\",'1st June'!B176)","v":""},{"$f":"IF('1st June'!C176=\"\",\"\",'1st June'!C176)","v":""},{"$f":"IF('1st June'!D176=\"\",\"\",'1st June'!D176)","v":""},{"$f":"IF('1st June'!E176=\"\",\"\",'1st June'!E176)","v":""},{"$f":"IF('1st June'!F176=\"\",\"\",'1st June'!F176)","v":""}]
[null,{"$f":"IF('1st June'!B177=\"\",\"\",'1st June'!B177)","v":""},{"$f":"IF('1st June'!C177=\"\",\"\",'1st June'!C177)","v":""},{"$f":"IF('1st June'!D177=\"\",\"\",'1st June'!D177)","v":""},{"$f":"IF('1st June'!E177=\"\",\"\",'1st June'!E177)","v":""},{"$f":"IF('1st June'!F177=\"\",\"\",'1st June'!F177)","v":""}]
[null,{"$f":"IF('1st June'!B178=\"\",\"\",'1st June'!B178)","v":""},{"$f":"IF('1st June'!C178=\"\",\"\",'1st June'!C178)","v":""},{"$f":"IF('1st June'!D178=\"\",\"\",'1st June'!D178)","v":""},{"$f":"IF('1st June'!E178=\"\",\"\",'1st June'!E178)","v":""},{"$f":"IF('1st June'!F178=\"\",\"\",'1st June'!F178)","v":""}]
[null,{"$f":"IF('1st June'!B179=\"\",\"\",'1st June'!B179)","v":""},{"$f":"IF('1st June'!C179=\"\",\"\",'1st June'!C179)","v":""},{"$f":"IF('1st June'!D179=\"\",\"\",'1st June'!D179)","v":""},{"$f":"IF('1st June'!E179=\"\",\"\",'1st June'!E179)","v":""},{"$f":"IF('1st June'!F179=\"\",\"\",'1st June'!F179)","v":""}]
[null,{"$f":"IF('1st June'!B180=\"\",\"\",'1st June'!B180)","v":""},{"$f":"IF('1st June'!C180=\"\",\"\",'1st June'!C180)","v":""},{"$f":"IF('1st June'!D180=\"\",\"\",'1st June'!D180)","v":""},{"$f":"IF('1st June'!E180=\"\",\"\",'1st June'!E180)","v":""},{"$f":"IF('1st June'!F180=\"\",\"\",'1st June'!F180)","v":""}]
[null,{"$f":"IF('1st June'!B181=\"\",\"\",'1st June'!B181)","v":""},{"$f":"IF('1st June'!C181=\"\",\"\",'1st June'!C181)","v":""},{"$f":"IF('1st June'!D181=\"\",\"\",'1st June'!D181)","v":""},{"$f":"IF('1st June'!E181=\"\",\"\",'1st June'!E181)","v":""},{"$f":"IF('1st June'!F181=\"\",\"\",'1st June'!F181)","v":""}]
[null,{"$f":"IF('1st June'!B182=\"\",\"\",'1st June'!B182)","v":""},{"$f":"IF('1st June'!C182=\"\",\"\",'1st June'!C182)","v":""},{"$f":"IF('1st June'!D182=\"\",\"\",'1st June'!D182)","v":""},{"$f":"IF('1st June'!E182=\"\",\"\",'1st June'!E182)","v":""},{"$f":"IF('1st June'!F182=\"\",\"\",'1st June'!F182)","v":""}]
[null,{"$f":"IF('1st June'!B183=\"\",\"\",'1st June'!B183)","v":""},{"$f":"IF('1st June'!C183=\"\",\"\",'1st June'!C183)","v":""},{"$f":"IF('1st June'!D183=\"\",\"\",'1st June'!D183)","v":""},{"$f":"IF('1st June'!E183=\"\",\"\",'1st June'!E183)","v":""},{"$f":"IF('1st June'!F183=\"\",\"\",'1st June'!F183)","v":""}]
[null,{"$f":"IF('1st June'!B184=\"\",\"\",'1st June'!B184)","v":""},{"$f":"IF('1st June'!C184=\"\",\"\",'1st June'!C184)","v":""},{"$f":"IF('1st June'!D184=\"\",\"\",'1st June'!D184)","v":""},{"$f":"IF('1st June'!E184=\"\",\"\",'1st June'!E184)","v":""},{"$f":"IF('1st June'!F184=\"\",\"\",'1st June'!F184)","v":""}]
[null,{"$f":"IF('1st June'!B185=\"\",\"\",'1st June'!B185)","v":""},{"$f":"IF('1st June'!C185=\"\",\"\",'1st June'!C185)","v":""},{"$f":"IF('1st June'!D185=\"\",\"\",'1st June'!D185)","v":""},{"$f":"IF('1st June'!E185=\"\",\"\",'1st June'!E185)","v":""},{"$f":"IF('1st June'!F185=\"\",\"\",'1st June'!F185)","v":""}]
[null,{"$f":"IF('1st June'!B186=\"\",\"\",'1st June'!B186)","v":""},{"$f":"IF('1st June'!C186=\"\",\"\",'1st June'!C186)","v":""},{"$f":"IF('1st June'!D186=\"\",\"\",'1st June'!D186)","v":""},{"$f":"IF('1st June'!E186=\"\",\"\",'1st June'!E186)","v":""},{"$f":"IF('1st June'!F186=\"\",\"\",'1st June'!F186)","v":""}]
[null,{"$f":"IF('1st June'!B187=\"\",\"\",'1st June'!B187)","v":""},{"$f":"IF('1st June'!C187=\"\",\"\",'1st June'!C187)","v":""},{"$f":"IF('1st June'!D187=\"\",\"\",'1st June'!D187)","v":""},{"$f":"IF('1st June'!E187=\"\",\"\",'1st June'!E187)","v":""},{"$f":"IF('1st June'!F187=\"\",\"\",'1st June'!F187)","v":""}]
[null,{"$f":"IF('1st June'!B188=\"\",\"\",'1st June'!B188)","v":""},{"$f":"IF('1st June'!C188=\"\",\"\",'1st June'!C188)","v":""},{"$f":"IF('1st June'!D188=\"\",\"\",'1st June'!D188)","v":""},{"$f":"IF('1st June'!E188=\"\",\"\",'1st June'!E188)","v":""},{"$f":"IF('1st June'!F188=\"\",\"\",'1st June'!F188)","v":""}]
[null,{"$f":"IF('1st June'!B189=\"\",\"\",'1st June'!B189)","v":""},{"$f":"IF('1st June'!C189=\"\",\"\",'1st June'!C189)","v":""},{"$f":"IF('1st June'!D189=\"\",\"\",'1st June'!D189)","v":""},{"$f":"IF('1st June'!E189=\"\",\"\",'1st June'!E189)","v":""},{"$f":"IF('1st June'!F189=\"\",\"\",'1st June'!F189)","v":""}]
[null,{"$f":"IF('1st June'!B190=\"\",\"\",'1st June'!B190)","v":""},{"$f":"IF('1st June'!C190=\"\",\"\",'1st June'!C190)","v":""},{"$f":"IF('1st June'!D190=\"\",\"\",'1st June'!D190)","v":""},{"$f":"IF('1st June'!E190=\"\",\"\",'1st June'!E190)","v":""},{"$f":"IF('1st June'!F190=\"\",\"\",'1st June'!F190)","v":""}]
[null,{"$f":"IF('1st June'!B191=\"\",\"\",'1st June'!B191)","v":""},{"$f":"IF('1st June'!C191=\"\",\"\",'1st June'!C191)","v":""},{"$f":"IF('1st June'!D191=\"\",\"\",'1st June'!D191)","v":""},{"$f":"IF('1st June'!E191=\"\",\"\",'1st June'!E191)","v":""},{"$f":"IF('1st June'!F191=\"\",\"\",'1st June'!F191)","v":""}]
[null,{"$f":"IF('1st June'!B192=\"\",\"\",'1st June'!B192)","v":""},{"$f":"IF('1st June'!C192=\"\",\"\",'1st June'!C192)","v":""},{"$f":"IF('1st June'!D192=\"\",\"\",'1st June'!D192)","v":""},{"$f":"IF('1st June'!E192=\"\",\"\",'1st June'!E192)","v":""},{"$f":"IF('1st June'!F192=\"\",\"\",'1st June'!F192)","v":""}]
[null,{"$f":"IF('1st June'!B193=\"\",\"\",'1st June'!B193)","v":""},{"$f":"IF('1st June'!C193=\"\",\"\",'1st June'!C193)","v":""},{"$f":"IF('1st June'!D193=\"\",\"\",'1st June'!D193)","v":""},{"$f":"IF('1st June'!E193=\"\",\"\",'1st June'!E193)","v":""},{"$f":"IF('1st June'!F193=\"\",\"\",'1st June'!F193)","v":""}]
[null,{"$f":"IF('1st June'!B194=\"\",\"\",'1st June'!B194)","v":""},{"$f":"IF('1st June'!C194=\"\",\"\",'1st June'!C194)","v":""},{"$f":"IF('1st June'!D194=\"\",\"\",'1st June'!D194)","v":""},{"$f":"IF('1st June'!E194=\"\",\"\",'1st June'!E194)","v":""},{"$f":"IF('1st June'!F194=\"\",\"\",'1st June'!F194)","v":""}]
[null,{"$f":"IF('1st June'!B195=\"\",\"\",'1st June'!B195)","v":""},{"$f":"IF('1st June'!C195=\"\",\"\",'1st June'!C195)","v":""},{"$f":"IF('1st June'!D195=\"\",\"\",'1st June'!D195)","v":""},{"$f":"IF('1st June'!E195=\"\",\"\",'1st June'!E195)","v":""},{"$f":"IF('1st June'!F195=\"\",\"\",'1st June'!F195)","v":""}]
[null,{"$f":"IF('1st June'!B196=\"\",\"\",'1st June'!B196)","v":""},{"$f":"IF('1st June'!C196=\"\",\"\",'1st June'!C196)","v":""},{"$f":"IF('1st June'!D196=\"\",\"\",'1st June'!D196)","v":""},{"$f":"IF('1st June'!E196=\"\",\"\",'1st June'!E196)","v":""},{"$f":"IF('1st June'!F196=\"\",\"\",'1st June'!F196)","v":""}]
[null,{"$f":"IF('1st June'!B197=\"\",\"\",'1st June'!B197)","v":""},{"$f":"IF('1st June'!C197=\"\",\"\",'1st June'!C197)","v":""},{"$f":"IF('1st June'!D197=\"\",\"\",'1st June'!D197)","v":""},{"$f":"IF('1st June'!E197=\"\",\"\",'1st June'!E197)","v":""},{"$f":"IF('1st June'!F197=\"\",\"\",'1st June'!F197)","v":""}]
[null,{"$f":"IF('1st June'!B198=\"\",\"\",'1st June'!B198)","v":""},{"$f":"IF('1st June'!C198=\"\",\"\",'1st June'!C198)","v":""},{"$f":"IF('1st June'!D198=\"\",\"\",'1st June'!D198)","v":""},{"$f":"IF('1st June'!E198=\"\",\"\",'1st June'!E198)","v":""},{"$f":"IF('1st June'!F198=\"\",\"\",'1st June'!F198)","v":""}]
[null,{"$f":"IF('1st June'!B199=\"\",\"\",'1st June'!B199)","v":""},{"$f":"IF('1st June'!C199=\"\",\"\",'1st June'!C199)","v":""},{"$f":"IF('1st June'!D199=\"\",\"\",'1st June'!D199)","v":""},{"$f":"IF('1st June'!E199=\"\",\"\",'1st June'!E199)","v":""},{"$f":"IF('1st June'!F199=\"\",\"\",'1st June'!F199)","v":""}]
[null,{"$f":"IF('1st June'!B200=\"\",\"\",'1st June'!B200)","v":""},{"$f":"IF('1st June'!C200=\"\",\"\",'1st June'!C200)","v":""},{"$f":"IF('1st June'!D200=\"\",\"\",'1st June'!D200)","v":""},{"$f":"IF('1st June'!E200=\"\",\"\",'1st June'!E200)","v":""},{"$f":"IF('1st June'!F200=\"\",\"\",'1st June'!F200)","v":""}]
[null,{"$f":"IF('1st June'!B201=\"\",\"\",'1st June'!B201)","v":""},{"$f":"IF('1st June'!C201=\"\",\"\",'1st June'!C201)","v":""},{"$f":"IF('1st June'!D201=\"\",\"\",'1st June'!D201)","v":""},{"$f":"IF('1st June'!E201=\"\",\"\",'1st June'!E201)","v":""},{"$f":"IF('1st June'!F201=\"\",\"\",'1st June'!F201)","v":""}]
[null,{"$f":"IF('1st June'!B202=\"\",\"\",'1st June'!B202)","v":""},{"$f":"IF('1st June'!C202=\"\",\"\",'1st June'!C202)","v":""},{"$f":"IF('1st June'!D202=\"\",\"\",'1st June'!D202)","v":""},{"$f":"IF('1st June'!E202=\"\",\"\",'1st June'!E202)","v":""},{"$f":"IF('1st June'!F202=\"\",\"\",'1st June'!F202)","v":""}]
[null,{"$f":"IF('1st June'!B203=\"\",\"\",'1st June'!B203)","v":""},{"$f":"IF('1st June'!C203=\"\",\"\",'1st June'!C203)","v":""},{"$f":"IF('1st June'!D203=\"\",\"\",'1st June'!D203)","v":""},{"$f":"IF('1st June'!E203=\"\",\"\",'1st June'!E203)","v":""},{"$f":"IF('1st June'!F203=\"\",\"\",'1st June'!F203)","v":""}]
[null,{"$f":"IF('1st June'!B204=\"\",\"\",'1st June'!B204)","v":""},{"$f":"IF('1st June'!C204=\"\",\"\",'1st June'!C204)","v":""},{"$f":"IF('1st June'!D204=\"\",\"\",'1st June'!D204)","v":""},{"$f":"IF('1st June'!E204=\"\",\"\",'1st June'!E204)","v":""},{"$f":"IF('1st June'!F204=\"\",\"\",'1st June'!F204)","v":""}]
[null,{"$f":"IF('1st June'!B205=\"\",\"\",'1st June'!B205)","v":""},{"$f":"IF('1st June'!C205=\"\",\"\",'1st June'!C205)","v":""},{"$f":"IF('1st June'!D205=\"\",\"\",'1st June'!D205)","v":""},{"$f":"IF('1st June'!E205=\"\",\"\",'1st June'!E205)","v":""},{"$f":"IF('1st June'!F205=\"\",\"\",'1st June'!F205)","v":""}]
[null,{"$f":"IF('1st June'!B206=\"\",\"\",'1st June'!B206)","v":""},{"$f":"IF('1st June'!C206=\"\",\"\",'1st June'!C206)","v":""},{"$f":"IF('1st June'!D206=\"\",\"\",'1st June'!D206)","v":""},{"$f":"IF('1st June'!E206=\"\",\"\",'1st June'!E206)","v":""},{"$f":"IF('1st June'!F206=\"\",\"\",'1st June'!F206)","v":""}]
[null,{"$f":"IF('1st June'!B207=\"\",\"\",'1st June'!B207)","v":""},{"$f":"IF('1st June'!C207=\"\",\"\",'1st June'!C207)","v":""},{"$f":"IF('1st June'!D207=\"\",\"\",'1st June'!D207)","v":""},{"$f":"IF('1st June'!E207=\"\",\"\",'1st June'!E207)","v":""},{"$f":"IF('1st June'!F207=\"\",\"\",'1st June'!F207)","v":""}]
[null,{"$f":"IF('1st June'!B208=\"\",\"\",'1st June'!B208)","v":""},{"$f":"IF('1st June'!C208=\"\",\"\",'1st June'!C208)","v":""},{"$f":"IF('1st June'!D208=\"\",\"\",'1st June'!D208)","v":""},{"$f":"IF('1st June'!E208=\"\",\"\",'1st June'!E208)","v":""},{"$f":"IF('1st June'!F208=\"\",\"\",'1st June'!F208)","v":""}]
[null,{"$f":"IF('1st June'!B209=\"\",\"\",'1st June'!B209)","v":""},{"$f":"IF('1st June'!C209=\"\",\"\",'1st June'!C209)","v":""},{"$f":"IF('1st June'!D209=\"\",\"\",'1st June'!D209)","v":""},{"$f":"IF('1st June'!E209=\"\",\"\",'1st June'!E209)","v":""},{"$f":"IF('1st June'!F209=\"\",\"\",'1st June'!F209)","v":""}]
[null,{"$f":"IF('1st June'!B210=\"\",\"\",'1st June'!B210)","v":""},{"$f":"IF('1st June'!C210=\"\",\"\",'1st June'!C210)","v":""},{"$f":"IF('1st June'!D210=\"\",\"\",'1st June'!D210)","v":""},{"$f":"IF('1st June'!E210=\"\",\"\",'1st June'!E210)","v":""},{"$f":"IF('1st June'!F210=\"\",\"\",'1st June'!F210)","v":""}]
[null,{"$f":"IF('1st June'!B211=\"\",\"\",'1st June'!B211)","v":""},{"$f":"IF('1st June'!C211=\"\",\"\",'1st June'!C211)","v":""},{"$f":"IF('1st June'!D211=\"\",\"\",'1st June'!D211)","v":""},{"$f":"IF('1st June'!E211=\"\",\"\",'1st June'!E211)","v":""},{"$f":"IF('1st June'!F211=\"\",\"\",'1st June'!F211)","v":""}]
[null,{"$f":"IF('1st June'!B212=\"\",\"\",'1st June'!B212)","v":""},{"$f":"IF('1st June'!C212=\"\",\"\",'1st June'!C212)","v":""},{"$f":"IF('1st June'!D212=\"\",\"\",'1st June'!D212)","v":""},{"$f":"IF('1st June'!E212=\"\",\"\",'1st June'!E212)","v":""},{"$f":"IF('1st June'!F212=\"\",\"\",'1st June'!F212)","v":""}]
[null,{"$f":"IF('1st June'!B213=\"\",\"\",'1st June'!B213)","v":""},{"$f":"IF('1st June'!C213=\"\",\"\",'1st June'!C213)","v":""},{"$f":"IF('1st June'!D213=\"\",\"\",'1st June'!D213)","v":""},{"$f":"IF('1st June'!E213=\"\",\"\",'1st June'!E213)","v":""},{"$f":"IF('1st June'!F213=\"\",\"\",'1st June'!F213)","v":""}]
[null,{"$f":"IF('1st June'!B214=\"\",\"\",'1st June'!B214)","v":""},{"$f":"IF('1st June'!C214=\"\",\"\",'1st June'!C214)","v":""},{"$f":"IF('1st June'!D214=\"\",\"\",'1st June'!D214)","v":""},{"$f":"IF('1st June'!E214=\"\",\"\",'1st June'!E214)","v":""},{"$f":"IF('1st June'!F214=\"\",\"\",'1st June'!F214)","v":""}]
[null,{"$f":"IF('1st June'!B215=\"\",\"\",'1st June'!B215)","v":""},{"$f":"IF('1st June'!C215=\"\",\"\",'1st June'!C215)","v":""},{"$f":"IF('1st June'!D215=\"\",\"\",'1st June'!D215)","v":""},{"$f":"IF('1st June'!E215=\"\",\"\",'1st June'!E215)","v":""},{"$f":"IF('1st June'!F215=\"\",\"\",'1st June'!F215)","v":""}]
[null,{"$f":"IF('1st June'!B216=\"\",\"\",'1st June'!B216)","v":""},{"$f":"IF('1st June'!C216=\"\",\"\",'1st June'!C216)","v":""},{"$f":"IF('1st June'!D216=\"\",\"\",'1st June'!D216)","v":""},{"$f":"IF('1st June'!E216=\"\",\"\",'1st June'!E216)","v":""},{"$f":"IF('1st June'!F216=\"\",\"\",'1st June'!F216)","v":""}]
[null,{"$f":"IF('1st June'!B217=\"\",\"\",'1st June'!B217)","v":""},{"$f":"IF('1st June'!C217=\"\",\"\",'1st June'!C217)","v":""},{"$f":"IF('1st June'!D217=\"\",\"\",'1st June'!D217)","v":""},{"$f":"IF('1st June'!E217=\"\",\"\",'1st June'!E217)","v":""},{"$f":"IF('1st June'!F217=\"\",\"\",'1st June'!F217)","v":""}]
[null,{"$f":"IF('1st June'!B218=\"\",\"\",'1st June'!B218)","v":""},{"$f":"IF('1st June'!C218=\"\",\"\",'1st June'!C218)","v":""},{"$f":"IF('1st June'!D218=\"\",\"\",'1st June'!D218)","v":""},{"$f":"IF('1st June'!E218=\"\",\"\",'1st June'!E218)","v":""},{"$f":"IF('1st June'!F218=\"\",\"\",'1st June'!F218)","v":""}]
[null,{"$f":"IF('1st June'!B219=\"\",\"\",'1st June'!B219)","v":""},{"$f":"IF('1st June'!C219=\"\",\"\",'1st June'!C219)","v":""},{"$f":"IF('1st June'!D219=\"\",\"\",'1st June'!D219)","v":""},{"$f":"IF('1st June'!E219=\"\",\"\",'1st June'!E219)","v":""},{"$f":"IF('1st June'!F219=\"\",\"\",'1st June'!F219)","v":""}]
[null,{"$f":"IF('1st June'!B220=\"\",\"\",'1st June'!B220)","v":""},{"$f":"IF('1st June'!C220=\"\",\"\",'1st June'!C220)","v":""},{"$f":"IF('1st June'!D220=\"\",\"\",'1st June'!D220)","v":""},{"$f":"IF('1st June'!E220=\"\",\"\",'1st June'!E220)","v":""},{"$f":"IF('1st June'!F220=\"\",\"\",'1st June'!F220)","v":""}]
[null,{"$f":"IF('1st June'!B221=\"\",\"\",'1st June'!B221)","v":""},{"$f":"IF('1st June'!C221=\"\",\"\",'1st June'!C221)","v":""},{"$f":"IF('1st June'!D221=\"\",\"\",'1st June'!D221)","v":""},{"$f":"IF('1st June'!E221=\"\",\"\",'1st June'!E221)","v":""},{"$f":"IF('1st June'!F221=\"\",\"\",'1st June'!F221)","v":""}]
[null,{"$f":"IF('1st June'!B222=\"\",\"\",'1st June'!B222)","v":""},{"$f":"IF('1st June'!C222=\"\",\"\",'1st June'!C222)","v":""},{"$f":"IF('1st June'!D222=\"\",\"\",'1st June'!D222)","v":""},{"$f":"IF('1st June'!E222=\"\",\"\",'1st June'!E222)","v":""},{"$f":"IF('1st June'!F222=\"\",\"\",'1st June'!F222)","v":""}]
[null,{"$f":"IF('1st June'!B223=\"\",\"\",'1st June'!B223)","v":""},{"$f":"IF('1st June'!C223=\"\",\"\",'1st June'!C223)","v":""},{"$f":"IF('1st June'!D223=\"\",\"\",'1st June'!D223)","v":""},{"$f":"IF('1st June'!E223=\"\",\"\",'1st June'!E223)","v":""},{"$f":"IF('1st June'!F223=\"\",\"\",'1st June'!F223)","v":""}]
[null,{"$f":"IF('1st June'!B224=\"\",\"\",'1st June'!B224)","v":""},{"$f":"IF('1st June'!C224=\"\",\"\",'1st June'!C224)","v":""},{"$f":"IF('1st June'!D224=\"\",\"\",'1st June'!D224)","v":""},{"$f":"IF('1st June'!E224=\"\",\"\",'1st June'!E224)","v":""},{"$f":"IF('1st June'!F224=\"\",\"\",'1st June'!F224)","v":""}]
[null,{"$f":"IF('1st June'!B225=\"\",\"\",'1st June'!B225)","v":""},{"$f":"IF('1st June'!C225=\"\",\"\",'1st June'!C225)","v":""},{"$f":"IF('1st June'!D225=\"\",\"\",'1st June'!D225)","v":""},{"$f":"IF('1st June'!E225=\"\",\"\",'1st June'!E225)","v":""},{"$f":"IF('1st June'!F225=\"\",\"\",'1st June'!F225)","v":""}]
[null,{"$f":"IF('1st June'!B226=\"\",\"\",'1st June'!B226)","v":""},{"$f":"IF('1st June'!C226=\"\",\"\",'1st June'!C226)","v":""},{"$f":"IF('1st June'!D226=\"\",\"\",'1st June'!D226)","v":""},{"$f":"IF('1st June'!E226=\"\",\"\",'1st June'!E226)","v":""},{"$f":"IF('1st June'!F226=\"\",\"\",'1st June'!F226)","v":""}]
[null,{"$f":"IF('1st June'!B227=\"\",\"\",'1st June'!B227)","v":""},{"$f":"IF('1st June'!C227=\"\",\"\",'1st June'!C227)","v":""},{"$f":"IF('1st June'!D227=\"\",\"\",'1st June'!D227)","v":""},{"$f":"IF('1st June'!E227=\"\",\"\",'1st June'!E227)","v":""},{"$f":"IF('1st June'!F227=\"\",\"\",'1st June'!F227)","v":""}]
[null,{"$f":"IF('1st June'!B228=\"\",\"\",'1st June'!B228)","v":""},{"$f":"IF('1st June'!C228=\"\",\"\",'1st June'!C228)","v":""},{"$f":"IF('1st June'!D228=\"\",\"\",'1st June'!D228)","v":""},{"$f":"IF('1st June'!E228=\"\",\"\",'1st June'!E228)","v":""},{"$f":"IF('1st June'!F228=\"\",\"\",'1st June'!F228)","v":""}]
[null,{"$f":"IF('1st June'!B229=\"\",\"\",'1st June'!B229)","v":""},{"$f":"IF('1st June'!C229=\"\",\"\",'1st June'!C229)","v":""},{"$f":"IF('1st June'!D229=\"\",\"\",'1st June'!D229)","v":""},{"$f":"IF('1st June'!E229=\"\",\"\",'1st June'!E229)","v":""},{"$f":"IF('1st June'!F229=\"\",\"\",'1st June'!F229)","v":""}]
[null,{"$f":"IF('1st June'!B230=\"\",\"\",'1st June'!B230)","v":""},{"$f":"IF('1st June'!C230=\"\",\"\",'1st June'!C230)","v":""},{"$f":"IF('1st June'!D230=\"\",\"\",'1st June'!D230)","v":""},{"$f":"IF('1st June'!E230=\"\",\"\",'1st June'!E230)","v":""},{"$f":"IF('1st June'!F230=\"\",\"\",'1st June'!F230)","v":""}]
[null,{"$f":"IF('1st June'!B231=\"\",\"\",'1st June'!B231)","v":""},{"$f":"IF('1st June'!C231=\"\",\"\",'1st June'!C231)","v":""},{"$f":"IF('1st June'!D231=\"\",\"\",'1st June'!D231)","v":""},{"$f":"IF('1st June'!E231=\"\",\"\",'1st June'!E231)","v":""},{"$f":"IF('1st June'!F231=\"\",\"\",'1st June'!F231)","v":""}]
[null,{"$f":"IF('1st June'!B232=\"\",\"\",'1st June'!B232)","v":""},{"$f":"IF('1st June'!C232=\"\",\"\",'1st June'!C232)","v":""},{"$f":"IF('1st June'!D232=\"\",\"\",'1st June'!D232)","v":""},{"$f":"IF('1st June'!E232=\"\",\"\",'1st June'!E232)","v":""},{"$f":"IF('1st June'!F232=\"\",\"\",'1st June'!F232)","v":""}]
[null,{"$f":"IF('1st June'!B233=\"\",\"\",'1st June'!B233)","v":""},{"$f":"IF('1st June'!C233=\"\",\"\",'1st June'!C233)","v":""},{"$f":"IF('1st June'!D233=\"\",\"\",'1st June'!D233)","v":""},{"$f":"IF('1st June'!E233=\"\",\"\",'1st June'!E233)","v":""},{"$f":"IF('1st June'!F233=\"\",\"\",'1st June'!F233)","v":""}]
[null,{"$f":"IF('1st June'!B234=\"\",\"\",'1st June'!B234)","v":""},{"$f":"IF('1st June'!C234=\"\",\"\",'1st June'!C234)","v":""},{"$f":"IF('1st June'!D234=\"\",\"\",'1st June'!D234)","v":""},{"$f":"IF('1st June'!E234=\"\",\"\",'1st June'!E234)","v":""},{"$f":"IF('1st June'!F234=\"\",\"\",'1st June'!F234)","v":""}]
[null,{"$f":"IF('1st June'!B235=\"\",\"\",'1st June'!B235)","v":""},{"$f":"IF('1st June'!C235=\"\",\"\",'1st June'!C235)","v":""},{"$f":"IF('1st June'!D235=\"\",\"\",'1st June'!D235)","v":""},{"$f":"IF('1st June'!E235=\"\",\"\",'1st June'!E235)","v":""},{"$f":"IF('1st June'!F235=\"\",\"\",'1st June'!F235)","v":""}]
[null,{"$f":"IF('1st June'!B236=\"\",\"\",'1st June'!B236)","v":""},{"$f":"IF('1st June'!C236=\"\",\"\",'1st June'!C236)","v":""},{"$f":"IF('1st June'!D236=\"\",\"\",'1st June'!D236)","v":""},{"$f":"IF('1st June'!E236=\"\",\"\",'1st June'!E236)","v":""},{"$f":"IF('1st June'!F236=\"\",\"\",'1st June'!F236)","v":""}]
[null,{"$f":"IF('1st June'!B237=\"\",\"\",'1st June'!B237)","v":""},{"$f":"IF('1st June'!C237=\"\",\"\",'1st June'!C237)","v":""},{"$f":"IF('1st June'!D237=\"\",\"\",'1st June'!D237)","v":""},{"$f":"IF('1st June'!E237=\"\",\"\",'1st June'!E237)","v":""},{"$f":"IF('1st June'!F237=\"\",\"\",'1st June'!F237)","v":""}]
[null,{"$f":"IF('1st June'!B238=\"\",\"\",'1st June'!B238)","v":""},{"$f":"IF('1st June'!C238=\"\",\"\",'1st June'!C238)","v":""},{"$f":"IF('1st June'!D238=\"\",\"\",'1st June'!D238)","v":""},{"$f":"IF('1st June'!E238=\"\",\"\",'1st June'!E238)","v":""},{"$f":"IF('1st June'!F238=\"\",\"\",'1st June'!F238)","v":""}]
[null,{"$f":"IF('1st June'!B239=\"\",\"\",'1st June'!B239)","v":""},{"$f":"IF('1st June'!C239=\"\",\"\",'1st June'!C239)","v":""},{"$f":"IF('1st June'!D239=\"\",\"\",'1st June'!D239)","v":""},{"$f":"IF('1st June'!E239=\"\",\"\",'1st June'!E239)","v":""},{"$f":"IF('1st June'!F239=\"\",\"\",'1st June'!F239)","v":""}]
[null,{"$f":"IF('1st June'!B240=\"\",\"\",'1st June'!B240)","v":""},{"$f":"IF('1st June'!C240=\"\",\"\",'1st June'!C240)","v":""},{"$f":"IF('1st June'!D240=\"\",\"\",'1st June'!D240)","v":""},{"$f":"IF('1st June'!E240=\"\",\"\",'1st June'!E240)","v":""},{"$f":"IF('1st June'!F240=\"\",\"\",'1st June'!F240)","v":""}]
[null,{"$f":"IF('1st June'!B241=\"\",\"\",'1st June'!B241)","v":""},{"$f":"IF('1st June'!C241=\"\",\"\",'1st June'!C241)","v":""},{"$f":"IF('1st June'!D241=\"\",\"\",'1st June'!D241)","v":""},{"$f":"IF('1st June'!E241=\"\",\"\",'1st June'!E241)","v":""},{"$f":"IF('1st June'!F241=\"\",\"\",'1st June'!F241)","v":""}]
[null,{"$f":"IF('1st June'!B242=\"\",\"\",'1st June'!B242)","v":""},{"$f":"IF('1st June'!C242=\"\",\"\",'1st June'!C242)","v":""},{"$f":"IF('1st June'!D242=\"\",\"\",'1st June'!D242)","v":""},{"$f":"IF('1st June'!E242=\"\",\"\",'1st June'!E242)","v":""},{"$f":"IF('1st June'!F242=\"\",\"\",'1st June'!F242)","v":""}]
[null,{"$f":"IF('1st June'!B243=\"\",\"\",'1st June'!B243)","v":""},{"$f":"IF('1st June'!C243=\"\",\"\",'1st June'!C243)","v":""},{"$f":"IF('1st June'!D243=\"\",\"\",'1st June'!D243)","v":""},{"$f":"IF('1st June'!E243=\"\",\"\",'1st June'!E243)","v":""},{"$f":"IF('1st June'!F243=\"\",\"\",'1st June'!F243)","v":""}]
[null,{"$f":"IF('1st June'!B244=\"\",\"\",'1st June'!B244)","v":""},{"$f":"IF('1st June'!C244=\"\",\"\",'1st June'!C244)","v":""},{"$f":"IF('1st June'!D244=\"\",\"\",'1st June'!D244)","v":""},{"$f":"IF('1st June'!E244=\"\",\"\",'1st June'!E244)","v":""},{"$f":"IF('1st June'!F244=\"\",\"\",'1st June'!F244)","v":""}]
[null,{"$f":"IF('1st June'!B245=\"\",\"\",'1st June'!B245)","v":""},{"$f":"IF('1st June'!C245=\"\",\"\",'1st June'!C245)","v":""},{"$f":"IF('1st June'!D245=\"\",\"\",'1st June'!D245)","v":""},{"$f":"IF('1st June'!E245=\"\",\"\",'1st June'!E245)","v":""},{"$f":"IF('1st June'!F245=\"\",\"\",'1st June'!F245)","v":""}]
[null,{"$f":"IF('1st June'!B246=\"\",\"\",'1st June'!B246)","v":""},{"$f":"IF('1st June'!C246=\"\",\"\",'1st June'!C246)","v":""},{"$f":"IF('1st June'!D246=\"\",\"\",'1st June'!D246)","v":""},{"$f":"IF('1st June'!E246=\"\",\"\",'1st June'!E246)","v":""},{"$f":"IF('1st June'!F246=\"\",\"\",'1st June'!F246)","v":""}]
[null,{"$f":"IF('1st June'!B247=\"\",\"\",'1st June'!B247)","v":""},{"$f":"IF('1st June'!C247=\"\",\"\",'1st June'!C247)","v":""},{"$f":"IF('1st June'!D247=\"\",\"\",'1st June'!D247)","v":""},{"$f":"IF('1st June'!E247=\"\",\"\",'1st June'!E247)","v":""},{"$f":"IF('1st June'!F247=\"\",\"\",'1st June'!F247)","v":""}]
[null,{"$f":"IF('1st June'!B248=\"\",\"\",'1st June'!B248)","v":""},{"$f":"IF('1st June'!C248=\"\",\"\",'1st June'!C248)","v":""},{"$f":"IF('1st June'!D248=\"\",\"\",'1st June'!D248)","v":""},{"$f":"IF('1st June'!E248=\"\",\"\",'1st June'!E248)","v":""},{"$f":"IF('1st June'!F248=\"\",\"\",'1st June'!F248)","v":""}]
[null,{"$f":"IF('1st June'!B249=\"\",\"\",'1st June'!B249)","v":""},{"$f":"IF('1st June'!C249=\"\",\"\",'1st June'!C249)","v":""},{"$f":"IF('1st June'!D249=\"\",\"\",'1st June'!D249)","v":""},{"$f":"IF('1st June'!E249=\"\",\"\",'1st June'!E249)","v":""},{"$f":"IF('1st June'!F249=\"\",\"\",'1st June'!F249)","v":""}]
[null,{"$f":"IF('1st June'!B250=\"\",\"\",'1st June'!B250)","v":""},{"$f":"IF('1st June'!C250=\"\",\"\",'1st June'!C250)","v":""},{"$f":"IF('1st June'!D250=\"\",\"\",'1st June'!D250)","v":""},{"$f":"IF('1st June'!E250=\"\",\"\",'1st June'!E250)","v":""},{"$f":"IF('1st June'!F250=\"\",\"\",'1st June'!F250)","v":""}]
[null,{"$f":"IF('1st June'!B251=\"\",\"\",'1st June'!B251)","v":""},{"$f":"IF('1st June'!C251=\"\",\"\",'1st June'!C251)","v":""},{"$f":"IF('1st June'!D251=\"\",\"\",'1st June'!D251)","v":""},{"$f":"IF('1st June'!E251=\"\",\"\",'1st June'!E251)","v":""},{"$f":"IF('1st June'!F251=\"\",\"\",'1st June'!F251)","v":""}]
[null,{"$f":"IF('1st June'!B252=\"\",\"\",'1st June'!B252)","v":""},{"$f":"IF('1st June'!C252=\"\",\"\",'1st June'!C252)","v":""},{"$f":"IF('1st June'!D252=\"\",\"\",'1st June'!D252)","v":""},{"$f":"IF('1st June'!E252=\"\",\"\",'1st June'!E252)","v":""},{"$f":"IF('1st June'!F252=\"\",\"\",'1st June'!F252)","v":""}]
[null,{"$f":"IF('1st June'!B253=\"\",\"\",'1st June'!B253)","v":""},{"$f":"IF('1st June'!C253=\"\",\"\",'1st June'!C253)","v":""},{"$f":"IF('1st June'!D253=\"\",\"\",'1st June'!D253)","v":""},{"$f":"IF('1st June'!E253=\"\",\"\",'1st June'!E253)","v":""},{"$f":"IF('1st June'!F253=\"\",\"\",'1st June'!F253)","v":""}]
[null,{"$f":"IF('1st June'!B254=\"\",\"\",'1st June'!B254)","v":""},{"$f":"IF('1st June'!C254=\"\",\"\",'1st June'!C254)","v":""},{"$f":"IF('1st June'!D254=\"\",\"\",'1st June'!D254)","v":""},{"$f":"IF('1st June'!E254=\"\",\"\",'1st June'!E254)","v":""},{"$f":"IF('1st June'!F254=\"\",\"\",'1st June'!F254)","v":""}]
[null,{"$f":"IF('1st June'!B255=\"\",\"\",'1st June'!B255)","v":""},{"$f":"IF('1st June'!C255=\"\",\"\",'1st June'!C255)","v":""},{"$f":"IF('1st June'!D255=\"\",\"\",'1st June'!D255)","v":""},{"$f":"IF('1st June'!E255=\"\",\"\",'1st June'!E255)","v":""},{"$f":"IF('1st June'!F255=\"\",\"\",'1st June'!F255)","v":""}]
[null,{"$f":"IF('1st June'!B256=\"\",\"\",'1st June'!B256)","v":""},{"$f":"IF('1st June'!C256=\"\",\"\",'1st June'!C256)","v":""},{"$f":"IF('1st June'!D256=\"\",\"\",'1st June'!D256)","v":""},{"$f":"IF('1st June'!E256=\"\",\"\",'1st June'!E256)","v":""},{"$f":"IF('1st June'!F256=\"\",\"\",'1st June'!F256)","v":""}]
[null,{"$f":"IF('1st June'!B257=\"\",\"\",'1st June'!B257)","v":""},{"$f":"IF('1st June'!C257=\"\",\"\",'1st June'!C257)","v":""},{"$f":"IF('1st June'!D257=\"\",\"\",'1st June'!D257)","v":""},{"$f":"IF('1st June'!E257=\"\",\"\",'1st June'!E257)","v":""},{"$f":"IF('1st June'!F257=\"\",\"\",'1st June'!F257)","v":""}]
[null,{"$f":"IF('1st June'!B258=\"\",\"\",'1st June'!B258)","v":""},{"$f":"IF('1st June'!C258=\"\",\"\",'1st June'!C258)","v":""},{"$f":"IF('1st June'!D258=\"\",\"\",'1st June'!D258)","v":""},{"$f":"IF('1st June'!E258=\"\",\"\",'1st June'!E258)","v":""},{"$f":"IF('1st June'!F258=\"\",\"\",'1st June'!F258)","v":""}]
[null,{"$f":"IF('1st June'!B259=\"\",\"\",'1st June'!B259)","v":""},{"$f":"IF('1st June'!C259=\"\",\"\",'1st June'!C259)","v":""},{"$f":"IF('1st June'!D259=\"\",\"\",'1st June'!D259)","v":""},{"$f":"IF('1st June'!E259=\"\",\"\",'1st June'!E259)","v":""},{"$f":"IF('1st June'!F259=\"\",\"\",'1st June'!F259)","v":""}]
[null,{"$f":"IF('1st June'!B260=\"\",\"\",'1st June'!B260)","v":""},{"$f":"IF('1st June'!C260=\"\",\"\",'1st June'!C260)","v":""},{"$f":"IF('1st June'!D260=\"\",\"\",'1st June'!D260)","v":""},{"$f":"IF('1st June'!E260=\"\",\"\",'1st June'!E260)","v":""},{"$f":"IF('1st June'!F260=\"\",\"\",'1st June'!F260)","v":""}]
[null,{"$f":"IF('1st June'!B261=\"\",\"\",'1st June'!B261)","v":""},{"$f":"IF('1st June'!C261=\"\",\"\",'1st June'!C261)","v":""},{"$f":"IF('1st June'!D261=\"\",\"\",'1st June'!D261)","v":""},{"$f":"IF('1st June'!E261=\"\",\"\",'1st June'!E261)","v":""},{"$f":"IF('1st June'!F261=\"\",\"\",'1st June'!F261)","v":""}]
[null,{"$f":"IF('1st June'!B262=\"\",\"\",'1st June'!B262)","v":""},{"$f":"IF('1st June'!C262=\"\",\"\",'1st June'!C262)","v":""},{"$f":"IF('1st June'!D262=\"\",\"\",'1st June'!D262)","v":""},{"$f":"IF('1st June'!E262=\"\",\"\",'1st June'!E262)","v":""},{"$f":"IF('1st June'!F262=\"\",\"\",'1st June'!F262)","v":""}]
[null,{"$f":"IF('1st June'!B263=\"\",\"\",'1st June'!B263)","v":""},{"$f":"IF('1st June'!C263=\"\",\"\",'1st June'!C263)","v":""},{"$f":"IF('1st June'!D263=\"\",\"\",'1st June'!D263)","v":""},{"$f":"IF('1st June'!E263=\"\",\"\",'1st June'!E263)","v":""},{"$f":"IF('1st June'!F263=\"\",\"\",'1st June'!F263)","v":""}]
[null,{"$f":"IF('1st June'!B264=\"\",\"\",'1st June'!B264)","v":""},{"$f":"IF('1st June'!C264=\"\",\"\",'1st June'!C264)","v":""},{"$f":"IF('1st June'!D264=\"\",\"\",'1st June'!D264)","v":""},{"$f":"IF('1st June'!E264=\"\",\"\",'1st June'!E264)","v":""},{"$f":"IF('1st June'!F264=\"\",\"\",'1st June'!F264)","v":""}]
[null,{"$f":"IF('1st June'!B265=\"\",\"\",'1st June'!B265)","v":""},{"$f":"IF('1st June'!C265=\"\",\"\",'1st June'!C265)","v":""},{"$f":"IF('1st June'!D265=\"\",\"\",'1st June'!D265)","v":""},{"$f":"IF('1st June'!E265=\"\",\"\",'1st June'!E265)","v":""},{"$f":"IF('1st June'!F265=\"\",\"\",'1st June'!F265)","v":""}]
[null,{"$f":"IF('1st June'!B266=\"\",\"\",'1st June'!B266)","v":""},{"$f":"IF('1st June'!C266=\"\",\"\",'1st June'!C266)","v":""},{"$f":"IF('1st June'!D266=\"\",\"\",'1st June'!D266)","v":""},{"$f":"IF('1st June'!E266=\"\",\"\",'1st June'!E266)","v":""},{"$f":"IF('1st June'!F266=\"\",\"\",'1st June'!F266)","v":""}]
[null,{"$f":"IF('1st June'!B267=\"\",\"\",'1st June'!B267)","v":""},{"$f":"IF('1st June'!C267=\"\",\"\",'1st June'!C267)","v":""},{"$f":"IF('1st June'!D267=\"\",\"\",'1st June'!D267)","v":""},{"$f":"IF('1st June'!E267=\"\",\"\",'1st June'!E267)","v":""},{"$f":"IF('1st June'!F267=\"\",\"\",'1st June'!F267)","v":""}]
[null,{"$f":"IF('1st June'!B268=\"\",\"\",'1st June'!B268)","v":""},{"$f":"IF('1st June'!C268=\"\",\"\",'1st June'!C268)","v":""},{"$f":"IF('1st June'!D268=\"\",\"\",'1st June'!D268)","v":""},{"$f":"IF('1st June'!E268=\"\",\"\",'1st June'!E268)","v":""},{"$f":"IF('1st June'!F268=\"\",\"\",'1st June'!F268)","v":""}]
[null,{"$f":"IF('1st June'!B269=\"\",\"\",'1st June'!B269)","v":""},{"$f":"IF('1st June'!C269=\"\",\"\",'1st June'!C269)","v":""},{"$f":"IF('1st June'!D269=\"\",\"\",'1st June'!D269)","v":""},{"$f":"IF('1st June'!E269=\"\",\"\",'1st June'!E269)","v":""},{"$f":"IF('1st June'!F269=\"\",\"\",'1st June'!F269)","v":""}]
[null,{"$f":"IF('1st June'!B270=\"\",\"\",'1st June'!B270)","v":""},{"$f":"IF('1st June'!C270=\"\",\"\",'1st June'!C270)","v":""},{"$f":"IF('1st June'!D270=\"\",\"\",'1st June'!D270)","v":""},{"$f":"IF('1st June'!E270=\"\",\"\",'1st June'!E270)","v":""},{"$f":"IF('1st June'!F270=\"\",\"\",'1st June'!F270)","v":""}]
[null,{"$f":"IF('1st June'!B271=\"\",\"\",'1st June'!B271)","v":""},{"$f":"IF('1st June'!C271=\"\",\"\",'1st June'!C271)","v":""},{"$f":"IF('1st June'!D271=\"\",\"\",'1st June'!D271)","v":""},{"$f":"IF('1st June'!E271=\"\",\"\",'1st June'!E271)","v":""},{"$f":"IF('1st June'!F271=\"\",\"\",'1st June'!F271)","v":""}]
[null,{"$f":"IF('1st June'!B272=\"\",\"\",'1st June'!B272)","v":""},{"$f":"IF('1st June'!C272=\"\",\"\",'1st June'!C272)","v":""},{"$f":"IF('1st June'!D272=\"\",\"\",'1st June'!D272)","v":""},{"$f":"IF('1st June'!E272=\"\",\"\",'1st June'!E272)","v":""},{"$f":"IF('1st June'!F272=\"\",\"\",'1st June'!F272)","v":""}]
[null,{"$f":"IF('1st June'!B273=\"\",\"\",'1st June'!B273)","v":""},{"$f":"IF('1st June'!C273=\"\",\"\",'1st June'!C273)","v":""},{"$f":"IF('1st June'!D273=\"\",\"\",'1st June'!D273)","v":""},{"$f":"IF('1st June'!E273=\"\",\"\",'1st June'!E273)","v":""},{"$f":"IF('1st June'!F273=\"\",\"\",'1st June'!F273)","v":""}]
[null,{"$f":"IF('1st June'!B274=\"\",\"\",'1st June'!B274)","v":""},{"$f":"IF('1st June'!C274=\"\",\"\",'1st June'!C274)","v":""},{"$f":"IF('1st June'!D274=\"\",\"\",'1st June'!D274)","v":""},{"$f":"IF('1st June'!E274=\"\",\"\",'1st June'!E274)","v":""},{"$f":"IF('1st June'!F274=\"\",\"\",'1st June'!F274)","v":""}]
[null,{"$f":"IF('1st June'!B275=\"\",\"\",'1st June'!B275)","v":""},{"$f":"IF('1st June'!C275=\"\",\"\",'1st June'!C275)","v":""},{"$f":"IF('1st June'!D275=\"\",\"\",'1st June'!D275)","v":""},{"$f":"IF('1st June'!E275=\"\",\"\",'1st June'!E275)","v":""},{"$f":"IF('1st June'!F275=\"\",\"\",'1st June'!F275)","v":""}]
[null,{"$f":"IF('1st June'!B276=\"\",\"\",'1st June'!B276)","v":""},{"$f":"IF('1st June'!C276=\"\",\"\",'1st June'!C276)","v":""},{"$f":"IF('1st June'!D276=\"\",\"\",'1st June'!D276)","v":""},{"$f":"IF('1st June'!E276=\"\",\"\",'1st June'!E276)","v":""},{"$f":"IF('1st June'!F276=\"\",\"\",'1st June'!F276)","v":""}]
[null,{"$f":"IF('1st June'!B277=\"\",\"\",'1st June'!B277)","v":""},{"$f":"IF('1st June'!C277=\"\",\"\",'1st June'!C277)","v":""},{"$f":"IF('1st June'!D277=\"\",\"\",'1st June'!D277)","v":""},{"$f":"IF('1st June'!E277=\"\",\"\",'1st June'!E277)","v":""},{"$f":"IF('1st June'!F277=\"\",\"\",'1st June'!F277)","v":""}]
[null,{"$f":"IF('1st June'!B278=\"\",\"\",'1st June'!B278)","v":""},{"$f":"IF('1st June'!C278=\"\",\"\",'1st June'!C278)","v":""},{"$f":"IF('1st June'!D278=\"\",\"\",'1st June'!D278)","v":""},{"$f":"IF('1st June'!E278=\"\",\"\",'1st June'!E278)","v":""},{"$f":"IF('1st June'!F278=\"\",\"\",'1st June'!F278)","v":""}]
[null,{"$f":"IF('1st June'!B279=\"\",\"\",'1st June'!B279)","v":""},{"$f":"IF('1st June'!C279=\"\",\"\",'1st June'!C279)","v":""},{"$f":"IF('1st June'!D279=\"\",\"\",'1st June'!D279)","v":""},{"$f":"IF('1st June'!E279=\"\",\"\",'1st June'!E279)","v":""},{"$f":"IF('1st June'!F279=\"\",\"\",'1st June'!F279)","v":""}]
[null,{"$f":"IF('1st June'!B280=\"\",\"\",'1st June'!B280)","v":""},{"$f":"IF('1st June'!C280=\"\",\"\",'1st June'!C280)","v":""},{"$f":"IF('1st June'!D280=\"\",\"\",'1st June'!D280)","v":""},{"$f":"IF('1st June'!E280=\"\",\"\",'1st June'!E280)","v":""},{"$f":"IF('1st June'!F280=\"\",\"\",'1st June'!F280)","v":""}]
[null,{"$f":"IF('1st June'!B281=\"\",\"\",'1st June'!B281)","v":""},{"$f":"IF('1st June'!C281=\"\",\"\",'1st June'!C281)","v":""},{"$f":"IF('1st June'!D281=\"\",\"\",'1st June'!D281)","v":""},{"$f":"IF('1st June'!E281=\"\",\"\",'1st June'!E281)","v":""},{"$f":"IF('1st June'!F281=\"\",\"\",'1st June'!F281)","v":""}]
[null,{"$f":"IF('1st June'!B282=\"\",\"\",'1st June'!B282)","v":""},{"$f":"IF('1st June'!C282=\"\",\"\",'1st June'!C282)","v":""},{"$f":"IF('1st June'!D282=\"\",\"\",'1st June'!D282)","v":""},{"$f":"IF('1st June'!E282=\"\",\"\",'1st June'!E282)","v":""},{"$f":"IF('1st June'!F282=\"\",\"\",'1st June'!F282)","v":""}]
[null,{"$f":"IF('1st June'!B283=\"\",\"\",'1st June'!B283)","v":""},{"$f":"IF('1st June'!C283=\"\",\"\",'1st June'!C283)","v":""},{"$f":"IF('1st June'!D283=\"\",\"\",'1st June'!D283)","v":""},{"$f":"IF('1st June'!E283=\"\",\"\",'1st June'!E283)","v":""},{"$f":"IF('1st June'!F283=\"\",\"\",'1st June'!F283)","v":""}]
[null,{"$f":"IF('1st June'!B284=\"\",\"\",'1st June'!B284)","v":""},{"$f":"IF('1st June'!C284=\"\",\"\",'1st June'!C284)","v":""},{"$f":"IF('1st June'!D284=\"\",\"\",'1st June'!D284)","v":""},{"$f":"IF('1st June'!E284=\"\",\"\",'1st June'!E284)","v":""},{"$f":"IF('1st June'!F284=\"\",\"\",'1st June'!F284)","v":""}]
[null,{"$f":"IF('1st June'!B285=\"\",\"\",'1st June'!B285)","v":""},{"$f":"IF('1st June'!C285=\"\",\"\",'1st June'!C285)","v":""},{"$f":"IF('1st June'!D285=\"\",\"\",'1st June'!D285)","v":""},{"$f":"IF('1st June'!E285=\"\",\"\",'1st June'!E285)","v":""},{"$f":"IF('1st June'!F285=\"\",\"\",'1st June'!F285)","v":""}]
[null,{"$f":"IF('1st June'!B286=\"\",\"\",'1st June'!B286)","v":""},{"$f":"IF('1st June'!C286=\"\",\"\",'1st June'!C286)","v":""},{"$f":"IF('1st June'!D286=\"\",\"\",'1st June'!D286)","v":""},{"$f":"IF('1st June'!E286=\"\",\"\",'1st June'!E286)","v":""},{"$f":"IF('1st June'!F286=\"\",\"\",'1st June'!F286)","v":""}]
[null,{"$f":"IF('1st June'!B287=\"\",\"\",'1st June'!B287)","v":""},{"$f":"IF('1st June'!C287=\"\",\"\",'1st June'!C287)","v":""},{"$f":"IF('1st June'!D287=\"\",\"\",'1st June'!D287)","v":""},{"$f":"IF('1st June'!E287=\"\",\"\",'1st June'!E287)","v":""},{"$f":"IF('1st June'!F287=\"\",\"\",'1st June'!F287)","v":""}]
[null,{"$f":"IF('1st June'!B288=\"\",\"\",'1st June'!B288)","v":""},{"$f":"IF('1st June'!C288=\"\",\"\",'1st June'!C288)","v":""},{"$f":"IF('1st June'!D288=\"\",\"\",'1st June'!D288)","v":""},{"$f":"IF('1st June'!E288=\"\",\"\",'1st June'!E288)","v":""},{"$f":"IF('1st June'!F288=\"\",\"\",'1st June'!F288)","v":""}]
[null,{"$f":"IF('1st June'!B289=\"\",\"\",'1st June'!B289)","v":""},{"$f":"IF('1st June'!C289=\"\",\"\",'1st June'!C289)","v":""},{"$f":"IF('1st June'!D289=\"\",\"\",'1st June'!D289)","v":""},{"$f":"IF('1st June'!E289=\"\",\"\",'1st June'!E289)","v":""},{"$f":"IF('1st June'!F289=\"\",\"\",'1st June'!F289)","v":""}]
[null,{"$f":"IF('1st June'!B290=\"\",\"\",'1st June'!B290)","v":""},{"$f":"IF('1st June'!C290=\"\",\"\",'1st June'!C290)","v":""},{"$f":"IF('1st June'!D290=\"\",\"\",'1st June'!D290)","v":""},{"$f":"IF('1st June'!E290=\"\",\"\",'1st June'!E290)","v":""},{"$f":"IF('1st June'!F290=\"\",\"\",'1st June'!F290)","v":""}]
[null,{"$f":"IF('1st June'!B291=\"\",\"\",'1st June'!B291)","v":""},{"$f":"IF('1st June'!C291=\"\",\"\",'1st June'!C291)","v":""},{"$f":"IF('1st June'!D291=\"\",\"\",'1st June'!D291)","v":""},{"$f":"IF('1st June'!E291=\"\",\"\",'1st June'!E291)","v":""},{"$f":"IF('1st June'!F291=\"\",\"\",'1st June'!F291)","v":""}]
[null,{"$f":"IF('1st June'!B292=\"\",\"\",'1st June'!B292)","v":""},{"$f":"IF('1st June'!C292=\"\",\"\",'1st June'!C292)","v":""},{"$f":"IF('1st June'!D292=\"\",\"\",'1st June'!D292)","v":""},{"$f":"IF('1st June'!E292=\"\",\"\",'1st June'!E292)","v":""},{"$f":"IF('1st June'!F292=\"\",\"\",'1st June'!F292)","v":""}]
[null,{"$f":"IF('1st June'!B293=\"\",\"\",'1st June'!B293)","v":""},{"$f":"IF('1st June'!C293=\"\",\"\",'1st June'!C293)","v":""},{"$f":"IF('1st June'!D293=\"\",\"\",'1st June'!D293)","v":""},{"$f":"IF('1st June'!E293=\"\",\"\",'1st June'!E293)","v":""},{"$f":"IF('1st June'!F293=\"\",\"\",'1st June'!F293)","v":""}]
[null,{"$f":"IF('1st June'!B294=\"\",\"\",'1st June'!B294)","v":""},{"$f":"IF('1st June'!C294=\"\",\"\",'1st June'!C294)","v":""},{"$f":"IF('1st June'!D294=\"\",\"\",'1st June'!D294)","v":""},{"$f":"IF('1st June'!E294=\"\",\"\",'1st June'!E294)","v":""},{"$f":"IF('1st June'!F294=\"\",\"\",'1st June'!F294)","v":""}]
[null,{"$f":"IF('1st June'!B295=\"\",\"\",'1st June'!B295)","v":""},{"$f":"IF('1st June'!C295=\"\",\"\",'1st June'!C295)","v":""},{"$f":"IF('1st June'!D295=\"\",\"\",'1st June'!D295)","v":""},{"$f":"IF('1st June'!E295=\"\",\"\",'1st June'!E295)","v":""},{"$f":"IF('1st June'!F295=\"\",\"\",'1st June'!F295)","v":""}]
[null,{"$f":"IF('1st June'!B296=\"\",\"\",'1st June'!B296)","v":""},{"$f":"IF('1st June'!C296=\"\",\"\",'1st June'!C296)","v":""},{"$f":"IF('1st June'!D296=\"\",\"\",'1st June'!D296)","v":""},{"$f":"IF('1st June'!E296=\"\",\"\",'1st June'!E296)","v":""},{"$f":"IF('1st June'!F296=\"\",\"\",'1st June'!F296)","v":""}]
[null,{"$f":"IF('1st June'!B297=\"\",\"\",'1st June'!B297)","v":""},{"$f":"IF('1st June'!C297=\"\",\"\",'1st June'!C297)","v":""},{"$f":"IF('1st June'!D297=\"\",\"\",'1st June'!D297)","v":""},{"$f":"IF('1st June'!E297=\"\",\"\",'1st June'!E297)","v":""},{"$f":"IF('1st June'!F297=\"\",\"\",'1st June'!F297)","v":""}]
[null,{"$f":"IF('1st June'!B298=\"\",\"\",'1st June'!B298)","v":""},{"$f":"IF('1st June'!C298=\"\",\"\",'1st June'!C298)","v":""},{"$f":"IF('1st June'!D298=\"\",\"\",'1st June'!D298)","v":""},{"$f":"IF('1st June'!E298=\"\",\"\",'1st June'!E298)","v":""},{"$f":"IF('1st June'!F298=\"\",\"\",'1st June'!F298)","v":""}]
[null,{"$f":"IF('1st June'!B299=\"\",\"\",'1st June'!B299)","v":""},{"$f":"IF('1st June'!C299=\"\",\"\",'1st June'!C299)","v":""},{"$f":"IF('1st June'!D299=\"\",\"\",'1st June'!D299)","v":""},{"$f":"IF('1st June'!E299=\"\",\"\",'1st June'!E299)","v":""},{"$f":"IF('1st June'!F299=\"\",\"\",'1st June'!F299)","v":""}]
[null,{"$f":"IF('1st June'!B300=\"\",\"\",'1st June'!B300)","v":""},{"$f":"IF('1st June'!C300=\"\",\"\",'1st June'!C300)","v":""},{"$f":"IF('1st June'!D300=\"\",\"\",'1st June'!D300)","v":""},{"$f":"IF('1st June'!E300=\"\",\"\",'1st June'!E300)","v":""},{"$f":"IF('1st June'!F300=\"\",\"\",'1st June'!F300)","v":""}]
[null,{"$f":"IF('1st June'!B301=\"\",\"\",'1st June'!B301)","v":""},{"$f":"IF('1st June'!C301=\"\",\"\",'1st June'!C301)","v":""},{"$f":"IF('1st June'!D301=\"\",\"\",'1st June'!D301)","v":""},{"$f":"IF('1st June'!E301=\"\",\"\",'1st June'!E301)","v":""},{"$f":"IF('1st June'!F301=\"\",\"\",'1st June'!F301)","v":""}]
[null,{"$f":"IF('1st June'!B302=\"\",\"\",'1st June'!B302)","v":""},{"$f":"IF('1st June'!C302=\"\",\"\",'1st June'!C302)","v":""},{"$f":"IF('1st June'!D302=\"\",\"\",'1st June'!D302)","v":""},{"$f":"IF('1st June'!E302=\"\",\"\",'1st June'!E302)","v":""},{"$f":"IF('1st June'!F302=\"\",\"\",'1st June'!F302)","v":""}]
[null,{"$f":"IF('1st June'!B303=\"\",\"\",'1st June'!B303)","v":""},{"$f":"IF('1st June'!C303=\"\",\"\",'1st June'!C303)","v":""},{"$f":"IF('1st June'!D303=\"\",\"\",'1st June'!D303)","v":""},{"$f":"IF('1st June'!E303=\"\",\"\",'1st June'!E303)","v":""},{"$f":"IF('1st June'!F303=\"\",\"\",'1st June'!F303)","v":""}]
[null,{"$f":"IF('1st June'!B304=\"\",\"\",'1st June'!B304)","v":""},{"$f":"IF('1st June'!C304=\"\",\"\",'1st June'!C304)","v":""},{"$f":"IF('1st June'!D304=\"\",\"\",'1st June'!D304)","v":""},{"$f":"IF('1st June'!E304=\"\",\"\",'1st June'!E304)","v":""},{"$f":"IF('1st June'!F304=\"\",\"\",'1st June'!F304)","v":""}]
[null,{"$f":"IF('1st June'!B305=\"\",\"\",'1st June'!B305)","v":""},{"$f":"IF('1st June'!C305=\"\",\"\",'1st June'!C305)","v":""},{"$f":"IF('1st June'!D305=\"\",\"\",'1st June'!D305)","v":""},{"$f":"IF('1st June'!E305=\"\",\"\",'1st June'!E305)","v":""},{"$f":"IF('1st June'!F305=\"\",\"\",'1st June'!F305)","v":""}]
[null,{"$f":"IF('1st June'!B306=\"\",\"\",'1st June'!B306)","v":""},{"$f":"IF('1st June'!C306=\"\",\"\",'1st June'!C306)","v":""},{"$f":"IF('1st June'!D306=\"\",\"\",'1st June'!D306)","v":""},{"$f":"IF('1st June'!E306=\"\",\"\",'1st June'!E306)","v":""},{"$f":"IF('1st June'!F306=\"\",\"\",'1st June'!F306)","v":""}]
[null,{"$f":"IF('1st June'!B307=\"\",\"\",'1st June'!B307)","v":""},{"$f":"IF('1st June'!C307=\"\",\"\",'1st June'!C307)","v":""},{"$f":"IF('1st June'!D307=\"\",\"\",'1st June'!D307)","v":""},{"$f":"IF('1st June'!E307=\"\",\"\",'1st June'!E307)","v":""},{"$f":"IF('1st June'!F307=\"\",\"\",'1st June'!F307)","v":""}]
[null,{"$f":"IF('1st June'!B308=\"\",\"\",'1st June'!B308)","v":""},{"$f":"IF('1st June'!C308=\"\",\"\",'1st June'!C308)","v":""},{"$f":"IF('1st June'!D308=\"\",\"\",'1st June'!D308)","v":""},{"$f":"IF('1st June'!E308=\"\",\"\",'1st June'!E308)","v":""},{"$f":"IF('1st June'!F308=\"\",\"\",'1st June'!F308)","v":""}]
[null,{"$f":"IF('1st June'!B309=\"\",\"\",'1st June'!B309)","v":""},{"$f":"IF('1st June'!C309=\"\",\"\",'1st June'!C309)","v":""},{"$f":"IF('1st June'!D309=\"\",\"\",'1st June'!D309)","v":""},{"$f":"IF('1st June'!E309=\"\",\"\",'1st June'!E309)","v":""},{"$f":"IF('1st June'!F309=\"\",\"\",'1st June'!F309)","v":""}]
[null,{"$f":"IF('1st June'!B310=\"\",\"\",'1st June'!B310)","v":""},{"$f":"IF('1st June'!C310=\"\",\"\",'1st June'!C310)","v":""},{"$f":"IF('1st June'!D310=\"\",\"\",'1st June'!D310)","v":""},{"$f":"IF('1st June'!E310=\"\",\"\",'1st June'!E310)","v":""},{"$f":"IF('1st June'!F310=\"\",\"\",'1st June'!F310)","v":""}]
[null,{"$f":"IF('1st June'!B311=\"\",\"\",'1st June'!B311)","v":""},{"$f":"IF('1st June'!C311=\"\",\"\",'1st June'!C311)","v":""},{"$f":"IF('1st June'!D311=\"\",\"\",'1st June'!D311)","v":""},{"$f":"IF('1st June'!E311=\"\",\"\",'1st June'!E311)","v":""},{"$f":"IF('1st June'!F311=\"\",\"\",'1st June'!F311)","v":""}]
[null,{"$f":"IF('1st June'!B312=\"\",\"\",'1st June'!B312)","v":""},{"$f":"IF('1st June'!C312=\"\",\"\",'1st June'!C312)","v":""},{"$f":"IF('1st June'!D312=\"\",\"\",'1st June'!D312)","v":""},{"$f":"IF('1st June'!E312=\"\",\"\",'1st June'!E312)","v":""},{"$f":"IF('1st June'!F312=\"\",\"\",'1st June'!F312)","v":""}]
[null,{"$f":"IF('1st June'!B313=\"\",\"\",'1st June'!B313)","v":""},{"$f":"IF('1st June'!C313=\"\",\"\",'1st June'!C313)","v":""},{"$f":"IF('1st June'!D313=\"\",\"\",'1st June'!D313)","v":""},{"$f":"IF('1st June'!E313=\"\",\"\",'1st June'!E313)","v":""},{"$f":"IF('1st June'!F313=\"\",\"\",'1st June'!F313)","v":""}]
[null,{"$f":"IF('1st June'!B314=\"\",\"\",'1st June'!B314)","v":""},{"$f":"IF('1st June'!C314=\"\",\"\",'1st June'!C314)","v":""},{"$f":"IF('1st June'!D314=\"\",\"\",'1st June'!D314)","v":""},{"$f":"IF('1st June'!E314=\"\",\"\",'1st June'!E314)","v":""},{"$f":"IF('1st June'!F314=\"\",\"\",'1st June'!F314)","v":""}]
[null,{"$f":"IF('1st June'!B315=\"\",\"\",'1st June'!B315)","v":""},{"$f":"IF('1st June'!C315=\"\",\"\",'1st June'!C315)","v":""},{"$f":"IF('1st June'!D315=\"\",\"\",'1st June'!D315)","v":""},{"$f":"IF('1st June'!E315=\"\",\"\",'1st June'!E315)","v":""},{"$f":"IF('1st June'!F315=\"\",\"\",'1st June'!F315)","v":""}]
[null,{"$f":"IF('1st June'!B316=\"\",\"\",'1st June'!B316)","v":""},{"$f":"IF('1st June'!C316=\"\",\"\",'1st June'!C316)","v":""},{"$f":"IF('1st June'!D316=\"\",\"\",'1st June'!D316)","v":""},{"$f":"IF('1st June'!E316=\"\",\"\",'1st June'!E316)","v":""},{"$f":"IF('1st June'!F316=\"\",\"\",'1st June'!F316)","v":""}]
[null,{"$f":"IF('1st June'!B317=\"\",\"\",'1st June'!B317)","v":""},{"$f":"IF('1st June'!C317=\"\",\"\",'1st June'!C317)","v":""},{"$f":"IF('1st June'!D317=\"\",\"\",'1st June'!D317)","v":""},{"$f":"IF('1st June'!E317=\"\",\"\",'1st June'!E317)","v":""},{"$f":"IF('1st June'!F317=\"\",\"\",'1st June'!F317)","v":""}]
[null,{"$f":"IF('1st June'!B318=\"\",\"\",'1st June'!B318)","v":""},{"$f":"IF('1st June'!C318=\"\",\"\",'1st June'!C318)","v":""},{"$f":"IF('1st June'!D318=\"\",\"\",'1st June'!D318)","v":""},{"$f":"IF('1st June'!E318=\"\",\"\",'1st June'!E318)","v":""},{"$f":"IF('1st June'!F318=\"\",\"\",'1st June'!F318)","v":""}]
[null,{"$f":"IF('1st June'!B319=\"\",\"\",'1st June'!B319)","v":""},{"$f":"IF('1st June'!C319=\"\",\"\",'1st June'!C319)","v":""},{"$f":"IF('1st June'!D319=\"\",\"\",'1st June'!D319)","v":""},{"$f":"IF('1st June'!E319=\"\",\"\",'1st June'!E319)","v":""},{"$f":"IF('1st June'!F319=\"\",\"\",'1st June'!F319)","v":""}]
[null,{"$f":"IF('1st June'!B320=\"\",\"\",'1st June'!B320)","v":""},{"$f":"IF('1st June'!C320=\"\",\"\",'1st June'!C320)","v":""},{"$f":"IF('1st June'!D320=\"\",\"\",'1st June'!D320)","v":""},{"$f":"IF('1st June'!E320=\"\",\"\",'1st June'!E320)","v":""},{"$f":"IF('1st June'!F320=\"\",\"\",'1st June'!F320)","v":""}]
[null,{"$f":"IF('1st June'!B321=\"\",\"\",'1st June'!B321)","v":""},{"$f":"IF('1st June'!C321=\"\",\"\",'1st June'!C321)","v":""},{"$f":"IF('1st June'!D321=\"\",\"\",'1st June'!D321)","v":""},{"$f":"IF('1st June'!E321=\"\",\"\",'1st June'!E321)","v":""},{"$f":"IF('1st June'!F321=\"\",\"\",'1st June'!F321)","v":""}]
[null,{"$f":"IF('1st June'!B322=\"\",\"\",'1st June'!B322)","v":""},{"$f":"IF('1st June'!C322=\"\",\"\",'1st June'!C322)","v":""},{"$f":"IF('1st June'!D322=\"\",\"\",'1st June'!D322)","v":""},{"$f":"IF('1st June'!E322=\"\",\"\",'1st June'!E322)","v":""},{"$f":"IF('1st June'!F322=\"\",\"\",'1st June'!F322)","v":""}]
[null,{"$f":"IF('1st June'!B323=\"\",\"\",'1st June'!B323)","v":""},{"$f":"IF('1st June'!C323=\"\",\"\",'1st June'!C323)","v":""},{"$f":"IF('1st June'!D323=\"\",\"\",'1st June'!D323)","v":""},{"$f":"IF('1st June'!E323=\"\",\"\",'1st June'!E323)","v":""},{"$f":"IF('1st June'!F323=\"\",\"\",'1st June'!F323)","v":""}]
[null,{"$f":"IF('1st June'!B324=\"\",\"\",'1st June'!B324)","v":""},{"$f":"IF('1st June'!C324=\"\",\"\",'1st June'!C324)","v":""},{"$f":"IF('1st June'!D324=\"\",\"\",'1st June'!D324)","v":""},{"$f":"IF('1st June'!E324=\"\",\"\",'1st June'!E324)","v":""},{"$f":"IF('1st June'!F324=\"\",\"\",'1st June'!F324)","v":""}]
[null,{"$f":"IF('1st June'!B325=\"\",\"\",'1st June'!B325)","v":""},{"$f":"IF('1st June'!C325=\"\",\"\",'1st June'!C325)","v":""},{"$f":"IF('1st June'!D325=\"\",\"\",'1st June'!D325)","v":""},{"$f":"IF('1st June'!E325=\"\",\"\",'1st June'!E325)","v":""},{"$f":"IF('1st June'!F325=\"\",\"\",'1st June'!F325)","v":""}]
[null,{"$f":"IF('1st June'!B326=\"\",\"\",'1st June'!B326)","v":""},{"$f":"IF('1st June'!C326=\"\",\"\",'1st June'!C326)","v":""},{"$f":"IF('1st June'!D326=\"\",\"\",'1st June'!D326)","v":""},{"$f":"IF('1st June'!E326=\"\",\"\",'1st June'!E326)","v":""},{"$f":"IF('1st June'!F326=\"\",\"\",'1st June'!F326)","v":""}]
[null,{"$f":"IF('1st June'!B327=\"\",\"\",'1st June'!B327)","v":""},{"$f":"IF('1st June'!C327=\"\",\"\",'1st June'!C327)","v":""},{"$f":"IF('1st June'!D327=\"\",\"\",'1st June'!D327)","v":""},{"$f":"IF('1st June'!E327=\"\",\"\",'1st June'!E327)","v":""},{"$f":"IF('1st June'!F327=\"\",\"\",'1st June'!F327)","v":""}]
[null,{"$f":"IF('1st June'!B328=\"\",\"\",'1st June'!B328)","v":""},{"$f":"IF('1st June'!C328=\"\",\"\",'1st June'!C328)","v":""},{"$f":"IF('1st June'!D328=\"\",\"\",'1st June'!D328)","v":""},{"$f":"IF('1st June'!E328=\"\",\"\",'1st June'!E328)","v":""},{"$f":"IF('1st June'!F328=\"\",\"\",'1st June'!F328)","v":""}]
[null,{"$f":"IF('1st June'!B329=\"\",\"\",'1st June'!B329)","v":""},{"$f":"IF('1st June'!C329=\"\",\"\",'1st June'!C329)","v":""},{"$f":"IF('1st June'!D329=\"\",\"\",'1st June'!D329)","v":""},{"$f":"IF('1st June'!E329=\"\",\"\",'1st June'!E329)","v":""},{"$f":"IF('1st June'!F329=\"\",\"\",'1st June'!F329)","v":""}]
[null,{"$f":"IF('1st June'!B330=\"\",\"\",'1st June'!B330)","v":""},{"$f":"IF('1st June'!C330=\"\",\"\",'1st June'!C330)","v":""},{"$f":"IF('1st June'!D330=\"\",\"\",'1st June'!D330)","v":""},{"$f":"IF('1st June'!E330=\"\",\"\",'1st June'!E330)","v":""},{"$f":"IF('1st June'!F330=\"\",\"\",'1st June'!F330)","v":""}]
[null,{"$f":"IF('1st June'!B331=\"\",\"\",'1st June'!B331)","v":""},{"$f":"IF('1st June'!C331=\"\",\"\",'1st June'!C331)","v":""},{"$f":"IF('1st June'!D331=\"\",\"\",'1st June'!D331)","v":""},{"$f":"IF('1st June'!E331=\"\",\"\",'1st June'!E331)","v":""},{"$f":"IF('1st June'!F331=\"\",\"\",'1st June'!F331)","v":""}]
[null,{"$f":"IF('1st June'!B332=\"\",\"\",'1st June'!B332)","v":""},{"$f":"IF('1st June'!C332=\"\",\"\",'1st June'!C332)","v":""},{"$f":"IF('1st June'!D332=\"\",\"\",'1st June'!D332)","v":""},{"$f":"IF('1st June'!E332=\"\",\"\",'1st June'!E332)","v":""},{"$f":"IF('1st June'!F332=\"\",\"\",'1st June'!F332)","v":""}]
[null,{"$f":"IF('1st June'!B333=\"\",\"\",'1st June'!B333)","v":""},{"$f":"IF('1st June'!C333=\"\",\"\",'1st June'!C333)","v":""},{"$f":"IF('1st June'!D333=\"\",\"\",'1st June'!D333)","v":""},{"$f":"IF('1st June'!E333=\"\",\"\",'1st June'!E333)","v":""},{"$f":"IF('1st June'!F333=\"\",\"\",'1st June'!F333)","v":""}]
[null,{"$f":"IF('1st June'!B334=\"\",\"\",'1st June'!B334)","v":""},{"$f":"IF('1st June'!C334=\"\",\"\",'1st June'!C334)","v":""},{"$f":"IF('1st June'!D334=\"\",\"\",'1st June'!D334)","v":""},{"$f":"IF('1st June'!E334=\"\",\"\",'1st June'!E334)","v":""},{"$f":"IF('1st June'!F334=\"\",\"\",'1st June'!F334)","v":""}]
[null,{"$f":"IF('1st June'!B335=\"\",\"\",'1st June'!B335)","v":""},{"$f":"IF('1st June'!C335=\"\",\"\",'1st June'!C335)","v":""},{"$f":"IF('1st June'!D335=\"\",\"\",'1st June'!D335)","v":""},{"$f":"IF('1st June'!E335=\"\",\"\",'1st June'!E335)","v":""},{"$f":"IF('1st June'!F335=\"\",\"\",'1st June'!F335)","v":""}]
[null,{"$f":"IF('1st June'!B336=\"\",\"\",'1st June'!B336)","v":""},{"$f":"IF('1st June'!C336=\"\",\"\",'1st June'!C336)","v":""},{"$f":"IF('1st June'!D336=\"\",\"\",'1st June'!D336)","v":""},{"$f":"IF('1st June'!E336=\"\",\"\",'1st June'!E336)","v":""},{"$f":"IF('1st June'!F336=\"\",\"\",'1st June'!F336)","v":""}]
[null,{"$f":"IF('1st June'!B337=\"\",\"\",'1st June'!B337)","v":""},{"$f":"IF('1st June'!C337=\"\",\"\",'1st June'!C337)","v":""},{"$f":"IF('1st June'!D337=\"\",\"\",'1st June'!D337)","v":""},{"$f":"IF('1st June'!E337=\"\",\"\",'1st June'!E337)","v":""},{"$f":"IF('1st June'!F337=\"\",\"\",'1st June'!F337)","v":""}]
[null,{"$f":"IF('1st June'!B338=\"\",\"\",'1st June'!B338)","v":""},{"$f":"IF('1st June'!C338=\"\",\"\",'1st June'!C338)","v":""},{"$f":"IF('1st June'!D338=\"\",\"\",'1st June'!D338)","v":""},{"$f":"IF('1st June'!E338=\"\",\"\",'1st June'!E338)","v":""},{"$f":"IF('1st June'!F338=\"\",\"\",'1st June'!F338)","v":""}]
[null,{"$f":"IF('1st June'!B339=\"\",\"\",'1st June'!B339)","v":""},{"$f":"IF('1st June'!C339=\"\",\"\",'1st June'!C339)","v":""},{"$f":"IF('1st June'!D339=\"\",\"\",'1st June'!D339)","v":""},{"$f":"IF('1st June'!E339=\"\",\"\",'1st June'!E339)","v":""},{"$f":"IF('1st June'!F339=\"\",\"\",'1st June'!F339)","v":""}]
[null,{"$f":"IF('1st June'!B340=\"\",\"\",'1st June'!B340)","v":""},{"$f":"IF('1st June'!C340=\"\",\"\",'1st June'!C340)","v":""},{"$f":"IF('1st June'!D340=\"\",\"\",'1st June'!D340)","v":""},{"$f":"IF('1st June'!E340=\"\",\"\",'1st June'!E340)","v":""},{"$f":"IF('1st June'!F340=\"\",\"\",'1st June'!F340)","v":""}]
[null,{"$f":"IF('1st June'!B341=\"\",\"\",'1st June'!B341)","v":""},{"$f":"IF('1st June'!C341=\"\",\"\",'1st June'!C341)","v":""},{"$f":"IF('1st June'!D341=\"\",\"\",'1st June'!D341)","v":""},{"$f":"IF('1st June'!E341=\"\",\"\",'1st June'!E341)","v":""},{"$f":"IF('1st June'!F341=\"\",\"\",'1st June'!F341)","v":""}]
[null,{"$f":"IF('1st June'!B342=\"\",\"\",'1st June'!B342)","v":""},{"$f":"IF('1st June'!C342=\"\",\"\",'1st June'!C342)","v":""},{"$f":"IF('1st June'!D342=\"\",\"\",'1st June'!D342)","v":""},{"$f":"IF('1st June'!E342=\"\",\"\",'1st June'!E342)","v":""},{"$f":"IF('1st June'!F342=\"\",\"\",'1st June'!F342)","v":""}]
[null,{"$f":"IF('1st June'!B343=\"\",\"\",'1st June'!B343)","v":""},{"$f":"IF('1st June'!C343=\"\",\"\",'1st June'!C343)","v":""},{"$f":"IF('1st June'!D343=\"\",\"\",'1st June'!D343)","v":""},{"$f":"IF('1st June'!E343=\"\",\"\",'1st June'!E343)","v":""},{"$f":"IF('1st June'!F343=\"\",\"\",'1st June'!F343)","v":""}]
[null,{"$f":"IF('1st June'!B344=\"\",\"\",'1st June'!B344)","v":""},{"$f":"IF('1st June'!C344=\"\",\"\",'1st June'!C344)","v":""},{"$f":"IF('1st June'!D344=\"\",\"\",'1st June'!D344)","v":""},{"$f":"IF('1st June'!E344=\"\",\"\",'1st June'!E344)","v":""},{"$f":"IF('1st June'!F344=\"\",\"\",'1st June'!F344)","v":""}]
[null,{"$f":"IF('1st June'!B345=\"\",\"\",'1st June'!B345)","v":""},{"$f":"IF('1st June'!C345=\"\",\"\",'1st June'!C345)","v":""},{"$f":"IF('1st June'!D345=\"\",\"\",'1st June'!D345)","v":""},{"$f":"IF('1st June'!E345=\"\",\"\",'1st June'!E345)","v":""},{"$f":"IF('1st June'!F345=\"\",\"\",'1st June'!F345)","v":""}]
[null,{"$f":"IF('1st June'!B346=\"\",\"\",'1st June'!B346)","v":""},{"$f":"IF('1st June'!C346=\"\",\"\",'1st June'!C346)","v":""},{"$f":"IF('1st June'!D346=\"\",\"\",'1st June'!D346)","v":""},{"$f":"IF('1st June'!E346=\"\",\"\",'1st June'!E346)","v":""},{"$f":"IF('1st June'!F346=\"\",\"\",'1st June'!F346)","v":""}]
[null,{"$f":"IF('1st June'!B347=\"\",\"\",'1st June'!B347)","v":""},{"$f":"IF('1st June'!C347=\"\",\"\",'1st June'!C347)","v":""},{"$f":"IF('1st June'!D347=\"\",\"\",'1st June'!D347)","v":""},{"$f":"IF('1st June'!E347=\"\",\"\",'1st June'!E347)","v":""},{"$f":"IF('1st June'!F347=\"\",\"\",'1st June'!F347)","v":""}]
[null,{"$f":"IF('1st June'!B348=\"\",\"\",'1st June'!B348)","v":""},{"$f":"IF('1st June'!C348=\"\",\"\",'1st June'!C348)","v":""},{"$f":"IF('1st June'!D348=\"\",\"\",'1st June'!D348)","v":""},{"$f":"IF('1st June'!E348=\"\",\"\",'1st June'!E348)","v":""},{"$f":"IF('1st June'!F348=\"\",\"\",'1st June'!F348)","v":""}]
[null,{"$f":"IF('1st June'!B349=\"\",\"\",'1st June'!B349)","v":""},{"$f":"IF('1st June'!C349=\"\",\"\",'1st June'!C349)","v":""},{"$f":"IF('1st June'!D349=\"\",\"\",'1st June'!D349)","v":""},{"$f":"IF('1st June'!E349=\"\",\"\",'1st June'!E349)","v":""},{"$f":"IF('1st June'!F349=\"\",\"\",'1st June'!F349)","v":""}]
[null,{"$f":"IF('1st June'!B350=\"\",\"\",'1st June'!B350)","v":""},{"$f":"IF('1st June'!C350=\"\",\"\",'1st June'!C350)","v":""},{"$f":"IF('1st June'!D350=\"\",\"\",'1st June'!D350)","v":""},{"$f":"IF('1st June'!E350=\"\",\"\",'1st June'!E350)","v":""},{"$f":"IF('1st June'!F350=\"\",\"\",'1st June'!F350)","v":""}]
[null,{"$f":"IF('1st June'!B351=\"\",\"\",'1st June'!B351)","v":""},{"$f":"IF('1st June'!C351=\"\",\"\",'1st June'!C351)","v":""},{"$f":"IF('1st June'!D351=\"\",\"\",'1st June'!D351)","v":""},{"$f":"IF('1st June'!E351=\"\",\"\",'1st June'!E351)","v":""},{"$f":"IF('1st June'!F351=\"\",\"\",'1st June'!F351)","v":""}]
[null,{"$f":"IF('1st June'!B352=\"\",\"\",'1st June'!B352)","v":""},{"$f":"IF('1st June'!C352=\"\",\"\",'1st June'!C352)","v":""},{"$f":"IF('1st June'!D352=\"\",\"\",'1st June'!D352)","v":""},{"$f":"IF('1st June'!E352=\"\",\"\",'1st June'!E352)","v":""},{"$f":"IF('1st June'!F352=\"\",\"\",'1st June'!F352)","v":""}]
[null,{"$f":"IF('1st June'!B353=\"\",\"\",'1st June'!B353)","v":""},{"$f":"IF('1st June'!C353=\"\",\"\",'1st June'!C353)","v":""},{"$f":"IF('1st June'!D353=\"\",\"\",'1st June'!D353)","v":""},{"$f":"IF('1st June'!E353=\"\",\"\",'1st June'!E353)","v":""},{"$f":"IF('1st June'!F353=\"\",\"\",'1st June'!F353)","v":""}]
[null,{"$f":"IF('1st June'!B354=\"\",\"\",'1st June'!B354)","v":""},{"$f":"IF('1st June'!C354=\"\",\"\",'1st June'!C354)","v":""},{"$f":"IF('1st June'!D354=\"\",\"\",'1st June'!D354)","v":""},{"$f":"IF('1st June'!E354=\"\",\"\",'1st June'!E354)","v":""},{"$f":"IF('1st June'!F354=\"\",\"\",'1st June'!F354)","v":""}]
[null,{"$f":"IF('1st June'!B355=\"\",\"\",'1st June'!B355)","v":""},{"$f":"IF('1st June'!C355=\"\",\"\",'1st June'!C355)","v":""},{"$f":"IF('1st June'!D355=\"\",\"\",'1st June'!D355)","v":""},{"$f":"IF('1st June'!E355=\"\",\"\",'1st June'!E355)","v":""},{"$f":"IF('1st June'!F355=\"\",\"\",'1st June'!F355)","v":""}]
[null,{"$f":"IF('1st June'!B356=\"\",\"\",'1st June'!B356)","v":""},{"$f":"IF('1st June'!C356=\"\",\"\",'1st June'!C356)","v":""},{"$f":"IF('1st June'!D356=\"\",\"\",'1st June'!D356)","v":""},{"$f":"IF('1st June'!E356=\"\",\"\",'1st June'!E356)","v":""},{"$f":"IF('1st June'!F356=\"\",\"\",'1st June'!F356)","v":""}]
[null,{"$f":"IF('1st June'!B357=\"\",\"\",'1st June'!B357)","v":""},{"$f":"IF('1st June'!C357=\"\",\"\",'1st June'!C357)","v":""},{"$f":"IF('1st June'!D357=\"\",\"\",'1st June'!D357)","v":""},{"$f":"IF('1st June'!E357=\"\",\"\",'1st June'!E357)","v":""},{"$f":"IF('1st June'!F357=\"\",\"\",'1st June'!F357)","v":""}]
[null,{"$f":"IF('1st June'!B358=\"\",\"\",'1st June'!B358)","v":""},{"$f":"IF('1st June'!C358=\"\",\"\",'1st June'!C358)","v":""},{"$f":"IF('1st June'!D358=\"\",\"\",'1st June'!D358)","v":""},{"$f":"IF('1st June'!E358=\"\",\"\",'1st June'!E358)","v":""},{"$f":"IF('1st June'!F358=\"\",\"\",'1st June'!F358)","v":""}]
[null,{"$f":"IF('1st June'!B359=\"\",\"\",'1st June'!B359)","v":""},{"$f":"IF('1st June'!C359=\"\",\"\",'1st June'!C359)","v":""},{"$f":"IF('1st June'!D359=\"\",\"\",'1st June'!D359)","v":""},{"$f":"IF('1st June'!E359=\"\",\"\",'1st June'!E359)","v":""},{"$f":"IF('1st June'!F359=\"\",\"\",'1st June'!F359)","v":""}]
[null,{"$f":"IF('1st June'!B360=\"\",\"\",'1st June'!B360)","v":""},{"$f":"IF('1st June'!C360=\"\",\"\",'1st June'!C360)","v":""},{"$f":"IF('1st June'!D360=\"\",\"\",'1st June'!D360)","v":""},{"$f":"IF('1st June'!E360=\"\",\"\",'1st June'!E360)","v":""},{"$f":"IF('1st June'!F360=\"\",\"\",'1st June'!F360)","v":""}]
[null,{"$f":"IF('1st June'!B361=\"\",\"\",'1st June'!B361)","v":""},{"$f":"IF('1st June'!C361=\"\",\"\",'1st June'!C361)","v":""},{"$f":"IF('1st June'!D361=\"\",\"\",'1st June'!D361)","v":""},{"$f":"IF('1st June'!E361=\"\",\"\",'1st June'!E361)","v":""},{"$f":"IF('1st June'!F361=\"\",\"\",'1st June'!F361)","v":""}]
[null,{"$f":"IF('1st June'!B362=\"\",\"\",'1st June'!B362)","v":""},{"$f":"IF('1st June'!C362=\"\",\"\",'1st June'!C362)","v":""},{"$f":"IF('1st June'!D362=\"\",\"\",'1st June'!D362)","v":""},{"$f":"IF('1st June'!E362=\"\",\"\",'1st June'!E362)","v":""},{"$f":"IF('1st June'!F362=\"\",\"\",'1st June'!F362)","v":""}]
[null,{"$f":"IF('1st June'!B363=\"\",\"\",'1st June'!B363)","v":""},{"$f":"IF('1st June'!C363=\"\",\"\",'1st June'!C363)","v":""},{"$f":"IF('1st June'!D363=\"\",\"\",'1st June'!D363)","v":""},{"$f":"IF('1st June'!E363=\"\",\"\",'1st June'!E363)","v":""},{"$f":"IF('1st June'!F363=\"\",\"\",'1st June'!F363)","v":""}]
[null,{"$f":"IF('1st June'!B364=\"\",\"\",'1st June'!B364)","v":""},{"$f":"IF('1st June'!C364=\"\",\"\",'1st June'!C364)","v":""},{"$f":"IF('1st June'!D364=\"\",\"\",'1st June'!D364)","v":""},{"$f":"IF('1st June'!E364=\"\",\"\",'1st June'!E364)","v":""},{"$f":"IF('1st June'!F364=\"\",\"\",'1st June'!F364)","v":""}]
[null,{"$f":"IF('1st June'!B365=\"\",\"\",'1st June'!B365)","v":""},{"$f":"IF('1st June'!C365=\"\",\"\",'1st June'!C365)","v":""},{"$f":"IF('1st June'!D365=\"\",\"\",'1st June'!D365)","v":""},{"$f":"IF('1st June'!E365=\"\",\"\",'1st June'!E365)","v":""},{"$f":"IF('1st June'!F365=\"\",\"\",'1st June'!F365)","v":""}]
[null,{"$f":"IF('1st June'!B366=\"\",\"\",'1st June'!B366)","v":""},{"$f":"IF('1st June'!C366=\"\",\"\",'1st June'!C366)","v":""},{"$f":"IF('1st June'!D366=\"\",\"\",'1st June'!D366)","v":""},{"$f":"IF('1st June'!E366=\"\",\"\",'1st June'!E366)","v":""},{"$f":"IF('1st June'!F366=\"\",\"\",'1st June'!F366)","v":""}]
[null,{"$f":"IF('1st June'!B367=\"\",\"\",'1st June'!B367)","v":""},{"$f":"IF('1st June'!C367=\"\",\"\",'1st June'!C367)","v":""},{"$f":"IF('1st June'!D367=\"\",\"\",'1st June'!D367)","v":""},{"$f":"IF('1st June'!E367=\"\",\"\",'1st June'!E367)","v":""},{"$f":"IF('1st June'!F367=\"\",\"\",'1st June'!F367)","v":""}]
[null,{"$f":"IF('1st June'!B368=\"\",\"\",'1st June'!B368)","v":""},{"$f":"IF('1st June'!C368=\"\",\"\",'1st June'!C368)","v":""},{"$f":"IF('1st June'!D368=\"\",\"\",'1st June'!D368)","v":""},{"$f":"IF('1st June'!E368=\"\",\"\",'1st June'!E368)","v":""},{"$f":"IF('1st June'!F368=\"\",\"\",'1st June'!F368)","v":""}]
[null,{"$f":"IF('1st June'!B369=\"\",\"\",'1st June'!B369)","v":""},{"$f":"IF('1st June'!C369=\"\",\"\",'1st June'!C369)","v":""},{"$f":"IF('1st June'!D369=\"\",\"\",'1st June'!D369)","v":""},{"$f":"IF('1st June'!E369=\"\",\"\",'1st June'!E369)","v":""},{"$f":"IF('1st June'!F369=\"\",\"\",'1st June'!F369)","v":""}]
[null,{"$f":"IF('1st June'!B370=\"\",\"\",'1st June'!B370)","v":""},{"$f":"IF('1st June'!C370=\"\",\"\",'1st June'!C370)","v":""},{"$f":"IF('1st June'!D370=\"\",\"\",'1st June'!D370)","v":""},{"$f":"IF('1st June'!E370=\"\",\"\",'1st June'!E370)","v":""},{"$f":"IF('1st June'!F370=\"\",\"\",'1st June'!F370)","v":""}]
[null,{"$f":"IF('1st June'!B371=\"\",\"\",'1st June'!B371)","v":""},{"$f":"IF('1st June'!C371=\"\",\"\",'1st June'!C371)","v":""},{"$f":"IF('1st June'!D371=\"\",\"\",'1st June'!D371)","v":""},{"$f":"IF('1st June'!E371=\"\",\"\",'1st June'!E371)","v":""},{"$f":"IF('1st June'!F371=\"\",\"\",'1st June'!F371)","v":""}]
[null,{"$f":"IF('1st June'!B372=\"\",\"\",'1st June'!B372)","v":""},{"$f":"IF('1st June'!C372=\"\",\"\",'1st June'!C372)","v":""},{"$f":"IF('1st June'!D372=\"\",\"\",'1st June'!D372)","v":""},{"$f":"IF('1st June'!E372=\"\",\"\",'1st June'!E372)","v":""},{"$f":"IF('1st June'!F372=\"\",\"\",'1st June'!F372)","v":""}]
[null,{"$f":"IF('1st June'!B373=\"\",\"\",'1st June'!B373)","v":""},{"$f":"IF('1st June'!C373=\"\",\"\",'1st June'!C373)","v":""},{"$f":"IF('1st June'!D373=\"\",\"\",'1st June'!D373)","v":""},{"$f":"IF('1st June'!E373=\"\",\"\",'1st June'!E373)","v":""},{"$f":"IF('1st June'!F373=\"\",\"\",'1st June'!F373)","v":""}]
[null,{"$f":"IF('1st June'!B374=\"\",\"\",'1st June'!B374)","v":""},{"$f":"IF('1st June'!C374=\"\",\"\",'1st June'!C374)","v":""},{"$f":"IF('1st June'!D374=\"\",\"\",'1st June'!D374)","v":""},{"$f":"IF('1st June'!E374=\"\",\"\",'1st June'!E374)","v":""},{"$f":"IF('1st June'!F374=\"\",\"\",'1st June'!F374)","v":""}]
[null,{"$f":"IF('1st June'!B375=\"\",\"\",'1st June'!B375)","v":""},{"$f":"IF('1st June'!C375=\"\",\"\",'1st June'!C375)","v":""},{"$f":"IF('1st June'!D375=\"\",\"\",'1st June'!D375)","v":""},{"$f":"IF('1st June'!E375=\"\",\"\",'1st June'!E375)","v":""},{"$f":"IF('1st June'!F375=\"\",\"\",'1st June'!F375)","v":""}]
[null,{"$f":"IF('1st June'!B376=\"\",\"\",'1st June'!B376)","v":""},{"$f":"IF('1st June'!C376=\"\",\"\",'1st June'!C376)","v":""},{"$f":"IF('1st June'!D376=\"\",\"\",'1st June'!D376)","v":""},{"$f":"IF('1st June'!E376=\"\",\"\",'1st June'!E376)","v":""},{"$f":"IF('1st June'!F376=\"\",\"\",'1st June'!F376)","v":""}]
[null,{"$f":"IF('1st June'!B377=\"\",\"\",'1st June'!B377)","v":""},{"$f":"IF('1st June'!C377=\"\",\"\",'1st June'!C377)","v":""},{"$f":"IF('1st June'!D377=\"\",\"\",'1st June'!D377)","v":""},{"$f":"IF('1st June'!E377=\"\",\"\",'1st June'!E377)","v":""},{"$f":"IF('1st June'!F377=\"\",\"\",'1st June'!F377)","v":""}]
[null,{"$f":"IF('1st June'!B378=\"\",\"\",'1st June'!B378)","v":""},{"$f":"IF('1st June'!C378=\"\",\"\",'1st June'!C378)","v":""},{"$f":"IF('1st June'!D378=\"\",\"\",'1st June'!D378)","v":""},{"$f":"IF('1st June'!E378=\"\",\"\",'1st June'!E378)","v":""},{"$f":"IF('1st June'!F378=\"\",\"\",'1st June'!F378)","v":""}]
[null,{"$f":"IF('1st June'!B379=\"\",\"\",'1st June'!B379)","v":""},{"$f":"IF('1st June'!C379=\"\",\"\",'1st June'!C379)","v":""},{"$f":"IF('1st June'!D379=\"\",\"\",'1st June'!D379)","v":""},{"$f":"IF('1st June'!E379=\"\",\"\",'1st June'!E379)","v":""},{"$f":"IF('1st June'!F379=\"\",\"\",'1st June'!F379)","v":""}]
[null,{"$f":"IF('1st June'!B380=\"\",\"\",'1st June'!B380)","v":""},{"$f":"IF('1st June'!C380=\"\",\"\",'1st June'!C380)","v":""},{"$f":"IF('1st June'!D380=\"\",\"\",'1st June'!D380)","v":""},{"$f":"IF('1st June'!E380=\"\",\"\",'1st June'!E380)","v":""},{"$f":"IF('1st June'!F380=\"\",\"\",'1st June'!F380)","v":""}]
[null,{"$f":"IF('1st June'!B381=\"\",\"\",'1st June'!B381)","v":""},{"$f":"IF('1st June'!C381=\"\",\"\",'1st June'!C381)","v":""},{"$f":"IF('1st June'!D381=\"\",\"\",'1st June'!D381)","v":""},{"$f":"IF('1st June'!E381=\"\",\"\",'1st June'!E381)","v":""},{"$f":"IF('1st June'!F381=\"\",\"\",'1st June'!F381)","v":""}]
[null,{"$f":"IF('1st June'!B382=\"\",\"\",'1st June'!B382)","v":""},{"$f":"IF('1st June'!C382=\"\",\"\",'1st June'!C382)","v":""},{"$f":"IF('1st June'!D382=\"\",\"\",'1st June'!D382)","v":""},{"$f":"IF('1st June'!E382=\"\",\"\",'1st June'!E382)","v":""},{"$f":"IF('1st June'!F382=\"\",\"\",'1st June'!F382)","v":""}]
[null,{"$f":"IF('1st June'!B383=\"\",\"\",'1st June'!B383)","v":""},{"$f":"IF('1st June'!C383=\"\",\"\",'1st June'!C383)","v":""},{"$f":"IF('1st June'!D383=\"\",\"\",'1st June'!D383)","v":""},{"$f":"IF('1st June'!E383=\"\",\"\",'1st June'!E383)","v":""},{"$f":"IF('1st June'!F383=\"\",\"\",'1st June'!F383)","v":""}]
[null,{"$f":"IF('1st June'!B384=\"\",\"\",'1st June'!B384)","v":""},{"$f":"IF('1st June'!C384=\"\",\"\",'1st June'!C384)","v":""},{"$f":"IF('1st June'!D384=\"\",\"\",'1st June'!D384)","v":""},{"$f":"IF('1st June'!E384=\"\",\"\",'1st June'!E384)","v":""},{"$f":"IF('1st June'!F384=\"\",\"\",'1st June'!F384)","v":""}]
[null,{"$f":"IF('1st June'!B385=\"\",\"\",'1st June'!B385)","v":""},{"$f":"IF('1st June'!C385=\"\",\"\",'1st June'!C385)","v":""},{"$f":"IF('1st June'!D385=\"\",\"\",'1st June'!D385)","v":""},{"$f":"IF('1st June'!E385=\"\",\"\",'1st June'!E385)","v":""},{"$f":"IF('1st June'!F385=\"\",\"\",'1st June'!F385)","v":""}]
[null,{"$f":"IF('1st June'!B386=\"\",\"\",'1st June'!B386)","v":""},{"$f":"IF('1st June'!C386=\"\",\"\",'1st June'!C386)","v":""},{"$f":"IF('1st June'!D386=\"\",\"\",'1st June'!D386)","v":""},{"$f":"IF('1st June'!E386=\"\",\"\",'1st June'!E386)","v":""},{"$f":"IF('1st June'!F386=\"\",\"\",'1st June'!F386)","v":""}]
[null,{"$f":"IF('1st June'!B387=\"\",\"\",'1st June'!B387)","v":""},{"$f":"IF('1st June'!C387=\"\",\"\",'1st June'!C387)","v":""},{"$f":"IF('1st June'!D387=\"\",\"\",'1st June'!D387)","v":""},{"$f":"IF('1st June'!E387=\"\",\"\",'1st June'!E387)","v":""},{"$f":"IF('1st June'!F387=\"\",\"\",'1st June'!F387)","v":""}]
[null,{"$f":"IF('1st June'!B388=\"\",\"\",'1st June'!B388)","v":""},{"$f":"IF('1st June'!C388=\"\",\"\",'1st June'!C388)","v":""},{"$f":"IF('1st June'!D388=\"\",\"\",'1st June'!D388)","v":""},{"$f":"IF('1st June'!E388=\"\",\"\",'1st June'!E388)","v":""},{"$f":"IF('1st June'!F388=\"\",\"\",'1st June'!F388)","v":""}]
[null,{"$f":"IF('1st June'!B389=\"\",\"\",'1st June'!B389)","v":""},{"$f":"IF('1st June'!C389=\"\",\"\",'1st June'!C389)","v":""},{"$f":"IF('1st June'!D389=\"\",\"\",'1st June'!D389)","v":""},{"$f":"IF('1st June'!E389=\"\",\"\",'1st June'!E389)","v":""},{"$f":"IF('1st June'!F389=\"\",\"\",'1st June'!F389)","v":""}]
[null,{"$f":"IF('1st June'!B390=\"\",\"\",'1st June'!B390)","v":""},{"$f":"IF('1st June'!C390=\"\",\"\",'1st June'!C390)","v":""},{"$f":"IF('1st June'!D390=\"\",\"\",'1st June'!D390)","v":""},{"$f":"IF('1st June'!E390=\"\",\"\",'1st June'!E390)","v":""},{"$f":"IF('1st June'!F390=\"\",\"\",'1st June'!F390)","v":""}]
[null,{"$f":"IF('1st June'!B391=\"\",\"\",'1st June'!B391)","v":""},{"$f":"IF('1st June'!C391=\"\",\"\",'1st June'!C391)","v":""},{"$f":"IF('1st June'!D391=\"\",\"\",'1st June'!D391)","v":""},{"$f":"IF('1st June'!E391=\"\",\"\",'1st June'!E391)","v":""},{"$f":"IF('1st June'!F391=\"\",\"\",'1st June'!F391)","v":""}]
[null,{"$f":"IF('1st June'!B392=\"\",\"\",'1st June'!B392)","v":""},{"$f":"IF('1st June'!C392=\"\",\"\",'1st June'!C392)","v":""},{"$f":"IF('1st June'!D392=\"\",\"\",'1st June'!D392)","v":""},{"$f":"IF('1st June'!E392=\"\",\"\",'1st June'!E392)","v":""},{"$f":"IF('1st June'!F392=\"\",\"\",'1st June'!F392)","v":""}]
[null,{"$f":"IF('1st June'!B393=\"\",\"\",'1st June'!B393)","v":""},{"$f":"IF('1st June'!C393=\"\",\"\",'1st June'!C393)","v":""},{"$f":"IF('1st June'!D393=\"\",\"\",'1st June'!D393)","v":""},{"$f":"IF('1st June'!E393=\"\",\"\",'1st June'!E393)","v":""},{"$f":"IF('1st June'!F393=\"\",\"\",'1st June'!F393)","v":""}]
[null,{"$f":"IF('1st June'!B394=\"\",\"\",'1st June'!B394)","v":""},{"$f":"IF('1st June'!C394=\"\",\"\",'1st June'!C394)","v":""},{"$f":"IF('1st June'!D394=\"\",\"\",'1st June'!D394)","v":""},{"$f":"IF('1st June'!E394=\"\",\"\",'1st June'!E394)","v":""},{"$f":"IF('1st June'!F394=\"\",\"\",'1st June'!F394)","v":""}]
[null,{"$f":"IF('1st June'!B395=\"\",\"\",'1st June'!B395)","v":""},{"$f":"IF('1st June'!C395=\"\",\"\",'1st June'!C395)","v":""},{"$f":"IF('1st June'!D395=\"\",\"\",'1st June'!D395)","v":""},{"$f":"IF('1st June'!E395=\"\",\"\",'1st June'!E395)","v":""},{"$f":"IF('1st June'!F395=\"\",\"\",'1st June'!F395)","v":""}]
[null,{"$f":"IF('1st June'!B396=\"\",\"\",'1st June'!B396)","v":""},{"$f":"IF('1st June'!C396=\"\",\"\",'1st June'!C396)","v":""},{"$f":"IF('1st June'!D396=\"\",\"\",'1st June'!D396)","v":""},{"$f":"IF('1st June'!E396=\"\",\"\",'1st June'!E396)","v":""},{"$f":"IF('1st June'!F396=\"\",\"\",'1st June'!F396)","v":""}]
[null,{"$f":"IF('1st June'!B397=\"\",\"\",'1st June'!B397)","v":""},{"$f":"IF('1st June'!C397=\"\",\"\",'1st June'!C397)","v":""},{"$f":"IF('1st June'!D397=\"\",\"\",'1st June'!D397)","v":""},{"$f":"IF('1st June'!E397=\"\",\"\",'1st June'!E397)","v":""},{"$f":"IF('1st June'!F397=\"\",\"\",'1st June'!F397)","v":""}]
[null,{"$f":"IF('1st June'!B398=\"\",\"\",'1st June'!B398)","v":""},{"$f":"IF('1st June'!C398=\"\",\"\",'1st June'!C398)","v":""},{"$f":"IF('1st June'!D398=\"\",\"\",'1st June'!D398)","v":""},{"$f":"IF('1st June'!E398=\"\",\"\",'1st June'!E398)","v":""},{"$f":"IF('1st June'!F398=\"\",\"\",'1st June'!F398)","v":""}]
[null,{"$f":"IF('1st June'!B399=\"\",\"\",'1st June'!B399)","v":""},{"$f":"IF('1st June'!C399=\"\",\"\",'1st June'!C399)","v":""},{"$f":"IF('1st June'!D399=\"\",\"\",'1st June'!D399)","v":""},{"$f":"IF('1st June'!E399=\"\",\"\",'1st June'!E399)","v":""},{"$f":"IF('1st June'!F399=\"\",\"\",'1st June'!F399)","v":""}]
[null,{"$f":"IF('1st June'!B400=\"\",\"\",'1st June'!B400)","v":""},{"$f":"IF('1st June'!C400=\"\",\"\",'1st June'!C400)","v":""},{"$f":"IF('1st June'!D400=\"\",\"\",'1st June'!D400)","v":""},{"$f":"IF('1st June'!E400=\"\",\"\",'1st June'!E400)","v":""},{"$f":"IF('1st June'!F400=\"\",\"\",'1st June'!F400)","v":""}]
[null,{"$f":"IF('1st June'!B401=\"\",\"\",'1st June'!B401)","v":""},{"$f":"IF('1st June'!C401=\"\",\"\",'1st June'!C401)","v":""},{"$f":"IF('1st June'!D401=\"\",\"\",'1st June'!D401)","v":""},{"$f":"IF('1st June'!E401=\"\",\"\",'1st June'!E401)","v":""},{"$f":"IF('1st June'!F401=\"\",\"\",'1st June'!F401)","v":""}]
[null,{"$f":"IF('1st June'!B402=\"\",\"\",'1st June'!B402)","v":""},{"$f":"IF('1st June'!C402=\"\",\"\",'1st June'!C402)","v":""},{"$f":"IF('1st June'!D402=\"\",\"\",'1st June'!D402)","v":""},{"$f":"IF('1st June'!E402=\"\",\"\",'1st June'!E402)","v":""},{"$f":"IF('1st June'!F402=\"\",\"\",'1st June'!F402)","v":""}]
[null,{"$f":"IF('1st June'!B403=\"\",\"\",'1st June'!B403)","v":""},{"$f":"IF('1st June'!C403=\"\",\"\",'1st June'!C403)","v":""},{"$f":"IF('1st June'!D403=\"\",\"\",'1st June'!D403)","v":""},{"$f":"IF('1st June'!E403=\"\",\"\",'1st June'!E403)","v":""},{"$f":"IF('1st June'!F403=\"\",\"\",'1st June'!F403)","v":""}]
[null,{"$f":"IF('1st June'!B404=\"\",\"\",'1st June'!B404)","v":""},{"$f":"IF('1st June'!C404=\"\",\"\",'1st June'!C404)","v":""},{"$f":"IF('1st June'!D404=\"\",\"\",'1st June'!D404)","v":""},{"$f":"IF('1st June'!E404=\"\",\"\",'1st June'!E404)","v":""},{"$f":"IF('1st June'!F404=\"\",\"\",'1st June'!F404)","v":""}]
[null,{"$f":"IF('1st June'!B405=\"\",\"\",'1st June'!B405)","v":""},{"$f":"IF('1st June'!C405=\"\",\"\",'1st June'!C405)","v":""},{"$f":"IF('1st June'!D405=\"\",\"\",'1st June'!D405)","v":""},{"$f":"IF('1st June'!E405=\"\",\"\",'1st June'!E405)","v":""},{"$f":"IF('1st June'!F405=\"\",\"\",'1st June'!F405)","v":""}]
[null,{"$f":"IF('1st June'!B406=\"\",\"\",'1st June'!B406)","v":""},{"$f":"IF('1st June'!C406=\"\",\"\",'1st June'!C406)","v":""},{"$f":"IF('1st June'!D406=\"\",\"\",'1st June'!D406)","v":""},{"$f":"IF('1st June'!E406=\"\",\"\",'1st June'!E406)","v":""},{"$f":"IF('1st June'!F406=\"\",\"\",'1st June'!F406)","v":""}]
[null,{"$f":"IF('1st June'!B407=\"\",\"\",'1st June'!B407)","v":""},{"$f":"IF('1st June'!C407=\"\",\"\",'1st June'!C407)","v":""},{"$f":"IF('1st June'!D407=\"\",\"\",'1st June'!D407)","v":""},{"$f":"IF('1st June'!E407=\"\",\"\",'1st June'!E407)","v":""},{"$f":"IF('1st June'!F407=\"\",\"\",'1st June'!F407)","v":""}]
[null,{"$f":"IF('1st June'!B408=\"\",\"\",'1st June'!B408)","v":""},{"$f":"IF('1st June'!C408=\"\",\"\",'1st June'!C408)","v":""},{"$f":"IF('1st June'!D408=\"\",\"\",'1st June'!D408)","v":""},{"$f":"IF('1st June'!E408=\"\",\"\",'1st June'!E408)","v":""},{"$f":"IF('1st June'!F408=\"\",\"\",'1st June'!F408)","v":""}]
[null,{"$f":"IF('1st June'!B409=\"\",\"\",'1st June'!B409)","v":""},{"$f":"IF('1st June'!C409=\"\",\"\",'1st June'!C409)","v":""},{"$f":"IF('1st June'!D409=\"\",\"\",'1st June'!D409)","v":""},{"$f":"IF('1st June'!E409=\"\",\"\",'1st June'!E409)","v":""},{"$f":"IF('1st June'!F409=\"\",\"\",'1st June'!F409)","v":""}]
[null,{"$f":"IF('1st June'!B410=\"\",\"\",'1st June'!B410)","v":""},{"$f":"IF('1st June'!C410=\"\",\"\",'1st June'!C410)","v":""},{"$f":"IF('1st June'!D410=\"\",\"\",'1st June'!D410)","v":""},{"$f":"IF('1st June'!E410=\"\",\"\",'1st June'!E410)","v":""},{"$f":"IF('1st June'!F410=\"\",\"\",'1st June'!F410)","v":""}]
[null,{"$f":"IF('1st June'!B411=\"\",\"\",'1st June'!B411)","v":""},{"$f":"IF('1st June'!C411=\"\",\"\",'1st June'!C411)","v":""},{"$f":"IF('1st June'!D411=\"\",\"\",'1st June'!D411)","v":""},{"$f":"IF('1st June'!E411=\"\",\"\",'1st June'!E411)","v":""},{"$f":"IF('1st June'!F411=\"\",\"\",'1st June'!F411)","v":""}]
[null,{"$f":"IF('1st June'!B412=\"\",\"\",'1st June'!B412)","v":""},{"$f":"IF('1st June'!C412=\"\",\"\",'1st June'!C412)","v":""},{"$f":"IF('1st June'!D412=\"\",\"\",'1st June'!D412)","v":""},{"$f":"IF('1st June'!E412=\"\",\"\",'1st June'!E412)","v":""},{"$f":"IF('1st June'!F412=\"\",\"\",'1st June'!F412)","v":""}]
[null,{"$f":"IF('1st June'!B413=\"\",\"\",'1st June'!B413)","v":""},{"$f":"IF('1st June'!C413=\"\",\"\",'1st June'!C413)","v":""},{"$f":"IF('1st June'!D413=\"\",\"\",'1st June'!D413)","v":""},{"$f":"IF('1st June'!E413=\"\",\"\",'1st June'!E413)","v":""},{"$f":"IF('1st June'!F413=\"\",\"\",'1st June'!F413)","v":""}]
[null,{"$f":"IF('1st June'!B414=\"\",\"\",'1st June'!B414)","v":""},{"$f":"IF('1st June'!C414=\"\",\"\",'1st June'!C414)","v":""},{"$f":"IF('1st June'!D414=\"\",\"\",'1st June'!D414)","v":""},{"$f":"IF('1st June'!E414=\"\",\"\",'1st June'!E414)","v":""},{"$f":"IF('1st June'!F414=\"\",\"\",'1st June'!F414)","v":""}]
[null,{"$f":"IF('1st June'!B415=\"\",\"\",'1st June'!B415)","v":""},{"$f":"IF('1st June'!C415=\"\",\"\",'1st June'!C415)","v":""},{"$f":"IF('1st June'!D415=\"\",\"\",'1st June'!D415)","v":""},{"$f":"IF('1st June'!E415=\"\",\"\",'1st June'!E415)","v":""},{"$f":"IF('1st June'!F415=\"\",\"\",'1st June'!F415)","v":""}]
[null,{"$f":"IF('1st June'!B416=\"\",\"\",'1st June'!B416)","v":""},{"$f":"IF('1st June'!C416=\"\",\"\",'1st June'!C416)","v":""},{"$f":"IF('1st June'!D416=\"\",\"\",'1st June'!D416)","v":""},{"$f":"IF('1st June'!E416=\"\",\"\",'1st June'!E416)","v":""},{"$f":"IF('1st June'!F416=\"\",\"\",'1st June'!F416)","v":""}]
[null,{"$f":"IF('1st June'!B417=\"\",\"\",'1st June'!B417)","v":""},{"$f":"IF('1st June'!C417=\"\",\"\",'1st June'!C417)","v":""},{"$f":"IF('1st June'!D417=\"\",\"\",'1st June'!D417)","v":""},{"$f":"IF('1st June'!E417=\"\",\"\",'1st June'!E417)","v":""},{"$f":"IF('1st June'!F417=\"\",\"\",'1st June'!F417)","v":""}]
[null,{"$f":"IF('1st June'!B418=\"\",\"\",'1st June'!B418)","v":""},{"$f":"IF('1st June'!C418=\"\",\"\",'1st June'!C418)","v":""},{"$f":"IF('1st June'!D418=\"\",\"\",'1st June'!D418)","v":""},{"$f":"IF('1st June'!E418=\"\",\"\",'1st June'!E418)","v":""},{"$f":"IF('1st June'!F418=\"\",\"\",'1st June'!F418)","v":""}]
[null,{"$f":"IF('1st June'!B419=\"\",\"\",'1st June'!B419)","v":""},{"$f":"IF('1st June'!C419=\"\",\"\",'1st June'!C419)","v":""},{"$f":"IF('1st June'!D419=\"\",\"\",'1st June'!D419)","v":""},{"$f":"IF('1st June'!E419=\"\",\"\",'1st June'!E419)","v":""},{"$f":"IF('1st June'!F419=\"\",\"\",'1st June'!F419)","v":""}]
[null,{"$f":"IF('1st June'!B420=\"\",\"\",'1st June'!B420)","v":""},{"$f":"IF('1st June'!C420=\"\",\"\",'1st June'!C420)","v":""},{"$f":"IF('1st June'!D420=\"\",\"\",'1st June'!D420)","v":""},{"$f":"IF('1st June'!E420=\"\",\"\",'1st June'!E420)","v":""},{"$f":"IF('1st June'!F420=\"\",\"\",'1st June'!F420)","v":""}]
[null,{"$f":"IF('1st June'!B421=\"\",\"\",'1st June'!B421)","v":""},{"$f":"IF('1st June'!C421=\"\",\"\",'1st June'!C421)","v":""},{"$f":"IF('1st June'!D421=\"\",\"\",'1st June'!D421)","v":""},{"$f":"IF('1st June'!E421=\"\",\"\",'1st June'!E421)","v":""},{"$f":"IF('1st June'!F421=\"\",\"\",'1st June'!F421)","v":""}]
[null,{"$f":"IF('1st June'!B422=\"\",\"\",'1st June'!B422)","v":""},{"$f":"IF('1st June'!C422=\"\",\"\",'1st June'!C422)","v":""},{"$f":"IF('1st June'!D422=\"\",\"\",'1st June'!D422)","v":""},{"$f":"IF('1st June'!E422=\"\",\"\",'1st June'!E422)","v":""},{"$f":"IF('1st June'!F422=\"\",\"\",'1st June'!F422)","v":""}]
[null,{"$f":"IF('1st June'!B423=\"\",\"\",'1st June'!B423)","v":""},{"$f":"IF('1st June'!C423=\"\",\"\",'1st June'!C423)","v":""},{"$f":"IF('1st June'!D423=\"\",\"\",'1st June'!D423)","v":""},{"$f":"IF('1st June'!E423=\"\",\"\",'1st June'!E423)","v":""},{"$f":"IF('1st June'!F423=\"\",\"\",'1st June'!F423)","v":""}]
[null,{"$f":"IF('1st June'!B424=\"\",\"\",'1st June'!B424)","v":""},{"$f":"IF('1st June'!C424=\"\",\"\",'1st June'!C424)","v":""},{"$f":"IF('1st June'!D424=\"\",\"\",'1st June'!D424)","v":""},{"$f":"IF('1st June'!E424=\"\",\"\",'1st June'!E424)","v":""},{"$f":"IF('1st June'!F424=\"\",\"\",'1st June'!F424)","v":""}]
[null,{"$f":"IF('1st June'!B425=\"\",\"\",'1st June'!B425)","v":""},{"$f":"IF('1st June'!C425=\"\",\"\",'1st June'!C425)","v":""},{"$f":"IF('1st June'!D425=\"\",\"\",'1st June'!D425)","v":""},{"$f":"IF('1st June'!E425=\"\",\"\",'1st June'!E425)","v":""},{"$f":"IF('1st June'!F425=\"\",\"\",'1st June'!F425)","v":""}]
[null,{"$f":"IF('1st June'!B426=\"\",\"\",'1st June'!B426)","v":""},{"$f":"IF('1st June'!C426=\"\",\"\",'1st June'!C426)","v":""},{"$f":"IF('1st June'!D426=\"\",\"\",'1st June'!D426)","v":""},{"$f":"IF('1st June'!E426=\"\",\"\",'1st June'!E426)","v":""},{"$f":"IF('1st June'!F426=\"\",\"\",'1st June'!F426)","v":""}]
[null,{"$f":"IF('1st June'!B427=\"\",\"\",'1st June'!B427)","v":""},{"$f":"IF('1st June'!C427=\"\",\"\",'1st June'!C427)","v":""},{"$f":"IF('1st June'!D427=\"\",\"\",'1st June'!D427)","v":""},{"$f":"IF('1st June'!E427=\"\",\"\",'1st June'!E427)","v":""},{"$f":"IF('1st June'!F427=\"\",\"\",'1st June'!F427)","v":""}]
[null,{"$f":"IF('1st June'!B428=\"\",\"\",'1st June'!B428)","v":""},{"$f":"IF('1st June'!C428=\"\",\"\",'1st June'!C428)","v":""},{"$f":"IF('1st June'!D428=\"\",\"\",'1st June'!D428)","v":""},{"$f":"IF('1st June'!E428=\"\",\"\",'1st June'!E428)","v":""},{"$f":"IF('1st June'!F428=\"\",\"\",'1st June'!F428)","v":""}]
[null,{"$f":"IF('1st June'!B429=\"\",\"\",'1st June'!B429)","v":""},{"$f":"IF('1st June'!C429=\"\",\"\",'1st June'!C429)","v":""},{"$f":"IF('1st June'!D429=\"\",\"\",'1st June'!D429)","v":""},{"$f":"IF('1st June'!E429=\"\",\"\",'1st June'!E429)","v":""},{"$f":"IF('1st June'!F429=\"\",\"\",'1st June'!F429)","v":""}]
[null,{"$f":"IF('1st June'!B430=\"\",\"\",'1st June'!B430)","v":""},{"$f":"IF('1st June'!C430=\"\",\"\",'1st June'!C430)","v":""},{"$f":"IF('1st June'!D430=\"\",\"\",'1st June'!D430)","v":""},{"$f":"IF('1st June'!E430=\"\",\"\",'1st June'!E430)","v":""},{"$f":"IF('1st June'!F430=\"\",\"\",'1st June'!F430)","v":""}]
[null,{"$f":"IF('1st June'!B431=\"\",\"\",'1st June'!B431)","v":""},{"$f":"IF('1st June'!C431=\"\",\"\",'1st June'!C431)","v":""},{"$f":"IF('1st June'!D431=\"\",\"\",'1st June'!D431)","v":""},{"$f":"IF('1st June'!E431=\"\",\"\",'1st June'!E431)","v":""},{"$f":"IF('1st June'!F431=\"\",\"\",'1st June'!F431)","v":""}]
[null,{"$f":"IF('1st June'!B432=\"\",\"\",'1st June'!B432)","v":""},{"$f":"IF('1st June'!C432=\"\",\"\",'1st June'!C432)","v":""},{"$f":"IF('1st June'!D432=\"\",\"\",'1st June'!D432)","v":""},{"$f":"IF('1st June'!E432=\"\",\"\",'1st June'!E432)","v":""},{"$f":"IF('1st June'!F432=\"\",\"\",'1st June'!F432)","v":""}]
[null,{"$f":"IF('1st June'!B433=\"\",\"\",'1st June'!B433)","v":""},{"$f":"IF('1st June'!C433=\"\",\"\",'1st June'!C433)","v":""},{"$f":"IF('1st June'!D433=\"\",\"\",'1st June'!D433)","v":""},{"$f":"IF('1st June'!E433=\"\",\"\",'1st June'!E433)","v":""},{"$f":"IF('1st June'!F433=\"\",\"\",'1st June'!F433)","v":""}]
[null,{"$f":"IF('1st June'!B434=\"\",\"\",'1st June'!B434)","v":""},{"$f":"IF('1st June'!C434=\"\",\"\",'1st June'!C434)","v":""},{"$f":"IF('1st June'!D434=\"\",\"\",'1st June'!D434)","v":""},{"$f":"IF('1st June'!E434=\"\",\"\",'1st June'!E434)","v":""},{"$f":"IF('1st June'!F434=\"\",\"\",'1st June'!F434)","v":""}]
[null,{"$f":"IF('1st June'!B435=\"\",\"\",'1st June'!B435)","v":""},{"$f":"IF('1st June'!C435=\"\",\"\",'1st June'!C435)","v":""},{"$f":"IF('1st June'!D435=\"\",\"\",'1st June'!D435)","v":""},{"$f":"IF('1st June'!E435=\"\",\"\",'1st June'!E435)","v":""},{"$f":"IF('1st June'!F435=\"\",\"\",'1st June'!F435)","v":""}]
[null,{"$f":"IF('1st June'!B436=\"\",\"\",'1st June'!B436)","v":""},{"$f":"IF('1st June'!C436=\"\",\"\",'1st June'!C436)","v":""},{"$f":"IF('1st June'!D436=\"\",\"\",'1st June'!D436)","v":""},{"$f":"IF('1st June'!E436=\"\",\"\",'1st June'!E436)","v":""},{"$f":"IF('1st June'!F436=\"\",\"\",'1st June'!F436)","v":""}]
[null,{"$f":"IF('1st June'!B437=\"\",\"\",'1st June'!B437)","v":""},{"$f":"IF('1st June'!C437=\"\",\"\",'1st June'!C437)","v":""},{"$f":"IF('1st June'!D437=\"\",\"\",'1st June'!D437)","v":""},{"$f":"IF('1st June'!E437=\"\",\"\",'1st June'!E437)","v":""},{"$f":"IF('1st June'!F437=\"\",\"\",'1st June'!F437)","v":""}]
[null,{"$f":"IF('1st June'!B438=\"\",\"\",'1st June'!B438)","v":""},{"$f":"IF('1st June'!C438=\"\",\"\",'1st June'!C438)","v":""},{"$f":"IF('1st June'!D438=\"\",\"\",'1st June'!D438)","v":""},{"$f":"IF('1st June'!E438=\"\",\"\",'1st June'!E438)","v":""},{"$f":"IF('1st June'!F438=\"\",\"\",'1st June'!F438)","v":""}]
[null,{"$f":"IF('1st June'!B439=\"\",\"\",'1st June'!B439)","v":""},{"$f":"IF('1st June'!C439=\"\",\"\",'1st June'!C439)","v":""},{"$f":"IF('1st June'!D439=\"\",\"\",'1st June'!D439)","v":""},{"$f":"IF('1st June'!E439=\"\",\"\",'1st June'!E439)","v":""},{"$f":"IF('1st June'!F439=\"\",\"\",'1st June'!F439)","v":""}]
[null,{"$f":"IF('1st June'!B440=\"\",\"\",'1st June'!B440)","v":""},{"$f":"IF('1st June'!C440=\"\",\"\",'1st June'!C440)","v":""},{"$f":"IF('1st June'!D440=\"\",\"\",'1st June'!D440)","v":""},{"$f":"IF('1st June'!E440=\"\",\"\",'1st June'!E440)","v":""},{"$f":"IF('1st June'!F440=\"\",\"\",'1st June'!F440)","v":""}]
[null,{"$f":"IF('1st June'!B441=\"\",\"\",'1st June'!B441)","v":""},{"$f":"IF('1st June'!C441=\"\",\"\",'1st June'!C441)","v":""},{"$f":"IF('1st June'!D441=\"\",\"\",'1st June'!D441)","v":""},{"$f":"IF('1st June'!E441=\"\",\"\",'1st June'!E441)","v":""},{"$f":"IF('1st June'!F441=\"\",\"\",'1st June'!F441)","v":""}]
[null,{"$f":"IF('1st June'!B442=\"\",\"\",'1st June'!B442)","v":""},{"$f":"IF('1st June'!C442=\"\",\"\",'1st June'!C442)","v":""},{"$f":"IF('1st June'!D442=\"\",\"\",'1st June'!D442)","v":""},{"$f":"IF('1st June'!E442=\"\",\"\",'1st June'!E442)","v":""},{"$f":"IF('1st June'!F442=\"\",\"\",'1st June'!F442)","v":""}]
[null,{"$f":"IF('1st June'!B443=\"\",\"\",'1st June'!B443)","v":""},{"$f":"IF('1st June'!C443=\"\",\"\",'1st June'!C443)","v":""},{"$f":"IF('1st June'!D443=\"\",\"\",'1st June'!D443)","v":""},{"$f":"IF('1st June'!E443=\"\",\"\",'1st June'!E443)","v":""},{"$f":"IF('1st June'!F443=\"\",\"\",'1st June'!F443)","v":""}]
[null,{"$f":"IF('1st June'!B444=\"\",\"\",'1st June'!B444)","v":""},{"$f":"IF('1st June'!C444=\"\",\"\",'1st June'!C444)","v":""},{"$f":"IF('1st June'!D444=\"\",\"\",'1st June'!D444)","v":""},{"$f":"IF('1st June'!E444=\"\",\"\",'1st June'!E444)","v":""},{"$f":"IF('1st June'!F444=\"\",\"\",'1st June'!F444)","v":""}]
[null,{"$f":"IF('1st June'!B445=\"\",\"\",'1st June'!B445)","v":""},{"$f":"IF('1st June'!C445=\"\",\"\",'1st June'!C445)","v":""},{"$f":"IF('1st June'!D445=\"\",\"\",'1st June'!D445)","v":""},{"$f":"IF('1st June'!E445=\"\",\"\",'1st June'!E445)","v":""},{"$f":"IF('1st June'!F445=\"\",\"\",'1st June'!F445)","v":""}]
[null,{"$f":"IF('1st June'!B446=\"\",\"\",'1st June'!B446)","v":""},{"$f":"IF('1st June'!C446=\"\",\"\",'1st June'!C446)","v":""},{"$f":"IF('1st June'!D446=\"\",\"\",'1st June'!D446)","v":""},{"$f":"IF('1st June'!E446=\"\",\"\",'1st June'!E446)","v":""},{"$f":"IF('1st June'!F446=\"\",\"\",'1st June'!F446)","v":""}]
[null,{"$f":"IF('1st June'!B447=\"\",\"\",'1st June'!B447)","v":""},{"$f":"IF('1st June'!C447=\"\",\"\",'1st June'!C447)","v":""},{"$f":"IF('1st June'!D447=\"\",\"\",'1st June'!D447)","v":""},{"$f":"IF('1st June'!E447=\"\",\"\",'1st June'!E447)","v":""},{"$f":"IF('1st June'!F447=\"\",\"\",'1st June'!F447)","v":""}]
[null,{"$f":"IF('1st June'!B448=\"\",\"\",'1st June'!B448)","v":""},{"$f":"IF('1st June'!C448=\"\",\"\",'1st June'!C448)","v":""},{"$f":"IF('1st June'!D448=\"\",\"\",'1st June'!D448)","v":""},{"$f":"IF('1st June'!E448=\"\",\"\",'1st June'!E448)","v":""},{"$f":"IF('1st June'!F448=\"\",\"\",'1st June'!F448)","v":""}]
[null,{"$f":"IF('1st June'!B449=\"\",\"\",'1st June'!B449)","v":""},{"$f":"IF('1st June'!C449=\"\",\"\",'1st June'!C449)","v":""},{"$f":"IF('1st June'!D449=\"\",\"\",'1st June'!D449)","v":""},{"$f":"IF('1st June'!E449=\"\",\"\",'1st June'!E449)","v":""},{"$f":"IF('1st June'!F449=\"\",\"\",'1st June'!F449)","v":""}]
[null,{"$f":"IF('1st June'!B450=\"\",\"\",'1st June'!B450)","v":""},{"$f":"IF('1st June'!C450=\"\",\"\",'1st June'!C450)","v":""},{"$f":"IF('1st June'!D450=\"\",\"\",'1st June'!D450)","v":""},{"$f":"IF('1st June'!E450=\"\",\"\",'1st June'!E450)","v":""},{"$f":"IF('1st June'!F450=\"\",\"\",'1st June'!F450)","v":""}]
[null,{"$f":"IF('1st June'!B451=\"\",\"\",'1st June'!B451)","v":""},{"$f":"IF('1st June'!C451=\"\",\"\",'1st June'!C451)","v":""},{"$f":"IF('1st June'!D451=\"\",\"\",'1st June'!D451)","v":""},{"$f":"IF('1st June'!E451=\"\",\"\",'1st June'!E451)","v":""},{"$f":"IF('1st June'!F451=\"\",\"\",'1st June'!F451)","v":""}]
[null,{"$f":"IF('1st June'!B452=\"\",\"\",'1st June'!B452)","v":""},{"$f":"IF('1st June'!C452=\"\",\"\",'1st June'!C452)","v":""},{"$f":"IF('1st June'!D452=\"\",\"\",'1st June'!D452)","v":""},{"$f":"IF('1st June'!E452=\"\",\"\",'1st June'!E452)","v":""},{"$f":"IF('1st June'!F452=\"\",\"\",'1st June'!F452)","v":""}]
[null,{"$f":"IF('1st June'!B453=\"\",\"\",'1st June'!B453)","v":""},{"$f":"IF('1st June'!C453=\"\",\"\",'1st June'!C453)","v":""},{"$f":"IF('1st June'!D453=\"\",\"\",'1st June'!D453)","v":""},{"$f":"IF('1st June'!E453=\"\",\"\",'1st June'!E453)","v":""},{"$f":"IF('1st June'!F453=\"\",\"\",'1st June'!F453)","v":""}]
[null,{"$f":"IF('1st June'!B454=\"\",\"\",'1st June'!B454)","v":""},{"$f":"IF('1st June'!C454=\"\",\"\",'1st June'!C454)","v":""},{"$f":"IF('1st June'!D454=\"\",\"\",'1st June'!D454)","v":""},{"$f":"IF('1st June'!E454=\"\",\"\",'1st June'!E454)","v":""},{"$f":"IF('1st June'!F454=\"\",\"\",'1st June'!F454)","v":""}]
[null,{"$f":"IF('1st June'!B455=\"\",\"\",'1st June'!B455)","v":""},{"$f":"IF('1st June'!C455=\"\",\"\",'1st June'!C455)","v":""},{"$f":"IF('1st June'!D455=\"\",\"\",'1st June'!D455)","v":""},{"$f":"IF('1st June'!E455=\"\",\"\",'1st June'!E455)","v":""},{"$f":"IF('1st June'!F455=\"\",\"\",'1st June'!F455)","v":""}]
[null,{"$f":"IF('1st June'!B456=\"\",\"\",'1st June'!B456)","v":""},{"$f":"IF('1st June'!C456=\"\",\"\",'1st June'!C456)","v":""},{"$f":"IF('1st June'!D456=\"\",\"\",'1st June'!D456)","v":""},{"$f":"IF('1st June'!E456=\"\",\"\",'1st June'!E456)","v":""},{"$f":"IF('1st June'!F456=\"\",\"\",'1st June'!F456)","v":""}]
[null,{"$f":"IF('1st June'!B457=\"\",\"\",'1st June'!B457)","v":""},{"$f":"IF('1st June'!C457=\"\",\"\",'1st June'!C457)","v":""},{"$f":"IF('1st June'!D457=\"\",\"\",'1st June'!D457)","v":""},{"$f":"IF('1st June'!E457=\"\",\"\",'1st June'!E457)","v":""},{"$f":"IF('1st June'!F457=\"\",\"\",'1st June'!F457)","v":""}]
[null,{"$f":"IF('1st June'!B458=\"\",\"\",'1st June'!B458)","v":""},{"$f":"IF('1st June'!C458=\"\",\"\",'1st June'!C458)","v":""},{"$f":"IF('1st June'!D458=\"\",\"\",'1st June'!D458)","v":""},{"$f":"IF('1st June'!E458=\"\",\"\",'1st June'!E458)","v":""},{"$f":"IF('1st June'!F458=\"\",\"\",'1st June'!F458)","v":""}]
[null,{"$f":"IF('1st June'!B459=\"\",\"\",'1st June'!B459)","v":""},{"$f":"IF('1st June'!C459=\"\",\"\",'1st June'!C459)","v":""},{"$f":"IF('1st June'!D459=\"\",\"\",'1st June'!D459)","v":""},{"$f":"IF('1st June'!E459=\"\",\"\",'1st June'!E459)","v":""},{"$f":"IF('1st June'!F459=\"\",\"\",'1st June'!F459)","v":""}]
[null,{"$f":"IF('1st June'!B460=\"\",\"\",'1st June'!B460)","v":""},{"$f":"IF('1st June'!C460=\"\",\"\",'1st June'!C460)","v":""},{"$f":"IF('1st June'!D460=\"\",\"\",'1st June'!D460)","v":""},{"$f":"IF('1st June'!E460=\"\",\"\",'1st June'!E460)","v":""},{"$f":"IF('1st June'!F460=\"\",\"\",'1st June'!F460)","v":""}]
[null,{"$f":"IF('1st June'!B461=\"\",\"\",'1st June'!B461)","v":""},{"$f":"IF('1st June'!C461=\"\",\"\",'1st June'!C461)","v":""},{"$f":"IF('1st June'!D461=\"\",\"\",'1st June'!D461)","v":""},{"$f":"IF('1st June'!E461=\"\",\"\",'1st June'!E461)","v":""},{"$f":"IF('1st June'!F461=\"\",\"\",'1st June'!F461)","v":""}]
[null,{"$f":"IF('1st June'!B462=\"\",\"\",'1st June'!B462)","v":""},{"$f":"IF('1st June'!C462=\"\",\"\",'1st June'!C462)","v":""},{"$f":"IF('1st June'!D462=\"\",\"\",'1st June'!D462)","v":""},{"$f":"IF('1st June'!E462=\"\",\"\",'1st June'!E462)","v":""},{"$f":"IF('1st June'!F462=\"\",\"\",'1st June'!F462)","v":""}]
[null,{"$f":"IF('1st June'!B463=\"\",\"\",'1st June'!B463)","v":""},{"$f":"IF('1st June'!C463=\"\",\"\",'1st June'!C463)","v":""},{"$f":"IF('1st June'!D463=\"\",\"\",'1st June'!D463)","v":""},{"$f":"IF('1st June'!E463=\"\",\"\",'1st June'!E463)","v":""},{"$f":"IF('1st June'!F463=\"\",\"\",'1st June'!F463)","v":""}]
[null,{"$f":"IF('1st June'!B464=\"\",\"\",'1st June'!B464)","v":""},{"$f":"IF('1st June'!C464=\"\",\"\",'1st June'!C464)","v":""},{"$f":"IF('1st June'!D464=\"\",\"\",'1st June'!D464)","v":""},{"$f":"IF('1st June'!E464=\"\",\"\",'1st June'!E464)","v":""},{"$f":"IF('1st June'!F464=\"\",\"\",'1st June'!F464)","v":""}]
[null,{"$f":"IF('1st June'!B465=\"\",\"\",'1st June'!B465)","v":""},{"$f":"IF('1st June'!C465=\"\",\"\",'1st June'!C465)","v":""},{"$f":"IF('1st June'!D465=\"\",\"\",'1st June'!D465)","v":""},{"$f":"IF('1st June'!E465=\"\",\"\",'1st June'!E465)","v":""},{"$f":"IF('1st June'!F465=\"\",\"\",'1st June'!F465)","v":""}]
[null,{"$f":"IF('1st June'!B466=\"\",\"\",'1st June'!B466)","v":""},{"$f":"IF('1st June'!C466=\"\",\"\",'1st June'!C466)","v":""},{"$f":"IF('1st June'!D466=\"\",\"\",'1st June'!D466)","v":""},{"$f":"IF('1st June'!E466=\"\",\"\",'1st June'!E466)","v":""},{"$f":"IF('1st June'!F466=\"\",\"\",'1st June'!F466)","v":""}]
[null,{"$f":"IF('1st June'!B467=\"\",\"\",'1st June'!B467)","v":""},{"$f":"IF('1st June'!C467=\"\",\"\",'1st June'!C467)","v":""},{"$f":"IF('1st June'!D467=\"\",\"\",'1st June'!D467)","v":""},{"$f":"IF('1st June'!E467=\"\",\"\",'1st June'!E467)","v":""},{"$f":"IF('1st June'!F467=\"\",\"\",'1st June'!F467)","v":""}]
[null,{"$f":"IF('1st June'!B468=\"\",\"\",'1st June'!B468)","v":""},{"$f":"IF('1st June'!C468=\"\",\"\",'1st June'!C468)","v":""},{"$f":"IF('1st June'!D468=\"\",\"\",'1st June'!D468)","v":""},{"$f":"IF('1st June'!E468=\"\",\"\",'1st June'!E468)","v":""},{"$f":"IF('1st June'!F468=\"\",\"\",'1st June'!F468)","v":""}]
[null,{"$f":"IF('1st June'!B469=\"\",\"\",'1st June'!B469)","v":""},{"$f":"IF('1st June'!C469=\"\",\"\",'1st June'!C469)","v":""},{"$f":"IF('1st June'!D469=\"\",\"\",'1st June'!D469)","v":""},{"$f":"IF('1st June'!E469=\"\",\"\",'1st June'!E469)","v":""},{"$f":"IF('1st June'!F469=\"\",\"\",'1st June'!F469)","v":""}]
[null,{"$f":"IF('1st June'!B470=\"\",\"\",'1st June'!B470)","v":""},{"$f":"IF('1st June'!C470=\"\",\"\",'1st June'!C470)","v":""},{"$f":"IF('1st June'!D470=\"\",\"\",'1st June'!D470)","v":""},{"$f":"IF('1st June'!E470=\"\",\"\",'1st June'!E470)","v":""},{"$f":"IF('1st June'!F470=\"\",\"\",'1st June'!F470)","v":""}]
[null,{"$f":"IF('1st June'!B471=\"\",\"\",'1st June'!B471)","v":""},{"$f":"IF('1st June'!C471=\"\",\"\",'1st June'!C471)","v":""},{"$f":"IF('1st June'!D471=\"\",\"\",'1st June'!D471)","v":""},{"$f":"IF('1st June'!E471=\"\",\"\",'1st June'!E471)","v":""},{"$f":"IF('1st June'!F471=\"\",\"\",'1st June'!F471)","v":""}]
[null,{"$f":"IF('1st June'!B472=\"\",\"\",'1st June'!B472)","v":""},{"$f":"IF('1st June'!C472=\"\",\"\",'1st June'!C472)","v":""},{"$f":"IF('1st June'!D472=\"\",\"\",'1st June'!D472)","v":""},{"$f":"IF('1st June'!E472=\"\",\"\",'1st June'!E472)","v":""},{"$f":"IF('1st June'!F472=\"\",\"\",'1st June'!F472)","v":""}]
[null,{"$f":"IF('1st June'!B473=\"\",\"\",'1st June'!B473)","v":""},{"$f":"IF('1st June'!C473=\"\",\"\",'1st June'!C473)","v":""},{"$f":"IF('1st June'!D473=\"\",\"\",'1st June'!D473)","v":""},{"$f":"IF('1st June'!E473=\"\",\"\",'1st June'!E473)","v":""},{"$f":"IF('1st June'!F473=\"\",\"\",'1st June'!F473)","v":""}]
[null,{"$f":"IF('1st June'!B474=\"\",\"\",'1st June'!B474)","v":""},{"$f":"IF('1st June'!C474=\"\",\"\",'1st June'!C474)","v":""},{"$f":"IF('1st June'!D474=\"\",\"\",'1st June'!D474)","v":""},{"$f":"IF('1st June'!E474=\"\",\"\",'1st June'!E474)","v":""},{"$f":"IF('1st June'!F474=\"\",\"\",'1st June'!F474)","v":""}]
[null,{"$f":"IF('1st June'!B475=\"\",\"\",'1st June'!B475)","v":""},{"$f":"IF('1st June'!C475=\"\",\"\",'1st June'!C475)","v":""},{"$f":"IF('1st June'!D475=\"\",\"\",'1st June'!D475)","v":""},{"$f":"IF('1st June'!E475=\"\",\"\",'1st June'!E475)","v":""},{"$f":"IF('1st June'!F475=\"\",\"\",'1st June'!F475)","v":""}]
[null,{"$f":"IF('1st June'!B476=\"\",\"\",'1st June'!B476)","v":""},{"$f":"IF('1st June'!C476=\"\",\"\",'1st June'!C476)","v":""},{"$f":"IF('1st June'!D476=\"\",\"\",'1st June'!D476)","v":""},{"$f":"IF('1st June'!E476=\"\",\"\",'1st June'!E476)","v":""},{"$f":"IF('1st June'!F476=\"\",\"\",'1st June'!F476)","v":""}]
[null,{"$f":"IF('1st June'!B477=\"\",\"\",'1st June'!B477)","v":""},{"$f":"IF('1st June'!C477=\"\",\"\",'1st June'!C477)","v":""},{"$f":"IF('1st June'!D477=\"\",\"\",'1st June'!D477)","v":""},{"$f":"IF('1st June'!E477=\"\",\"\",'1st June'!E477)","v":""},{"$f":"IF('1st June'!F477=\"\",\"\",'1st June'!F477)","v":""}]
[null,{"$f":"IF('1st June'!B478=\"\",\"\",'1st June'!B478)","v":""},{"$f":"IF('1st June'!C478=\"\",\"\",'1st June'!C478)","v":""},{"$f":"IF('1st June'!D478=\"\",\"\",'1st June'!D478)","v":""},{"$f":"IF('1st June'!E478=\"\",\"\",'1st June'!E478)","v":""},{"$f":"IF('1st June'!F478=\"\",\"\",'1st June'!F478)","v":""}]
[null,{"$f":"IF('1st June'!B479=\"\",\"\",'1st June'!B479)","v":""},{"$f":"IF('1st June'!C479=\"\",\"\",'1st June'!C479)","v":""},{"$f":"IF('1st June'!D479=\"\",\"\",'1st June'!D479)","v":""},{"$f":"IF('1st June'!E479=\"\",\"\",'1st June'!E479)","v":""},{"$f":"IF('1st June'!F479=\"\",\"\",'1st June'!F479)","v":""}]
[null,{"$f":"IF('1st June'!B480=\"\",\"\",'1st June'!B480)","v":""},{"$f":"IF('1st June'!C480=\"\",\"\",'1st June'!C480)","v":""},{"$f":"IF('1st June'!D480=\"\",\"\",'1st June'!D480)","v":""},{"$f":"IF('1st June'!E480=\"\",\"\",'1st June'!E480)","v":""},{"$f":"IF('1st June'!F480=\"\",\"\",'1st June'!F480)","v":""}]
[null,{"$f":"IF('1st June'!B481=\"\",\"\",'1st June'!B481)","v":""},{"$f":"IF('1st June'!C481=\"\",\"\",'1st June'!C481)","v":""},{"$f":"IF('1st June'!D481=\"\",\"\",'1st June'!D481)","v":""},{"$f":"IF('1st June'!E481=\"\",\"\",'1st June'!E481)","v":""},{"$f":"IF('1st June'!F481=\"\",\"\",'1st June'!F481)","v":""}]
[null,{"$f":"IF('1st June'!B482=\"\",\"\",'1st June'!B482)","v":""},{"$f":"IF('1st June'!C482=\"\",\"\",'1st June'!C482)","v":""},{"$f":"IF('1st June'!D482=\"\",\"\",'1st June'!D482)","v":""},{"$f":"IF('1st June'!E482=\"\",\"\",'1st June'!E482)","v":""},{"$f":"IF('1st June'!F482=\"\",\"\",'1st June'!F482)","v":""}]
[null,{"$f":"IF('1st June'!B483=\"\",\"\",'1st June'!B483)","v":""},{"$f":"IF('1st June'!C483=\"\",\"\",'1st June'!C483)","v":""},{"$f":"IF('1st June'!D483=\"\",\"\",'1st June'!D483)","v":""},{"$f":"IF('1st June'!E483=\"\",\"\",'1st June'!E483)","v":""},{"$f":"IF('1st June'!F483=\"\",\"\",'1st June'!F483)","v":""}]
[null,{"$f":"IF('1st June'!B484=\"\",\"\",'1st June'!B484)","v":""},{"$f":"IF('1st June'!C484=\"\",\"\",'1st June'!C484)","v":""},{"$f":"IF('1st June'!D484=\"\",\"\",'1st June'!D484)","v":""},{"$f":"IF('1st June'!E484=\"\",\"\",'1st June'!E484)","v":""},{"$f":"IF('1st June'!F484=\"\",\"\",'1st June'!F484)","v":""}]
[null,{"$f":"IF('1st June'!B485=\"\",\"\",'1st June'!B485)","v":""},{"$f":"IF('1st June'!C485=\"\",\"\",'1st June'!C485)","v":""},{"$f":"IF('1st June'!D485=\"\",\"\",'1st June'!D485)","v":""},{"$f":"IF('1st June'!E485=\"\",\"\",'1st June'!E485)","v":""},{"$f":"IF('1st June'!F485=\"\",\"\",'1st June'!F485)","v":""}]
[null,{"$f":"IF('1st June'!B486=\"\",\"\",'1st June'!B486)","v":""},{"$f":"IF('1st June'!C486=\"\",\"\",'1st June'!C486)","v":""},{"$f":"IF('1st June'!D486=\"\",\"\",'1st June'!D486)","v":""},{"$f":"IF('1st June'!E486=\"\",\"\",'1st June'!E486)","v":""},{"$f":"IF('1st June'!F486=\"\",\"\",'1st June'!F486)","v":""}]
[null,{"$f":"IF('1st June'!B487=\"\",\"\",'1st June'!B487)","v":""},{"$f":"IF('1st June'!C487=\"\",\"\",'1st June'!C487)","v":""},{"$f":"IF('1st June'!D487=\"\",\"\",'1st June'!D487)","v":""},{"$f":"IF('1st June'!E487=\"\",\"\",'1st June'!E487)","v":""},{"$f":"IF('1st June'!F487=\"\",\"\",'1st June'!F487)","v":""}]
[null,{"$f":"IF('1st June'!B488=\"\",\"\",'1st June'!B488)","v":""},{"$f":"IF('1st June'!C488=\"\",\"\",'1st June'!C488)","v":""},{"$f":"IF('1st June'!D488=\"\",\"\",'1st June'!D488)","v":""},{"$f":"IF('1st June'!E488=\"\",\"\",'1st June'!E488)","v":""},{"$f":"IF('1st June'!F488=\"\",\"\",'1st June'!F488)","v":""}]
[null,{"$f":"IF('1st June'!B489=\"\",\"\",'1st June'!B489)","v":""},{"$f":"IF('1st June'!C489=\"\",\"\",'1st June'!C489)","v":""},{"$f":"IF('1st June'!D489=\"\",\"\",'1st June'!D489)","v":""},{"$f":"IF('1st June'!E489=\"\",\"\",'1st June'!E489)","v":""},{"$f":"IF('1st June'!F489=\"\",\"\",'1st June'!F489)","v":""}]
[null,{"$f":"IF('1st June'!B490=\"\",\"\",'1st June'!B490)","v":""},{"$f":"IF('1st June'!C490=\"\",\"\",'1st June'!C490)","v":""},{"$f":"IF('1st June'!D490=\"\",\"\",'1st June'!D490)","v":""},{"$f":"IF('1st June'!E490=\"\",\"\",'1st June'!E490)","v":""},{"$f":"IF('1st June'!F490=\"\",\"\",'1st June'!F490)","v":""}]
[null,{"$f":"IF('1st June'!B491=\"\",\"\",'1st June'!B491)","v":""},{"$f":"IF('1st June'!C491=\"\",\"\",'1st June'!C491)","v":""},{"$f":"IF('1st June'!D491=\"\",\"\",'1st June'!D491)","v":""},{"$f":"IF('1st June'!E491=\"\",\"\",'1st June'!E491)","v":""},{"$f":"IF('1st June'!F491=\"\",\"\",'1st June'!F491)","v":""}]
[null,{"$f":"IF('1st June'!B492=\"\",\"\",'1st June'!B492)","v":""},{"$f":"IF('1st June'!C492=\"\",\"\",'1st June'!C492)","v":""},{"$f":"IF('1st June'!D492=\"\",\"\",'1st June'!D492)","v":""},{"$f":"IF('1st June'!E492=\"\",\"\",'1st June'!E492)","v":""},{"$f":"IF('1st June'!F492=\"\",\"\",'1st June'!F492)","v":""}]
[null,{"$f":"IF('1st June'!B493=\"\",\"\",'1st June'!B493)","v":""},{"$f":"IF('1st June'!C493=\"\",\"\",'1st June'!C493)","v":""},{"$f":"IF('1st June'!D493=\"\",\"\",'1st June'!D493)","v":""},{"$f":"IF('1st June'!E493=\"\",\"\",'1st June'!E493)","v":""},{"$f":"IF('1st June'!F493=\"\",\"\",'1st June'!F493)","v":""}]
[null,{"$f":"IF('1st June'!B494=\"\",\"\",'1st June'!B494)","v":""},{"$f":"IF('1st June'!C494=\"\",\"\",'1st June'!C494)","v":""},{"$f":"IF('1st June'!D494=\"\",\"\",'1st June'!D494)","v":""},{"$f":"IF('1st June'!E494=\"\",\"\",'1st June'!E494)","v":""},{"$f":"IF('1st June'!F494=\"\",\"\",'1st June'!F494)","v":""}]
[null,{"$f":"IF('1st June'!B495=\"\",\"\",'1st June'!B495)","v":""},{"$f":"IF('1st June'!C495=\"\",\"\",'1st June'!C495)","v":""},{"$f":"IF('1st June'!D495=\"\",\"\",'1st June'!D495)","v":""},{"$f":"IF('1st June'!E495=\"\",\"\",'1st June'!E495)","v":""},{"$f":"IF('1st June'!F495=\"\",\"\",'1st June'!F495)","v":""}]
[null,{"$f":"IF('1st June'!B496=\"\",\"\",'1st June'!B496)","v":""},{"$f":"IF('1st June'!C496=\"\",\"\",'1st June'!C496)","v":""},{"$f":"IF('1st June'!D496=\"\",\"\",'1st June'!D496)","v":""},{"$f":"IF('1st June'!E496=\"\",\"\",'1st June'!E496)","v":""},{"$f":"IF('1st June'!F496=\"\",\"\",'1st June'!F496)","v":""}]
[null,{"$f":"IF('1st June'!B497=\"\",\"\",'1st June'!B497)","v":""},{"$f":"IF('1st June'!C497=\"\",\"\",'1st June'!C497)","v":""},{"$f":"IF('1st June'!D497=\"\",\"\",'1st June'!D497)","v":""},{"$f":"IF('1st June'!E497=\"\",\"\",'1st June'!E497)","v":""},{"$f":"IF('1st June'!F497=\"\",\"\",'1st June'!F497)","v":""}]
[null,{"$f":"IF('1st June'!B498=\"\",\"\",'1st June'!B498)","v":""},{"$f":"IF('1st June'!C498=\"\",\"\",'1st June'!C498)","v":""},{"$f":"IF('1st June'!D498=\"\",\"\",'1st June'!D498)","v":""},{"$f":"IF('1st June'!E498=\"\",\"\",'1st June'!E498)","v":""},{"$f":"IF('1st June'!F498=\"\",\"\",'1st June'!F498)","v":""}]
[null,{"$f":"IF('1st June'!B499=\"\",\"\",'1st June'!B499)","v":""},{"$f":"IF('1st June'!C499=\"\",\"\",'1st June'!C499)","v":""},{"$f":"IF('1st June'!D499=\"\",\"\",'1st June'!D499)","v":""},{"$f":"IF('1st June'!E499=\"\",\"\",'1st June'!E499)","v":""},{"$f":"IF('1st June'!F499=\"\",\"\",'1st June'!F499)","v":""}]

{"sheet":"1st June","index":2,"n_rows":198,"n_cols":25,"rows_kept":198,"cut":false,"hidden":false,"merged":[[0,14,0,19]]}
["Other","App. Date","Name","Surname","Pasaport No.","Date of birth","Note of stutus","Price $","Paid $","Route","Unpaid $",null,null,null,"TOTAL"]
[1,"2019-04-24T15:00:35.577","KHAYRI ATEEYAH ALMAHDI","ALGHOUL","RGZ10H6R","1973-05-08","Done",120,null,"IHAB",120]
[2,"2019-04-28T12:39:44.370","ALZUBAYR FARAJ HASAN","ALMUZOUGHI","LPC37G85","1993-11-21","Refused",0,null,"nisreen",100,null,"DONE",null,"Total amount",null,null,null,"Route","Total Unpaid",null,null,{"$f":"Noblanks(J2:J499)","v":"IHAB"},"Route","Count of Route"]
[3,"2019-04-28T13:13:30.707","ZAKRIA","ALMOZGI","GL35GN54","1991-12-02","Refused",0,null,"IHAB",120,null,"CANCELLED",null,{"$f":"SUM(H2:H69)","v":6997},null,null,null,{"$f":"IF(ISERROR(INDEX($W$3:$W$70,MATCH(0,COUNTIF($S$3:S3,$W$3:$W$69),0))),\"\",INDEX($W$3:$W$69,MATCH(0,COUNTIF($S$3:S3,$W$3:$W$69),0)))","v":"IHAB"},{"$f":"IF(S4<>\"\",SUMPRODUCT(--($J$2:$J$69=S4),$K$2:$K$69),\"\")","v":790},null,null,{"$f":"Noblanks(U6:U499)","v":"IHAB"},"MISTAKE IN DOB",{"$f":"COUNTIF(J2:J70,\"MISTAKE IN DOB\")","v":2}]
[4,"2019-04-29T13:36:16.330","OMAR","ELMOHASHSH","NCJRH93G","1990-09-28","Cancelled",120,120,null,null,null,"REFUSED",null,null,null,null,null,{"$f":"IF(ISERROR(INDEX($W$3:$W$70,MATCH(0,COUNTIF($S$3:S4,$W$3:$W$69),0))),\"\",INDEX($W$3:$W$69,MATCH(0,COUNTIF($S$3:S4,$W$3:$W$69),0)))","v":"nisreen"},{"$f":"IF(S5<>\"\",SUMPRODUCT(--($J$2:$J$69=S5),$K$2:$K$69),\"\")","v":220},null,null,{"$f":"Noblanks(U7:U500)","v":"nisreen"}]
[5,"2019-04-29T13:42:27.433","HIND","OSMAN","C5NR6798","1994-05-01","Green pass.",120,120,null,null,null,"MISTAKE",null,"Total Paid",null,"Difrent amount",null,{"$f":"IF(ISERROR(INDEX($W$3:$W$70,MATCH(0,COUNTIF($S$3:S5,$W$3:$W$69),0))),\"\",INDEX($W$3:$W$69,MATCH(0,COUNTIF($S$3:S5,$W$3:$W$69),0)))","v":"BINDARDAF"},{"$f":"IF(S6<>\"\",SUMPRODUCT(--($J$2:$J$69=S6),$K$2:$K$69),\"\")","v":120},{"$f":"IF(K2=\"\",\"\",J2)","v":"IHAB"},null,{"$f":"Noblanks(U8:U501)","v":"IHAB"}]
[6,"2019-05-02T16:57:01.433","MOHAMED","ALBIJOU","RJH6LLCZ","1991-04-24",null,120,120,null,null,null,"GREEN PASS.",null,{"$f":"SUM(I2:I67)","v":5760},null,{"$f":"O4-(O7+T23)","v":-353},null,{"$f":"IF(ISERROR(INDEX($W$3:$W$70,MATCH(0,COUNTIF($S$3:S6,$W$3:$W$69),0))),\"\",INDEX($W$3:$W$69,MATCH(0,COUNTIF($S$3:S6,$W$3:$W$69),0)))","v":"SALAH SHABASH"},{"$f":"IF(S7<>\"\",SUMPRODUCT(--($J$2:$J$69=S7),$K$2:$K$69),\"\")","v":120},"nisreen",null,{"$f":"Noblanks(U9:U502)","v":"BINDARDAF"}]
[7,"2019-05-02T17:04:28.613","SANA","ELHASSI","HCJ6L6PK","1991-09-29",null,120,120,null,null,null,null,null,null,null,null,null,{"$f":"IF(ISERROR(INDEX($W$3:$W$70,MATCH(0,COUNTIF($S$3:S7,$W$3:$W$69),0))),\"\",INDEX($W$3:$W$69,MATCH(0,COUNTIF($S$3:S7,$W$3:$W$69),0)))","v":"SHAHOMI"},{"$f":"IF(S8<>\"\",SUMPRODUCT(--($J$2:$J$69=S8),$K$2:$K$69),\"\")","v":240},"IHAB",null,{"$f":"Noblanks(U10:U503)","v":"BINDARDAF"}]
[8,"2019-05-08T12:55:30.870","AISHA","ALSAKLOUL","NPJ3YZH4","1979-05-25",null,120,120,null,null,null,null,null,"Total UnPaid",null,{"$f":"COUNT(B:B)","v":76},null,{"$f":"IF(ISERROR(INDEX($W$3:$W$70,MATCH(0,COUNTIF($S$3:S8,$W$3:$W$69),0))),\"\",INDEX($W$3:$W$69,MATCH(0,COUNTIF($S$3:S8,$W$3:$W$69),0)))","v":"saleh"},{"$f":"IF(S9<>\"\",SUMPRODUCT(--($J$2:$J$69=S9),$K$2:$K$69),\"\")","v":100},"",null,{"$f":"Noblanks(U11:U504)","v":"BINDARDAF"}]
[9,"2019-05-08T13:03:32.563","ESLAM","ALSAKLOUL","NPNKR1RZ","1990-01-15","Mistake",87,null,"MISTAKE IN DOB",null,null,null,null,{"$f":"SUM(T4:T15)","v":1590},null,null,null,{"$f":"IF(ISERROR(INDEX($W$3:$W$70,MATCH(0,COUNTIF($S$3:S9,$W$3:$W$69),0))),\"\",INDEX($W$3:$W$69,MATCH(0,COUNTIF($S$3:S9,$W$3:$W$69),0)))","v":""},{"$f":"IF(S10<>\"\",SUMPRODUCT(--($J$2:$J$69=S10),$K$2:$K$69),\"\")","v":""},"",null,{"$f":"Noblanks(U12:U505)","v":"BINDARDAF"}]
[10,"2019-05-12T15:21:28.803","ESLAM","ALSAKLOUL","-NPNKR1RZ","1996-01-15",null,120,120,"MISTAKE IN DOB",null,null,null,null,null,null,null,null,{"$f":"IF(ISERROR(INDEX($W$3:$W$70,MATCH(0,COUNTIF($S$3:S10,$W$3:$W$69),0))),\"\",INDEX($W$3:$W$69,MATCH(0,COUNTIF($S$3:S10,$W$3:$W$69),0)))","v":""},{"$f":"IF(S11<>\"\",SUMPRODUCT(--($J$2:$J$69=S11),$K$2:$K$69),\"\")","v":""},"",null,{"$f":"Noblanks(U13:U506)","v":"BINDARDAF"}]
[11,"2019-05-16T13:48:08.413","MUHANAD","ELBURKI","J7G3JY60","1984-01-21",null,110,110,null,null,null,null,null,null,null,null,null,{"$f":"IF(ISERROR(INDEX($W$3:$W$70,MATCH(0,COUNTIF($S$3:S11,$W$3:$W$69),0))),\"\",INDEX($W$3:$W$69,MATCH(0,COUNTIF($S$3:S11,$W$3:$W$69),0)))","v":""},{"$f":"IF(S12<>\"\",SUMPRODUCT(--($J$2:$J$69=S12),$K$2:$K$69),\"\")","v":""},"",null,{"$f":"Noblanks(U14:U507)","v":"BINDARDAF"}]
[12,"2019-05-16T13:53:24.300","ENAS","IKJAM","R4HHCPY4","1985-02-06",null,110,110,null,null,null,null,null,null,null,null,null,{"$f":"IF(ISERROR(INDEX($W$3:$W$70,MATCH(0,COUNTIF($S$3:S12,$W$3:$W$69),0))),\"\",INDEX($W$3:$W$69,MATCH(0,COUNTIF($S$3:S12,$W$3:$W$69),0)))","v":""},null,"",null,{"$f":"Noblanks(U15:U508)","v":"BINDARDAF"}]
[13,"2019-05-19T13:26:46.853","LAILA","BEN ISMAIL","K2P1N4N8","1966-04-06",null,120,120,null,null,null,null,null,null,null,null,null,{"$f":"IF(ISERROR(INDEX($W$3:$W$70,MATCH(0,COUNTIF($S$3:S13,$W$3:$W$69),0))),\"\",INDEX($W$3:$W$69,MATCH(0,COUNTIF($S$3:S13,$W$3:$W$69),0)))","v":""},null,"",null,{"$f":"Noblanks(U16:U509)","v":"BINDARDAF"}]
[14,"2019-05-19T13:31:45.700","YASMIN","EL SAHLI","PCPY0PG9","2005-05-15",null,120,120,null,null,null,null,null,null,null,null,null,{"$f":"IF(ISERROR(INDEX($W$3:$W$70,MATCH(0,COUNTIF($S$3:S14,$W$3:$W$69),0))),\"\",INDEX($W$3:$W$69,MATCH(0,COUNTIF($S$3:S14,$W$3:$W$69),0)))","v":""},null,"",null,{"$f":"Noblanks(U17:U510)","v":"BINDARDAF"}]
[15,"2019-05-19T13:35:47.647","YOMNA","EL SAHLI","PCR55NJP","2002-02-27",null,120,120,null,null,null,null,null,null,null,null,null,{"$f":"IF(ISERROR(INDEX($W$3:$W$70,MATCH(0,COUNTIF($S$3:S15,$W$3:$W$69),0))),\"\",INDEX($W$3:$W$69,MATCH(0,COUNTIF($S$3:S15,$W$3:$W$69),0)))","v":""},null,"",{"$f":"Noblanks(X13:X15)","v":""},{"$f":"Noblanks(U18:U511)","v":"BINDARDAF"}]
[16,"2019-05-21T16:16:50.417","ALSADEG","AGILA","P81G5CK1","1978-01-05",null,100,100,null,null,null,null,null,null,null,null,null,{"$f":"IF(ISERROR(INDEX($W$3:$W$70,MATCH(0,COUNTIF($S$3:S16,$W$3:$W$69),0))),\"\",INDEX($W$3:$W$69,MATCH(0,COUNTIF($S$3:S16,$W$3:$W$69),0)))","v":""},null,"",{"$f":"Noblanks(X14:X16)","v":""},{"$f":"Noblanks(U19:U512)","v":"BINDARDAF"}]
[17,"2019-05-22T13:16:38.180","KHOLUD","KRAIM","F9K1J6G5","1983-08-06",null,120,null,"BINDARDAF",120,null,null,null,null,null,null,null,{"$f":"IF(ISERROR(INDEX($W$3:$W$70,MATCH(0,COUNTIF($S$3:S17,$W$3:$W$69),0))),\"\",INDEX($W$3:$W$69,MATCH(0,COUNTIF($S$3:S17,$W$3:$W$69),0)))","v":""},null,"",null,{"$f":"Noblanks(U20:U513)","v":"BINDARDAF"}]
[18,"2019-05-23T12:28:57.527","RAMADHAN","GARGOM","000C6236LL1","1977-04-21",null,120,null,"SALAH SHABASH",120,null,null,null,null,null,null,null,{"$f":"IF(ISERROR(INDEX($W$3:$W$70,MATCH(0,COUNTIF($S$3:S18,$W$3:$W$69),0))),\"\",INDEX($W$3:$W$69,MATCH(0,COUNTIF($S$3:S18,$W$3:$W$69),0)))","v":""},null,"",null,{"$f":"Noblanks(U21:U514)","v":"BINDARDAF"}]
[19,"2019-05-28T17:03:35.457","ABTISAM  ","HOUSSEIN","HZLY9H3G","1983-10-01",null,180,180,null,null,null,null,null,null,null,null,null,{"$f":"IF(ISERROR(INDEX($W$3:$W$70,MATCH(0,COUNTIF($S$3:S19,$W$3:$W$69),0))),\"\",INDEX($W$3:$W$69,MATCH(0,COUNTIF($S$3:S19,$W$3:$W$69),0)))","v":""},null,"",null,{"$f":"Noblanks(U22:U515)","v":"BINDARDAF"}]
[20,"2019-05-29T18:56:52.767","ABOBAKER ","ALSHADLI","NGR095HY","1985-04-08",null,110,110,null,null,null,null,null,null,null,null,null,{"$f":"IF(ISERROR(INDEX($W$3:$W$70,MATCH(0,COUNTIF($S$3:S20,$W$3:$W$69),0))),\"\",INDEX($W$3:$W$69,MATCH(0,COUNTIF($S$3:S20,$W$3:$W$69),0)))","v":""},null,"",null,{"$f":"Noblanks(U23:U516)","v":"SALAH SHABASH"}]
[21,"2019-06-09T12:00:50.073","ADEL","ALABYADH","RG2KYP15","1976-02-20",null,110,110,null,null,null,null,null,null,null,null,null,{"$f":"IF(ISERROR(INDEX($W$3:$W$70,MATCH(0,COUNTIF($S$3:S21,$W$3:$W$69),0))),\"\",INDEX($W$3:$W$69,MATCH(0,COUNTIF($S$3:S21,$W$3:$W$69),0)))","v":""},null,"BINDARDAF",null,{"$f":"Noblanks(U24:U517)","v":"IHAB"},null,{"$f":"IFERROR(INDEX($J$2:$J$499,SMALL(IF($J$2:$J$499<>\"\",ROW($J$1:$J$499)-ROW($J$2)+1,\"\"),ROWS($Y$21:Y22))),\"\")","v":""}]
[22,"2019-06-09T13:19:06.617","MOHAMED","ALBIJOU","+RJH6LLCZ","1991-04-24",null,120,120,null,null,null,null,null,null,null,null,null,"Total",{"$f":"SUM(T4:T22)","v":1590},"SALAH SHABASH",null,{"$f":"Noblanks(U25:U518)","v":"IHAB"},null,{"$f":"IFERROR(INDEX($J$2:$J$499,SMALL(IF($J$2:$J$499<>\"\",ROW($J$1:$J$499)-ROW($J$2)+1,\"\"),ROWS($Y$21:Y23))),\"\")","v":""}]
[23,"2019-06-09T13:42:41.223","ALMAHDI","ALBAHLOUL","P28YYP83","1981-10-06",null,100,100,null,null,null,null,null,null,null,null,null,null,null,"",null,{"$f":"Noblanks(U26:U519)","v":"IHAB"},null,{"$f":"IFERROR(INDEX($J$2:$J$499,SMALL(IF($J$2:$J$499<>\"\",ROW($J$1:$J$499)-ROW($J$2)+1,\"\"),ROWS($Y$21:Y24))),\"\")","v":""}]
[24,"2019-06-09T15:32:46.743","KHADIJA","AGILA","HN058N7F","1995-05-05",null,100,100,null,null,null,null,null,null,null,null,null,null,null,"",null,{"$f":"Noblanks(U27:U520)","v":"IHAB"},null,{"$f":"IFERROR(INDEX($J$2:$J$499,SMALL(IF($J$2:$J$499<>\"\",ROW($J$1:$J$499)-ROW($J$2)+1,\"\"),ROWS($Y$21:Y25))),\"\")","v":""}]
[25,"2019-06-10T13:58:24.787","MUNIR","ELAGOURI","FPFGG8YP","1975-03-01",null,110,110,null,null,null,null,null,null,null,null,null,null,null,"",null,{"$f":"Noblanks(U28:U521)","v":"IHAB"}]
[26,"2019-06-10T14:15:21.727","ABDULBASIT","ALTAHIR","LCLRC5F0","1971-10-12",null,110,110,null,null,null,null,null,null,null,null,null,null,null,"",null,{"$f":"Noblanks(U29:U522)","v":"IHAB"}]
[27,"2019-06-10T14:32:41.430","OMAR","ALTAHIR","HP52ZG24","1975-04-01",null,110,110,null,null,null,null,null,null,null,null,null,null,null,"",null,{"$f":"Noblanks(U30:U523)","v":"IHAB"}]
[28,"2019-06-10T16:05:09.850","OSAMA","BELGASEM","QY84LPJY","1976-10-04",null,110,110,null,null,null,null,null,null,null,null,null,null,null,"",null,{"$f":"Noblanks(U31:U524)","v":"IHAB"}]
[29,"2019-06-10T16:08:07.367","NESRIN","MOHAMED","GY8Y7L1N","1982-06-10",null,110,110,null,null,null,null,null,null,null,null,null,null,null,"",null,{"$f":"Noblanks(U32:U525)","v":"IHAB"}]
[30,"2019-06-10T16:45:00.743","OMAR","ELHMRRI","HYY6NGL2","1990-11-22","Cancelled",0,0,null,null,null,null,null,null,null,null,null,null,null,"",null,{"$f":"Noblanks(U33:U526)","v":"IHAB"}]
[31,"2019-06-10T16:50:13.033","GHALIYAH","ALHAMRI","CKN315PH","1987-06-03",null,0,0,null,null,null,null,null,null,null,null,null,null,null,"",null,{"$f":"Noblanks(U34:U527)","v":"IHAB"}]
[32,"2019-06-11T12:02:25.957","BRAA","ELMANGOSH","+C0881J9P","1994-02-06",null,225,null,"IHAB",225,null,null,null,null,null,null,null,null,null,"",null,{"$f":"Noblanks(U35:U528)","v":"IHAB"}]
[33,"2019-06-11T12:06:47.277","ZAINAB","ELSADEG","L0KPKR13","1955-12-25",null,25,null,"IHAB",25,null,null,null,null,null,null,null,null,null,"",null,{"$f":"Noblanks(U36:U529)","v":"IHAB"}]
[34,"2019-06-11T12:24:45.843","ASEIDA","AHNESH","JZ3PC669","1994-08-02",null,110,110,null,null,null,null,null,null,null,null,null,null,null,"",null,{"$f":"Noblanks(U37:U530)","v":"IHAB"}]
[35,"2019-06-11T14:08:21.950","NASSER","BENHALLOUM","CGJJFN87","1959-01-01",null,110,110,"DR.ABDO",null,null,null,null,null,null,null,null,null,null,"",null,{"$f":"Noblanks(U38:U531)","v":"IHAB"}]
[36,"2019-06-11T14:12:07.113","ABDULLAH","BINHALLOUM","HRC82HFJ","1990-08-19",null,110,110,"DR.ABDO",null,null,null,null,null,null,null,null,null,null,"IHAB",null,{"$f":"Noblanks(U39:U532)","v":"IHAB"}]
[37,"2019-06-12T13:06:19.563","ALAADIN","ALSHARKSI","LL2JC154","1968-09-04",null,100,null,"IHAB",100,null,null,null,null,null,null,null,null,null,{"$f":"IF(K34=\"\",\"\",J34)","v":"IHAB"},null,{"$f":"Noblanks(U40:U533)","v":"IHAB"}]
[38,"2019-06-12T13:11:53.757","AHLAM","ABDALLAH","LL00C60N","1974-06-08",null,100,null,"IHAB",100,null,null,null,null,null,null,null,null,null,"",null,{"$f":"Noblanks(U41:U534)","v":"IHAB"}]
[39,"2019-06-12T13:15:23.813","ALAA","ALSHARKASI","L22L1RCP","2007-05-14",null,100,null,"IHAB",100,null,null,null,null,null,null,null,null,null,"",null,{"$f":"Noblanks(U42:U535)","v":"IHAB"}]
[40,"2019-06-13T15:33:52.910","OMAR","ELHMRRI","+HYY6NGL2","1990-11-22",null,120,120,null,null,null,null,null,null,null,null,null,null,null,"",null,{"$f":"Noblanks(U43:U536)","v":"IHAB"}]
[41,"2019-06-13T15:39:21.060","LAYLAY","BOUSHEEHAH","HYZG20YC","1966-01-01",null,80,80,null,null,null,null,null,null,null,null,null,null,null,"IHAB",null,{"$f":"Noblanks(U44:U537)","v":"IHAB"}]
[42,"2019-06-17T12:12:51.307","SALAH EDDIN","SHAHOMI","GY1JRP7P","1976-05-25",null,120,120,null,null,null,null,null,null,null,null,null,null,null,"IHAB",null,{"$f":"Noblanks(U45:U538)","v":"SHAHOMI"}]
[43,"2019-06-17T12:17:44.810","MARWA","ASHTITI","GY42C07F","1990-09-24",null,120,120,null,null,null,null,null,null,null,null,null,null,null,"IHAB",null,{"$f":"Noblanks(U46:U539)","v":"SHAHOMI"}]
[44,"2019-06-17T12:51:47.780","ZAHRAH","BOURAWI","P7RLF9J0","1965-08-28",null,120,120,null,null,null,null,null,null,null,null,null,null,null,"",null,{"$f":"Noblanks(U47:U540)","v":"SHAHOMI"}]
[45,"2019-06-17T12:56:59.610","ABDELRAHIM","ALSHATEETI","GR3P9FZK","1992-01-04",null,120,120,null,null,null,null,null,null,null,null,null,null,null,"",null,{"$f":"Noblanks(U48:U541)","v":"SHAHOMI"}]
[46,"2019-06-17T13:02:00.187","AHMED","ALSHATEETI","FRF2YK0C","1995-10-06",null,120,120,null,null,null,null,null,null,null,null,null,null,null,"",null,{"$f":"Noblanks(U49:U542)","v":"SHAHOMI"}]
[47,"2019-06-18T12:24:59.867","IBRAHIM","ELGAHANI","H07H239J","1984-01-11",null,110,110,"HAMZA",null,null,null,null,null,null,null,null,null,null,"",null,{"$f":"Noblanks(U50:U543)","v":"SHAHOMI"}]
[48,"2019-06-18T12:28:44.510","NADAY","ALARJ","CFJ2L289","1996-12-26",null,110,110,"HAMZA",null,null,null,null,null,null,null,null,null,null,"",null,{"$f":"Noblanks(U51:U544)","v":"SHAHOMI"}]
[49,"2019-06-18T17:22:15.387","OMAR","ALBISHARI","LN0G4RC3","1984-03-12",null,100,100,null,null,null,null,null,null,null,null,null,null,null,"",null,{"$f":"Noblanks(U52:U545)","v":"SHAHOMI"}]
[50,"2019-06-18T17:54:11.480","SHIMA","ALBASHARI","HF7F2F8N","1990-01-21",null,100,100,null,null,null,null,null,null,null,null,null,null,null,"",null,{"$f":"Noblanks(U53:U546)","v":"SHAHOMI"}]
[51,"2019-06-20T11:42:46.477","MARWA","ELMAHDI","CK5R6GCC","1996-02-13",null,180,180,null,null,null,null,null,null,null,null,null,null,null,"",null,{"$f":"Noblanks(U54:U547)","v":"SHAHOMI"}]
[52,"2019-06-20T12:12:00.130","BALGEIS","BADI","GN575LJ5","1963-01-01",null,80,80,null,null,null,null,null,null,null,null,null,null,null,"",null,{"$f":"Noblanks(U55:U548)","v":"SHAHOMI"}]
[53,"2019-06-20T12:18:10.100","MIRA","GLESSA","GN3FZG0P","2006-07-31",null,120,120,null,null,null,null,null,null,null,null,null,null,null,"",null,{"$f":"Noblanks(U56:U549)","v":"SHAHOMI"}]
[54,"2019-06-20T12:27:13.480","HANI","GLESSA","GN755ZZJ","2004-01-20",null,120,120,null,null,null,null,null,null,null,null,null,null,null,"",null,{"$f":"Noblanks(U57:U550)","v":"SHAHOMI"}]
[55,"2019-06-20T14:38:24.320","YAHIA","ELFALLAH","JKP7CGP2","1970-01-01",null,110,110,null,null,null,null,null,null,null,null,null,null,null,"",null,{"$f":"Noblanks(U58:U551)","v":"SHAHOMI"}]
[56,"2019-06-20T14:43:13.117","ABTESAM","BADER","C9127619","1971-02-06",null,110,110,null,null,null,null,null,null,null,null,null,null,null,"",null,{"$f":"Noblanks(U59:U552)","v":"SHAHOMI"}]
[57,"2019-06-20T14:46:41.963","NOOR","ALFALLAH","C8RRLPH0","2002-09-04",null,110,110,null,null,null,null,null,null,null,null,null,null,null,"",null,{"$f":"Noblanks(U60:U553)","v":"SHAHOMI"}]
[58,"2019-06-20T14:53:30.030","ISLAM","ALFALLAH","C8LCJ63Y","2004-01-11",null,110,110,null,null,null,null,null,null,null,null,null,null,null,"",null,{"$f":"Noblanks(U61:U554)","v":"SHAHOMI"}]
[59,"2019-06-20T16:10:06.907","AHMED","BEDA","H9941GK0","1979-10-06",null,120,null,"SHAHOMI",120,null,null,null,null,null,null,null,null,null,"",null,{"$f":"Noblanks(U62:U555)","v":"SHAHOMI"}]
[60,"2019-06-20T16:26:14.793","ESRAA","GINI","H973R816","1989-03-22",null,120,null,"SHAHOMI",120,null,null,null,null,null,null,null,null,null,"",null,{"$f":"Noblanks(U63:U556)","v":"SHAHOMI"}]
[61,"2019-06-20T18:11:23.413","ABDELJAUL","ELAYTIE","FRNFL9ZK","1959-08-28",null,100,100,"nisreen",120,null,null,null,null,null,null,null,null,null,"",null,{"$f":"Noblanks(U64:U557)","v":"SHAHOMI"}]
[62,"2019-06-20T18:14:02.773","SALMA","ELZEWI","FRYCP0P3","1958-01-01",null,100,100,"saleh",100,null,null,null,null,null,null,null,null,null,"",null,{"$f":"Noblanks(U65:U558)","v":"SHAHOMI"}]
[63,"2019-06-20T18:17:26.260","MARWA","ELSAYTIE","FRN4NYCF","1991-02-12",null,100,100,null,null,null,null,null,null,null,null,null,null,null,"SHAHOMI",null,{"$f":"Noblanks(U66:U559)","v":"nisreen"}]
[64,"2019-06-20T18:23:05.277","ALI","ALSAEITI","GG019KY0","1996-12-22",null,100,100,null,null,null,null,null,null,null,null,null,null,null,"SHAHOMI",null,{"$f":"Noblanks(U67:U560)","v":"saleh"}]
[65,"2019-06-20T19:09:13.237","KHADEEJAH","ALZAWI","F1KY0LK0","1966-11-21",null,100,100,null,null,null,null,null,null,null,null,null,null,null,"nisreen",null,{"$f":"Noblanks(U68:U561)","v":""}]
[66,"2019-06-20T19:17:53.300","AIDAH","BEIDA","G15PZZ2F","1973-10-25",null,100,100,null,null,null,null,null,null,null,null,null,null,null,"saleh",null,{"$f":"Noblanks(U69:U562)","v":""}]
[67,"2019-06-20T19:26:33.365","KHADEEJAH","ALZAWI","F1KY0LK1","1980-09-28",null,null,null,null,null,null,null,null,null,null,null,null,null,null,"",null,{"$f":"Noblanks(U70:U563)","v":""}]
[68,"2019-06-20T19:35:13.430","AIDAH","BEIDA","G15PZZ2F","1987-09-02",null,null,null,null,null,null,null,null,null,null,null,null,null,null,"",null,{"$f":"Noblanks(U71:U564)","v":""}]
[69,"2019-06-20T19:43:53.495","KHADEEJAH","ALZAWI","F1KY0LK2","1994-08-06",null,null,null,null,null,null,null,null,null,null,null,null,null,null,{"$f":"IF(K66=\"\",\"\",J66)","v":""},null,{"$f":"Noblanks(U72:U565)","v":""}]
[70,"2019-06-20T19:52:33.560","AIDAH","BEIDA","G15PZZ2F","2001-07-10",null,null,null,null,null,null,null,null,null,null,null,null,null,null,{"$f":"IF(K67=\"\",\"\",J67)","v":""},null,{"$f":"Noblanks(U73:U566)","v":""}]
[71,"2019-06-20T20:01:13.625","KHADEEJAH","ALZAWI","F1KY0LK3","2008-06-13",null,null,null,null,null,null,null,null,null,null,null,null,null,null,"",null,{"$f":"Noblanks(U74:U567)","v":""}]
[72,"2019-06-20T20:09:53.690","AIDAH","BEIDA","G15PZZ2F","2015-05-18",null,null,null,null,null,null,null,null,null,null,null,null,null,null,"",null,{"$f":"Noblanks(U75:U568)","v":""}]
[73,"2019-06-20T20:18:33.755","KHADEEJAH","ALZAWI","F1KY0LK4","2022-04-21",null,null,null,null,null,null,null,null,null,null,null,null,null,null,"",null,{"$f":"Noblanks(U76:U569)","v":""}]
[74,"2019-06-20T20:27:13.820","AIDAH","BEIDA","G15PZZ2F","2029-03-25",null,null,null,null,null,null,null,null,null,null,null,null,null,null,"",null,{"$f":"Noblanks(U77:U570)","v":""}]
[75,"2019-06-20T20:35:53.885","KHADEEJAH","ALZAWI","F1KY0LK5","2036-02-27",null,null,null,null,null,null,null,null,null,null,null,null,null,null,"",null,{"$f":"Noblanks(U78:U571)","v":""}]
[76,"2019-06-20T20:44:33.950","AIDAH","BEIDA","G15PZZ2F","2043-01-31",null,null,null,null,null,null,null,null,null,null,null,null,null,null,"",null,{"$f":"Noblanks(U79:U572)","v":""}]
[null,null,null,null,null,null,null,null,null,null,null,null,null,null,null,null,null,null,null,null,"",null,{"$f":"Noblanks(U80:U573)","v":""}]
[null,null,null,null,null,null,null,null,null,null,null,null,null,null,null,null,null,null,null,null,"",null,{"$f":"Noblanks(U81:U574)","v":""}]
[null,null,null,null,null,null,null,null,null,null,null,null,null,null,null,null,null,null,null,null,"",null,{"$f":"Noblanks(U82:U575)","v":""}]
[null,null,null,null,null,null,null,null,null,null,null,null,null,null,null,null,null,null,null,null,"",null,{"$f":"Noblanks(U83:U576)","v":""}]
[null,null,null,null,null,null,null,null,null,null,null,null,null,null,null,null,null,null,null,null,"",null,{"$f":"Noblanks(U84:U577)","v":""}]
[null,null,null,null,null,null,null,null,null,null,null,null,null,null,null,null,null,null,null,null,"",null,{"$f":"Noblanks(U85:U578)","v":""}]
[null,null,null,null,null,null,null,null,null,null,null,null,null,null,null,null,null,null,null,null,"",null,{"$f":"Noblanks(U86:U579)","v":""}]
[null,null,null,null,null,null,null,null,null,null,null,null,null,null,null,null,null,null,null,null,"",null,{"$f":"Noblanks(U87:U580)","v":""}]
[null,null,null,null,null,null,null,null,null,null,null,null,null,null,null,null,null,null,null,null,"",null,{"$f":"Noblanks(U88:U581)","v":""}]
[null,null,null,null,null,null,null,null,null,null,null,null,null,null,null,null,null,null,null,null,"",null,{"$f":"Noblanks(J86:J583)","v":""}]
[null,null,null,null,null,null,null,null,null,null,null,null,null,null,null,null,null,null,null,null,"",null,{"$f":"Noblanks(J87:J584)","v":""}]
[null,null,null,null,null,null,null,null,null,null,null,null,null,null,null,null,null,null,null,null,"",null,{"$f":"Noblanks(J88:J585)","v":""}]
[null,null,null,null,null,null,null,null,null,null,null,null,null,null,null,null,null,null,null,null,"",null,{"$f":"Noblanks(J89:J586)","v":""}]
[null,null,null,null,null,null,null,null,null,null,null,null,null,null,null,null,null,null,null,null,"",null,{"$f":"Noblanks(J90:J587)","v":""}]
[null,null,null,null,null,null,null,null,null,null,null,null,null,null,null,null,null,null,null,null,"",null,{"$f":"Noblanks(J91:J588)","v":""}]
[null,null,null,null,null,null,null,null,null,null,null,null,null,null,null,null,null,null,null,null,"",null,{"$f":"Noblanks(J92:J589)","v":""}]
[null,null,null,null,null,null,null,null,null,null,null,null,null,null,null,null,null,null,null,null,"",null,{"$f":"Noblanks(J93:J590)","v":""}]
[null,null,null,null,null,null,null,null,null,null,null,null,null,null,null,null,null,null,null,null,"",null,{"$f":"Noblanks(J94:J591)","v":""}]
[null,null,null,null,null,null,null,null,null,null,null,null,null,null,null,null,null,null,null,null,"",null,{"$f":"Noblanks(J95:J592)","v":""}]
[null,null,null,null,null,null,null,null,null,null,null,null,null,null,null,null,null,null,null,null,"",null,{"$f":"Noblanks(J96:J593)","v":""}]
[null,null,null,null,null,null,null,null,null,null,null,null,null,null,null,null,null,null,null,null,"",null,{"$f":"Noblanks(J97:J594)","v":""}]
[null,null,null,null,null,null,null,null,null,null,null,null,null,null,null,null,null,null,null,null,"",null,{"$f":"Noblanks(J98:J595)","v":""}]
[null,null,null,null,null,null,null,null,null,null,null,null,null,null,null,null,null,null,null,null,"",null,{"$f":"Noblanks(J99:J596)","v":""}]
[null,null,null,null,null,null,null,null,null,null,null,null,null,null,null,null,null,null,null,null,"",null,{"$f":"Noblanks(J100:J597)","v":""}]
[null,null,null,null,null,null,null,null,null,null,null,null,null,null,null,null,null,null,null,null,"",null,{"$f":"Noblanks(J101:J598)","v":""}]
[null,null,null,null,null,null,null,null,null,null,null,null,null,null,null,null,null,null,null,null,null,null,{"$f":"Noblanks(J102:J599)","v":""}]
[null,null,null,null,null,null,null,null,null,null,null,null,null,null,null,null,null,null,null,null,null,null,{"$f":"Noblanks(J103:J600)","v":""}]
[null,null,null,null,null,null,null,null,null,null,null,null,null,null,null,null,null,null,null,null,null,null,{"$f":"Noblanks(J104:J601)","v":""}]
[null,null,null,null,null,null,null,null,null,null,null,null,null,null,null,null,null,null,null,null,null,null,{"$f":"Noblanks(J105:J602)","v":""}]
[null,null,null,null,null,null,null,null,null,null,null,null,null,null,null,null,null,null,null,null,null,null,{"$f":"Noblanks(J106:J603)","v":""}]
[null,null,null,null,null,null,null,null,null,null,null,null,null,null,null,null,null,null,null,null,null,null,{"$f":"Noblanks(J107:J604)","v":""}]
[null,null,null,null,null,null,null,null,null,null,null,null,null,null,null,null,null,null,null,null,null,null,{"$f":"Noblanks(J108:J605)","v":""}]
[null,null,null,null,null,null,null,null,null,null,null,null,null,null,null,null,null,null,null,null,null,null,{"$f":"Noblanks(J109:J606)","v":""}]
[null,null,null,null,null,null,null,null,null,null,null,null,null,null,null,null,null,null,null,null,null,null,{"$f":"Noblanks(J110:J607)","v":""}]
[null,null,null,null,null,null,null,null,null,null,null,null,null,null,null,null,null,null,null,null,null,null,{"$f":"Noblanks(J111:J608)","v":""}]
[null,null,null,null,null,null,null,null,null,null,null,null,null,null,null,null,null,null,null,null,null,null,{"$f":"Noblanks(J112:J609)","v":""}]
[null,null,null,null,null,null,null,null,null,null,null,null,null,null,null,null,null,null,null,null,null,null,{"$f":"Noblanks(J113:J610)","v":""}]
[null,null,null,null,null,null,null,null,null,null,null,null,null,null,null,null,null,null,null,null,null,null,{"$f":"Noblanks(J114:J611)","v":""}]
[null,null,null,null,null,null,null,null,null,null,null,null,null,null,null,null,null,null,null,null,null,null,{"$f":"Noblanks(J115:J612)","v":""}]
[null,null,null,null,null,null,null,null,null,null,null,null,null,null,null,null,null,null,null,null,null,null,{"$f":"Noblanks(J116:J613)","v":""}]
[null,null,null,null,null,null,null,null,null,null,null,null,null,null,null,null,null,null,null,null,null,null,{"$f":"Noblanks(J117:J614)","v":""}]
[null,null,null,null,null,null,null,null,null,null,null,null,null,null,null,null,null,null,null,null,null,null,{"$f":"Noblanks(J118:J615)","v":""}]
[null,null,null,null,null,null,null,null,null,null,null,null,null,null,null,null,null,null,null,null,null,null,{"$f":"Noblanks(J119:J616)","v":""}]
[null,null,null,null,null,null,null,null,null,null,null,null,null,null,null,null,null,null,null,null,null,null,{"$f":"Noblanks(J120:J617)","v":""}]
[null,null,null,null,null,null,null,null,null,null,null,null,null,null,null,null,null,null,null,null,null,null,{"$f":"Noblanks(J121:J618)","v":""}]
[null,null,null,null,null,null,null,null,null,null,null,null,null,null,null,null,null,null,null,null,null,null,{"$f":"Noblanks(J122:J619)","v":""}]
[null,null,null,null,null,null,null,null,null,null,null,null,null,null,null,null,null,null,null,null,null,null,{"$f":"Noblanks(J123:J620)","v":""}]
[null,null,null,null,null,null,null,null,null,null,null,null,null,null,null,null,null,null,null,null,null,null,{"$f":"Noblanks(J124:J621)","v":""}]
[null,null,null,null,null,null,null,null,null,null,null,null,null,null,null,null,null,null,null,null,null,null,{"$f":"Noblanks(J125:J622)","v":""}]
[null,null,null,null,null,null,null,null,null,null,null,null,null,null,null,null,null,null,null,null,null,null,{"$f":"Noblanks(J126:J623)","v":""}]
[null,null,null,null,null,null,null,null,null,null,null,null,null,null,null,null,null,null,null,null,null,null,{"$f":"Noblanks(J127:J624)","v":""}]
[null,null,null,null,null,null,null,null,null,null,null,null,null,null,null,null,null,null,null,null,null,null,{"$f":"Noblanks(J128:J625)","v":""}]
[null,null,null,null,null,null,null,null,null,null,null,null,null,null,null,null,null,null,null,null,null,null,{"$f":"Noblanks(J129:J626)","v":""}]
[null,null,null,null,null,null,null,null,null,null,null,null,null,null,null,null,null,null,null,null,null,null,{"$f":"Noblanks(J130:J627)","v":""}]
[null,null,null,null,null,null,null,null,null,null,null,null,null,null,null,null,null,null,null,null,null,null,{"$f":"Noblanks(J131:J628)","v":""}]
[null,null,null,null,null,null,null,null,null,null,null,null,null,null,null,null,null,null,null,null,null,null,{"$f":"Noblanks(J132:J629)","v":""}]
[null,null,null,null,null,null,null,null,null,null,null,null,null,null,null,null,null,null,null,null,null,null,{"$f":"Noblanks(J133:J630)","v":""}]
[null,null,null,null,null,null,null,null,null,null,null,null,null,null,null,null,null,null,null,null,null,null,{"$f":"Noblanks(J134:J631)","v":""}]
[null,null,null,null,null,null,null,null,null,null,null,null,null,null,null,null,null,null,null,null,null,null,{"$f":"Noblanks(J135:J632)","v":""}]
[null,null,null,null,null,null,null,null,null,null,null,null,null,null,null,null,null,null,null,null,null,null,{"$f":"Noblanks(J136:J633)","v":""}]
[null,null,null,null,null,null,null,null,null,null,null,null,null,null,null,null,null,null,null,null,null,null,{"$f":"Noblanks(J137:J634)","v":""}]
[null,null,null,null,null,null,null,null,null,null,null,null,null,null,null,null,null,null,null,null,null,null,{"$f":"Noblanks(J138:J635)","v":""}]
[null,null,null,null,null,null,null,null,null,null,null,null,null,null,null,null,null,null,null,null,null,null,{"$f":"Noblanks(J139:J636)","v":""}]
[null,null,null,null,null,null,null,null,null,null,null,null,null,null,null,null,null,null,null,null,null,null,{"$f":"Noblanks(J140:J637)","v":""}]
[null,null,null,null,null,null,null,null,null,null,null,null,null,null,null,null,null,null,null,null,null,null,{"$f":"Noblanks(J141:J638)","v":""}]
[null,null,null,null,null,null,null,null,null,null,null,null,null,null,null,null,null,null,null,null,null,null,{"$f":"Noblanks(J142:J639)","v":""}]
[null,null,null,null,null,null,null,null,null,null,null,null,null,null,null,null,null,null,null,null,null,null,{"$f":"Noblanks(J143:J640)","v":""}]
[null,null,null,null,null,null,null,null,null,null,null,null,null,null,null,null,null,null,null,null,null,null,{"$f":"Noblanks(J144:J641)","v":""}]
[null,null,null,null,null,null,null,null,null,null,null,null,null,null,null,null,null,null,null,null,null,null,{"$f":"Noblanks(J145:J642)","v":""}]
[null,null,null,null,null,null,null,null,null,null,null,null,null,null,null,null,null,null,null,null,null,null,{"$f":"Noblanks(J146:J643)","v":""}]
[null,null,null,null,null,null,null,null,null,null,null,null,null,null,null,null,null,null,null,null,null,null,{"$f":"Noblanks(J147:J644)","v":""}]
[null,null,null,null,null,null,null,null,null,null,null,null,null,null,null,null,null,null,null,null,null,null,{"$f":"Noblanks(J148:J645)","v":""}]
[null,null,null,null,null,null,null,null,null,null,null,null,null,null,null,null,null,null,null,null,null,null,{"$f":"Noblanks(J149:J646)","v":""}]
[null,null,null,null,null,null,null,null,null,null,null,null,null,null,null,null,null,null,null,null,null,null,{"$f":"Noblanks(J150:J647)","v":""}]
[null,null,null,null,null,null,null,null,null,null,null,null,null,null,null,null,null,null,null,null,null,null,{"$f":"Noblanks(J151:J648)","v":""}]
[null,null,null,null,null,null,null,null,null,null,null,null,null,null,null,null,null,null,null,null,null,null,{"$f":"Noblanks(J152:J649)","v":""}]
[null,null,null,null,null,null,null,null,null,null,null,null,null,null,null,null,null,null,null,null,null,null,{"$f":"Noblanks(J153:J650)","v":""}]
[null,null,null,null,null,null,null,null,null,null,null,null,null,null,null,null,null,null,null,null,null,null,{"$f":"Noblanks(J154:J651)","v":""}]
[null,null,null,null,null,null,null,null,null,null,null,null,null,null,null,null,null,null,null,null,null,null,{"$f":"Noblanks(J155:J652)","v":""}]
[null,null,null,null,null,null,null,null,null,null,null,null,null,null,null,null,null,null,null,null,null,null,{"$f":"Noblanks(J156:J653)","v":""}]
[null,null,null,null,null,null,null,null,null,null,null,null,null,null,null,null,null,null,null,null,null,null,{"$f":"Noblanks(J157:J654)","v":""}]
[null,null,null,null,null,null,null,null,null,null,null,null,null,null,null,null,null,null,null,null,null,null,{"$f":"Noblanks(J158:J655)","v":""}]
[null,null,null,null,null,null,null,null,null,null,null,null,null,null,null,null,null,null,null,null,null,null,{"$f":"Noblanks(J159:J656)","v":""}]
[null,null,null,null,null,null,null,null,null,null,null,null,null,null,null,null,null,null,null,null,null,null,{"$f":"Noblanks(J160:J657)","v":""}]
[null,null,null,null,null,null,null,null,null,null,null,null,null,null,null,null,null,null,null,null,null,null,{"$f":"Noblanks(J161:J658)","v":""}]
[null,null,null,null,null,null,null,null,null,null,null,null,null,null,null,null,null,null,null,null,null,null,{"$f":"Noblanks(J162:J659)","v":""}]
[null,null,null,null,null,null,null,null,null,null,null,null,null,null,null,null,null,null,null,null,null,null,{"$f":"Noblanks(J163:J660)","v":""}]
[null,null,null,null,null,null,null,null,null,null,null,null,null,null,null,null,null,null,null,null,null,null,{"$f":"Noblanks(J164:J661)","v":""}]
[null,null,null,null,null,null,null,null,null,null,null,null,null,null,null,null,null,null,null,null,null,null,{"$f":"Noblanks(J165:J662)","v":""}]
[null,null,null,null,null,null,null,null,null,null,null,null,null,null,null,null,null,null,null,null,null,null,{"$f":"Noblanks(J166:J663)","v":""}]
[null,null,null,null,null,null,null,null,null,null,null,null,null,null,null,null,null,null,null,null,null,null,{"$f":"Noblanks(J167:J664)","v":""}]
[null,null,null,null,null,null,null,null,null,null,null,null,null,null,null,null,null,null,null,null,null,null,{"$f":"Noblanks(J168:J665)","v":""}]
[null,null,null,null,null,null,null,null,null,null,null,null,null,null,null,null,null,null,null,null,null,null,{"$f":"Noblanks(J169:J666)","v":""}]
[null,null,null,null,null,null,null,null,null,null,null,null,null,null,null,null,null,null,null,null,null,null,{"$f":"Noblanks(J170:J667)","v":""}]
[null,null,null,null,null,null,null,null,null,null,null,null,null,null,null,null,null,null,null,null,null,null,{"$f":"Noblanks(J171:J668)","v":""}]
[null,null,null,null,null,null,null,null,null,null,null,null,null,null,null,null,null,null,null,null,null,null,{"$f":"Noblanks(J172:J669)","v":""}]
[null,null,null,null,null,null,null,null,null,null,null,null,null,null,null,null,null,null,null,null,null,null,{"$f":"Noblanks(J173:J670)","v":""}]
[null,null,null,null,null,null,null,null,null,null,null,null,null,null,null,null,null,null,null,null,null,null,{"$f":"Noblanks(J174:J671)","v":""}]
[null,null,null,null,null,null,null,null,null,null,null,null,null,null,null,null,null,null,null,null,null,null,{"$f":"Noblanks(J175:J672)","v":""}]
[null,null,null,null,null,null,null,null,null,null,null,null,null,null,null,null,null,null,null,null,null,null,{"$f":"Noblanks(J176:J673)","v":""}]
[null,null,null,null,null,null,null,null,null,null,null,null,null,null,null,null,null,null,null,null,null,null,{"$f":"Noblanks(J177:J674)","v":""}]
[null,null,null,null,null,null,null,null,null,null,null,null,null,null,null,null,null,null,null,null,null,null,{"$f":"Noblanks(J178:J675)","v":""}]
[null,null,null,null,null,null,null,null,null,null,null,null,null,null,null,null,null,null,null,null,null,null,{"$f":"Noblanks(J179:J676)","v":""}]
[null,null,null,null,null,null,null,null,null,null,null,null,null,null,null,null,null,null,null,null,null,null,{"$f":"Noblanks(J180:J677)","v":""}]
[null,null,null,null,null,null,null,null,null,null,null,null,null,null,null,null,null,null,null,null,null,null,{"$f":"Noblanks(J181:J678)","v":""}]
[null,null,null,null,null,null,null,null,null,null,null,null,null,null,null,null,null,null,null,null,null,null,{"$f":"Noblanks(J182:J679)","v":""}]
[null,null,null,null,null,null,null,null,null,null,null,null,null,null,null,null,null,null,null,null,null,null,{"$f":"Noblanks(J183:J680)","v":""}]
[null,null,null,null,null,null,null,null,null,null,null,null,null,null,null,null,null,null,null,null,null,null,{"$f":"Noblanks(J184:J681)","v":""}]
[null,null,null,null,null,null,null,null,null,null,null,null,null,null,null,null,null,null,null,null,null,null,{"$f":"Noblanks(J185:J682)","v":""}]
[null,null,null,null,null,null,null,null,null,null,null,null,null,null,null,null,null,null,null,null,null,null,{"$f":"Noblanks(J186:J683)","v":""}]
[null,null,null,null,null,null,null,null,null,null,null,null,null,null,null,null,null,null,null,null,null,null,{"$f":"Noblanks(J187:J684)","v":""}]
[null,null,null,null,null,null,null,null,null,null,null,null,null,null,null,null,null,null,null,null,null,null,{"$f":"Noblanks(J188:J685)","v":""}]
[null,null,null,null,null,null,null,null,null,null,null,null,null,null,null,null,null,null,null,null,null,null,{"$f":"Noblanks(J189:J686)","v":""}]
[null,null,null,null,null,null,null,null,null,null,null,null,null,null,null,null,null,null,null,null,null,null,{"$f":"Noblanks(J190:J687)","v":""}]
[null,null,null,null,null,null,null,null,null,null,null,null,null,null,null,null,null,null,null,null,null,null,{"$f":"Noblanks(J191:J688)","v":""}]
[null,null,null,null,null,null,null,null,null,null,null,null,null,null,null,null,null,null,null,null,null,null,{"$f":"Noblanks(J192:J689)","v":""}]
[null,null,null,null,null,null,null,null,null,null,null,null,null,null,null,null,null,null,null,null,null,null,{"$f":"Noblanks(J193:J690)","v":""}]
[null,null,null,null,null,null,null,null,null,null,null,null,null,null,null,null,null,null,null,null,null,null,{"$f":"Noblanks(J194:J691)","v":""}]
[null,null,null,null,null,null,null,null,null,null,null,null,null,null,null,null,null,null,null,null,null,null,{"$f":"Noblanks(J195:J692)","v":""}]
[null,null,null,null,null,null,null,null,null,null,null,null,null,null,null,null,null,null,null,null,null,null,{"$f":"Noblanks(J196:J693)","v":""}]
[null,null,null,null,null,null,null,null,null,null,null,null,null,null,null,null,null,null,null,null,null,null,{"$f":"Noblanks(J197:J694)","v":""}]

{"sheet":"16-07-2019","index":3,"n_rows":198,"n_cols":25,"rows_kept":198,"cut":false,"hidden":false,"merged":[[0,14,0,19]]}
["Other","App. Date","Name","Surname","Pasaport No.","Date of birth","Note of stutus","Price $","Paid $","Route","Unpaid $",null,{"$f":"MID(CELL(\"filename\"),FIND(\"]\",CELL(\"filename\"))+1,LEN(CELL(\"filename\"))-FIND(\"]\",CELL(\"filename\")))","v":"Main of June"},null,"TOTAL"]
[]
[null,null,null,null,null,null,null,null,null,"fffff",100,null,"DONE",null,"Total amount",null,null,null,"Route","Total Unpaid",null,null,{"$f":"Noblanks(J2:J499)","v":"fffff"},"Route","Count of Route"]
[null,null,null,null,null,null,null,null,null,null,null,null,"CANCELLED",null,{"$f":"SUM(H2:H69)","v":170},null,null,null,{"$f":"IF(ISERROR(INDEX($W$3:$W$70,MATCH(0,COUNTIF($S$3:S3,$W$3:$W$69),0))),\"\",INDEX($W$3:$W$69,MATCH(0,COUNTIF($S$3:S3,$W$3:$W$69),0)))","v":"fffff"},{"$f":"IF(S4<>\"\",SUMPRODUCT(--($J$2:$J$69=S4),$K$2:$K$69),\"\")","v":100},null,null,{"$f":"Noblanks(U6:U499)","v":"fffff"},"MISTAKE IN DOB",{"$f":"COUNTIF(J2:J70,\"MISTAKE IN DOB\")","v":0}]
[null,"1900-01-10",null,null,null,null,null,170,150,null,null,null,"REFUSED",null,null,null,null,null,{"$f":"IF(ISERROR(INDEX($W$3:$W$70,MATCH(0,COUNTIF($S$3:S4,$W$3:$W$69),0))),\"\",INDEX($W$3:$W$69,MATCH(0,COUNTIF($S$3:S4,$W$3:$W$69),0)))","v":""},{"$f":"IF(S5<>\"\",SUMPRODUCT(--($J$2:$J$69=S5),$K$2:$K$69),\"\")","v":""},null,null,{"$f":"Noblanks(U7:U500)","v":"fffff"}]
[null,"1900-01-20",null,null,null,null,null,null,null,null,null,null,"MISTAKE",null,"Total Paid",null,"Difrent amount",null,{"$f":"IF(ISERROR(INDEX($W$3:$W$70,MATCH(0,COUNTIF($S$3:S5,$W$3:$W$69),0))),\"\",INDEX($W$3:$W$69,MATCH(0,COUNTIF($S$3:S5,$W$3:$W$69),0)))","v":""},{"$f":"IF(S6<>\"\",SUMPRODUCT(--($J$2:$J$69=S6),$K$2:$K$69),\"\")","v":""},{"$f":"IF(K2=\"\",\"\",J2)","v":""},null,{"$f":"Noblanks(U8:U501)","v":""}]
[null,null,null,null,null,null,null,null,null,null,null,null,"GREEN PASS.",null,{"$f":"SUM(I2:I67)","v":150},null,{"$f":"O4-(O7+T23)","v":-80},null,{"$f":"IF(ISERROR(INDEX($W$3:$W$70,MATCH(0,COUNTIF($S$3:S6,$W$3:$W$69),0))),\"\",INDEX($W$3:$W$69,MATCH(0,COUNTIF($S$3:S6,$W$3:$W$69),0)))","v":""},{"$f":"IF(S7<>\"\",SUMPRODUCT(--($J$2:$J$69=S7),$K$2:$K$69),\"\")","v":""},"fffff",null,{"$f":"Noblanks(U9:U502)","v":""}]
[null,null,null,null,null,null,null,null,null,null,null,null,null,null,null,null,null,null,{"$f":"IF(ISERROR(INDEX($W$3:$W$70,MATCH(0,COUNTIF($S$3:S7,$W$3:$W$69),0))),\"\",INDEX($W$3:$W$69,MATCH(0,COUNTIF($S$3:S7,$W$3:$W$69),0)))","v":""},{"$f":"IF(S8<>\"\",SUMPRODUCT(--($J$2:$J$69=S8),$K$2:$K$69),\"\")","v":""},"",null,{"$f":"Noblanks(U10:U503)","v":""}]
[null,null,null,null,null,null,null,null,null,null,null,null,null,null,"Total UnPaid",null,{"$f":"COUNT(B:B)","v":2},null,{"$f":"IF(ISERROR(INDEX($W$3:$W$70,MATCH(0,COUNTIF($S$3:S8,$W$3:$W$69),0))),\"\",INDEX($W$3:$W$69,MATCH(0,COUNTIF($S$3:S8,$W$3:$W$69),0)))","v":""},{"$f":"IF(S9<>\"\",SUMPRODUCT(--($J$2:$J$69=S9),$K$2:$K$69),\"\")","v":""},"",null,{"$f":"Noblanks(U11:U504)","v":""}]
[null,null,null,null,null,null,null,null,null,null,null,null,null,null,{"$f":"SUM(T4:T15)","v":100},null,null,null,{"$f":"IF(ISERROR(INDEX($W$3:$W$70,MATCH(0,COUNTIF($S$3:S9,$W$3:$W$69),0))),\"\",INDEX($W$3:$W$69,MATCH(0,COUNTIF($S$3:S9,$W$3:$W$69),0)))","v":""},{"$f":"IF(S10<>\"\",SUMPRODUCT(--($J$2:$J$69=S10),$K$2:$K$69),\"\")","v":""},"",null,{"$f":"Noblanks(U12:U505)","v":""}]
[null,null,null,null,null,null,null,null,null,null,null,null,null,null,null,null,null,null,{"$f":"IF(ISERROR(INDEX($W$3:$W$70,MATCH(0,COUNTIF($S$3:S10,$W$3:$W$69),0))),\"\",INDEX($W$3:$W$69,MATCH(0,COUNTIF($S$3:S10,$W$3:$W$69),0)))","v":""},{"$f":"IF(S11<>\"\",SUMPRODUCT(--($J$2:$J$69=S11),$K$2:$K$69),\"\")","v":""},"",null,{"$f":"Noblanks(U13:U506)","v":""}]
[null,null,null,null,null,null,null,null,null,null,null,null,null,null,null,null,null,null,{"$f":"IF(ISERROR(INDEX($W$3:$W$70,MATCH(0,COUNTIF($S$3:S11,$W$3:$W$69),0))),\"\",INDEX($W$3:$W$69,MATCH(0,COUNTIF($S$3:S11,$W$3:$W$69),0)))","v":""},{"$f":"IF(S12<>\"\",SUMPRODUCT(--($J$2:$J$69=S12),$K$2:$K$69),\"\")","v":""},"",null,{"$f":"Noblanks(U14:U507)","v":""}]
[null,null,null,null,null,null,null,null,null,null,null,null,null,null,null,null,null,null,{"$f":"IF(ISERROR(INDEX($W$3:$W$70,MATCH(0,COUNTIF($S$3:S12,$W$3:$W$69),0))),\"\",INDEX($W$3:$W$69,MATCH(0,COUNTIF($S$3:S12,$W$3:$W$69),0)))","v":""},null,"",null,{"$f":"Noblanks(U15:U508)","v":""}]
[null,null,null,null,null,null,null,null,null,null,null,null,null,null,null,null,null,null,{"$f":"IF(ISERROR(INDEX($W$3:$W$70,MATCH(0,COUNTIF($S$3:S13,$W$3:$W$69),0))),\"\",INDEX($W$3:$W$69,MATCH(0,COUNTIF($S$3:S13,$W$3:$W$69),0)))","v":""},null,"",null,{"$f":"Noblanks(U16:U509)","v":""}]
[null,null,null,null,null,null,null,null,null,null,null,null,null,null,null,null,null,null,{"$f":"IF(ISERROR(INDEX($W$3:$W$70,MATCH(0,COUNTIF($S$3:S14,$W$3:$W$69),0))),\"\",INDEX($W$3:$W$69,MATCH(0,COUNTIF($S$3:S14,$W$3:$W$69),0)))","v":""},null,"",null,{"$f":"Noblanks(U17:U510)","v":""}]
[null,null,null,null,null,null,null,null,null,null,null,null,null,null,null,null,null,null,{"$f":"IF(ISERROR(INDEX($W$3:$W$70,MATCH(0,COUNTIF($S$3:S15,$W$3:$W$69),0))),\"\",INDEX($W$3:$W$69,MATCH(0,COUNTIF($S$3:S15,$W$3:$W$69),0)))","v":""},null,"",{"$f":"Noblanks(X13:X15)","v":""},{"$f":"Noblanks(U18:U511)","v":""}]
[null,null,null,null,null,null,null,null,null,null,null,null,null,null,null,null,null,null,{"$f":"IF(ISERROR(INDEX($W$3:$W$70,MATCH(0,COUNTIF($S$3:S16,$W$3:$W$69),0))),\"\",INDEX($W$3:$W$69,MATCH(0,COUNTIF($S$3:S16,$W$3:$W$69),0)))","v":""},null,"",{"$f":"Noblanks(X14:X16)","v":""},{"$f":"Noblanks(U19:U512)","v":""}]
[null,null,null,null,null,null,null,null,null,null,null,null,null,null,null,null,null,null,{"$f":"IF(ISERROR(INDEX($W$3:$W$70,MATCH(0,COUNTIF($S$3:S17,$W$3:$W$69),0))),\"\",INDEX($W$3:$W$69,MATCH(0,COUNTIF($S$3:S17,$W$3:$W$69),0)))","v":""},null,"",null,{"$f":"Noblanks(U20:U513)","v":""}]
[null,null,null,null,null,null,null,null,null,null,null,null,null,null,null,null,null,null,{"$f":"IF(ISERROR(INDEX($W$3:$W$70,MATCH(0,COUNTIF($S$3:S18,$W$3:$W$69),0))),\"\",INDEX($W$3:$W$69,MATCH(0,COUNTIF($S$3:S18,$W$3:$W$69),0)))","v":""},null,"",null,{"$f":"Noblanks(U21:U514)","v":""}]
[null,null,null,null,null,null,null,null,null,null,null,null,null,null,null,null,null,null,{"$f":"IF(ISERROR(INDEX($W$3:$W$70,MATCH(0,COUNTIF($S$3:S19,$W$3:$W$69),0))),\"\",INDEX($W$3:$W$69,MATCH(0,COUNTIF($S$3:S19,$W$3:$W$69),0)))","v":""},null,"",null,{"$f":"Noblanks(U22:U515)","v":""}]
[null,null,null,null,null,null,null,null,null,null,null,null,null,null,null,null,null,null,{"$f":"IF(ISERROR(INDEX($W$3:$W$70,MATCH(0,COUNTIF($S$3:S20,$W$3:$W$69),0))),\"\",INDEX($W$3:$W$69,MATCH(0,COUNTIF($S$3:S20,$W$3:$W$69),0)))","v":""},null,"",null,{"$f":"Noblanks(U23:U516)","v":""}]
[null,null,null,null,null,null,null,null,null,null,null,null,null,null,null,null,null,null,{"$f":"IF(ISERROR(INDEX($W$3:$W$70,MATCH(0,COUNTIF($S$3:S21,$W$3:$W$69),0))),\"\",INDEX($W$3:$W$69,MATCH(0,COUNTIF($S$3:S21,$W$3:$W$69),0)))","v":""},null,"",null,{"$f":"Noblanks(U24:U517)","v":""},null,{"$f":"IFERROR(INDEX($J$2:$J$499,SMALL(IF($J$2:$J$499<>\"\",ROW($J$1:$J$499)-ROW($J$2)+1,\"\"),ROWS($Y$21:Y22))),\"\")","v":""}]
[null,null,null,null,null,null,null,null,null,null,null,null,null,null,null,null,null,null,"Total",{"$f":"SUM(T4:T22)","v":100},"",null,{"$f":"Noblanks(U25:U518)","v":""},null,{"$f":"IFERROR(INDEX($J$2:$J$499,SMALL(IF($J$2:$J$499<>\"\",ROW($J$1:$J$499)-ROW($J$2)+1,\"\"),ROWS($Y$21:Y23))),\"\")","v":""}]
[null,null,null,null,null,null,null,null,null,null,null,null,null,null,null,null,null,null,null,null,"",null,{"$f":"Noblanks(U26:U519)","v":""},null,{"$f":"IFERROR(INDEX($J$2:$J$499,SMALL(IF($J$2:$J$499<>\"\",ROW($J$1:$J$499)-ROW($J$2)+1,\"\"),ROWS($Y$21:Y24))),\"\")","v":""}]
[null,null,null,null,null,null,null,null,null,null,null,null,null,null,null,null,null,null,null,null,"",null,{"$f":"Noblanks(U27:U520)","v":""},null,{"$f":"IFERROR(INDEX($J$2:$J$499,SMALL(IF($J$2:$J$499<>\"\",ROW($J$1:$J$499)-ROW($J$2)+1,\"\"),ROWS($Y$21:Y25))),\"\")","v":""}]
[null,null,null,null,null,null,null,null,null,null,null,null,null,null,null,null,null,null,null,null,"",null,{"$f":"Noblanks(U28:U521)","v":""}]
[null,null,null,null,null,null,null,null,null,null,null,null,null,null,null,null,null,null,null,null,"",null,{"$f":"Noblanks(U29:U522)","v":""}]
[null,null,null,null,null,null,null,null,null,null,null,null,null,null,null,null,null,null,null,null,"",null,{"$f":"Noblanks(U30:U523)","v":""}]
[null,null,null,null,null,null,null,null,null,null,null,null,null,null,null,null,null,null,null,null,"",null,{"$f":"Noblanks(U31:U524)","v":""}]
[null,null,null,null,null,null,null,null,null,null,null,null,null,null,null,null,null,null,null,null,"",null,{"$f":"Noblanks(U32:U525)","v":""}]
[null,null,null,null,null,null,null,null,null,null,null,null,null,null,null,null,null,null,null,null,"",null,{"$f":"Noblanks(U33:U526)","v":""}]
[null,null,null,null,null,null,null,null,null,null,null,null,null,null,null,null,null,null,null,null,"",null,{"$f":"Noblanks(U34:U527)","v":""}]
[null,null,null,null,null,null,null,null,null,null,null,null,null,null,null,null,null,null,null,null,"",null,{"$f":"Noblanks(U35:U528)","v":""}]
[null,null,null,null,null,null,null,null,null,null,null,null,null,null,null,null,null,null,null,null,"",null,{"$f":"Noblanks(U36:U529)","v":""}]
[null,null,null,null,null,null,null,null,null,null,null,null,null,null,null,null,null,null,null,null,"",null,{"$f":"Noblanks(U37:U530)","v":""}]
[null,null,null,null,null,null,null,null,null,null,null,null,null,null,null,null,null,null,null,null,"",null,{"$f":"Noblanks(U38:U531)","v":""}]
[null,null,null,null,null,null,null,null,null,null,null,null,null,null,null,null,null,null,null,null,"",null,{"$f":"Noblanks(U39:U532)","v":""}]
[null,null,null,null,null,null,null,null,null,null,null,null,null,null,null,null,null,null,null,null,"",null,{"$f":"Noblanks(U40:U533)","v":""}]
[null,null,null,null,null,null,null,null,null,null,null,null,null,null,null,null,null,null,null,null,"",null,{"$f":"Noblanks(U41:U534)","v":""}]
[null,null,null,null,null,null,null,null,null,null,null,null,null,null,null,null,null,null,null,null,"",null,{"$f":"Noblanks(U42:U535)","v":""}]
[null,null,null,null,null,null,null,null,null,null,null,null,null,null,null,null,null,null,null,null,"",null,{"$f":"Noblanks(U43:U536)","v":""}]
[null,null,null,null,null,null,null,null,null,null,null,null,null,null,null,null,null,null,null,null,"",null,{"$f":"Noblanks(U44:U537)","v":""}]
[null,null,null,null,null,null,null,null,null,null,null,null,null,null,null,null,null,null,null,null,"",null,{"$f":"Noblanks(U45:U538)","v":""}]
[null,null,null,null,null,null,null,null,null,null,null,null,null,null,null,null,null,null,null,null,"",null,{"$f":"Noblanks(U46:U539)","v":""}]
[null,null,null,null,null,null,null,null,null,null,null,null,null,null,null,null,null,null,null,null,"",null,{"$f":"Noblanks(U47:U540)","v":""}]
[null,null,null,null,null,null,null,null,null,null,null,null,null,null,null,null,null,null,null,null,"",null,{"$f":"Noblanks(U48:U541)","v":""}]
[null,null,null,null,null,null,null,null,null,null,null,null,null,null,null,null,null,null,null,null,"",null,{"$f":"Noblanks(U49:U542)","v":""}]
[null,null,null,null,null,null,null,null,null,null,null,null,null,null,null,null,null,null,null,null,"",null,{"$f":"Noblanks(U50:U543)","v":""}]
[null,null,null,null,null,null,null,null,null,null,null,null,null,null,null,null,null,null,null,null,"",null,{"$f":"Noblanks(U51:U544)","v":""}]
[null,null,null,null,null,null,null,null,null,null,null,null,null,null,null,null,null,null,null,null,"",null,{"$f":"Noblanks(U52:U545)","v":""}]
[null,null,null,null,null,null,null,null,null,null,null,null,null,null,null,null,null,null,null,null,"",null,{"$f":"Noblanks(U53:U546)","v":""}]
[null,null,null,null,null,null,null,null,null,null,null,null,null,null,null,null,null,null,null,null,"",null,{"$f":"Noblanks(U54:U547)","v":""}]
[null,null,null,null,null,null,null,null,null,null,null,null,null,null,null,null,null,null,null,null,"",null,{"$f":"Noblanks(U55:U548)","v":""}]
[null,null,null,null,null,null,null,null,null,null,null,null,null,null,null,null,null,null,null,null,"",null,{"$f":"Noblanks(U56:U549)","v":""}]
[null,null,null,null,null,null,null,null,null,null,null,null,null,null,null,null,null,null,null,null,"",null,{"$f":"Noblanks(U57:U550)","v":""}]
[null,null,null,null,null,null,null,null,null,null,null,null,null,null,null,null,null,null,null,null,"",null,{"$f":"Noblanks(U58:U551)","v":""}]
[null,null,null,null,null,null,null,null,null,null,null,null,null,null,null,null,null,null,null,null,"",null,{"$f":"Noblanks(U59:U552)","v":""}]
[null,null,null,null,null,null,null,null,null,null,null,null,null,null,null,null,null,null,null,null,"",null,{"$f":"Noblanks(U60:U553)","v":""}]
[null,null,null,null,null,null,null,null,null,null,null,null,null,null,null,null,null,null,null,null,"",null,{"$f":"Noblanks(U61:U554)","v":""}]
[null,null,null,null,null,null,null,null,null,null,null,null,null,null,null,null,null,null,null,null,"",null,{"$f":"Noblanks(U62:U555)","v":""}]
[null,null,null,null,null,null,null,null,null,null,null,null,null,null,null,null,null,null,null,null,"",null,{"$f":"Noblanks(U63:U556)","v":""}]
[null,null,null,null,null,null,null,null,null,null,null,null,null,null,null,null,null,null,null,null,"",null,{"$f":"Noblanks(U64:U557)","v":""}]
[null,null,null,null,null,null,null,null,null,null,null,null,null,null,null,null,null,null,null,null,"",null,{"$f":"Noblanks(U65:U558)","v":""}]
[null,null,null,null,null,null,null,null,null,null,null,null,null,null,null,null,null,null,null,null,"",null,{"$f":"Noblanks(U66:U559)","v":""}]
[null,null,null,null,null,null,null,null,null,null,null,null,null,null,null,null,null,null,null,null,"",null,{"$f":"Noblanks(U67:U560)","v":""}]
[null,null,null,null,null,null,null,null,null,null,null,null,null,null,null,null,null,null,null,null,"",null,{"$f":"Noblanks(U68:U561)","v":""}]
[null,null,null,null,null,null,null,null,null,null,null,null,null,null,null,null,null,null,null,null,"",null,{"$f":"Noblanks(U69:U562)","v":""}]
[null,null,null,null,null,null,null,null,null,null,null,null,null,null,null,null,null,null,null,null,"",null,{"$f":"Noblanks(U70:U563)","v":""}]
[null,null,null,null,null,null,null,null,null,null,null,null,null,null,null,null,null,null,null,null,"",null,{"$f":"Noblanks(U71:U564)","v":""}]
[null,null,null,null,null,null,null,null,null,null,null,null,null,null,null,null,null,null,null,null,{"$f":"IF(K66=\"\",\"\",J66)","v":""},null,{"$f":"Noblanks(U72:U565)","v":""}]
[null,null,null,null,null,null,null,null,null,null,null,null,null,null,null,null,null,null,null,null,"",null,{"$f":"Noblanks(U73:U566)","v":""}]
[null,null,null,null,null,null,null,null,null,null,null,null,null,null,null,null,null,null,null,null,"",null,{"$f":"Noblanks(U74:U567)","v":""}]
[null,null,null,null,null,null,null,null,null,null,null,null,null,null,null,null,null,null,null,null,"",null,{"$f":"Noblanks(U75:U568)","v":""}]
[null,null,null,null,null,null,null,null,null,null,null,null,null,null,null,null,null,null,null,null,"",null,{"$f":"Noblanks(U76:U569)","v":""}]
[null,null,null,null,null,null,null,null,null,null,null,null,null,null,null,null,null,null,null,null,"",null,{"$f":"Noblanks(U77:U570)","v":""}]
[null,null,null,null,null,null,null,null,null,null,null,null,null,null,null,null,null,null,null,null,"",null,{"$f":"Noblanks(U78:U571)","v":""}]
[null,null,null,null,null,null,null,null,null,null,null,null,null,null,null,null,null,null,null,null,"",null,{"$f":"Noblanks(U79:U572)","v":""}]
[null,null,null,null,null,null,null,null,null,null,null,null,null,null,null,null,null,null,null,null,"",null,{"$f":"Noblanks(U80:U573)","v":""}]
[null,null,null,null,null,null,null,null,null,null,null,null,null,null,null,null,null,null,null,null,"",null,{"$f":"Noblanks(U81:U574)","v":""}]
[null,null,null,null,null,null,null,null,null,null,null,null,null,null,null,null,null,null,null,null,"",null,{"$f":"Noblanks(U82:U575)","v":""}]
[null,null,null,null,null,null,null,null,null,null,null,null,null,null,null,null,null,null,null,null,"",null,{"$f":"Noblanks(U83:U576)","v":""}]
[null,null,null,null,null,null,null,null,null,null,null,null,null,null,null,null,null,null,null,null,"",null,{"$f":"Noblanks(U84:U577)","v":""}]
[null,null,null,null,null,null,null,null,null,null,null,null,null,null,null,null,null,null,null,null,"",null,{"$f":"Noblanks(U85:U578)","v":""}]
[null,null,null,null,null,null,null,null,null,null,null,null,null,null,null,null,null,null,null,null,"",null,{"$f":"Noblanks(U86:U579)","v":""}]
[null,null,null,null,null,null,null,null,null,null,null,null,null,null,null,null,null,null,null,null,"",null,{"$f":"Noblanks(U87:U580)","v":""}]
[null,null,null,null,null,null,null,null,null,null,null,null,null,null,null,null,null,null,null,null,"",null,{"$f":"Noblanks(U88:U581)","v":""}]
[null,null,null,null,null,null,null,null,null,null,null,null,null,null,null,null,null,null,null,null,"",null,{"$f":"Noblanks(J86:J583)","v":""}]
[null,null,null,null,null,null,null,null,null,null,null,null,null,null,null,null,null,null,null,null,"",null,{"$f":"Noblanks(J87:J584)","v":""}]
[null,null,null,null,null,null,null,null,null,null,null,null,null,null,null,null,null,null,null,null,"",null,{"$f":"Noblanks(J88:J585)","v":""}]
[null,null,null,null,null,null,null,null,null,null,null,null,null,null,null,null,null,null,null,null,"",null,{"$f":"Noblanks(J89:J586)","v":""}]
[null,null,null,null,null,null,null,null,null,null,null,null,null,null,null,null,null,null,null,null,"",null,{"$f":"Noblanks(J90:J587)","v":""}]
[null,null,null,null,null,null,null,null,null,null,null,null,null,null,null,null,null,null,null,null,"",null,{"$f":"Noblanks(J91:J588)","v":""}]
[null,null,null,null,null,null,null,null,null,null,null,null,null,null,null,null,null,null,null,null,"",null,{"$f":"Noblanks(J92:J589)","v":""}]
[null,null,null,null,null,null,null,null,null,null,null,null,null,null,null,null,null,null,null,null,"",null,{"$f":"Noblanks(J93:J590)","v":""}]
[null,null,null,null,null,null,null,null,null,null,null,null,null,null,null,null,null,null,null,null,"",null,{"$f":"Noblanks(J94:J591)","v":""}]
[null,null,null,null,null,null,null,null,null,null,null,null,null,null,null,null,null,null,null,null,"",null,{"$f":"Noblanks(J95:J592)","v":""}]
[null,null,null,null,null,null,null,null,null,null,null,null,null,null,null,null,null,null,null,null,"",null,{"$f":"Noblanks(J96:J593)","v":""}]
[null,null,null,null,null,null,null,null,null,null,null,null,null,null,null,null,null,null,null,null,"",null,{"$f":"Noblanks(J97:J594)","v":""}]
[null,null,null,null,null,null,null,null,null,null,null,null,null,null,null,null,null,null,null,null,"",null,{"$f":"Noblanks(J98:J595)","v":""}]
[null,null,null,null,null,null,null,null,null,null,null,null,null,null,null,null,null,null,null,null,"",null,{"$f":"Noblanks(J99:J596)","v":""}]
[null,null,null,null,null,null,null,null,null,null,null,null,null,null,null,null,null,null,null,null,"",null,{"$f":"Noblanks(J100:J597)","v":""}]
[null,null,null,null,null,null,null,null,null,null,null,null,null,null,null,null,null,null,null,null,"",null,{"$f":"Noblanks(J101:J598)","v":""}]
[null,null,null,null,null,null,null,null,null,null,null,null,null,null,null,null,null,null,null,null,null,null,{"$f":"Noblanks(J102:J599)","v":""}]
[null,null,null,null,null,null,null,null,null,null,null,null,null,null,null,null,null,null,null,null,null,null,{"$f":"Noblanks(J103:J600)","v":""}]
[null,null,null,null,null,null,null,null,null,null,null,null,null,null,null,null,null,null,null,null,null,null,{"$f":"Noblanks(J104:J601)","v":""}]
[null,null,null,null,null,null,null,null,null,null,null,null,null,null,null,null,null,null,null,null,null,null,{"$f":"Noblanks(J105:J602)","v":""}]
[null,null,null,null,null,null,null,null,null,null,null,null,null,null,null,null,null,null,null,null,null,null,{"$f":"Noblanks(J106:J603)","v":""}]
[null,null,null,null,null,null,null,null,null,null,null,null,null,null,null,null,null,null,null,null,null,null,{"$f":"Noblanks(J107:J604)","v":""}]
[null,null,null,null,null,null,null,null,null,null,null,null,null,null,null,null,null,null,null,null,null,null,{"$f":"Noblanks(J108:J605)","v":""}]
[null,null,null,null,null,null,null,null,null,null,null,null,null,null,null,null,null,null,null,null,null,null,{"$f":"Noblanks(J109:J606)","v":""}]
[null,null,null,null,null,null,null,null,null,null,null,null,null,null,null,null,null,null,null,null,null,null,{"$f":"Noblanks(J110:J607)","v":""}]
[null,null,null,null,null,null,null,null,null,null,null,null,null,null,null,null,null,null,null,null,null,null,{"$f":"Noblanks(J111:J608)","v":""}]
[null,null,null,null,null,null,null,null,null,null,null,null,null,null,null,null,null,null,null,null,null,null,{"$f":"Noblanks(J112:J609)","v":""}]
[null,null,null,null,null,null,null,null,null,null,null,null,null,null,null,null,null,null,null,null,null,null,{"$f":"Noblanks(J113:J610)","v":""}]
[null,null,null,null,null,null,null,null,null,null,null,null,null,null,null,null,null,null,null,null,null,null,{"$f":"Noblanks(J114:J611)","v":""}]
[null,null,null,null,null,null,null,null,null,null,null,null,null,null,null,null,null,null,null,null,null,null,{"$f":"Noblanks(J115:J612)","v":""}]
[null,null,null,null,null,null,null,null,null,null,null,null,null,null,null,null,null,null,null,null,null,null,{"$f":"Noblanks(J116:J613)","v":""}]
[null,null,null,null,null,null,null,null,null,null,null,null,null,null,null,null,null,null,null,null,null,null,{"$f":"Noblanks(J117:J614)","v":""}]
[null,null,null,null,null,null,null,null,null,null,null,null,null,null,null,null,null,null,null,null,null,null,{"$f":"Noblanks(J118:J615)","v":""}]
[null,null,null,null,null,null,null,null,null,null,null,null,null,null,null,null,null,null,null,null,null,null,{"$f":"Noblanks(J119:J616)","v":""}]
[null,null,null,null,null,null,null,null,null,null,null,null,null,null,null,null,null,null,null,null,null,null,{"$f":"Noblanks(J120:J617)","v":""}]
[null,null,null,null,null,null,null,null,null,null,null,null,null,null,null,null,null,null,null,null,null,null,{"$f":"Noblanks(J121:J618)","v":""}]
[null,null,null,null,null,null,null,null,null,null,null,null,null,null,null,null,null,null,null,null,null,null,{"$f":"Noblanks(J122:J619)","v":""}]
[null,null,null,null,null,null,null,null,null,null,null,null,null,null,null,null,null,null,null,null,null,null,{"$f":"Noblanks(J123:J620)","v":""}]
[null,null,null,null,null,null,null,null,null,null,null,null,null,null,null,null,null,null,null,null,null,null,{"$f":"Noblanks(J124:J621)","v":""}]
[null,null,null,null,null,null,null,null,null,null,null,null,null,null,null,null,null,null,null,null,null,null,{"$f":"Noblanks(J125:J622)","v":""}]
[null,null,null,null,null,null,null,null,null,null,null,null,null,null,null,null,null,null,null,null,null,null,{"$f":"Noblanks(J126:J623)","v":""}]
[null,null,null,null,null,null,null,null,null,null,null,null,null,null,null,null,null,null,null,null,null,null,{"$f":"Noblanks(J127:J624)","v":""}]
[null,null,null,null,null,null,null,null,null,null,null,null,null,null,null,null,null,null,null,null,null,null,{"$f":"Noblanks(J128:J625)","v":""}]
[null,null,null,null,null,null,null,null,null,null,null,null,null,null,null,null,null,null,null,null,null,null,{"$f":"Noblanks(J129:J626)","v":""}]
[null,null,null,null,null,null,null,null,null,null,null,null,null,null,null,null,null,null,null,null,null,null,{"$f":"Noblanks(J130:J627)","v":""}]
[null,null,null,null,null,null,null,null,null,null,null,null,null,null,null,null,null,null,null,null,null,null,{"$f":"Noblanks(J131:J628)","v":""}]
[null,null,null,null,null,null,null,null,null,null,null,null,null,null,null,null,null,null,null,null,null,null,{"$f":"Noblanks(J132:J629)","v":""}]
[null,null,null,null,null,null,null,null,null,null,null,null,null,null,null,null,null,null,null,null,null,null,{"$f":"Noblanks(J133:J630)","v":""}]
[null,null,null,null,null,null,null,null,null,null,null,null,null,null,null,null,null,null,null,null,null,null,{"$f":"Noblanks(J134:J631)","v":""}]
[null,null,null,null,null,null,null,null,null,null,null,null,null,null,null,null,null,null,null,null,null,null,{"$f":"Noblanks(J135:J632)","v":""}]
[null,null,null,null,null,null,null,null,null,null,null,null,null,null,null,null,null,null,null,null,null,null,{"$f":"Noblanks(J136:J633)","v":""}]
[null,null,null,null,null,null,null,null,null,null,null,null,null,null,null,null,null,null,null,null,null,null,{"$f":"Noblanks(J137:J634)","v":""}]
[null,null,null,null,null,null,null,null,null,null,null,null,null,null,null,null,null,null,null,null,null,null,{"$f":"Noblanks(J138:J635)","v":""}]
[null,null,null,null,null,null,null,null,null,null,null,null,null,null,null,null,null,null,null,null,null,null,{"$f":"Noblanks(J139:J636)","v":""}]
[null,null,null,null,null,null,null,null,null,null,null,null,null,null,null,null,null,null,null,null,null,null,{"$f":"Noblanks(J140:J637)","v":""}]
[null,null,null,null,null,null,null,null,null,null,null,null,null,null,null,null,null,null,null,null,null,null,{"$f":"Noblanks(J141:J638)","v":""}]
[null,null,null,null,null,null,null,null,null,null,null,null,null,null,null,null,null,null,null,null,null,null,{"$f":"Noblanks(J142:J639)","v":""}]
[null,null,null,null,null,null,null,null,null,null,null,null,null,null,null,null,null,null,null,null,null,null,{"$f":"Noblanks(J143:J640)","v":""}]
[null,null,null,null,null,null,null,null,null,null,null,null,null,null,null,null,null,null,null,null,null,null,{"$f":"Noblanks(J144:J641)","v":""}]
[null,null,null,null,null,null,null,null,null,null,null,null,null,null,null,null,null,null,null,null,null,null,{"$f":"Noblanks(J145:J642)","v":""}]
[null,null,null,null,null,null,null,null,null,null,null,null,null,null,null,null,null,null,null,null,null,null,{"$f":"Noblanks(J146:J643)","v":""}]
[null,null,null,null,null,null,null,null,null,null,null,null,null,null,null,null,null,null,null,null,null,null,{"$f":"Noblanks(J147:J644)","v":""}]
[null,null,null,null,null,null,null,null,null,null,null,null,null,null,null,null,null,null,null,null,null,null,{"$f":"Noblanks(J148:J645)","v":""}]
[null,null,null,null,null,null,null,null,null,null,null,null,null,null,null,null,null,null,null,null,null,null,{"$f":"Noblanks(J149:J646)","v":""}]
[null,null,null,null,null,null,null,null,null,null,null,null,null,null,null,null,null,null,null,null,null,null,{"$f":"Noblanks(J150:J647)","v":""}]
[null,null,null,null,null,null,null,null,null,null,null,null,null,null,null,null,null,null,null,null,null,null,{"$f":"Noblanks(J151:J648)","v":""}]
[null,null,null,null,null,null,null,null,null,null,null,null,null,null,null,null,null,null,null,null,null,null,{"$f":"Noblanks(J152:J649)","v":""}]
[null,null,null,null,null,null,null,null,null,null,null,null,null,null,null,null,null,null,null,null,null,null,{"$f":"Noblanks(J153:J650)","v":""}]
[null,null,null,null,null,null,null,null,null,null,null,null,null,null,null,null,null,null,null,null,null,null,{"$f":"Noblanks(J154:J651)","v":""}]
[null,null,null,null,null,null,null,null,null,null,null,null,null,null,null,null,null,null,null,null,null,null,{"$f":"Noblanks(J155:J652)","v":""}]
[null,null,null,null,null,null,null,null,null,null,null,null,null,null,null,null,null,null,null,null,null,null,{"$f":"Noblanks(J156:J653)","v":""}]
[null,null,null,null,null,null,null,null,null,null,null,null,null,null,null,null,null,null,null,null,null,null,{"$f":"Noblanks(J157:J654)","v":""}]
[null,null,null,null,null,null,null,null,null,null,null,null,null,null,null,null,null,null,null,null,null,null,{"$f":"Noblanks(J158:J655)","v":""}]
[null,null,null,null,null,null,null,null,null,null,null,null,null,null,null,null,null,null,null,null,null,null,{"$f":"Noblanks(J159:J656)","v":""}]
[null,null,null,null,null,null,null,null,null,null,null,null,null,null,null,null,null,null,null,null,null,null,{"$f":"Noblanks(J160:J657)","v":""}]
[null,null,null,null,null,null,null,null,null,null,null,null,null,null,null,null,null,null,null,null,null,null,{"$f":"Noblanks(J161:J658)","v":""}]
[null,null,null,null,null,null,null,null,null,null,null,null,null,null,null,null,null,null,null,null,null,null,{"$f":"Noblanks(J162:J659)","v":""}]
[null,null,null,null,null,null,null,null,null,null,null,null,null,null,null,null,null,null,null,null,null,null,{"$f":"Noblanks(J163:J660)","v":""}]
[null,null,null,null,null,null,null,null,null,null,null,null,null,null,null,null,null,null,null,null,null,null,{"$f":"Noblanks(J164:J661)","v":""}]
[null,null,null,null,null,null,null,null,null,null,null,null,null,null,null,null,null,null,null,null,null,null,{"$f":"Noblanks(J165:J662)","v":""}]
[null,null,null,null,null,null,null,null,null,null,null,null,null,null,null,null,null,null,null,null,null,null,{"$f":"Noblanks(J166:J663)","v":""}]
[null,null,null,null,null,null,null,null,null,null,null,null,null,null,null,null,null,null,null,null,null,null,{"$f":"Noblanks(J167:J664)","v":""}]
[null,null,null,null,null,null,null,null,null,null,null,null,null,null,null,null,null,null,null,null,null,null,{"$f":"Noblanks(J168:J665)","v":""}]
[null,null,null,null,null,null,null,null,null,null,null,null,null,null,null,null,null,null,null,null,null,null,{"$f":"Noblanks(J169:J666)","v":""}]
[null,null,null,null,null,null,null,null,null,null,null,null,null,null,null,null,null,null,null,null,null,null,{"$f":"Noblanks(J170:J667)","v":""}]
[null,null,null,null,null,null,null,null,null,null,null,null,null,null,null,null,null,null,null,null,null,null,{"$f":"Noblanks(J171:J668)","v":""}]
[null,null,null,null,null,null,null,null,null,null,null,null,null,null,null,null,null,null,null,null,null,null,{"$f":"Noblanks(J172:J669)","v":""}]
[null,null,null,null,null,null,null,null,null,null,null,null,null,null,null,null,null,null,null,null,null,null,{"$f":"Noblanks(J173:J670)","v":""}]
[null,null,null,null,null,null,null,null,null,null,null,null,null,null,null,null,null,null,null,null,null,null,{"$f":"Noblanks(J174:J671)","v":""}]
[null,null,null,null,null,null,null,null,null,null,null,null,null,null,null,null,null,null,null,null,null,null,{"$f":"Noblanks(J175:J672)","v":""}]
[null,null,null,null,null,null,null,null,null,null,null,null,null,null,null,null,null,null,null,null,null,null,{"$f":"Noblanks(J176:J673)","v":""}]
[null,null,null,null,null,null,null,null,null,null,null,null,null,null,null,null,null,null,null,null,null,null,{"$f":"Noblanks(J177:J674)","v":""}]
[null,null,null,null,null,null,null,null,null,null,null,null,null,null,null,null,null,null,null,null,null,null,{"$f":"Noblanks(J178:J675)","v":""}]
[null,null,null,null,null,null,null,null,null,null,null,null,null,null,null,null,null,null,null,null,null,null,{"$f":"Noblanks(J179:J676)","v":""}]
[null,null,null,null,null,null,null,null,null,null,null,null,null,null,null,null,null,null,null,null,null,null,{"$f":"Noblanks(J180:J677)","v":""}]
[null,null,null,null,null,null,null,null,null,null,null,null,null,null,null,null,null,null,null,null,null,null,{"$f":"Noblanks(J181:J678)","v":""}]
[null,null,null,null,null,null,null,null,null,null,null,null,null,null,null,null,null,null,null,null,null,null,{"$f":"Noblanks(J182:J679)","v":""}]
[null,null,null,null,null,null,null,null,null,null,null,null,null,null,null,null,null,null,null,null,null,null,{"$f":"Noblanks(J183:J680)","v":""}]
[null,null,null,null,null,null,null,null,null,null,null,null,null,null,null,null,null,null,null,null,null,null,{"$f":"Noblanks(J184:J681)","v":""}]
[null,null,null,null,null,null,null,null,null,null,null,null,null,null,null,null,null,null,null,null,null,null,{"$f":"Noblanks(J185:J682)","v":""}]
[null,null,null,null,null,null,null,null,null,null,null,null,null,null,null,null,null,null,null,null,null,null,{"$f":"Noblanks(J186:J683)","v":""}]
[null,null,null,null,null,null,null,null,null,null,null,null,null,null,null,null,null,null,null,null,null,null,{"$f":"Noblanks(J187:J684)","v":""}]
[null,null,null,null,null,null,null,null,null,null,null,null,null,null,null,null,null,null,null,null,null,null,{"$f":"Noblanks(J188:J685)","v":""}]
[null,null,null,null,null,null,null,null,null,null,null,null,null,null,null,null,null,null,null,null,null,null,{"$f":"Noblanks(J189:J686)","v":""}]
[null,null,null,null,null,null,null,null,null,null,null,null,null,null,null,null,null,null,null,null,null,null,{"$f":"Noblanks(J190:J687)","v":""}]
[null,null,null,null,null,null,null,null,null,null,null,null,null,null,null,null,null,null,null,null,null,null,{"$f":"Noblanks(J191:J688)","v":""}]
[null,null,null,null,null,null,null,null,null,null,null,null,null,null,null,null,null,null,null,null,null,null,{"$f":"Noblanks(J192:J689)","v":""}]
[null,null,null,null,null,null,null,null,null,null,null,null,null,null,null,null,null,null,null,null,null,null,{"$f":"Noblanks(J193:J690)","v":""}]
[null,null,null,null,null,null,null,null,null,null,null,null,null,null,null,null,null,null,null,null,null,null,{"$f":"Noblanks(J194:J691)","v":""}]
[null,null,null,null,null,null,null,null,null,null,null,null,null,null,null,null,null,null,null,null,null,null,{"$f":"Noblanks(J195:J692)","v":""}]
[null,null,null,null,null,null,null,null,null,null,null,null,null,null,null,null,null,null,null,null,null,null,{"$f":"Noblanks(J196:J693)","v":""}]
[null,null,null,null,null,null,null,null,null,null,null,null,null,null,null,null,null,null,null,null,null,null,{"$f":"Noblanks(J197:J694)","v":""}]